Workbook

Sheet Residential
C2: Home Loan Serviceability Calculator
C3: Version 6.4 31st October 2023
C6: Applicant Name
C8: Loan Details | H8: Interest Rate Buffer: | K8: 0.02
C9: (including capitalised fees) | G9: WAVG Assessment Rate | I9: =MAX(BaselineAssessmentRate,ResiWAVGInterestRate+AssessmentLoading) -> 0.055
C10: New Loan Amount | G10: Interest Rate | H10: 5 | K10: Loan Term | O10: IO Term
C11: New Loan Amount
C12: Total Loan Amount | E12: =SUM(E10:E11) -> 0 | G12: WAVG Interest Rate | I12: =IF(ResiNewLoanTotalAmount=0,0,((ResiNewLoanAmount1*ResiInterestRate1)+(ResiNewLoanAmount2*ResiInterestRate2))/ResiNewLoanTotalAmount) -> 0 | K12: WAVG Loan Term | M12: =IF(ResiNewLoanTotalAmount=0,0,((ResiNewLoanAmount1*ResiLoanTerm1)+(ResiNewLoanAmount2*ResiLoanTerm2))/ResiNewLoanTotalAmount) -> 0 | O12: WAVG IO Term | P12: =IF(ResiNewLoanTotalAmount=0,0,((ResiNewLoanAmount1*ResiLoanIOTerm1)+(ResiNewLoanAmount2*ResiLoanIOTerm2))/ResiNewLoanTotalAmount) -> 0
K13: =IF(ResiWAVGLoanTerm>MaximumLoanTermInYearsForPrimeLoans, "Loans Terms > " & MaximumLoanTermInYearsForPrimeLoans & " years not available on Prime", " ") -> 
C14: Applicant Details: | E14: Applicant 1 | G14: Applicant 2 | I14: Applicant 3 | K14: Applicant 4 | M14: Applicant 5 | O14: Applicant 6 | R14: Total
C15: Status
C16: Individual (Couple) With | D16: Applicant 1
C17: Dependants
E18: =IF(AND(SUM(E19:E23,E25:E26)<>0,E15=""),"Enter a Status","") ->  | G18: =IF(AND(SUM(G19:G23,G25:G26)<>0,G15=""),"Enter a Status","") ->  | I18: =IF(AND(SUM(I19:I23,I25:I26)<>0,I15=""),"Enter a Status","") ->  | K18: =IF(AND(SUM(K19:K23,K25:K26)<>0,K15=""),"Enter a Status","") ->  | M18: =IF(AND(SUM(M19:M23,M25:M26)<>0,M15=""),"Enter a Status","") ->  | O18: =IF(AND(SUM(O19:O23,O25:O26)<>0,O15=""),"Enter a Status","") -> 
C19: Gross Annual Income
C20: Untaxed Allowable Income | R20: =(E20+G20+I20+K20+M20+O20) -> 0
C21: Self Employed Income
C22: Addbacks
C23: Business NPBT
C25: Gross Rental Income | R25: =(E25+G25+I25+K25+M25+O25) -> 0
C26: Investment Property Loan Balance
C27: Total Income | E27: =E25*RentalIncomeShading+E19+E20+E21+E22+E23 -> 0 | G27: =G25*RentalIncomeShading+G19+G20+G21+G22+G23 -> 0 | I27: =I25*RentalIncomeShading+I19+I20+I21+I22+I23 -> 0 | K27: =K25*RentalIncomeShading+K19+K20+K21+K22+K23 -> 0 | M27: =M25*RentalIncomeShading+M19+M20+M21+M22+M23 -> 0 | O27: =O25*RentalIncomeShading+O19+O20+O21+O22+O23 -> 0 | R27: =(E27+G27+I27+K27+M27+O27) -> 0
C28: Is an Applicant | E28: =AND(E15<>"") -> FALSE | G28: =AND(G15<>"") -> FALSE | I28: =AND(I15<>"") -> FALSE | K28: =AND(K15<>"") -> FALSE | M28: =AND(M15<>"") -> FALSE | O28: =AND(O15<>"") -> FALSE
C29: Spouse Dependants | E29: =IFERROR(HLOOKUP(E16,ResiApplicantDetailsTable,4,FALSE),0) -> 0 | G29: =IFERROR(HLOOKUP(G16,ResiApplicantDetailsTable,4,FALSE),0) -> 0 | I29: =IFERROR(HLOOKUP(I16,ResiApplicantDetailsTable,4,FALSE),0) -> 0 | K29: =IFERROR(HLOOKUP(K16,ResiApplicantDetailsTable,4,FALSE),0) -> 0 | M29: =IFERROR(HLOOKUP(M16,ResiApplicantDetailsTable,4,FALSE),0) -> 0 | O29: =IFERROR(HLOOKUP(O16,ResiApplicantDetailsTable,4,FALSE),0) -> 0
C30: Pepper Status Code | D30: Applicant 1 | E30: =IF(E$15="Individual (Couple)","P-C",IF(E$15="Individual (Single)","P-S","")) ->  | G30: =IF(G$15="Individual (Couple)","P-C",IF(G$15="Individual (Single)","P-S","")) ->  | I30: =IF(I$15="Individual (Couple)","P-C",IF(I$15="Individual (Single)","P-S","")) ->  | K30: =IF(K$15="Individual (Couple)","P-C",IF(K$15="Individual (Single)","P-S","")) ->  | M30: =IF(M$15="Individual (Couple)","P-C",IF(M$15="Individual (Single)","P-S","")) ->  | O30: =IF(O$15="Individual (Couple)","P-C",IF(O$15="Individual (Single)","P-S","")) -> 
C31: Pepper Dependents Code | E31: =IF(E$15="Individual (Couple)","P-CD"&INDEX(Validation!$B$21:$B$26,MATCH((E$17+E$29),Validation!$A$21:$A$26,1)),IF(E$15="Individual (Single)","P-SD"&INDEX(Validation!$B$21:$B$26,MATCH((E$17+E$29),Validation!$A$21:$A$26,1)),"")) ->  | G31: =IF(G$15="Individual (Couple)","P-CD"&INDEX(Validation!$B$21:$B$26,MATCH((G$17+G$29),Validation!$A$21:$A$26,1)),IF(G$15="Individual (Single)","P-SD"&INDEX(Validation!$B$21:$B$26,MATCH((G$17+G$29),Validation!$A$21:$A$26,1)),"")) ->  | I31: =IF(I$15="Individual (Couple)","P-CD"&INDEX(Validation!$B$21:$B$26,MATCH((I$17+I$29),Validation!$A$21:$A$26,1)),IF(I$15="Individual (Single)","P-SD"&INDEX(Validation!$B$21:$B$26,MATCH((I$17+I$29),Validation!$A$21:$A$26,1)),"")) ->  | K31: =IF(K$15="Individual (Couple)","P-CD"&INDEX(Validation!$B$21:$B$26,MATCH((K$17+K$29),Validation!$A$21:$A$26,1)),IF(K$15="Individual (Single)","P-SD"&INDEX(Validation!$B$21:$B$26,MATCH((K$17+K$29),Validation!$A$21:$A$26,1)),"")) ->  | M31: =IF(M$15="Individual (Couple)","P-CD"&INDEX(Validation!$B$21:$B$26,MATCH((M$17+M$29),Validation!$A$21:$A$26,1)),IF(M$15="Individual (Single)","P-SD"&INDEX(Validation!$B$21:$B$26,MATCH((M$17+M$29),Validation!$A$21:$A$26,1)),"")) ->  | O31: =IF(O$15="Individual (Couple)","P-CD"&INDEX(Validation!$B$21:$B$26,MATCH((O$17+O$29),Validation!$A$21:$A$26,1)),IF(O$15="Individual (Single)","P-SD"&INDEX(Validation!$B$21:$B$26,MATCH((O$17+O$29),Validation!$A$21:$A$26,1)),"")) -> 
C32: Exclude for LE calc | E32: =IFERROR(IF(MATCH(E16,$E$14:$O$14,0)<(COLUMN()-COLUMN($E$14:$O$14)+1),TRUE,FALSE),FALSE) -> FALSE | G32: =IFERROR(IF(MATCH(G16,$E$14:$O$14,0)<(COLUMN()-COLUMN($E$14:$O$14)+1),TRUE,FALSE),FALSE) -> FALSE | I32: =IFERROR(IF(MATCH(I16,$E$14:$O$14,0)<(COLUMN()-COLUMN($E$14:$O$14)+1),TRUE,FALSE),FALSE) -> FALSE | K32: =IFERROR(IF(MATCH(K16,$E$14:$O$14,0)<(COLUMN()-COLUMN($E$14:$O$14)+1),TRUE,FALSE),FALSE) -> FALSE | M32: =IFERROR(IF(MATCH(M16,$E$14:$O$14,0)<(COLUMN()-COLUMN($E$14:$O$14)+1),TRUE,FALSE),FALSE) -> FALSE | O32: =IFERROR(IF(MATCH(O16,$E$14:$O$14,0)<(COLUMN()-COLUMN($E$14:$O$14)+1),TRUE,FALSE),FALSE) -> FALSE
C33: Workings for Negative Gearing | E33: =IF(E26>0,E26*WorkingsForNegativeGearing+($G$52*12*(E26/SUM($E$26,$G$26,$I$26,$K$26,$M$26,$O$26))),0) -> 0 | G33: =IF(G26>0,G26*WorkingsForNegativeGearing+($G$52*12*(G26/SUM($E$26,$G$26,$I$26,$K$26,$M$26,$O$26))),0) -> 0 | I33: =IF(I26>0,I26*WorkingsForNegativeGearing+($G$52*12*(I26/SUM($E$26,$G$26,$I$26,$K$26,$M$26,$O$26))),0) -> 0 | K33: =IF(K26>0,K26*WorkingsForNegativeGearing+($G$52*12*(K26/SUM($E$26,$G$26,$I$26,$K$26,$M$26,$O$26))),0) -> 0 | M33: =IF(M26>0,M26*WorkingsForNegativeGearing+($G$52*12*(M26/SUM($E$26,$G$26,$I$26,$K$26,$M$26,$O$26))),0) -> 0 | O33: =IF(O26>0,O26*WorkingsForNegativeGearing+($G$52*12*(O26/SUM($E$26,$G$26,$I$26,$K$26,$M$26,$O$26))),0) -> 0
C34: Total Taxable Income Exc Business NPBT | E34: =MAX(0,E19+E25*RentalIncomeShading-E33+E21) -> 0 | G34: =MAX(0,G19+G25*RentalIncomeShading-G33+G21) -> 0 | I34: =MAX(0,I19+I25*RentalIncomeShading-I33+I21) -> 0 | K34: =MAX(0,K19+K25*RentalIncomeShading-K33+K21) -> 0 | M34: =MAX(0,M19+M25*RentalIncomeShading-M33+M21) -> 0 | O34: =MAX(0,O19+O25*RentalIncomeShading-O33+O21) -> 0 | R34: =(E34+G34+I34+K34+M34+O34) -> 0
C35: Spouse Income | E35: =IFERROR(HLOOKUP(E16,$E$14:$O$27,ROWS($E$14:$O$27),FALSE),0)-IFERROR(HLOOKUP(E16,$E$14:$O$33,ROWS($E$14:$O$33),FALSE),0) -> 0 | G35: =IFERROR(HLOOKUP(G16,$E$14:$O$27,ROWS($E$14:$O$27),FALSE),0)-IFERROR(HLOOKUP(G16,$E$14:$O$33,ROWS($E$14:$O$33),FALSE),0) -> 0 | I35: =IFERROR(HLOOKUP(I16,$E$14:$O$27,ROWS($E$14:$O$27),FALSE),0)-IFERROR(HLOOKUP(I16,$E$14:$O$33,ROWS($E$14:$O$33),FALSE),0) -> 0 | K35: =IFERROR(HLOOKUP(K16,$E$14:$O$27,ROWS($E$14:$O$27),FALSE),0)-IFERROR(HLOOKUP(K16,$E$14:$O$33,ROWS($E$14:$O$33),FALSE),0) -> 0 | M35: =IFERROR(HLOOKUP(M16,$E$14:$O$27,ROWS($E$14:$O$27),FALSE),0)-IFERROR(HLOOKUP(M16,$E$14:$O$33,ROWS($E$14:$O$33),FALSE),0) -> 0 | O35: =IFERROR(HLOOKUP(O16,$E$14:$O$27,ROWS($E$14:$O$27),FALSE),0)-IFERROR(HLOOKUP(O16,$E$14:$O$33,ROWS($E$14:$O$33),FALSE),0) -> 0
C36: Income Bracket | E36: =IFERROR(HLOOKUP(E27+E35-E33,HemCombinedIncomeRange,3,TRUE),1) -> 1 | G36: =IFERROR(HLOOKUP(G27+G35-G33,HemCombinedIncomeRange,3,TRUE),1) -> 1 | I36: =IFERROR(HLOOKUP(I27+I35-I33,HemCombinedIncomeRange,3,TRUE),1) -> 1 | K36: =IFERROR(HLOOKUP(K27+K35-K33,HemCombinedIncomeRange,3,TRUE),1) -> 1 | M36: =IFERROR(HLOOKUP(M27+M35-M33,HemCombinedIncomeRange,3,TRUE),1) -> 1 | O36: =IFERROR(HLOOKUP(O27+O35-O33,HemCombinedIncomeRange,3,TRUE),1) -> 1
C37: Tax | E37: =IF(E15="Company",E34*CompanyTax,INDEX(TaxForBracket,MATCH(E34,TaxBracketMin,1))+INDEX(TaxRate,MATCH(E34,TaxBracketMin,1))*(E34-INDEX(TaxBracketMin,MATCH(E34,TaxBracketMin,1)))+IF(E34<='Tax Table'!$B$6,0,IF(E34<='Tax Table'!$B$7,(E34-'Tax Table'!$B$6)*'Tax Table'!$C$6,E34*'Tax Table'!$C$7)))+(E23*CompanyTax) -> 0 | G37: =IF(G15="Company",G34*CompanyTax,INDEX(TaxForBracket,MATCH(G34,TaxBracketMin,1))+INDEX(TaxRate,MATCH(G34,TaxBracketMin,1))*(G34-INDEX(TaxBracketMin,MATCH(G34,TaxBracketMin,1)))+IF(G34<='Tax Table'!$B$6,0,IF(G34<='Tax Table'!$B$7,(G34-'Tax Table'!$B$6)*'Tax Table'!$C$6,G34*'Tax Table'!$C$7)))+(G23*CompanyTax) -> 0 | I37: =IF(I15="Company",I34*CompanyTax,INDEX(TaxForBracket,MATCH(I34,TaxBracketMin,1))+INDEX(TaxRate,MATCH(I34,TaxBracketMin,1))*(I34-INDEX(TaxBracketMin,MATCH(I34,TaxBracketMin,1)))+IF(I34<='Tax Table'!$B$6,0,IF(I34<='Tax Table'!$B$7,(I34-'Tax Table'!$B$6)*'Tax Table'!$C$6,I34*'Tax Table'!$C$7)))+(I23*CompanyTax) -> 0 | K37: =IF(K15="Company",K34*CompanyTax,INDEX(TaxForBracket,MATCH(K34,TaxBracketMin,1))+INDEX(TaxRate,MATCH(K34,TaxBracketMin,1))*(K34-INDEX(TaxBracketMin,MATCH(K34,TaxBracketMin,1)))+IF(K34<='Tax Table'!$B$6,0,IF(K34<='Tax Table'!$B$7,(K34-'Tax Table'!$B$6)*'Tax Table'!$C$6,K34*'Tax Table'!$C$7)))+(K23*CompanyTax) -> 0 | M37: =IF(M15="Company",M34*CompanyTax,INDEX(TaxForBracket,MATCH(M34,TaxBracketMin,1))+INDEX(TaxRate,MATCH(M34,TaxBracketMin,1))*(M34-INDEX(TaxBracketMin,MATCH(M34,TaxBracketMin,1)))+IF(M34<='Tax Table'!$B$6,0,IF(M34<='Tax Table'!$B$7,(M34-'Tax Table'!$B$6)*'Tax Table'!$C$6,M34*'Tax Table'!$C$7)))+(M23*CompanyTax) -> 0 | O37: =IF(O15="Company",O34*CompanyTax,INDEX(TaxForBracket,MATCH(O34,TaxBracketMin,1))+INDEX(TaxRate,MATCH(O34,TaxBracketMin,1))*(O34-INDEX(TaxBracketMin,MATCH(O34,TaxBracketMin,1)))+IF(O34<='Tax Table'!$B$6,0,IF(O34<='Tax Table'!$B$7,(O34-'Tax Table'!$B$6)*'Tax Table'!$C$6,O34*'Tax Table'!$C$7)))+(O23*CompanyTax) -> 0
C38: Tax offset for Low Income Earners | E38: =0-(IF(OR(E15="Company",E34="",E34=0),0,IF(VLOOKUP(E34,TaxOffsetForLowIncomeTable,2,TRUE)+(E34-VLOOKUP(E34,TaxOffsetForLowIncomeTable,1,TRUE))*VLOOKUP(E34,TaxOffsetForLowIncomeTable,3,TRUE)<0,0,VLOOKUP(E34,TaxOffsetForLowIncomeTable,2,TRUE)+(E34-VLOOKUP(E34,TaxOffsetForLowIncomeTable,1,TRUE))*VLOOKUP(E34,TaxOffsetForLowIncomeTable,3,TRUE)))) -> 0 | G38: =0-(IF(OR(G15="Company",G34="",G34=0),0,IF(VLOOKUP(G34,TaxOffsetForLowIncomeTable,2,TRUE)+(G34-VLOOKUP(G34,TaxOffsetForLowIncomeTable,1,TRUE))*VLOOKUP(G34,TaxOffsetForLowIncomeTable,3,TRUE)<0,0,VLOOKUP(G34,TaxOffsetForLowIncomeTable,2,TRUE)+(G34-VLOOKUP(G34,TaxOffsetForLowIncomeTable,1,TRUE))*VLOOKUP(G34,TaxOffsetForLowIncomeTable,3,TRUE)))) -> 0 | I38: =0-(IF(OR(I15="Company",I34="",I34=0),0,IF(VLOOKUP(I34,TaxOffsetForLowIncomeTable,2,TRUE)+(I34-VLOOKUP(I34,TaxOffsetForLowIncomeTable,1,TRUE))*VLOOKUP(I34,TaxOffsetForLowIncomeTable,3,TRUE)<0,0,VLOOKUP(I34,TaxOffsetForLowIncomeTable,2,TRUE)+(I34-VLOOKUP(I34,TaxOffsetForLowIncomeTable,1,TRUE))*VLOOKUP(I34,TaxOffsetForLowIncomeTable,3,TRUE)))) -> 0 | K38: =0-(IF(OR(K15="Company",K34="",K34=0),0,IF(VLOOKUP(K34,TaxOffsetForLowIncomeTable,2,TRUE)+(K34-VLOOKUP(K34,TaxOffsetForLowIncomeTable,1,TRUE))*VLOOKUP(K34,TaxOffsetForLowIncomeTable,3,TRUE)<0,0,VLOOKUP(K34,TaxOffsetForLowIncomeTable,2,TRUE)+(K34-VLOOKUP(K34,TaxOffsetForLowIncomeTable,1,TRUE))*VLOOKUP(K34,TaxOffsetForLowIncomeTable,3,TRUE)))) -> 0 | M38: =0-(IF(OR(M15="Company",M34="",M34=0),0,IF(VLOOKUP(M34,TaxOffsetForLowIncomeTable,2,TRUE)+(M34-VLOOKUP(M34,TaxOffsetForLowIncomeTable,1,TRUE))*VLOOKUP(M34,TaxOffsetForLowIncomeTable,3,TRUE)<0,0,VLOOKUP(M34,TaxOffsetForLowIncomeTable,2,TRUE)+(M34-VLOOKUP(M34,TaxOffsetForLowIncomeTable,1,TRUE))*VLOOKUP(M34,TaxOffsetForLowIncomeTable,3,TRUE)))) -> 0 | O38: =0-(IF(OR(O15="Company",O34="",O34=0),0,IF(VLOOKUP(O34,TaxOffsetForLowIncomeTable,2,TRUE)+(O34-VLOOKUP(O34,TaxOffsetForLowIncomeTable,1,TRUE))*VLOOKUP(O34,TaxOffsetForLowIncomeTable,3,TRUE)<0,0,VLOOKUP(O34,TaxOffsetForLowIncomeTable,2,TRUE)+(O34-VLOOKUP(O34,TaxOffsetForLowIncomeTable,1,TRUE))*VLOOKUP(O34,TaxOffsetForLowIncomeTable,3,TRUE)))) -> 0
C39: Net | E39: =E27-(IF(E37+E38>0,E37+E38,0)) -> 0 | G39: =G27-(IF(G37+G38>0,G37+G38,0)) -> 0 | I39: =I27-(IF(I37+I38>0,I37+I38,0)) -> 0 | K39: =K27-(IF(K37+K38>0,K37+K38,0)) -> 0 | M39: =M27-(IF(M37+M38>0,M37+M38,0)) -> 0 | O39: =O27-(IF(O37+O38>0,O37+O38,0)) -> 0 | R39: =(E39+G39+I39+K39+M39+O39) -> 0
C40: HEM Living Expense | E40: =IFERROR(IF(AND(E28,NOT(E32)),(VLOOKUP(E30,HemTableForExpenses,E36+1,FALSE) +(VLOOKUP(E31,HemTableForExpenses,E36+1,FALSE))*(E17+E29))*NumberOfWeeksInAYear,0),0) -> 0 | G40: =IFERROR(IF(AND(G28,NOT(G32)),(VLOOKUP(G30,HemTableForExpenses,G36+1,FALSE) +(VLOOKUP(G31,HemTableForExpenses,G36+1,FALSE))*(G17+G29))*NumberOfWeeksInAYear,0),0) -> 0 | I40: =IFERROR(IF(AND(I28,NOT(I32)),(VLOOKUP(I30,HemTableForExpenses,I36+1,FALSE) +(VLOOKUP(I31,HemTableForExpenses,I36+1,FALSE))*(I17+I29))*NumberOfWeeksInAYear,0),0) -> 0 | K40: =IFERROR(IF(AND(K28,NOT(K32)),(VLOOKUP(K30,HemTableForExpenses,K36+1,FALSE) +(VLOOKUP(K31,HemTableForExpenses,K36+1,FALSE))*(K17+K29))*NumberOfWeeksInAYear,0),0) -> 0 | M40: =IFERROR(IF(AND(M28,NOT(M32)),(VLOOKUP(M30,HemTableForExpenses,M36+1,FALSE) +(VLOOKUP(M31,HemTableForExpenses,M36+1,FALSE))*(M17+M29))*NumberOfWeeksInAYear,0),0) -> 0 | O40: =IFERROR(IF(AND(O28,NOT(O32)),(VLOOKUP(O30,HemTableForExpenses,O36+1,FALSE) +(VLOOKUP(O31,HemTableForExpenses,O36+1,FALSE))*(O17+O29))*NumberOfWeeksInAYear,0),0) -> 0 | R40: 0
C41: Expenses compared to HEM Annual | E41: =SUMIF($F$50:$F$65,"Yes",$G$50:$G$65)*12 -> 0 | G41: Expenses not compared to HEM Exc Inv Property Annual | K41: =SUMIF($F$50:$F$65,"No",$G$50:$G$65)*12-(G52*12) -> 0 | M41: Customer Nominated Living Expenses | R41: =E41+K41+K42 -> 0
C42: Compared to HEM Percentage on Benchmark | E42: =IF(R40=0,0,E41/R40) -> 0 | I42: Investment Property Costs >15% of rent Annual | K42: =MAX(0,(G52*12)-(R25*15%)) -> 0 | M42: Living Expenses Used | R42: =MAX(R40,E41)+K41+K42 -> 0
M43: Net Available Income | R43: =R39-R42 -> 0
C47: Commitments
C49: Living Expenses: | F49: Compared To Hem | G49: Per Month | I49: Other Commitments: | M49: Per Month
C50: Primary residence utilities, rates & expenses | F50: Yes | I50: Rent/Board
C51: Primary residence strata fees & land tax & FHB property tax | F51: No | I51: Total Credit Card Limit | N51: 34 | O51: =TEXT(CreditCardCommitments,"0.00%")&": "&M51*CreditCardCommitments -> 3.82%: 0 | R51: =M51*CreditCardCommitments -> 0
C52: Investment property utilities, rates, strata fees & land tax | F52: No | I52: Other Mortgage Repayments
C53: Telephone, internet, Pay TV & media streaming | F53: Yes | I53: Other Liabilities
C54: Groceries | F54: Yes
C55: Recreation & Entertainment | F55: Yes
C56: Clothing & Personal Care | F56: Yes
C57: Medical & Health | F57: Yes
C58: Transport | F58: Yes | K58: The living expenses declared by the customer are at risk of being understated when compared to a living expense benchmark. A Level 5 Pepper DCA holder will be required to approve this application
C59: Education – non Private schooling | F59: Yes
C60: Education - Private schooling | F60: No
C61: Childcare | F61: Yes
C62: Insurance - General Basic | F62: Yes
C63: Insurance - Health, Sickness, Personal Accident & Life | F63: No
C64: Other Living Expenses | F64: No
C65: Child & Spousal Maintenance | F65: No
C68: Results
C70: Actual Rate: | E70: Monthly | G70: Annual | I70: Assessment Rate: | M70: Monthly | O70: Annual
C71: Total Income | E71: =G71/NumberOfMonthsInAYear -> 0 | G71: =$R$27 -> 0 | K71: Total Income | M71: =O71/NumberOfMonthsInAYear -> 0 | O71: =$R$27 -> 0
C72: Net Income | E72: =G72/NumberOfMonthsInAYear -> 0 | G72: =$R$39 -> 0 | K72: Net Income | M72: =R39/NumberOfMonthsInAYear -> 0 | O72: =$R$39 -> 0
C73: Living Costs | E73: =G73/NumberOfMonthsInAYear -> 0 | G73: =$R$42 -> 0 | K73: Living Costs | M73: =O73/NumberOfMonthsInAYear -> 0 | O73: =$R$42 -> 0
C74: Net Available Income | E74: =IFERROR(G74/NumberOfMonthsInAYear,0) -> 0 | G74: =$G$72-$G$73 -> 0 | K74: Net Available Income | M74: =IFERROR(O74/NumberOfMonthsInAYear,0) -> 0 | O74: =$O$72-$O$73 -> 0
C75: Proposed Repayments | E75: =IFERROR(-PMT(ResiInterestRate1/NumberOfMonthsInAYear,(ResiLoanTerm1-ResiLoanIOTerm1)*NumberOfMonthsInAYear,ResiNewLoanAmount1),0)+IFERROR(-PMT(ResiInterestRate2/NumberOfMonthsInAYear,(ResiLoanTerm2-ResiLoanIOTerm2)*NumberOfMonthsInAYear,ResiNewLoanAmount2),0) -> 0 | G75: =E75*NumberOfMonthsInAYear -> 0 | K75: Proposed Repayments | M75: =IFERROR(-PMT(ResiAssessmentRate1/NumberOfMonthsInAYear,(ResiLoanTerm1-ResiLoanIOTerm1)*NumberOfMonthsInAYear,ResiNewLoanAmount1),0)+IFERROR(-PMT(ResiAssessmentRate2/NumberOfMonthsInAYear,(ResiLoanTerm2-ResiLoanIOTerm2)*NumberOfMonthsInAYear,ResiNewLoanAmount2),0) -> 0 | O75: =M75*NumberOfMonthsInAYear -> 0
C76: Other Commitments | E76: =IFERROR(G76/NumberOfMonthsInAYear,0) -> 0 | G76: =O76 -> 0 | K76: Other Commitments | M76: =IFERROR(O76/NumberOfMonthsInAYear,0) -> 0 | O76: =($M$52*OtherMortgageRepaymentBuffer+$M$53+$R$51+$M$50)*NumberOfMonthsInAYear -> 0
C78: NSR: | E78: =IF(K83="INCOMPLETE",0,IFERROR(ROUNDDOWN(G74/(G75+G76),2),0)) -> 0 | G78: =IF(OR(ResiCheckForCompleteness="INCOMPLETE",ResiTotalIncome=0),"INCOMPLETE",IF(AND(IF(AND(ResiTotalUntaxedAvailableIncome<>0,ResiTotalUntaxedAvailableIncome/ResiTotalIncome>AllowableGovernmentAllowanceOverTotalIncomeLimitation),ResiActualNSR>=AcceptableNSRForGovernmentIncome,TRUE),(ResiActualNSR>=AcceptableNSRForAllOtherApplicants)),"PASS","FAIL")) -> INCOMPLETE | K78: NSR: | M78: =IF(K83="INCOMPLETE",0,IFERROR(ROUNDDOWN(O74/(O75+O76),2),0)) -> 0 | O78: =IF(OR(ResiCheckForCompleteness="INCOMPLETE",ResiTotalIncome=0),"INCOMPLETE",IF(AND(IF(AND(ResiTotalUntaxedAvailableIncome<>0,ResiTotalUntaxedAvailableIncome/ResiTotalIncome>AllowableGovernmentAllowanceOverTotalIncomeLimitation),ResiAssessmentNSR>=AcceptableNSRForGovernmentIncome,TRUE),(ResiAssessmentNSR>=AcceptableNSRForAllOtherApplicants)),"PASS","FAIL")) -> INCOMPLETE
C79: DSR: | E79: =IF(K83="INCOMPLETE","-",IFERROR((G75+G76-(M50*12))/R27,"-")) -> - | K79: DSR: | M79: =IF(K83="INCOMPLETE","-",IFERROR((O75 +O76-(M50*12))/R27,"-")) -> -
K82: Application Status
K83: =IF(OR(ResiNewLoanTotalAmount="",ResiWAVGInterestRate="",ResiWAVGLoanTerm="",E15="",R27=0,E18<>"",G18<>"",I18<>"",K18<>"",M18<>"",O18<>"",M10<=I9,G50="",G51="",G52="",G53="",G54="",G55="",G56="",G57="",G58="",G59="",G60="",G61="",G62="",G63="",G64="",G65=""),"INCOMPLETE","COMPLETE") -> INCOMPLETE
G85: Eligible Loan Amount | M85: =IF(O78="INCOMPLETE",O78,MAX(0,IF(O78="PASS",ResiNewLoanTotalAmount,IFERROR(-PV(ResiWAVGAssessmentRate/12,(ResiWAVGLoanTerm-ResiWAVGLoanIOTerm)*12,ROUNDDOWN(((O74-(O76*(IF(AND(ResiTotalUntaxedAvailableIncome<>0,ResiTotalUntaxedAvailableIncome/ResiTotalIncome>AllowableGovernmentAllowanceOverTotalIncomeLimitation),AcceptableNSRForGovernmentIncome,AcceptableNSRForAllOtherApplicants))))/(NumberOfMonthsInAYear*(IF(AND(ResiTotalUntaxedAvailableIncome<>0,ResiTotalUntaxedAvailableIncome/ResiTotalIncome>AllowableGovernmentAllowanceOverTotalIncomeLimitation),AcceptableNSRForGovernmentIncome,AcceptableNSRForAllOtherApplicants)))),0),0),0)))) -> INCOMPLETE
G87: Maximum Serviceable Loan Amount | M87: =IF(O78="INCOMPLETE",O78,MAX(0,IFERROR(-PV(ResiWAVGAssessmentRate/12,(ResiWAVGLoanTerm-ResiWAVGLoanIOTerm)*12,ROUNDDOWN(((O74-(O76*(IF(AND(ResiTotalUntaxedAvailableIncome<>0,ResiTotalUntaxedAvailableIncome/ResiTotalIncome>AllowableGovernmentAllowanceOverTotalIncomeLimitation),AcceptableNSRForGovernmentIncome,AcceptableNSRForAllOtherApplicants))))/(NumberOfMonthsInAYear*(IF(AND(ResiTotalUntaxedAvailableIncome<>0,ResiTotalUntaxedAvailableIncome/ResiTotalIncome>AllowableGovernmentAllowanceOverTotalIncomeLimitation),AcceptableNSRForGovernmentIncome,AcceptableNSRForAllOtherApplicants)))),0),0),0))) -> INCOMPLETE
C88: Net Service Ratio (NSR) Requirements (using Assessment Rate)
C89: All applications: NSR must be ≥ 1.00 (1.25x where final LVR > 90%)
C90: Where loan amount or borrower exposure is > $1.5m AND aggregate LVR > 70%: NSR must be ≥ 1.25 Applicants with majority income as Government Allowances (eg. Pensions, Family Tax Benefits): NSR must be ≥ 1.25
C91: 1% Interest Rate Buffer Eligiblity Rules Allowed for the following transactions: - Purchase of an investment property OR - Interest rate is FIXED across the whole loan (cash out ≤ $20,000) OR - Refinance home loan & debt consolidation (cash out ≤ $20,000) | I91: The following rules apply: - Maximum LVR is 80%, AND - Minimum Equifax Credit Bureau score is 700, AND - No RHI > 0 on all debts or default listings in the last 12 months & no unpaid default listings
C92: Important Information: This calculator is to be used as a guide only as to borrowing power based on the basic information provided. It is not an offer of credit or a quote. Lending criteria, terms and conditions, fees and charges will apply should a borrower apply for credit. Pepper Money Limited ABN 55 094 317 665 Australian credit licence 286655

Sheet HEM Table (hidden)
A1: Combined Couple Gross Income | C1: =B2 -> 0 | D1: =C2 -> 25000 | E1: =D2 -> 37000 | F1: 50000 | G1: 62000 | H1: 74000 | I1: 99000 | J1: 124000 | K1: 149000 | L1: 173000 | M1: 198000 | N1: 248000 | O1: 309000 | P1: 371000 | S1: Higher income band used as data not available for income band
A2: HEM 2023Q2 | C2: 25000 | D2: 37000 | E2: 50000 | F2: 62000 | G2: 74000 | H2: 99000 | I2: 124000 | J2: 149000 | K2: 173000 | L2: 198000 | M2: 248000 | N2: 309000 | O2: 371000 | P2: 999999999
C3: 1 | D3: 2 | E3: 3 | F3: 4 | G3: 5 | H3: 6 | I3: 7 | J3: 8 | K3: 9 | L3: 10 | M3: 11 | N3: 12 | O3: 13 | P3: 14
A4: Pepper - Proposed
A5: Single | B5: P-S | C5: =C25 -> 286.5528861 | D5: 303.5969207 | E5: 317.3700509 | F5: 337.0812973 | G5: 375.6459482 | H5: 431.2875194 | I5: 510.8984895 | J5: 584.8637194 | K5: 672.8408754 | L5: 716.7156272 | M5: 765.0795214 | N5: 891.0897407 | O5: 1011.991527 | P5: 1053.557145
A6: Couple | B6: P-C | C6: =D6 -> 562.5749121 | D6: =D20 -> 562.5749121 | E6: 576.3277922 | F6: 596.0100798 | G6: 634.518087 | H6: 690.0779437 | I6: 769.5719257 | J6: 843.4285528 | K6: 931.2764591 | L6: 975.0867809 | M6: 1023.379614 | N6: 1149.204698 | O6: 1269.928926 | P6: 1311.433488
A7: Single parent with 1 child (per child) | B7: P-SD1 | C7: =D7 -> 101.2465028 | D7: =IF(D26-D25<0,0,D26-D25) -> 101.2465028 | E7: 101.2240204 | F7: 101.1918666 | G7: 101.1289721 | H7: 101.0382388 | I7: 100.9083469 | J7: 100.7877553 | K7: 100.6442457 | L7: 100.5726673 | M7: 100.4938224 | N7: 100.2883176 | O7: 100.0911261 | P7: 100.0233324
A8: Single parent with 2 children (per child) | B8: P-SD2 | C8: 107.4317176 | D8: =IF(D27-D25<0,0,D27-D25)/2 -> 107.4317176 | E8: 107.4017764 | F8: 107.3589155 | G8: 107.2750522 | H8: 107.1540657 | I8: 106.9809335 | J8: 106.8201058 | K8: 106.6287946 | L8: 106.5333497 | M8: 106.4282165 | N8: 106.1541911 | O8: 105.8913019 | P8: 105.8008968
A9: Single parent with 3 children (per child) | B9: P-SD3 | C9: 109.4610283 | D9: =E9 -> 109.4610283 | E9: =IF(E28-E25<0,0,E28-E25)/3 -> 109.4610283 | F9: 109.4145984 | G9: 109.3237456 | H9: 109.1926747 | I9: 109.005129 | J9: 108.8308892 | K9: 108.6236442 | L9: 108.5202439 | M9: 108.4063479 | N9: 108.1094823 | O9: 107.8246938 | P9: 107.7267516
A10: Single parent with 4 or more children (per child) | B10: P-SD4+ | C10: 109.4610283 | D10: 109.4610283 | E10: =IF(E28-E25<0,0,E28-E25)/3 -> 109.4610283 | F10: 109.4145984 | G10: 109.3237456 | H10: 109.1926747 | I10: 109.005129 | J10: 108.8308892 | K10: 108.6236442 | L10: 108.5202439 | M10: 108.4063479 | N10: 108.1094823 | O10: 107.8246938 | P10: 107.7267516
A11: Couple with 1 child (per child) | B11: P-CD1 | C11: 87.05253271 | D11: 87.05253271 | E11: =IF(E21-E20<0,0,E21-E20) -> 87.05253271 | F11: 87.03390034 | G11: 86.99752817 | H11: 86.94498244 | I11: 86.86984053 | J11: 86.80002735 | K11: 86.71698888 | L11: 86.67555864 | M11: 86.62992812 | N11: 86.51099162 | O11: 86.39687671 | P11: 86.35764441
A12: Couple with 2 children (per child) | B12: P-CD2 | C12: 79.75897558 | D12: 79.75897558 | E12: =IF(E22-E20<0,0,E22-E20)/2 -> 79.75897558 | F12: 79.7608498 | G12: 79.76451207 | H12: 79.76978426 | I12: 79.77738165 | J12: 79.78440534 | K12: 79.79277978 | L12: 79.79690546 | M12: 79.8015502 | N12: 79.81353175 | O12: 79.82502758 | P12: 79.82897981
A13: Couple with 3 children (per child) | B13: P-CD3 | C13: 74.01006926 | D13: 74.01006926 | E13: =F13 -> 74.01006926 | F13: =IF(F23-F20<0,0,F23-F20)/3 -> 74.01006926 | G13: 74.03393362 | H13: 74.06835756 | I13: 74.11764677 | J13: 74.16341728 | K13: 74.21786582 | L13: 74.2450135 | M13: 74.27495793 | N13: 74.35294489 | O13: 74.42777032 | P13: 74.45349504
A14: Couple with 4 or more children (per child) | B14: P-CD4+ | C14: =D14 -> 74.01006926 | D14: =E14 -> 74.01006926 | E14: =F14 -> 74.01006926 | F14: =IF(F23-F20<0,0,F23-F20)/3 -> 74.01006926 | G14: 74.03393362 | H14: 74.06835756 | I14: 74.11764677 | J14: 74.16341728 | K14: 74.21786582 | L14: 74.2450135 | M14: 74.27495793 | N14: 74.35294489 | O14: 74.42777032 | P14: 74.45349504
C16: 1 | D16: 2 | E16: 3 | F16: 4 | G16: 5 | H16: 6 | I16: 7 | J16: 8 | K16: 9 | L16: 10 | M16: 11 | N16: 12 | O16: 13 | P16: 14
C17: 25000 | D17: 25000 | E17: 37000 | F17: 50000 | G17: 62000 | H17: 74000 | I17: 99000 | J17: 124000 | K17: 149000 | L17: 173000 | M17: 198000 | N17: 248000 | O17: 309000 | P17: 371000
C18: or less | D18: to | E18: to | F18: to | G18: to | H18: to | I18: to | J18: to | K18: to | L18: to | M18: to | N18: to | O18: to | P18: to
A19: Australia | D19: 37000 | E19: 50000 | F19: 62000 | G19: 74000 | H19: 99000 | I19: 124000 | J19: 149000 | K19: 173000 | L19: 198000 | M19: 248000 | N19: 309000 | O19: 371000 | P19: 619000
A20: Couple | C20: 0 | D20: 562.5749121 | E20: 576.3277922 | F20: 596.0100798 | G20: 634.518087 | H20: 690.0779437 | I20: 769.5719257 | J20: 843.4285528 | K20: 931.2764591 | L20: 975.0867809 | M20: 1023.379614 | N20: 1149.204698 | O20: 1269.928926 | P20: 1311.433488
A21: Couple with 1 child | C21: 0 | D21: 0 | E21: 663.3803249 | F21: 683.0439802 | G21: 721.5156151 | H21: 777.0229262 | I21: 856.4417662 | J21: 930.2285802 | K21: 1017.993448 | L21: 1061.76234 | M21: 1110.009542 | N21: 1235.715689 | O21: 1356.325803 | P21: 1397.791132
A22: Couple with 2 children | C22: 0 | D22: 0 | E22: 735.8457434 | F22: 755.5317794 | G22: 794.0471111 | H22: 849.6175122 | I22: 929.126689 | J22: 1002.997363 | K22: 1090.862019 | L22: 1134.680592 | M22: 1182.982714 | N22: 1308.831761 | O22: 1429.578981 | P22: 1471.091448
A23: Couple with 3 or more children | C23: 0 | D23: 0 | E23: 0 | F23: 818.0402876 | G23: 856.6198878 | H23: 912.2830164 | I23: 991.924866 | J23: 1065.918805 | K23: 1153.930057 | L23: 1197.821821 | M23: 1246.204488 | N23: 1372.263532 | O23: 1493.212237 | P23: 1534.793973
A25: Single person | C25: 286.5528861 | D25: 303.5969207 | E25: 317.3700509 | F25: 337.0812973 | G25: 375.6459482 | H25: 431.2875194 | I25: 510.8984895 | J25: 584.8637194 | K25: 672.8408754 | L25: 716.7156272 | M25: 765.0795214 | N25: 891.0897407 | O25: 1011.991527 | P25: 1053.557145
A26: Single parent with 1 child | C26: 0 | D26: 404.8434236 | E26: 418.5940712 | F26: 438.2731639 | G26: 476.7749203 | H26: 532.3257583 | I26: 611.8068363 | J26: 685.6514747 | K26: 773.4851211 | L26: 817.2882945 | M26: 865.5733438 | N26: 991.3780582 | O26: 1112.082653 | P26: 1153.580478
A27: Single parent with 2 children | C27: 0 | D27: 518.4603559 | E27: 532.1736036 | F27: 551.7991282 | G27: 590.1960526 | H27: 645.5956508 | I27: 724.8603564 | J27: 798.5039309 | K27: 886.0984646 | L27: 929.7823267 | M27: 977.9359544 | N27: 1103.398123 | O27: 1223.774131 | P27: 1265.158939
A28: Single parent with 3 or more children | C28: 0 | D28: 0 | E28: 645.7531359 | F28: 665.3250925 | G28: 703.6171848 | H28: 758.8655434 | I28: 837.9138764 | J28: 911.3563871 | K28: 998.711808 | L28: 1042.276359 | M28: 1090.298565 | N28: 1215.418188 | O28: 1335.465608 | P28: 1376.7374
A36: Comparison to prior Benchmark version
A38: HEM 2023Q1
C40: 25000 | D40: 25000 | E40: 37000 | F40: 49000 | G40: 61000 | H40: 74000 | I40: 98000 | J40: 123000 | K40: 147000 | L40: 172000 | M40: 196000 | N40: 246000 | O40: 307000 | P40: 368000
C41: or less | D41: to | E41: to | F41: to | G41: to | H41: to | I41: to | J41: to | K41: to | L41: to | M41: to | N41: to | O41: to | P41: to
A42: Australia | D42: 37000 | E42: 49000 | F42: 61000 | G42: 74000 | H42: 98000 | I42: 123000 | J42: 147000 | K42: 172000 | L42: 196000 | M42: 246000 | N42: 307000 | O42: 368000 | P42: 614000
A43: Couple | C43: 0 | D43: 553.2836837 | E43: 567.6594413 | F43: 588.2479079 | G43: 626.2350868 | H43: 681.1490085 | I43: 756.9810332 | J43: 828.739474 | K43: 915.1865124 | L43: 960.4449562 | M43: 1003.988043 | N43: 1126.151749 | O43: 1243.438472 | P43: 1287.68008
A44: Couple with 1 child | C44: 0 | D44: 0 | E44: 654.4075494 | F44: 675.0683112 | G44: 713.1888889 | H44: 768.2955915 | I44: 844.3939324 | J44: 916.4043118 | K44: 1003.154904 | L44: 1048.57227 | M44: 1092.268274 | N44: 1214.860932 | O44: 1332.5595 | P44: 1376.95646
A45: Couple with 2 children | C45: 0 | D45: 0 | E45: 726.5628949 | F45: 747.1334923 | G45: 785.0877011 | H45: 839.9539249 | I45: 915.7201328 | J45: 987.4163291 | K45: 1073.788265 | L45: 1119.007501 | M45: 1162.512777 | N45: 1284.570399 | O45: 1401.755398 | P45: 1445.958535
A46: Couple with 3 or more children | C46: 0 | D46: 0 | E46: 0 | F46: 805.7396264 | G46: 844.0071665 | H46: 899.3263256 | I46: 975.7180038 | J46: 1048.006071 | K46: 1135.09103 | L46: 1180.683581 | M46: 1224.548005 | N46: 1347.613246 | O46: 1465.765602 | P46: 1510.333721
A48: Single person | C48: 281.8896738 | D48: 297.876973 | E48: 312.2425383 | F48: 332.8163882 | G48: 370.7766028 | H48: 425.6515019 | I48: 501.4296898 | J48: 573.1372316 | K48: 659.5228423 | L48: 704.7491733 | M48: 748.2613652 | N48: 870.3383232 | O48: 987.5418334 | P48: 1031.75196
A49: Single parent with 1 child | C49: 0 | D49: 398.1915494 | E49: 412.5558607 | F49: 433.127984 | G49: 471.0849133 | H49: 525.9551462 | I49: 601.7268306 | J49: 673.4281813 | K49: 759.8064069 | L49: 805.0288985 | M49: 848.5373248 | N49: 970.6038389 | O49: 1087.79725 | P49: 1132.00366
A50: Single parent with 2 children | C50: 0 | D50: 510.5315003 | E50: 524.9307876 | F50: 545.5529001 | G50: 583.6021579 | H50: 638.6057837 | I50: 714.5617337 | J50: 786.4374427 | K50: 873.0257536 | L50: 918.3581959 | M50: 961.9724412 | N50: 1084.335715 | O50: 1201.814182 | P50: 1246.128017
A51: Single parent with 3 or more children | C51: 0 | D51: 0 | E51: 637.3057145 | F51: 657.9778162 | G51: 696.1194025 | H51: 751.2564213 | I51: 827.3966368 | J51: 899.4467042 | K51: 986.2451004 | L51: 1031.687493 | M51: 1075.407558 | N51: 1198.067591 | O51: 1315.831114 | P51: 1360.252374
A53: CHANGE
A54: Couple | D54: =D20-D43 -> 9.291228399 | E54: 8.668350933 | F54: 7.762171887 | G54: 8.283000139 | H54: 8.928935183 | I54: 12.59089251 | J54: 14.68907882 | K54: 16.08994674 | L54: 14.6418247 | M54: 19.39157091 | N54: 23.05294847 | O54: 26.49045403 | P54: 23.75340747
A55: Couple with 1 child | E55: =E21-E44 -> 8.972775527 | F55: 7.975668982 | G55: 8.326726242 | H55: 8.727334622 | I55: 12.04783382 | J55: 13.82426835 | K55: 14.83854435 | L55: 13.19006982 | M55: 17.74126828 | N55: 20.85475737 | O55: 23.76630293 | P55: 20.83467239
A56: Couple with 2 children | E56: =E22-E45 -> 9.282848444 | F56: 8.398287143 | G56: 8.959410057 | H56: 9.663587355 | I56: 13.40655616 | J56: 15.58103441 | K56: 17.07375413 | L56: 15.67309135 | M56: 20.46993756 | N56: 24.26136234 | O56: 27.82358277 | P56: 25.13291234
A57: Couple with 3 or more children | F57: =F23-F46 -> 12.30066124 | G57: 12.61272135 | H57: 12.95669077 | I57: 16.20686215 | J57: 17.91273333 | K57: 18.83902639 | L57: 17.13823998 | M57: 21.65648236 | N57: 24.65028667 | O57: 27.44663517 | P57: 24.46025198
A59: Single person | C59: =C25-C48 -> 4.663212388 | D59: 5.719947697 | E59: 5.127512584 | F59: 4.264909088 | G59: 4.869345381 | H59: 5.636017497 | I59: 9.468799686 | J59: 11.72648777 | K59: 13.31803312 | L59: 11.96645389 | M59: 16.81815616 | N59: 20.75141742 | O59: 24.44969348 | P59: 21.80518582
A60: Single parent with 1 child | D60: =D26-D49 -> 6.651874156 | E60: 6.038210577 | F60: 5.145179953 | G60: 5.690006968 | H60: 6.370612105 | I60: 10.08000575 | J60: 12.22329343 | K60: 13.67871423 | L60: 12.259396 | M60: 17.03601902 | N60: 20.77421928 | O60: 24.2854033 | P60: 21.57681761
A61: Single parent with 2 children | D61: =D27-D50 -> 7.928855586 | E61: 7.242816024 | F61: 6.246228161 | G61: 6.593894635 | H61: 6.989867088 | I61: 10.29862271 | J61: 12.06648818 | K61: 13.07271094 | L61: 11.42413081 | M61: 15.96351321 | N61: 19.062408 | O61: 21.95994878 | P61: 19.03092183
A62: Single parent with 3 or more children | E62: =E28-E51 -> 8.447421471 | F62: 7.347276368 | G62: 7.497782303 | H62: 7.609122072 | I62: 10.51723967 | J62: 11.90968293 | K62: 12.46670765 | L62: 10.58886562 | M62: 14.89100739 | N62: 17.35059671 | O62: 19.63449426 | P62: 16.48502605

Sheet TestCases (hidden)
A1: Test Cases TestCases TestCases TestCases TestCases TestCases TestCases TestCases TestCases TestCases TestCases TestCases TestCases TestCases TestCases TestCases TestCases TestCases TestCases TestCases TestCases TestCases TestCases TestCases TestCases TestCases TestCases TestCases TestCases TestCases TestCases TestCases TestCases TestCases TestCases TestCases TestCases TestCases TestCases TestCases TestCases TestCases TestCases TestCases TestCases TestCases TestCases TestCases TestCases TestCases TestCases TestCases TestCases TestCases TestCases TestCases TestCases TestCases TestCases TestCases TestCases TestCases TestCases TestCases TestCases TestCases TestCases TestCases TestCases TestCases TestCases TestCases TestCases TestCases TestCases TestCases TestCases TestCases TestCases TestCases TestCases TestCases TestCases TestCases | DH1: Original-Result-set Original-Result-set Original-Result-set Original-Result-set Original-Result-set Original-Result-set Original-Result-set Original-Result-set Original-Result-set Original-Result-set Original-Result-set Original-Result-set Original-Result-set Original-Result-set Original-Result-set Original-Result-set Original-Result-set Original-Result-set Original-Result-set Original-Result-set Original-Result-set Original-Result-set Original-Result-set Original-Result-set Original-Result-set Original-Result-set Original-Result-set Original-Result-set | FQ1: New-Resultset New-Resultset New-Resultset New-Resultset New-Resultset New-Resultset New-Resultset New-Resultset New-Resultset New-Resultset New-Resultset New-Resultset New-Resultset New-Resultset New-Resultset New-Resultset New-Resultset New-Resultset New-Resultset New-Resultset New-Resultset New-Resultset New-Resultset New-Resultset New-Resultset New-Resultset New-Resultset New-Resultset New-Resultset New-Resultset New-Resultset New-Resultset New-Resultset New-Resultset New-Resultset New-Resultset New-Resultset New-Resultset | HZ1: Test cases will run when date tested is blank and Run Scenario Flag is "Y"
A2: Total Loan Amount | B2: WAVG Interest Rate | C2: WAVG Assessment Rate | D2: Max Loan Term | E2: Max IO Term | F2: Loan Amount 1 | G2: Interest Rate 1 | H2: Assessement Rate 1 | I2: Loan Term 1 | J2: IO Term 1 | K2: Loan Amount 2 | L2: Interest Rate 2 | M2: Assessment Rate 2 | N2: Loan Term 2 | O2: IO Term 2 | P2: Status 1 | Q2: Status 2 | R2: Status 3 | S2: Status 4 | T2: Status 5 | U2: Status 6 | V2: Couple With 1 | W2: Couple With 2 | X2: Couple With 3 | Y2: Couple With 4 | Z2: Couple With 5 | AA2: Couple With 6 | AB2: Dependants 1 | AC2: Dependants 2 | AD2: Dependants 3 | AE2: Dependants 4 | AF2: Dependants 5 | AG2: Dependants 6 | AH2: Gross Annual Income 1 | AI2: Gross Annual Income 2 | AJ2: Gross Annual Income 3 | AK2: Gross Annual Income 4 | AL2: Gross Annual Income 5 | AM2: Gross Annual Income 6 | AN2: Untaxed Income 1 | AO2: Untaxed Income 2 | AP2: Untaxed Income 3 | AQ2: Untaxed Income 4 | AR2: Untaxed Income 5 | AS2: Untaxed Income 6 | AT2: SEIC 1 | AU2: SEIC 2 | AV2: SEIC 3 | AW2: SEIC 4 | AX2: SEIC 5 | AY2: SEIC 6 | AZ2: Add Backs 1 | BA2: Add Backs 2 | BB2: Add Backs 3 | BC2: Add Backs 4 | BD2: Add Backs 5 | BE2: Add Backs 6 | BF2: NPBT 1 | BG2: NPBT 2 | BH2: NPBT 3 | BI2: NPBT 4 | BJ2: NPBT 5 | BK2: NPBT 6 | BL2: Gross Rental Income 1 | BM2: Gross Rental Income 2 | BN2: Gross Rental Income 3 | BO2: Gross Rental Income 4 | BP2: Gross Rental Income 5 | BQ2: Gross Rental Income 6 | BR2: Investment Property Loan Balance 1 | BS2: Investment Property Loan Balance 2 | BT2: Investment Property Loan Balance 3 | BU2: Investment Property Loan Balance 4 | BV2: Investment Property Loan Balance 5 | BW2: Investment Property Loan Balance 6 | BX2: Owner occupied property utilities, rates & costs | BY2: Rented property costs | BZ2: Investment property utilities, rates & costs | CA2: Telephone, Internet, Pay TV & Media Streaming | CB2: Groceries | CC2: Recreation & Entertainment | CD2: Clothing & Personal Care | CE2: Medical & Health | CF2: Transport | CG2: Education – non Private schooling | CH2: Education - Private schooling | CI2: Childcare | CJ2: Insurance - General Basic | CK2: Insurance - Health, Sickness and Personal Accident, Life | CL2: Other Living Expenses | CM2: Child and Spousal Maintenance | CN2: Owner occupied property utilities, rates & costs | CO2: Rented property costs | CP2: Investment property utilities, rates & costs | CQ2: Telephone, Internet, Pay TV & Media Streaming | CR2: Groceries | CS2: Recreation & Entertainment | CT2: Clothing & Personal Care | CU2: Medical & Health | CV2: Transport | CW2: Education – non Private schooling | CX2: Education - Private schooling | CY2: Childcare | CZ2: Insurance - General Basic | DA2: Insurance - Health, Sickness and Personal Accident, Life | DB2: Other Living Expenses | DC2: Child and Spousal Maintenance | DD2: Rent/Board | DE2: Total Credit Card Limit | DF2: Other Mortgage Repayments | DG2: Other Liabilities | DH2: Tax Applicant 1 | DI2: Tax Applicant 2 | DJ2: Tax Applicant 3 | DK2: Tax Applicant 4 | DL2: Tax Applicant 5 | DM2: Tax Applicant 6 | DN2: Net Income Applicant 1 | DO2: Net Income Applicant 2 | DP2: Net Income Applicant 3 | DQ2: Net Income Applicant 4 | DR2: Net Income Applicant 5 | DS2: Net Income Applicant 6 | DT2: Net Income Total | DU2: Hem Living Expense Applicant 1 | DV2: Hem Living Expense Applicant 2 | DW2: Hem Living Expense Applicant 3 | DX2: Hem Living Expense Applicant 4 | DY2: Hem Living Expense Applicant 5 | DZ2: Hem Living Expense Applicant 6 | EA2: Hem Living Expense Total | EB2: Customer Nominated Living Expenses | EC2: Living Expense Used | ED2: Net Available Income | EE2: Baseline Assessment Rate | EF2: Assessment Loading | EG2: Credit Card Commitments | EH2: Workings for Negative Gearing | EI2: Other Mortgage Repayment Buffer | EJ2: Rental Income Shading | EK2: Company Tax | EL2: Actual Rate Monthly Total Income | EM2: Actual Rate Monthly - Net Income | EN2: Actual Rate Monthly - Living Costs | EO2: Actual Rate Monthly - Net Available Income | EP2: Actual Rate Monthly - Proposed Repayments | EQ2: Actual Rate Monthly - Other Commitments | ER2: Actual Rate Annually Total Income | ES2: Actual Rate Annually - Net Income | ET2: Actual Rate Annually - Living Costs | EU2: Actual Rate Annually - Net Available Income | EV2: Actual Rate Annually - Proposed Repayments | EW2: Actual Rate Annually - Other Commitments | EX2: Assessment Rate Monthly Total Income | EY2: Assessment Rate Monthly - Net Income | EZ2: Assessment Rate Monthly - Living Costs | FA2: Assessment Rate Monthly - Net Available Income | FB2: Assessment Rate Monthly - Proposed Repayments | FC2: Assessment Rate Monthly - Other Commitments | FD2: Assessment Rate Annually Total Income | FE2: Assessment Rate Annually - Net Income | FF2: Assessment Rate Annually - Living Costs | FG2: Assessment Rate Annually - Net Available Income | FH2: Assessment Rate Annually - Proposed Repayments | FI2: Assessment Rate Annually - Other Commitments | FJ2: Actual NSR | FK2: Actual DSR | FL2: Actual Results | FM2: Assessment NSR | FN2: Assessment DSR | FO2: Assessment Results | FP2: Eligible Loan Amount | FQ2: Tax Applicant 1 | FR2: Tax Applicant 2 | FS2: Tax Applicant 3 | FT2: Tax Applicant 4 | FU2: Tax Applicant 5 | FV2: Tax Applicant 6 | FW2: Net Income Applicant 1 | FX2: Net Income Applicant 2 | FY2: Net Income Applicant 3 | FZ2: Net Income Applicant 4 | GA2: Net Income Applicant 5 | GB2: Net Income Applicant 6 | GC2: Net Income Total | GD2: Hem Living Expense Applicant 1 | GE2: Hem Living Expense Applicant 2 | GF2: Hem Living Expense Applicant 3 | GG2: Hem Living Expense Applicant 4 | GH2: Hem Living Expense Applicant 5 | GI2: Hem Living Expense Applicant 6 | GJ2: Hem Living Expense Total | GK2: Customer Nominated Living Expenses | GL2: Living Expense Used | GM2: Net Available Income | GN2: Baseline Assessment Rate | GO2: Assessment Loading | GP2: Credit Card Commitments | GQ2: Workings for Negative Gearing | GR2: Other Mortgage Repayment Buffer | GS2: Rental Income Shading | GT2: Company Tax | GU2: Actual Rate Monthly Total Income | GV2: Actual Rate Monthly - Net Income | GW2: Actual Rate Monthly - Living Costs | GX2: Actual Rate Monthly - Net Available Income | GY2: Actual Rate Monthly - Proposed Repayments | GZ2: Actual Rate Monthly - Other Commitments | HA2: Actual Rate Annually Total Income | HB2: Actual Rate Annually - Net Income | HC2: Actual Rate Annually - Living Costs | HD2: Actual Rate Annually - Net Available Income | HE2: Actual Rate Annually - Proposed Repayments | HF2: Actual Rate Annually - Other Commitments | HG2: Assessment Rate Monthly Total Income | HH2: Assessment Rate Monthly - Net Income | HI2: Assessment Rate Monthly - Living Costs | HJ2: Assessment Rate Monthly - Net Available Income | HK2: Assessment Rate Monthly - Proposed Repayments | HL2: Assessment Rate Monthly - Other Commitments | HM2: Assessment Rate Annually Total Income | HN2: Assessment Rate Annually - Net Income | HO2: Assessment Rate Annually - Living Costs | HP2: Assessment Rate Annually - Net Available Income | HQ2: Assessment Rate Annually - Proposed Repayments | HR2: Assessment Rate Annually - Other Commitments | HS2: Actual NSR | HT2: Actual DSR | HU2: Actual Results | HV2: Assessment NSR | HW2: Assessment DSR | HX2: Assessment Results | HY2: Eligible Loan Amount | HZ2: Pass or Fail | IA2: Run Scenario Flag | IB2: Date Tested | IC2: Scenario | ID2: Sequence | IE2: Name
A3: 1000000 | B3: 0.06 | C3: 0.085 | D3: 30 | E3: 5 | F3: 1000000 | G3: 0.06 | H3: 0.085 | I3: 30 | J3: 5 | P3: Individual (Couple) | Q3: Individual (Couple) | V3: Applicant 2 | W3: Applicant 1 | AB3: 2 | AH3: 270000 | AI3: 0 | AJ3: 0 | AK3: 0 | AL3: 0 | AM3: 0 | AN3: 0 | AO3: 0 | AP3: 0 | AQ3: 0 | AR3: 0 | AS3: 0 | AT3: 135000 | AU3: 0 | AV3: 0 | AW3: 0 | AX3: 0 | AY3: 0 | AZ3: 0 | BA3: 0 | BB3: 0 | BC3: 0 | BD3: 0 | BE3: 0 | BF3: 100000 | BG3: 0 | BH3: 0 | BI3: 0 | BJ3: 0 | BK3: 0 | BL3: 0 | BM3: 100000 | BN3: 0 | BO3: 0 | BP3: 0 | BQ3: 0 | BR3: 0 | BS3: 300000 | BT3: 0 | BU3: 0 | BV3: 0 | BW3: 0 | BX3: 100 | BY3: 0 | BZ3: 100 | CA3: 80 | CB3: 300 | CC3: 80 | CD3: 30 | CE3: 50 | CF3: 50 | CG3: 50 | CH3: 0 | CI3: 0 | CJ3: 0 | CK3: 0 | CL3: 0 | CM3: 0 | CN3: Yes | CO3: No | CP3: No | CQ3: Yes | CR3: Yes | CS3: Yes | CT3: Yes | CU3: Yes | CV3: Yes | CW3: Yes | CX3: No | CY3: Yes | CZ3: Yes | DA3: No | DB3: No | DC3: No | DD3: 0 | DE3: 5000 | DF3: 1000 | DG3: 500 | DH3: 186017 | DI3: 11401.6 | DJ3: 0 | DK3: 0 | DL3: 0 | DM3: 0 | DN3: 318983 | DO3: 68688.2 | DP3: 0 | DQ3: 0 | DR3: 0 | DS3: 0 | DT3: 387671.2 | DU3: 76496.76 | DV3: 0 | DW3: 0 | DX3: 0 | DY3: 0 | DZ3: 0 | EA3: 76496.76 | EB3: 8880 | EC3: 76496.76 | ED3: 311174.44 | EE3: 0.055 | EF3: 0.02 | EG3: 0.0382 | EH3: 0.0604 | EI3: 1.25 | EJ3: 0.8 | EK3: 0.25 | EL3: 48750 | EM3: 32305.93 | EN3: 6374.73 | EO3: 25931.2 | EP3: 6443.01 | EQ3: 1191 | ER3: 585000 | ES3: 387671.2 | ET3: 76496.76 | EU3: 311174.44 | EV3: 77316.17 | EW3: 14292 | EX3: 48750 | EY3: 32305.93 | EZ3: 6374.73 | FA3: 25931.2 | FB3: 7718.16 | FC3: 1191 | FD3: 585000 | FE3: 387671.2 | FF3: 76496.76 | FG3: 311174.44 | FH3: 92617.95 | FI3: 14292 | FJ3: 3.39 | FK3: 0.1565951593 | FL3: PASS | FM3: 2.91 | FN3: 0.182752045 | FO3: PASS | FP3: 1000000 | FQ3: 186017 | FR3: 11401.6 | FS3: 0 | FT3: 0 | FU3: 0 | FV3: 0 | FW3: 318983 | FX3: 68688.2 | FY3: 0 | FZ3: 0 | GA3: 0 | GB3: 0 | GC3: 387671.2 | GD3: 76496.76 | GE3: 0 | GF3: 0 | GG3: 0 | GH3: 0 | GI3: 0 | GJ3: 76496.76 | GK3: 8880 | GL3: 76496.76 | GM3: 311174.44 | GN3: 0.055 | GO3: 0.02 | GP3: 0.0382 | GQ3: 0.0604 | GR3: 1.25 | GS3: 0.8 | GT3: 0.25 | GU3: 48750 | GV3: 32305.93 | GW3: 6374.73 | GX3: 25931.2 | GY3: 6443.01 | GZ3: 1191 | HA3: 585000 | HB3: 387671.2 | HC3: 76496.76 | HD3: 311174.44 | HE3: 77316.17 | HF3: 14292 | HG3: 48750 | HH3: 32305.93 | HI3: 6374.73 | HJ3: 25931.2 | HK3: 7718.16 | HL3: 1191 | HM3: 585000 | HN3: 387671.2 | HO3: 76496.76 | HP3: 311174.44 | HQ3: 92617.95 | HR3: 14292 | HS3: 3.39 | HT3: 0.1565951593 | HU3: PASS | HV3: 2.91 | HW3: 0.182752045 | HX3: PASS | HY3: 1000000 | HZ3: =IF(AND(DH3=FQ3,DI3=FR3,DJ3=FS3,DK3=FT3,DL3=FU3,DM3=FV3,DN3=FW3,DO3=FX3,DP3=FY3,DQ3=FZ3,DR3=GA3,DS3=GB3,DT3=GC3,DU3=GD3,DV3=GE3,DW3=GF3,DX3=GG3,DY3=GH3,DZ3=GI3,EA3=GJ3,EB3=GK3,EC3=GL3,ED3=GM3,EE3=GN3,EF3=GO3,EG3=GP3,EH3=GQ3,EI3=GR3,EJ3=GS3,EK3=GT3,EL3=GU3,EM3=GV3,EN3=GW3,EO3=GX3,EP3=GY3,EQ3=GZ3,ER3=HA3,ES3=HB3,ET3=HC3,EU3=HD3,EV3=HE3,EW3=HF3,EX3=HG3,EY3=HH3,EZ3=HI3,FA3=HJ3,FB3=HK3,FC3=HL3,FD3=HM3,FE3=HN3,FF3=HO3,FG3=HP3,FH3=HQ3,FI3=HR3,FJ3=HS3,FK3=HT3,FL3=HU3,FM3=HV3,FN3=HW3,FO3=HX3,FP3=HY3),"Pass","Fail") -> Pass | IA3: Y | IB3: 2023-10-25T09:21:52 | ID3: Case 1 | IE3: Neil
A4: 1000000 | B4: 0.06 | C4: 0.085 | D4: 25 | E4: 0 | F4: 1000000 | G4: 0.06 | H4: 0.085 | I4: 25 | J4: 0 | P4: Individual (Couple) | Q4: Individual (Couple) | V4: Applicant 2 | W4: Applicant 1 | AB4: 2 | AH4: 260000 | AI4: 0 | AJ4: 0 | AK4: 0 | AL4: 0 | AM4: 0 | AN4: 0 | AO4: 0 | AP4: 0 | AQ4: 0 | AR4: 0 | AS4: 0 | AT4: 135000 | AU4: 0 | AV4: 0 | AW4: 0 | AX4: 0 | AY4: 0 | AZ4: 0 | BA4: 0 | BB4: 0 | BC4: 0 | BD4: 0 | BE4: 0 | BF4: 0 | BG4: 0 | BH4: 0 | BI4: 0 | BJ4: 0 | BK4: 0 | BL4: 0 | BM4: 100000 | BN4: 0 | BO4: 0 | BP4: 0 | BQ4: 0 | BR4: 0 | BS4: 0 | BT4: 0 | BU4: 0 | BV4: 0 | BW4: 0 | BX4: 0 | BY4: 0 | BZ4: 0 | CA4: 0 | CB4: 0 | CC4: 0 | CD4: 0 | CE4: 0 | CF4: 0 | CG4: 0 | CH4: 0 | CI4: 2000 | CJ4: 0 | CK4: 0 | CL4: 0 | CM4: 0 | CN4: Yes | CO4: No | CP4: No | CQ4: Yes | CR4: Yes | CS4: Yes | CT4: Yes | CU4: Yes | CV4: Yes | CW4: Yes | CX4: No | CY4: Yes | CZ4: Yes | DA4: No | DB4: No | DC4: No | DD4: 0 | DE4: 5000 | DF4: 1000 | DG4: 500 | DH4: 156317 | DI4: 18067 | DJ4: 0 | DK4: 0 | DL4: 0 | DM4: 0 | DN4: 238683 | DO4: 61933 | DP4: 0 | DQ4: 0 | DR4: 0 | DS4: 0 | DT4: 300616 | DU4: 76496.76 | DV4: 0 | DW4: 0 | DX4: 0 | DY4: 0 | DZ4: 0 | EA4: 76496.76 | EB4: 24000 | EC4: 76496.76 | ED4: 224119.24 | EE4: 0.055 | EF4: 0.02 | EG4: 0.0382 | EH4: 0.0604 | EI4: 1.25 | EJ4: 0.8 | EK4: 0.25 | EL4: 39583.33 | EM4: 25051.33 | EN4: 6374.73 | EO4: 18676.6 | EP4: 6443.01 | EQ4: 1191 | ER4: 475000 | ES4: 300616 | ET4: 76496.76 | EU4: 224119.24 | EV4: 77316.17 | EW4: 14292 | EX4: 39583.33 | EY4: 25051.33 | EZ4: 6374.73 | FA4: 18676.6 | FB4: 7718.16 | FC4: 1191 | FD4: 475000 | FE4: 300616 | FF4: 76496.76 | FG4: 224119.24 | FH4: 92617.95 | FI4: 14292 | FJ4: 2.44 | FK4: 0.1928593014 | FL4: PASS | FM4: 2.09 | FN4: 0.2250735712 | FO4: PASS | FP4: 1000000 | FQ4: 156317 | FR4: 18067 | FS4: 0 | FT4: 0 | FU4: 0 | FV4: 0 | FW4: 238683 | FX4: 61933 | FY4: 0 | FZ4: 0 | GA4: 0 | GB4: 0 | GC4: 300616 | GD4: 76496.76 | GE4: 0 | GF4: 0 | GG4: 0 | GH4: 0 | GI4: 0 | GJ4: 76496.76 | GK4: 24000 | GL4: 76496.76 | GM4: 224119.24 | GN4: 0.055 | GO4: 0.02 | GP4: 0.0382 | GQ4: 0.0604 | GR4: 1.25 | GS4: 0.8 | GT4: 0.25 | GU4: 39583.33 | GV4: 25051.33 | GW4: 6374.73 | GX4: 18676.6 | GY4: 6443.01 | GZ4: 1191 | HA4: 475000 | HB4: 300616 | HC4: 76496.76 | HD4: 224119.24 | HE4: 77316.17 | HF4: 14292 | HG4: 39583.33 | HH4: 25051.33 | HI4: 6374.73 | HJ4: 18676.6 | HK4: 7718.16 | HL4: 1191 | HM4: 475000 | HN4: 300616 | HO4: 76496.76 | HP4: 224119.24 | HQ4: 92617.95 | HR4: 14292 | HS4: 2.44 | HT4: 0.1928593014 | HU4: PASS | HV4: 2.09 | HW4: 0.2250735712 | HX4: PASS | HY4: 1000000 | HZ4: Pass | IA4: Y | IB4: 2023-10-25T09:21:55 | ID4: Case 2 | IE4: Neil
A5: 1000000 | B5: 0.04 | C5: 0.065 | D5: 31 | E5: 0 | F5: 1000000 | G5: 0.04 | H5: 0.065 | I5: 31 | J5: 0 | P5: Individual (Couple) | Q5: Individual (Couple) | V5: Applicant 2 | W5: Applicant 1 | AB5: 2 | AH5: 260000 | AI5: 0 | AJ5: 0 | AK5: 0 | AL5: 0 | AM5: 0 | AN5: 0 | AO5: 0 | AP5: 0 | AQ5: 0 | AR5: 0 | AS5: 0 | AT5: 135000 | AU5: 0 | AV5: 0 | AW5: 0 | AX5: 0 | AY5: 0 | AZ5: 0 | BA5: 0 | BB5: 0 | BC5: 0 | BD5: 0 | BE5: 0 | BF5: 0 | BG5: 0 | BH5: 0 | BI5: 0 | BJ5: 0 | BK5: 0 | BL5: 0 | BM5: 100000 | BN5: 0 | BO5: 0 | BP5: 0 | BQ5: 0 | BR5: 0 | BS5: 1000000 | BT5: 0 | BU5: 0 | BV5: 0 | BW5: 0 | BX5: 500 | BY5: 0 | BZ5: 300 | CA5: 300 | CB5: 1200 | CC5: 1500 | CD5: 1200 | CE5: 500 | CF5: 400 | CG5: 500 | CH5: 0 | CI5: 0 | CJ5: 500 | CK5: 0 | CL5: 0 | CM5: 0 | CN5: Yes | CO5: No | CP5: No | CQ5: Yes | CR5: Yes | CS5: Yes | CT5: Yes | CU5: Yes | CV5: Yes | CW5: Yes | CX5: No | CY5: Yes | CZ5: Yes | DA5: No | DB5: No | DC5: No | DD5: 0 | DE5: 5000 | DF5: 10000 | DG5: 500 | DH5: 156317 | DI5: 0 | DJ5: 0 | DK5: 0 | DL5: 0 | DM5: 0 | DN5: 238683 | DO5: 80000 | DP5: 0 | DQ5: 0 | DR5: 0 | DS5: 0 | DT5: 318683 | DU5: 76496.76 | DV5: 0 | DW5: 0 | DX5: 0 | DY5: 0 | DZ5: 0 | EA5: 76496.76 | EB5: 79200 | EC5: 79200 | ED5: 239483 | EE5: 0.055 | EF5: 0.02 | EG5: 0.0382 | EH5: 0.0604 | EI5: 1.25 | EJ5: 0.8 | EK5: 0.25 | EL5: 39583.33 | EM5: 26556.92 | EN5: 6600 | EO5: 19956.92 | EP5: 4694.71 | EQ5: 10191 | ER5: 475000 | ES5: 318683 | ET5: 79200 | EU5: 239483 | EV5: 56336.57 | EW5: 122292 | EX5: 39583.33 | EY5: 26556.92 | EZ5: 6600 | FA5: 19956.92 | FB5: 5926.95 | FC5: 10191 | FD5: 475000 | FE5: 318683 | FF5: 79200 | FG5: 239483 | FH5: 71123.4 | FI5: 122292 | FJ5: 1.34 | FK5: 0.3760601383 | FL5: PASS | FM5: 1.23 | FN5: 0.4071903146 | FO5: PASS | FP5: 1000000 | FQ5: 156317 | FR5: 0 | FS5: 0 | FT5: 0 | FU5: 0 | FV5: 0 | FW5: 238683 | FX5: 80000 | FY5: 0 | FZ5: 0 | GA5: 0 | GB5: 0 | GC5: 318683 | GD5: 76496.76 | GE5: 0 | GF5: 0 | GG5: 0 | GH5: 0 | GI5: 0 | GJ5: 76496.76 | GK5: 79200 | GL5: 79200 | GM5: 239483 | GN5: 0.055 | GO5: 0.02 | GP5: 0.0382 | GQ5: 0.0604 | GR5: 1.25 | GS5: 0.8 | GT5: 0.25 | GU5: 39583.33 | GV5: 26556.92 | GW5: 6600 | GX5: 19956.92 | GY5: 4694.71 | GZ5: 10191 | HA5: 475000 | HB5: 318683 | HC5: 79200 | HD5: 239483 | HE5: 56336.57 | HF5: 122292 | HG5: 39583.33 | HH5: 26556.92 | HI5: 6600 | HJ5: 19956.92 | HK5: 5926.95 | HL5: 10191 | HM5: 475000 | HN5: 318683 | HO5: 79200 | HP5: 239483 | HQ5: 71123.4 | HR5: 122292 | HS5: 1.34 | HT5: 0.3760601383 | HU5: PASS | HV5: 1.23 | HW5: 0.4071903146 | HX5: PASS | HY5: 1000000 | HZ5: Pass | IA5: Y | IB5: 2023-10-25T09:21:57 | ID5: Case 3 | IE5: Neil
A6: 2000000 | B6: 0.05 | C6: 0.075 | D6: 25 | E6: 1 | F6: 2000000 | G6: 0.05 | H6: 0.075 | I6: 25 | J6: 1 | P6: Individual (Single) | Q6: Individual (Couple) | R6: Individual (Single) | W6: Non-loan Party | AD6: 3 | AH6: 80000 | AI6: 100000 | AJ6: 120000 | AK6: 0 | AL6: 0 | AM6: 0 | AN6: 0 | AO6: 0 | AP6: 0 | AQ6: 0 | AR6: 0 | AS6: 0 | AT6: 0 | AU6: 0 | AV6: 0 | AW6: 0 | AX6: 0 | AY6: 0 | AZ6: 0 | BA6: 0 | BB6: 0 | BC6: 0 | BD6: 0 | BE6: 0 | BF6: 0 | BG6: 0 | BH6: 0 | BI6: 0 | BJ6: 0 | BK6: 0 | BL6: 0 | BM6: 0 | BN6: 0 | BO6: 0 | BP6: 0 | BQ6: 0 | BR6: 0 | BS6: 0 | BT6: 0 | BU6: 0 | BV6: 0 | BW6: 0 | BX6: 0 | BY6: 0 | BZ6: 0 | CA6: 0 | CB6: 0 | CC6: 0 | CD6: 0 | CE6: 0 | CF6: 0 | CG6: 0 | CH6: 0 | CI6: 0 | CJ6: 0 | CK6: 0 | CL6: 0 | CM6: 0 | CN6: Yes | CO6: No | CP6: No | CQ6: Yes | CR6: Yes | CS6: Yes | CT6: Yes | CU6: Yes | CV6: Yes | CW6: Yes | CX6: No | CY6: Yes | CZ6: Yes | DA6: No | DB6: No | DC6: No | DD6: 0 | DE6: 0 | DF6: 0 | DG6: 0 | DH6: 18067 | DI6: 24967 | DJ6: 31867 | DK6: 0 | DL6: 0 | DM6: 0 | DN6: 61933 | DO6: 75033 | DP6: 88133 | DQ6: 0 | DR6: 0 | DS6: 0 | DT6: 225099 | DU6: 22426.95 | DV6: 40017.74 | DW6: 43571.52 | DX6: 0 | DY6: 0 | DZ6: 0 | EA6: 106016.21 | EB6: 0 | EC6: 106016.21 | ED6: 119082.79 | EE6: 0.055 | EF6: 0.02 | EG6: 0.0382 | EH6: 0.0604 | EI6: 1.25 | EJ6: 0.8 | EK6: 0.25 | EL6: 25000 | EM6: 18758.25 | EN6: 8834.68 | EO6: 9923.57 | EP6: 11937.95 | EQ6: 0 | ER6: 300000 | ES6: 225099 | ET6: 106016.21 | EU6: 119082.79 | EV6: 143255.4 | EW6: 0 | EX6: 25000 | EY6: 18758.25 | EZ6: 8834.68 | FA6: 9923.57 | FB6: 14355.19 | FC6: 0 | FD6: 300000 | FE6: 225099 | FF6: 106016.21 | FG6: 119082.79 | FH6: 172262.3 | FI6: 0 | FJ6: 0.83 | FK6: 0.4775180098 | FL6: FAIL | FM6: 0.69 | FN6: 0.5742076636 | FO6: FAIL | FP6: 1382496.35 | FQ6: 18067 | FR6: 24967 | FS6: 31867 | FT6: 0 | FU6: 0 | FV6: 0 | FW6: 61933 | FX6: 75033 | FY6: 88133 | FZ6: 0 | GA6: 0 | GB6: 0 | GC6: 225099 | GD6: 22426.95 | GE6: 40017.74 | GF6: 43571.52 | GG6: 0 | GH6: 0 | GI6: 0 | GJ6: 106016.21 | GK6: 0 | GL6: 106016.21 | GM6: 119082.79 | GN6: 0.055 | GO6: 0.02 | GP6: 0.0382 | GQ6: 0.0604 | GR6: 1.25 | GS6: 0.8 | GT6: 0.25 | GU6: 25000 | GV6: 18758.25 | GW6: 8834.68 | GX6: 9923.57 | GY6: 11937.95 | GZ6: 0 | HA6: 300000 | HB6: 225099 | HC6: 106016.21 | HD6: 119082.79 | HE6: 143255.4 | HF6: 0 | HG6: 25000 | HH6: 18758.25 | HI6: 8834.68 | HJ6: 9923.57 | HK6: 14355.19 | HL6: 0 | HM6: 300000 | HN6: 225099 | HO6: 106016.21 | HP6: 119082.79 | HQ6: 172262.3 | HR6: 0 | HS6: 0.83 | HT6: 0.4775180098 | HU6: FAIL | HV6: 0.69 | HW6: 0.5742076636 | HX6: FAIL | HY6: 1382496.35 | HZ6: Pass | IA6: Y | IB6: 2023-10-25T09:22:01 | ID6: Case 4 | IE6: Neil
A7: 1000000 | B7: 0.04 | C7: 0.065 | D7: 25 | E7: 0 | F7: 1000000 | G7: 0.04 | H7: 0.065 | I7: 25 | J7: 0 | P7: Individual (Single) | Q7: Individual (Single) | R7: Individual (Single) | S7: Individual (Single) | T7: Individual (Single) | U7: Individual (Single) | AH7: 18200 | AI7: 22000 | AJ7: 30000 | AK7: 40000 | AL7: 95000 | AM7: 190000 | AN7: 0 | AO7: 0 | AP7: 0 | AQ7: 0 | AR7: 0 | AS7: 0 | AT7: 0 | AU7: 0 | AV7: 0 | AW7: 0 | AX7: 0 | AY7: 0 | AZ7: 0 | BA7: 0 | BB7: 0 | BC7: 0 | BD7: 0 | BE7: 0 | BF7: 0 | BG7: 0 | BH7: 0 | BI7: 0 | BJ7: 0 | BK7: 0 | BL7: 0 | BM7: 0 | BN7: 0 | BO7: 0 | BP7: 0 | BQ7: 0 | BR7: 0 | BS7: 0 | BT7: 0 | BU7: 0 | BV7: 0 | BW7: 0 | BX7: 0 | BY7: 0 | BZ7: 0 | CA7: 0 | CB7: 0 | CC7: 0 | CD7: 0 | CE7: 0 | CF7: 0 | CG7: 0 | CH7: 0 | CI7: 0 | CJ7: 0 | CK7: 0 | CL7: 0 | CM7: 0 | CN7: Yes | CO7: No | CP7: No | CQ7: Yes | CR7: Yes | CS7: Yes | CT7: Yes | CU7: Yes | CV7: Yes | CW7: Yes | CX7: No | CY7: Yes | CZ7: Yes | DA7: No | DB7: No | DC7: No | DD7: 0 | DE7: 0 | DF7: 0 | DG7: 0 | DH7: 0 | DI7: 722 | DJ7: 2842 | DK7: 4942 | DL7: 23242 | DM7: 59967 | DN7: 18200 | DO7: 21978 | DP7: 27858 | DQ7: 35633 | DR7: 71758 | DS7: 130033 | DT7: 305460 | DU7: 14900.75 | DV7: 14900.75 | DW7: 15787.04 | DX7: 16503.24 | DY7: 22426.95 | DZ7: 37269.21 | EA7: 121787.95 | EB7: 0 | EC7: 121787.95 | ED7: 183672.05 | EE7: 0.055 | EF7: 0.02 | EG7: 0.0382 | EH7: 0.0604 | EI7: 1.25 | EJ7: 0.8 | EK7: 0.25 | EL7: 32933.33 | EM7: 25455 | EN7: 10149 | EO7: 15306 | EP7: 5278.37 | EQ7: 0 | ER7: 395200 | ES7: 305460 | ET7: 121787.95 | EU7: 183672.05 | EV7: 63340.42 | EW7: 0 | EX7: 32933.33 | EY7: 25455 | EZ7: 10149 | FA7: 15306 | FB7: 6443.01 | FC7: 0 | FD7: 395200 | FE7: 305460 | FF7: 121787.95 | FG7: 183672.05 | FH7: 77316.17 | FI7: 0 | FJ7: 2.89 | FK7: 0.1602743442 | FL7: PASS | FM7: 2.37 | FN7: 0.1956380774 | FO7: PASS | FP7: 1000000 | FQ7: 0 | FR7: 722 | FS7: 2842 | FT7: 4942 | FU7: 23242 | FV7: 59967 | FW7: 18200 | FX7: 21978 | FY7: 27858 | FZ7: 35633 | GA7: 71758 | GB7: 130033 | GC7: 305460 | GD7: 14900.75 | GE7: 14900.75 | GF7: 15787.04 | GG7: 16503.24 | GH7: 22426.95 | GI7: 37269.21 | GJ7: 121787.95 | GK7: 0 | GL7: 121787.95 | GM7: 183672.05 | GN7: 0.055 | GO7: 0.02 | GP7: 0.0382 | GQ7: 0.0604 | GR7: 1.25 | GS7: 0.8 | GT7: 0.25 | GU7: 32933.33 | GV7: 25455 | GW7: 10149 | GX7: 15306 | GY7: 5278.37 | GZ7: 0 | HA7: 395200 | HB7: 305460 | HC7: 121787.95 | HD7: 183672.05 | HE7: 63340.42 | HF7: 0 | HG7: 32933.33 | HH7: 25455 | HI7: 10149 | HJ7: 15306 | HK7: 6443.01 | HL7: 0 | HM7: 395200 | HN7: 305460 | HO7: 121787.95 | HP7: 183672.05 | HQ7: 77316.17 | HR7: 0 | HS7: 2.89 | HT7: 0.1602743442 | HU7: PASS | HV7: 2.37 | HW7: 0.1956380774 | HX7: PASS | HY7: 1000000 | HZ7: Pass | IA7: Y | IB7: 2023-10-25T09:22:05 | ID7: Case 5 | IE7: Neil
A8: 2500000 | B8: 0.0679 | C8: 0.0929 | D8: 40 | E8: 5 | F8: 2500000 | G8: 0.0679 | H8: 0.0929 | I8: 40 | J8: 5 | P8: Company | Q8: Individual (Single) | R8: Individual (Couple) | S8: Individual (Couple) | T8: Individual (Couple) | U8: Individual (Single) | X8: Non-loan Party | Y8: Applicant 5 | Z8: Applicant 4 | AH8: 0 | AI8: 0 | AJ8: 80000 | AK8: 30000 | AL8: 40000 | AM8: 1 | AN8: 0 | AO8: 0 | AP8: 0 | AQ8: 0 | AR8: 0 | AS8: 0 | AT8: 0 | AU8: 150000 | AV8: 0 | AW8: 0 | AX8: 0 | AY8: 0 | AZ8: 75000 | BA8: 0 | BB8: 0 | BC8: 0 | BD8: 0 | BE8: 0 | BF8: 535000 | BG8: 0 | BH8: 0 | BI8: 0 | BJ8: 0 | BK8: 0 | BL8: 0 | BM8: 0 | BN8: 0 | BO8: 50000 | BP8: 50000 | BQ8: 0 | BR8: 0 | BS8: 0 | BT8: 0 | BU8: 1000000 | BV8: 1000000 | BW8: 0 | BX8: 0 | BY8: 0 | BZ8: 0 | CA8: 0 | CB8: 0 | CC8: 0 | CD8: 0 | CE8: 0 | CF8: 0 | CG8: 0 | CH8: 0 | CI8: 20000 | CJ8: 0 | CK8: 0 | CL8: 0 | CM8: 0 | CN8: Yes | CO8: No | CP8: No | CQ8: Yes | CR8: Yes | CS8: Yes | CT8: Yes | CU8: Yes | CV8: Yes | CW8: Yes | CX8: No | CY8: Yes | CZ8: Yes | DA8: No | DB8: No | DC8: No | DD8: 0 | DE8: 50000 | DF8: 15000 | DG8: 0 | DH8: 133750 | DI8: 43567 | DJ8: 18067 | DK8: 0 | DL8: 266 | DM8: 0 | DN8: 476250 | DO8: 106433 | DP8: 61933 | DQ8: 70000 | DR8: 80000 | DS8: 1 | DT8: 794617 | DU8: 0 | DV8: 34987.73 | DW8: 35884.05 | DX8: 29253.9 | DY8: 0 | DZ8: 14900.75 | EA8: 115026.42 | EB8: 240000 | EC8: 240000 | ED8: 554617 | EE8: 0.055 | EF8: 0.02 | EG8: 0.0382 | EH8: 0.0604 | EI8: 1.25 | EJ8: 0.8 | EK8: 0.25 | EL8: 82500.08 | EM8: 66218.08 | EN8: 20000 | EO8: 46218.08 | EP8: 15604.88 | EQ8: 16910 | ER8: 990001 | ES8: 794617 | ET8: 240000 | EU8: 554617 | EV8: 187258.53 | EW8: 202920 | EX8: 82500.08 | EY8: 66218.08 | EZ8: 20000 | FA8: 46218.08 | FB8: 19208.39 | FC8: 16910 | FD8: 990001 | FE8: 794617 | FF8: 240000 | FG8: 554617 | FH8: 230500.65 | FI8: 202920 | FJ8: 1.42 | FK8: 0.3941193339 | FL8: PASS | FM8: 1.27 | FN8: 0.437798199 | FO8: PASS | FP8: 2500000 | FQ8: 133750 | FR8: 43567 | FS8: 18067 | FT8: 0 | FU8: 266 | FV8: 0 | FW8: 476250 | FX8: 106433 | FY8: 61933 | FZ8: 70000 | GA8: 80000 | GB8: 1 | GC8: 794617 | GD8: 0 | GE8: 34987.73 | GF8: 35884.05 | GG8: 29253.9 | GH8: 0 | GI8: 14900.75 | GJ8: 115026.42 | GK8: 240000 | GL8: 240000 | GM8: 554617 | GN8: 0.055 | GO8: 0.02 | GP8: 0.0382 | GQ8: 0.0604 | GR8: 1.25 | GS8: 0.8 | GT8: 0.25 | GU8: 82500.08 | GV8: 66218.08 | GW8: 20000 | GX8: 46218.08 | GY8: 15604.88 | GZ8: 16910 | HA8: 990001 | HB8: 794617 | HC8: 240000 | HD8: 554617 | HE8: 187258.53 | HF8: 202920 | HG8: 82500.08 | HH8: 66218.08 | HI8: 20000 | HJ8: 46218.08 | HK8: 19208.39 | HL8: 16910 | HM8: 990001 | HN8: 794617 | HO8: 240000 | HP8: 554617 | HQ8: 230500.65 | HR8: 202920 | HS8: 1.42 | HT8: 0.3941193339 | HU8: PASS | HV8: 1.27 | HW8: 0.437798199 | HX8: PASS | HY8: 2500000 | HZ8: Pass | IA8: Y | IB8: 2023-10-25T09:22:09 | ID8: Case 6 | IE8: Neil
A9: 2000000 | B9: 0.0529 | C9: 0.0779 | D9: 30 | E9: 3 | F9: 2000000 | G9: 0.0529 | H9: 0.0779 | I9: 30 | J9: 3 | P9: Company | Q9: Individual (Single) | AH9: 0 | AI9: 1 | AJ9: 0 | AK9: 0 | AL9: 0 | AM9: 0 | AN9: 0 | AO9: 30000 | AP9: 0 | AQ9: 0 | AR9: 0 | AS9: 0 | AT9: 0 | AU9: 0 | AV9: 0 | AW9: 0 | AX9: 0 | AY9: 0 | AZ9: 0 | BA9: 0 | BB9: 0 | BC9: 0 | BD9: 0 | BE9: 0 | BF9: 300000 | BG9: 0 | BH9: 0 | BI9: 0 | BJ9: 0 | BK9: 0 | BL9: 0 | BM9: 0 | BN9: 0 | BO9: 0 | BP9: 0 | BQ9: 0 | BR9: 0 | BS9: 0 | BT9: 0 | BU9: 0 | BV9: 0 | BW9: 0 | BX9: 0 | BY9: 0 | BZ9: 0 | CA9: 0 | CB9: 0 | CC9: 0 | CD9: 0 | CE9: 0 | CF9: 0 | CG9: 0 | CH9: 0 | CI9: 0 | CJ9: 0 | CK9: 0 | CL9: 0 | CM9: 0 | CN9: Yes | CO9: No | CP9: No | CQ9: Yes | CR9: Yes | CS9: Yes | CT9: Yes | CU9: Yes | CV9: Yes | CW9: Yes | CX9: No | CY9: Yes | CZ9: Yes | DA9: No | DB9: No | DC9: No | DD9: 0 | DE9: 0 | DF9: 0 | DG9: 0 | DH9: 75000 | DI9: 0 | DJ9: 0 | DK9: 0 | DL9: 0 | DM9: 0 | DN9: 225000 | DO9: 30001 | DP9: 0 | DQ9: 0 | DR9: 0 | DS9: 0 | DT9: 255001 | DU9: 0 | DV9: 15787.04 | DW9: 0 | DX9: 0 | DY9: 0 | DZ9: 0 | EA9: 15787.04 | EB9: 0 | EC9: 15787.04 | ED9: 239213.96 | EE9: 0.055 | EF9: 0.02 | EG9: 0.0382 | EH9: 0.0604 | EI9: 1.25 | EJ9: 0.8 | EK9: 0.25 | EL9: 27500.08 | EM9: 21250.08 | EN9: 1315.59 | EO9: 19934.5 | EP9: 11608.05 | EQ9: 0 | ER9: 330001 | ES9: 255001 | ET9: 15787.04 | EU9: 239213.96 | EV9: 139296.62 | EW9: 0 | EX9: 27500.08 | EY9: 21250.08 | EZ9: 1315.59 | FA9: 19934.5 | FB9: 14136.59 | FC9: 0 | FD9: 330001 | FE9: 255001 | FF9: 15787.04 | FG9: 239213.96 | FH9: 169639.12 | FI9: 0 | FJ9: 1.71 | FK9: 0.4221096996 | FL9: PASS | FM9: 1.41 | FN9: 0.5140563846 | FO9: PASS | FP9: 2000000 | FQ9: 75000 | FR9: 0 | FS9: 0 | FT9: 0 | FU9: 0 | FV9: 0 | FW9: 225000 | FX9: 30001 | FY9: 0 | FZ9: 0 | GA9: 0 | GB9: 0 | GC9: 255001 | GD9: 0 | GE9: 15787.04 | GF9: 0 | GG9: 0 | GH9: 0 | GI9: 0 | GJ9: 15787.04 | GK9: 0 | GL9: 15787.04 | GM9: 239213.96 | GN9: 0.055 | GO9: 0.02 | GP9: 0.0382 | GQ9: 0.0604 | GR9: 1.25 | GS9: 0.8 | GT9: 0.25 | GU9: 27500.08 | GV9: 21250.08 | GW9: 1315.59 | GX9: 19934.5 | GY9: 11608.05 | GZ9: 0 | HA9: 330001 | HB9: 255001 | HC9: 15787.04 | HD9: 239213.96 | HE9: 139296.62 | HF9: 0 | HG9: 27500.08 | HH9: 21250.08 | HI9: 1315.59 | HJ9: 19934.5 | HK9: 14136.59 | HL9: 0 | HM9: 330001 | HN9: 255001 | HO9: 15787.04 | HP9: 239213.96 | HQ9: 169639.12 | HR9: 0 | HS9: 1.71 | HT9: 0.4221096996 | HU9: PASS | HV9: 1.41 | HW9: 0.5140563846 | HX9: PASS | HY9: 2000000 | HZ9: Pass | IA9: Y | IB9: 2023-10-25T09:22:14 | ID9: Case 7 | IE9: Neil
A10: 350000 | B10: 0.06 | C10: 0.085 | D10: 12 | E10: 5 | F10: 350000 | G10: 0.06 | H10: 0.085 | I10: 12 | J10: 5 | P10: Individual (Couple) | Q10: Individual (Couple) | V10: Applicant 2 | W10: Applicant 1 | AB10: 3 | AC10: 2 | AH10: 100000 | AI10: 80000 | AJ10: 0 | AK10: 0 | AL10: 0 | AM10: 0 | AN10: 0 | AO10: 1 | AP10: 0 | AQ10: 0 | AR10: 0 | AS10: 0 | AT10: 0 | AU10: 25000 | AV10: 0 | AW10: 0 | AX10: 0 | AY10: 0 | AZ10: 0 | BA10: 0 | BB10: 0 | BC10: 0 | BD10: 0 | BE10: 0 | BF10: 0 | BG10: 0 | BH10: 0 | BI10: 0 | BJ10: 0 | BK10: 0 | BL10: 0 | BM10: 0 | BN10: 0 | BO10: 0 | BP10: 0 | BQ10: 0 | BR10: 0 | BS10: 0 | BT10: 0 | BU10: 0 | BV10: 0 | BW10: 0 | BX10: 0 | BY10: 0 | BZ10: 0 | CA10: 0 | CB10: 0 | CC10: 0 | CD10: 0 | CE10: 0 | CF10: 0 | CG10: 0 | CH10: 0 | CI10: 0 | CJ10: 0 | CK10: 0 | CL10: 0 | CM10: 0 | CN10: Yes | CO10: No | CP10: No | CQ10: Yes | CR10: Yes | CS10: Yes | CT10: Yes | CU10: Yes | CV10: Yes | CW10: Yes | CX10: No | CY10: Yes | CZ10: Yes | DA10: No | DB10: No | DC10: No | DD10: 0 | DE10: 30000 | DF10: 500 | DG10: 0 | DH10: 24967 | DI10: 26692 | DJ10: 0 | DK10: 0 | DL10: 0 | DM10: 0 | DN10: 75033 | DO10: 78309 | DP10: 0 | DQ10: 0 | DR10: 0 | DS10: 0 | DT10: 153342 | DU10: 72527.23 | DV10: 0 | DW10: 0 | DX10: 0 | DY10: 0 | DZ10: 0 | EA10: 72527.23 | EB10: 0 | EC10: 72527.23 | ED10: 80814.77 | EE10: 0.055 | EF10: 0.02 | EG10: 0.0382 | EH10: 0.0604 | EI10: 1.25 | EJ10: 0.8 | EK10: 0.25 | EL10: 17083.42 | EM10: 12778.5 | EN10: 6043.94 | EO10: 6734.56 | EP10: 5112.99 | EQ10: 1646 | ER10: 205001 | ES10: 153342 | ET10: 72527.23 | EU10: 80814.77 | EV10: 61355.93 | EW10: 19752 | EX10: 17083.42 | EY10: 12778.5 | EZ10: 6043.94 | FA10: 6734.56 | FB10: 5455.18 | FC10: 1646 | FD10: 205001 | FE10: 153342 | FF10: 72527.23 | FG10: 80814.77 | FH10: 65462.1 | FI10: 19752 | FJ10: 0.99 | FK10: 0.3956465033 | FL10: FAIL | FM10: 0.94 | FN10: 0.4156765113 | FO10: FAIL | FP10: 326442.32 | FQ10: 24967 | FR10: 26692 | FS10: 0 | FT10: 0 | FU10: 0 | FV10: 0 | FW10: 75033 | FX10: 78309 | FY10: 0 | FZ10: 0 | GA10: 0 | GB10: 0 | GC10: 153342 | GD10: 72527.23 | GE10: 0 | GF10: 0 | GG10: 0 | GH10: 0 | GI10: 0 | GJ10: 72527.23 | GK10: 0 | GL10: 72527.23 | GM10: 80814.77 | GN10: 0.055 | GO10: 0.02 | GP10: 0.0382 | GQ10: 0.0604 | GR10: 1.25 | GS10: 0.8 | GT10: 0.25 | GU10: 17083.42 | GV10: 12778.5 | GW10: 6043.94 | GX10: 6734.56 | GY10: 5112.99 | GZ10: 1646 | HA10: 205001 | HB10: 153342 | HC10: 72527.23 | HD10: 80814.77 | HE10: 61355.93 | HF10: 19752 | HG10: 17083.42 | HH10: 12778.5 | HI10: 6043.94 | HJ10: 6734.56 | HK10: 5455.18 | HL10: 1646 | HM10: 205001 | HN10: 153342 | HO10: 72527.23 | HP10: 80814.77 | HQ10: 65462.1 | HR10: 19752 | HS10: 0.99 | HT10: 0.3956465033 | HU10: FAIL | HV10: 0.94 | HW10: 0.4156765113 | HX10: FAIL | HY10: 326442.32 | HZ10: Pass | IA10: Y | IB10: 2023-10-25T09:22:18 | ID10: Case 8 | IE10: Neil
A11: 350000 | B11: 0.06 | C11: 0.085 | D11: 12 | E11: 5 | F11: 350000 | G11: 0.06 | H11: 0.085 | I11: 12 | J11: 5 | P11: Individual (Couple) | Q11: Individual (Couple) | V11: Applicant 2 | W11: Applicant 1 | AB11: 3 | AC11: 2 | AH11: 100000 | AI11: 80000 | AJ11: 0 | AK11: 0 | AL11: 0 | AM11: 0 | AN11: 0 | AO11: 0 | AP11: 0 | AQ11: 0 | AR11: 0 | AS11: 0 | AT11: 0 | AU11: 25000 | AV11: 0 | AW11: 0 | AX11: 0 | AY11: 0 | AZ11: 0 | BA11: 0 | BB11: 0 | BC11: 0 | BD11: 0 | BE11: 0 | BF11: 0 | BG11: 0 | BH11: 0 | BI11: 0 | BJ11: 0 | BK11: 0 | BL11: 0 | BM11: 0 | BN11: 0 | BO11: 0 | BP11: 0 | BQ11: 0 | BR11: 0 | BS11: 0 | BT11: 0 | BU11: 0 | BV11: 0 | BW11: 0 | BX11: 0 | BY11: 0 | BZ11: 0 | CA11: 0 | CB11: 0 | CC11: 0 | CD11: 0 | CE11: 0 | CF11: 0 | CG11: 0 | CH11: 0 | CI11: 0 | CJ11: 0 | CK11: 0 | CL11: 0 | CM11: 0 | CN11: Yes | CO11: No | CP11: No | CQ11: Yes | CR11: Yes | CS11: Yes | CT11: Yes | CU11: Yes | CV11: Yes | CW11: Yes | CX11: No | CY11: Yes | CZ11: Yes | DA11: No | DB11: No | DC11: No | DD11: 0 | DE11: 30000 | DF11: 500 | DG11: 0 | DH11: 24967 | DI11: 26692 | DJ11: 0 | DK11: 0 | DL11: 0 | DM11: 0 | DN11: 75033 | DO11: 78308 | DP11: 0 | DQ11: 0 | DR11: 0 | DS11: 0 | DT11: 153341 | DU11: 72527.23 | DV11: 0 | DW11: 0 | DX11: 0 | DY11: 0 | DZ11: 0 | EA11: 72527.23 | EB11: 0 | EC11: 72527.23 | ED11: 80813.77 | EE11: 0.055 | EF11: 0.02 | EG11: 0.0382 | EH11: 0.0604 | EI11: 1.25 | EJ11: 0.8 | EK11: 0.25 | EL11: 17083.33 | EM11: 12778.42 | EN11: 6043.94 | EO11: 6734.48 | EP11: 5112.99 | EQ11: 1646 | ER11: 205000 | ES11: 153341 | ET11: 72527.23 | EU11: 80813.77 | EV11: 61355.93 | EW11: 19752 | EX11: 17083.33 | EY11: 12778.42 | EZ11: 6043.94 | FA11: 6734.48 | FB11: 5455.18 | FC11: 1646 | FD11: 205000 | FE11: 153341 | FF11: 72527.23 | FG11: 80813.77 | FH11: 65462.1 | FI11: 19752 | FJ11: 0.99 | FK11: 0.3956484333 | FL11: FAIL | FM11: 0.94 | FN11: 0.415678539 | FO11: FAIL | FP11: 326442.32 | FQ11: 24967 | FR11: 26692 | FS11: 0 | FT11: 0 | FU11: 0 | FV11: 0 | FW11: 75033 | FX11: 78308 | FY11: 0 | FZ11: 0 | GA11: 0 | GB11: 0 | GC11: 153341 | GD11: 72527.23 | GE11: 0 | GF11: 0 | GG11: 0 | GH11: 0 | GI11: 0 | GJ11: 72527.23 | GK11: 0 | GL11: 72527.23 | GM11: 80813.77 | GN11: 0.055 | GO11: 0.02 | GP11: 0.0382 | GQ11: 0.0604 | GR11: 1.25 | GS11: 0.8 | GT11: 0.25 | GU11: 17083.33 | GV11: 12778.42 | GW11: 6043.94 | GX11: 6734.48 | GY11: 5112.99 | GZ11: 1646 | HA11: 205000 | HB11: 153341 | HC11: 72527.23 | HD11: 80813.77 | HE11: 61355.93 | HF11: 19752 | HG11: 17083.33 | HH11: 12778.42 | HI11: 6043.94 | HJ11: 6734.48 | HK11: 5455.18 | HL11: 1646 | HM11: 205000 | HN11: 153341 | HO11: 72527.23 | HP11: 80813.77 | HQ11: 65462.1 | HR11: 19752 | HS11: 0.99 | HT11: 0.3956484333 | HU11: FAIL | HV11: 0.94 | HW11: 0.415678539 | HX11: FAIL | HY11: 326442.32 | HZ11: Pass | IA11: Y | IB11: 2023-10-25T09:22:20 | ID11: Case 9 | IE11: Neil
A12: 500000 | B12: 0.07 | C12: 0.095 | D12: 20 | E12: 3 | F12: 500000 | G12: 0.07 | H12: 0.095 | I12: 20 | J12: 3 | P12: Individual (Couple) | Q12: Individual (Couple) | V12: Applicant 2 | W12: Applicant 1 | AB12: 2 | AH12: 150000 | AI12: 0 | AJ12: 0 | AK12: 0 | AL12: 0 | AM12: 0 | AN12: 0 | AO12: 0 | AP12: 0 | AQ12: 0 | AR12: 0 | AS12: 0 | AT12: 0 | AU12: 0 | AV12: 0 | AW12: 0 | AX12: 0 | AY12: 0 | AZ12: 0 | BA12: 0 | BB12: 0 | BC12: 0 | BD12: 0 | BE12: 0 | BF12: 0 | BG12: 0 | BH12: 0 | BI12: 0 | BJ12: 0 | BK12: 0 | BL12: 20000 | BM12: 0 | BN12: 0 | BO12: 0 | BP12: 0 | BQ12: 0 | BR12: 0 | BS12: 0 | BT12: 0 | BU12: 0 | BV12: 0 | BW12: 0 | BX12: 4000 | BY12: 0 | BZ12: 0 | CA12: 0 | CB12: 0 | CC12: 0 | CD12: 0 | CE12: 0 | CF12: 0 | CG12: 0 | CH12: 0 | CI12: 0 | CJ12: 0 | CK12: 0 | CL12: 0 | CM12: 0 | CN12: Yes | CO12: No | CP12: No | CQ12: Yes | CR12: Yes | CS12: Yes | CT12: Yes | CU12: Yes | CV12: Yes | CW12: Yes | CX12: No | CY12: Yes | CZ12: Yes | DA12: No | DB12: No | DC12: No | DD12: 0 | DE12: 0 | DF12: 0 | DG12: 0 | DH12: 49807 | DI12: 0 | DJ12: 0 | DK12: 0 | DL12: 0 | DM12: 0 | DN12: 116193 | DO12: 0 | DP12: 0 | DQ12: 0 | DR12: 0 | DS12: 0 | DT12: 116193 | DU12: 56724.83 | DV12: 0 | DW12: 0 | DX12: 0 | DY12: 0 | DZ12: 0 | EA12: 56724.83 | EB12: 48000 | EC12: 56724.83 | ED12: 59468.18 | EE12: 0.055 | EF12: 0.02 | EG12: 0.0382 | EH12: 0.0604 | EI12: 1.25 | EJ12: 0.8 | EK12: 0.25 | EL12: 13833.33 | EM12: 9682.75 | EN12: 4727.07 | EO12: 4955.68 | EP12: 4198.3 | EQ12: 0 | ER12: 166000 | ES12: 116193 | ET12: 56724.83 | EU12: 59468.18 | EV12: 50379.64 | EW12: 0 | EX12: 13833.33 | EY12: 9682.75 | EZ12: 4727.07 | FA12: 4955.68 | FB12: 4794.02 | FC12: 0 | FD12: 166000 | FE12: 116193 | FF12: 56724.83 | FG12: 59468.18 | FH12: 57528.23 | FI12: 0 | FJ12: 1.18 | FK12: 0.3034918023 | FL12: PASS | FM12: 1.03 | FN12: 0.3465556274 | FO12: PASS | FP12: 500000 | FQ12: 49807 | FR12: 0 | FS12: 0 | FT12: 0 | FU12: 0 | FV12: 0 | FW12: 116193 | FX12: 0 | FY12: 0 | FZ12: 0 | GA12: 0 | GB12: 0 | GC12: 116193 | GD12: 56724.83 | GE12: 0 | GF12: 0 | GG12: 0 | GH12: 0 | GI12: 0 | GJ12: 56724.83 | GK12: 48000 | GL12: 56724.83 | GM12: 59468.18 | GN12: 0.055 | GO12: 0.02 | GP12: 0.0382 | GQ12: 0.0604 | GR12: 1.25 | GS12: 0.8 | GT12: 0.25 | GU12: 13833.33 | GV12: 9682.75 | GW12: 4727.07 | GX12: 4955.68 | GY12: 4198.3 | GZ12: 0 | HA12: 166000 | HB12: 116193 | HC12: 56724.83 | HD12: 59468.18 | HE12: 50379.64 | HF12: 0 | HG12: 13833.33 | HH12: 9682.75 | HI12: 4727.07 | HJ12: 4955.68 | HK12: 4794.02 | HL12: 0 | HM12: 166000 | HN12: 116193 | HO12: 56724.83 | HP12: 59468.18 | HQ12: 57528.23 | HR12: 0 | HS12: 1.18 | HT12: 0.3034918023 | HU12: PASS | HV12: 1.03 | HW12: 0.3465556274 | HX12: PASS | HY12: 500000 | HZ12: Pass | IA12: Y | IB12: 2023-10-25T09:22:23 | ID12: Case 10 | IE12: Neil
A13: 500000 | B13: 0.07 | C13: 0.095 | D13: 20 | E13: 3 | F13: 500000 | G13: 0.07 | H13: 0.095 | I13: 20 | J13: 3 | P13: Individual (Couple) | Q13: Individual (Couple) | V13: Applicant 2 | W13: Applicant 1 | AB13: 2 | AH13: 150000 | AI13: 0 | AJ13: 0 | AK13: 0 | AL13: 0 | AM13: 0 | AN13: 0 | AO13: 0 | AP13: 0 | AQ13: 0 | AR13: 0 | AS13: 0 | AT13: 0 | AU13: 0 | AV13: 0 | AW13: 0 | AX13: 0 | AY13: 0 | AZ13: 0 | BA13: 0 | BB13: 0 | BC13: 0 | BD13: 0 | BE13: 0 | BF13: 0 | BG13: 0 | BH13: 0 | BI13: 0 | BJ13: 0 | BK13: 0 | BL13: 20000 | BM13: 0 | BN13: 0 | BO13: 0 | BP13: 0 | BQ13: 0 | BR13: 100000 | BS13: 0 | BT13: 0 | BU13: 0 | BV13: 0 | BW13: 0 | BX13: 4000 | BY13: 0 | BZ13: 0 | CA13: 0 | CB13: 0 | CC13: 0 | CD13: 0 | CE13: 0 | CF13: 0 | CG13: 0 | CH13: 0 | CI13: 0 | CJ13: 0 | CK13: 0 | CL13: 0 | CM13: 0 | CN13: Yes | CO13: No | CP13: No | CQ13: Yes | CR13: Yes | CS13: Yes | CT13: Yes | CU13: Yes | CV13: Yes | CW13: Yes | CX13: No | CY13: Yes | CZ13: Yes | DA13: No | DB13: No | DC13: No | DD13: 0 | DE13: 0 | DF13: 0 | DG13: 0 | DH13: 47451.4 | DI13: 0 | DJ13: 0 | DK13: 0 | DL13: 0 | DM13: 0 | DN13: 118548.6 | DO13: 0 | DP13: 0 | DQ13: 0 | DR13: 0 | DS13: 0 | DT13: 118548.6 | DU13: 56724.83 | DV13: 0 | DW13: 0 | DX13: 0 | DY13: 0 | DZ13: 0 | EA13: 56724.83 | EB13: 48000 | EC13: 56724.83 | ED13: 61823.78 | EE13: 0.055 | EF13: 0.02 | EG13: 0.0382 | EH13: 0.0604 | EI13: 1.25 | EJ13: 0.8 | EK13: 0.25 | EL13: 13833.33 | EM13: 9879.05 | EN13: 4727.07 | EO13: 5151.98 | EP13: 4198.3 | EQ13: 0 | ER13: 166000 | ES13: 118548.6 | ET13: 56724.83 | EU13: 61823.78 | EV13: 50379.64 | EW13: 0 | EX13: 13833.33 | EY13: 9879.05 | EZ13: 4727.07 | FA13: 5151.98 | FB13: 4794.02 | FC13: 0 | FD13: 166000 | FE13: 118548.6 | FF13: 56724.83 | FG13: 61823.78 | FH13: 57528.23 | FI13: 0 | FJ13: 1.22 | FK13: 0.3034918023 | FL13: PASS | FM13: 1.07 | FN13: 0.3465556274 | FO13: PASS | FP13: 500000 | FQ13: 47451.4 | FR13: 0 | FS13: 0 | FT13: 0 | FU13: 0 | FV13: 0 | FW13: 118548.6 | FX13: 0 | FY13: 0 | FZ13: 0 | GA13: 0 | GB13: 0 | GC13: 118548.6 | GD13: 56724.83 | GE13: 0 | GF13: 0 | GG13: 0 | GH13: 0 | GI13: 0 | GJ13: 56724.83 | GK13: 48000 | GL13: 56724.83 | GM13: 61823.78 | GN13: 0.055 | GO13: 0.02 | GP13: 0.0382 | GQ13: 0.0604 | GR13: 1.25 | GS13: 0.8 | GT13: 0.25 | GU13: 13833.33 | GV13: 9879.05 | GW13: 4727.07 | GX13: 5151.98 | GY13: 4198.3 | GZ13: 0 | HA13: 166000 | HB13: 118548.6 | HC13: 56724.83 | HD13: 61823.78 | HE13: 50379.64 | HF13: 0 | HG13: 13833.33 | HH13: 9879.05 | HI13: 4727.07 | HJ13: 5151.98 | HK13: 4794.02 | HL13: 0 | HM13: 166000 | HN13: 118548.6 | HO13: 56724.83 | HP13: 61823.78 | HQ13: 57528.23 | HR13: 0 | HS13: 1.22 | HT13: 0.3034918023 | HU13: PASS | HV13: 1.07 | HW13: 0.3465556274 | HX13: PASS | HY13: 500000 | HZ13: Pass | IA13: Y | IB13: 2023-10-25T09:22:25 | ID13: Case 11 | IE13: Neil
A14: 200000 | B14: 0.05 | C14: 0.075 | D14: 30 | E14: 0 | F14: 200000 | G14: 0.05 | H14: 0.075 | I14: 30 | J14: 0 | P14: Individual (Couple) | Q14: Individual (Couple) | V14: Applicant 2 | W14: Applicant 1 | AH14: 0 | AI14: 10000 | AJ14: 0 | AK14: 0 | AL14: 0 | AM14: 0 | AN14: 35000 | AO14: 0 | AP14: 0 | AQ14: 0 | AR14: 0 | AS14: 0 | AT14: 0 | AU14: 0 | AV14: 0 | AW14: 0 | AX14: 0 | AY14: 0 | AZ14: 0 | BA14: 0 | BB14: 0 | BC14: 0 | BD14: 0 | BE14: 0 | BF14: 0 | BG14: 0 | BH14: 0 | BI14: 0 | BJ14: 0 | BK14: 0 | BL14: 0 | BM14: 0 | BN14: 0 | BO14: 0 | BP14: 0 | BQ14: 0 | BR14: 0 | BS14: 0 | BT14: 0 | BU14: 0 | BV14: 0 | BW14: 0 | BX14: 100 | BY14: 0 | BZ14: 0 | CA14: 0 | CB14: 0 | CC14: 0 | CD14: 0 | CE14: 0 | CF14: 0 | CG14: 0 | CH14: 0 | CI14: 0 | CJ14: 0 | CK14: 0 | CL14: 0 | CM14: 0 | CN14: Yes | CO14: No | CP14: No | CQ14: Yes | CR14: Yes | CS14: Yes | CT14: Yes | CU14: Yes | CV14: Yes | CW14: Yes | CX14: No | CY14: Yes | CZ14: Yes | DA14: No | DB14: No | DC14: No | DD14: 0 | DE14: 0 | DF14: 0 | DG14: 0 | DH14: 0 | DI14: 0 | DJ14: 0 | DK14: 0 | DL14: 0 | DM14: 0 | DN14: 35000 | DO14: 10000 | DP14: 0 | DQ14: 0 | DR14: 0 | DS14: 0 | DT14: 45000 | DU14: 29969.05 | DV14: 0 | DW14: 0 | DX14: 0 | DY14: 0 | DZ14: 0 | EA14: 29969.05 | EB14: 1200 | EC14: 29969.05 | ED14: 15030.95 | EE14: 0.055 | EF14: 0.02 | EG14: 0.0382 | EH14: 0.0604 | EI14: 1.25 | EJ14: 0.8 | EK14: 0.25 | EL14: 3750 | EM14: 3750 | EN14: 2497.42 | EO14: 1252.58 | EP14: 1073.64 | EQ14: 0 | ER14: 45000 | ES14: 45000 | ET14: 29969.05 | EU14: 15030.95 | EV14: 12883.72 | EW14: 0 | EX14: 3750 | EY14: 3750 | EZ14: 2497.42 | FA14: 1252.58 | FB14: 1330.61 | FC14: 0 | FD14: 45000 | FE14: 45000 | FF14: 29969.05 | FG14: 15030.95 | FH14: 15967.26 | FI14: 0 | FJ14: 1.16 | FK14: 0.2863048656 | FL14: FAIL | FM14: 0.94 | FN14: 0.3548279974 | FO14: FAIL | FP14: 150608.18 | FQ14: 0 | FR14: 0 | FS14: 0 | FT14: 0 | FU14: 0 | FV14: 0 | FW14: 35000 | FX14: 10000 | FY14: 0 | FZ14: 0 | GA14: 0 | GB14: 0 | GC14: 45000 | GD14: 29969.05 | GE14: 0 | GF14: 0 | GG14: 0 | GH14: 0 | GI14: 0 | GJ14: 29969.05 | GK14: 1200 | GL14: 29969.05 | GM14: 15030.95 | GN14: 0.055 | GO14: 0.02 | GP14: 0.0382 | GQ14: 0.0604 | GR14: 1.25 | GS14: 0.8 | GT14: 0.25 | GU14: 3750 | GV14: 3750 | GW14: 2497.42 | GX14: 1252.58 | GY14: 1073.64 | GZ14: 0 | HA14: 45000 | HB14: 45000 | HC14: 29969.05 | HD14: 15030.95 | HE14: 12883.72 | HF14: 0 | HG14: 3750 | HH14: 3750 | HI14: 2497.42 | HJ14: 1252.58 | HK14: 1330.61 | HL14: 0 | HM14: 45000 | HN14: 45000 | HO14: 29969.05 | HP14: 15030.95 | HQ14: 15967.26 | HR14: 0 | HS14: 1.16 | HT14: 0.2863048656 | HU14: FAIL | HV14: 0.94 | HW14: 0.3548279974 | HX14: FAIL | HY14: 150608.18 | HZ14: Pass | IA14: Y | IB14: 2023-10-25T09:22:28 | ID14: Case 12 | IE14: Neil
A15: 1000000 | B15: 0.05 | C15: 0.075 | D15: 30 | E15: 0 | F15: 1000000 | G15: 0.05 | H15: 0.075 | I15: 30 | J15: 0 | P15: Individual (Couple) | Q15: Individual (Couple) | V15: Applicant 2 | W15: Applicant 1 | AH15: 0 | AI15: 0 | AJ15: 0 | AK15: 0 | AL15: 0 | AM15: 0 | AN15: 0 | AO15: 0 | AP15: 0 | AQ15: 0 | AR15: 0 | AS15: 0 | AT15: 0 | AU15: 0 | AV15: 0 | AW15: 0 | AX15: 0 | AY15: 0 | AZ15: 0 | BA15: 0 | BB15: 0 | BC15: 0 | BD15: 0 | BE15: 0 | BF15: 0 | BG15: 0 | BH15: 0 | BI15: 0 | BJ15: 0 | BK15: 0 | BL15: 200000 | BM15: 0 | BN15: 0 | BO15: 0 | BP15: 0 | BQ15: 0 | BR15: 1000000 | BS15: 0 | BT15: 0 | BU15: 0 | BV15: 0 | BW15: 0 | BX15: 100 | BY15: 0 | BZ15: 0 | CA15: 0 | CB15: 0 | CC15: 0 | CD15: 0 | CE15: 0 | CF15: 0 | CG15: 0 | CH15: 0 | CI15: 0 | CJ15: 0 | CK15: 0 | CL15: 0 | CM15: 0 | CN15: Yes | CO15: No | CP15: No | CQ15: Yes | CR15: Yes | CS15: Yes | CT15: Yes | CU15: Yes | CV15: Yes | CW15: Yes | CX15: No | CY15: Yes | CZ15: Yes | DA15: No | DB15: No | DC15: No | DD15: 0 | DE15: 0 | DF15: 0 | DG15: 0 | DH15: 24829 | DI15: 0 | DJ15: 0 | DK15: 0 | DL15: 0 | DM15: 0 | DN15: 135171 | DO15: 0 | DP15: 0 | DQ15: 0 | DR15: 0 | DS15: 0 | DT15: 135171 | DU15: 40017.74 | DV15: 0 | DW15: 0 | DX15: 0 | DY15: 0 | DZ15: 0 | EA15: 40017.74 | EB15: 1200 | EC15: 40017.74 | ED15: 95153.26 | EE15: 0.055 | EF15: 0.02 | EG15: 0.0382 | EH15: 0.0604 | EI15: 1.25 | EJ15: 0.8 | EK15: 0.25 | EL15: 13333.33 | EM15: 11264.25 | EN15: 3334.81 | EO15: 7929.44 | EP15: 5368.22 | EQ15: 0 | ER15: 160000 | ES15: 135171 | ET15: 40017.74 | EU15: 95153.26 | EV15: 64418.59 | EW15: 0 | EX15: 13333.33 | EY15: 11264.25 | EZ15: 3334.81 | FA15: 7929.44 | FB15: 6653.03 | FC15: 0 | FD15: 160000 | FE15: 135171 | FF15: 40017.74 | FG15: 95153.26 | FH15: 79836.3 | FI15: 0 | FJ15: 1.47 | FK15: 0.4026162173 | FL15: PASS | FM15: 1.19 | FN15: 0.4989768714 | FO15: PASS | FP15: 1000000 | FQ15: 24829 | FR15: 0 | FS15: 0 | FT15: 0 | FU15: 0 | FV15: 0 | FW15: 135171 | FX15: 0 | FY15: 0 | FZ15: 0 | GA15: 0 | GB15: 0 | GC15: 135171 | GD15: 40017.74 | GE15: 0 | GF15: 0 | GG15: 0 | GH15: 0 | GI15: 0 | GJ15: 40017.74 | GK15: 1200 | GL15: 40017.74 | GM15: 95153.26 | GN15: 0.055 | GO15: 0.02 | GP15: 0.0382 | GQ15: 0.0604 | GR15: 1.25 | GS15: 0.8 | GT15: 0.25 | GU15: 13333.33 | GV15: 11264.25 | GW15: 3334.81 | GX15: 7929.44 | GY15: 5368.22 | GZ15: 0 | HA15: 160000 | HB15: 135171 | HC15: 40017.74 | HD15: 95153.26 | HE15: 64418.59 | HF15: 0 | HG15: 13333.33 | HH15: 11264.25 | HI15: 3334.81 | HJ15: 7929.44 | HK15: 6653.03 | HL15: 0 | HM15: 160000 | HN15: 135171 | HO15: 40017.74 | HP15: 95153.26 | HQ15: 79836.3 | HR15: 0 | HS15: 1.47 | HT15: 0.4026162173 | HU15: PASS | HV15: 1.19 | HW15: 0.4989768714 | HX15: PASS | HY15: 1000000 | HZ15: Pass | IA15: Y | IB15: 2023-10-25T09:22:30 | ID15: Case 13 | IE15: Neil
A16: 1500000 | B16: 0.06 | C16: 0.085 | D16: 30 | E16: 0 | F16: 1500000 | G16: 0.06 | H16: 0.085 | I16: 30 | J16: 0 | P16: Individual (Couple) | Q16: Individual (Couple) | R16: Individual (Single) | V16: Applicant 2 | W16: Applicant 1 | AH16: 300000 | AI16: 10000 | AJ16: 0 | AK16: 0 | AL16: 0 | AM16: 0 | AN16: 35000 | AO16: 0 | AP16: 35000 | AQ16: 0 | AR16: 0 | AS16: 0 | AT16: 116000 | AU16: 0 | AV16: 0 | AW16: 0 | AX16: 0 | AY16: 0 | AZ16: 15000 | BA16: 0 | BB16: 0 | BC16: 0 | BD16: 0 | BE16: 0 | BF16: 0 | BG16: 0 | BH16: 0 | BI16: 0 | BJ16: 0 | BK16: 0 | BL16: 0 | BM16: 0 | BN16: 0 | BO16: 0 | BP16: 0 | BQ16: 0 | BR16: 0 | BS16: 0 | BT16: 0 | BU16: 0 | BV16: 0 | BW16: 0 | BX16: 100 | BY16: 0 | BZ16: 0 | CA16: 0 | CB16: 0 | CC16: 0 | CD16: 0 | CE16: 0 | CF16: 0 | CG16: 0 | CH16: 0 | CI16: 0 | CJ16: 0 | CK16: 0 | CL16: 0 | CM16: 0 | CN16: Yes | CO16: No | CP16: No | CQ16: Yes | CR16: Yes | CS16: Yes | CT16: Yes | CU16: Yes | CV16: Yes | CW16: Yes | CX16: No | CY16: Yes | CZ16: Yes | DA16: No | DB16: No | DC16: No | DD16: 0 | DE16: 0 | DF16: 0 | DG16: 0 | DH16: 166187 | DI16: 0 | DJ16: 0 | DK16: 0 | DL16: 0 | DM16: 0 | DN16: 299813 | DO16: 10000 | DP16: 35000 | DQ16: 0 | DR16: 0 | DS16: 0 | DT16: 344813 | DU16: 68194.54 | DV16: 0 | DW16: 15787.04 | DX16: 0 | DY16: 0 | DZ16: 0 | EA16: 83981.58 | EB16: 1200 | EC16: 83981.58 | ED16: 260831.42 | EE16: 0.055 | EF16: 0.02 | EG16: 0.0382 | EH16: 0.0604 | EI16: 1.25 | EJ16: 0.8 | EK16: 0.25 | EL16: 42583.33 | EM16: 28734.42 | EN16: 6998.47 | EO16: 21735.95 | EP16: 8993.26 | EQ16: 0 | ER16: 511000 | ES16: 344813 | ET16: 83981.58 | EU16: 260831.42 | EV16: 107919.09 | EW16: 0 | EX16: 42583.33 | EY16: 28734.42 | EZ16: 6998.47 | FA16: 21735.95 | FB16: 11006.47 | FC16: 0 | FD16: 511000 | FE16: 344813 | FF16: 83981.58 | FG16: 260831.42 | FH16: 132077.62 | FI16: 0 | FJ16: 2.41 | FK16: 0.2111919658 | FL16: PASS | FM16: 1.97 | FN16: 0.2584689301 | FO16: PASS | FP16: 1500000 | FQ16: 166187 | FR16: 0 | FS16: 0 | FT16: 0 | FU16: 0 | FV16: 0 | FW16: 299813 | FX16: 10000 | FY16: 35000 | FZ16: 0 | GA16: 0 | GB16: 0 | GC16: 344813 | GD16: 68194.54 | GE16: 0 | GF16: 15787.04 | GG16: 0 | GH16: 0 | GI16: 0 | GJ16: 83981.58 | GK16: 1200 | GL16: 83981.58 | GM16: 260831.42 | GN16: 0.055 | GO16: 0.02 | GP16: 0.0382 | GQ16: 0.0604 | GR16: 1.25 | GS16: 0.8 | GT16: 0.25 | GU16: 42583.33 | GV16: 28734.42 | GW16: 6998.47 | GX16: 21735.95 | GY16: 8993.26 | GZ16: 0 | HA16: 511000 | HB16: 344813 | HC16: 83981.58 | HD16: 260831.42 | HE16: 107919.09 | HF16: 0 | HG16: 42583.33 | HH16: 28734.42 | HI16: 6998.47 | HJ16: 21735.95 | HK16: 11006.47 | HL16: 0 | HM16: 511000 | HN16: 344813 | HO16: 83981.58 | HP16: 260831.42 | HQ16: 132077.62 | HR16: 0 | HS16: 2.41 | HT16: 0.2111919658 | HU16: PASS | HV16: 1.97 | HW16: 0.2584689301 | HX16: PASS | HY16: 1500000 | HZ16: Pass | IA16: Y | IB16: 2023-10-25T09:22:33 | ID16: Case 14 | IE16: Neil
A17: 1000000 | B17: 0.06 | C17: 0.085 | D17: 30 | E17: 0 | F17: 1000000 | G17: 0.06 | H17: 0.085 | I17: 30 | J17: 0 | P17: Individual (Single) | Q17: Individual (Couple) | R17: Individual (Couple) | W17: Applicant 3 | X17: Applicant 2 | AH17: 0 | AI17: 50000 | AJ17: 0 | AK17: 0 | AL17: 0 | AM17: 0 | AN17: 0 | AO17: 0 | AP17: 0 | AQ17: 0 | AR17: 0 | AS17: 0 | AT17: 25000 | AU17: 0 | AV17: 0 | AW17: 0 | AX17: 0 | AY17: 0 | AZ17: 0 | BA17: 0 | BB17: 0 | BC17: 0 | BD17: 0 | BE17: 0 | BF17: 0 | BG17: 0 | BH17: 0 | BI17: 0 | BJ17: 0 | BK17: 0 | BL17: 0 | BM17: 60000 | BN17: 60000 | BO17: 0 | BP17: 0 | BQ17: 0 | BR17: 0 | BS17: 500000 | BT17: 500000 | BU17: 0 | BV17: 0 | BW17: 0 | BX17: 1000 | BY17: 0 | BZ17: 0 | CA17: 0 | CB17: 0 | CC17: 0 | CD17: 0 | CE17: 0 | CF17: 0 | CG17: 0 | CH17: 0 | CI17: 0 | CJ17: 0 | CK17: 0 | CL17: 0 | CM17: 0 | CN17: Yes | CO17: No | CP17: No | CQ17: Yes | CR17: Yes | CS17: Yes | CT17: Yes | CU17: Yes | CV17: Yes | CW17: Yes | CX17: No | CY17: Yes | CZ17: Yes | DA17: No | DB17: No | DC17: No | DD17: 0 | DE17: 0 | DF17: 0 | DG17: 0 | DH17: 1455.5 | DI17: 13858 | DJ17: 0 | DK17: 0 | DL17: 0 | DM17: 0 | DN17: 24244.5 | DO17: 84142 | DP17: 48000 | DQ17: 0 | DR17: 0 | DS17: 0 | DT17: 156386.5 | DU17: 15787.04 | DV17: 35884.05 | DW17: 0 | DX17: 0 | DY17: 0 | DZ17: 0 | EA17: 51671.09 | EB17: 12000 | EC17: 51671.09 | ED17: 104715.41 | EE17: 0.055 | EF17: 0.02 | EG17: 0.0382 | EH17: 0.0604 | EI17: 1.25 | EJ17: 0.8 | EK17: 0.25 | EL17: 14250 | EM17: 13032.21 | EN17: 4305.92 | EO17: 8726.28 | EP17: 5995.51 | EQ17: 0 | ER17: 171000 | ES17: 156386.5 | ET17: 51671.09 | EU17: 104715.41 | EV17: 71946.06 | EW17: 0 | EX17: 14250 | EY17: 13032.21 | EZ17: 4305.92 | FA17: 8726.28 | FB17: 7337.65 | FC17: 0 | FD17: 171000 | FE17: 156386.5 | FF17: 51671.09 | FG17: 104715.41 | FH17: 88051.75 | FI17: 0 | FJ17: 1.45 | FK17: 0.4207372106 | FL17: PASS | FM17: 1.18 | FN17: 0.514922508 | FO17: PASS | FP17: 1000000 | FQ17: 1455.5 | FR17: 13858 | FS17: 0 | FT17: 0 | FU17: 0 | FV17: 0 | FW17: 24244.5 | FX17: 84142 | FY17: 48000 | FZ17: 0 | GA17: 0 | GB17: 0 | GC17: 156386.5 | GD17: 15787.04 | GE17: 35884.05 | GF17: 0 | GG17: 0 | GH17: 0 | GI17: 0 | GJ17: 51671.09 | GK17: 12000 | GL17: 51671.09 | GM17: 104715.41 | GN17: 0.055 | GO17: 0.02 | GP17: 0.0382 | GQ17: 0.0604 | GR17: 1.25 | GS17: 0.8 | GT17: 0.25 | GU17: 14250 | GV17: 13032.21 | GW17: 4305.92 | GX17: 8726.28 | GY17: 5995.51 | GZ17: 0 | HA17: 171000 | HB17: 156386.5 | HC17: 51671.09 | HD17: 104715.41 | HE17: 71946.06 | HF17: 0 | HG17: 14250 | HH17: 13032.21 | HI17: 4305.92 | HJ17: 8726.28 | HK17: 7337.65 | HL17: 0 | HM17: 171000 | HN17: 156386.5 | HO17: 51671.09 | HP17: 104715.41 | HQ17: 88051.75 | HR17: 0 | HS17: 1.45 | HT17: 0.4207372106 | HU17: PASS | HV17: 1.18 | HW17: 0.514922508 | HX17: PASS | HY17: 1000000 | HZ17: Pass | IA17: Y | IB17: 2023-10-25T09:22:37 | ID17: Case 15 | IE17: Neil
A18: 200000 | B18: 0.05 | C18: 0.075 | D18: 30 | E18: 0 | F18: 200000 | G18: 0.05 | H18: 0.075 | I18: 30 | J18: 0 | P18: Individual (Single) | AB18: 1 | AH18: 107000 | AI18: 0 | AJ18: 0 | AK18: 0 | AL18: 0 | AM18: 0 | AN18: 0 | AO18: 0 | AP18: 0 | AQ18: 0 | AR18: 0 | AS18: 0 | AT18: 0 | AU18: 0 | AV18: 0 | AW18: 0 | AX18: 0 | AY18: 0 | AZ18: 0 | BA18: 0 | BB18: 0 | BC18: 0 | BD18: 0 | BE18: 0 | BF18: 0 | BG18: 0 | BH18: 0 | BI18: 0 | BJ18: 0 | BK18: 0 | BL18: 0 | BM18: 0 | BN18: 0 | BO18: 0 | BP18: 0 | BQ18: 0 | BR18: 0 | BS18: 0 | BT18: 0 | BU18: 0 | BV18: 0 | BW18: 0 | BX18: 100 | BY18: 0 | BZ18: 0 | CA18: 0 | CB18: 0 | CC18: 0 | CD18: 0 | CE18: 0 | CF18: 0 | CG18: 0 | CH18: 0 | CI18: 0 | CJ18: 0 | CK18: 0 | CL18: 0 | CM18: 0 | CN18: Yes | CO18: No | CP18: No | CQ18: Yes | CR18: Yes | CS18: Yes | CT18: Yes | CU18: Yes | CV18: Yes | CW18: Yes | CX18: No | CY18: Yes | CZ18: Yes | DA18: No | DB18: No | DC18: No | DD18: 0 | DE18: 10000 | DF18: 1000 | DG18: 1000 | DH18: 27382 | DI18: 0 | DJ18: 0 | DK18: 0 | DL18: 0 | DM18: 0 | DN18: 79618 | DO18: 0 | DP18: 0 | DQ18: 0 | DR18: 0 | DS18: 0 | DT18: 79618 | DU18: 31813.96 | DV18: 0 | DW18: 0 | DX18: 0 | DY18: 0 | DZ18: 0 | EA18: 31813.96 | EB18: 1200 | EC18: 31813.96 | ED18: 47804.04 | EE18: 0.055 | EF18: 0.02 | EG18: 0.0382 | EH18: 0.0604 | EI18: 1.25 | EJ18: 0.8 | EK18: 0.25 | EL18: 8916.67 | EM18: 6634.83 | EN18: 2651.16 | EO18: 3983.67 | EP18: 1073.64 | EQ18: 1382 | ER18: 107000 | ES18: 79618 | ET18: 31813.96 | EU18: 47804.04 | EV18: 12883.72 | EW18: 16584 | EX18: 8916.67 | EY18: 6634.83 | EZ18: 2651.16 | FA18: 3983.67 | FB18: 1330.61 | FC18: 1382 | FD18: 107000 | FE18: 79618 | FF18: 31813.96 | FG18: 47804.04 | FH18: 15967.26 | FI18: 16584 | FJ18: 1.62 | FK18: 0.2753992425 | FL18: PASS | FM18: 1.46 | FN18: 0.3042173821 | FO18: PASS | FP18: 200000 | FQ18: 27382 | FR18: 0 | FS18: 0 | FT18: 0 | FU18: 0 | FV18: 0 | FW18: 79618 | FX18: 0 | FY18: 0 | FZ18: 0 | GA18: 0 | GB18: 0 | GC18: 79618 | GD18: 31813.96 | GE18: 0 | GF18: 0 | GG18: 0 | GH18: 0 | GI18: 0 | GJ18: 31813.96 | GK18: 1200 | GL18: 31813.96 | GM18: 47804.04 | GN18: 0.055 | GO18: 0.02 | GP18: 0.0382 | GQ18: 0.0604 | GR18: 1.25 | GS18: 0.8 | GT18: 0.25 | GU18: 8916.67 | GV18: 6634.83 | GW18: 2651.16 | GX18: 3983.67 | GY18: 1073.64 | GZ18: 1382 | HA18: 107000 | HB18: 79618 | HC18: 31813.96 | HD18: 47804.04 | HE18: 12883.72 | HF18: 16584 | HG18: 8916.67 | HH18: 6634.83 | HI18: 2651.16 | HJ18: 3983.67 | HK18: 1330.61 | HL18: 1382 | HM18: 107000 | HN18: 79618 | HO18: 31813.96 | HP18: 47804.04 | HQ18: 15967.26 | HR18: 16584 | HS18: 1.62 | HT18: 0.2753992425 | HU18: PASS | HV18: 1.46 | HW18: 0.3042173821 | HX18: PASS | HY18: 200000 | HZ18: Pass | IA18: Y | IB18: 2023-10-25T09:22:40 | ID18: Case 16 | IE18: Neil
A19: 200000 | B19: 0.05 | C19: 0.075 | D19: 30 | E19: 0 | F19: 200000 | G19: 0.05 | H19: 0.075 | I19: 30 | J19: 0 | P19: Individual (Single) | AB19: 1 | AH19: 107000 | AI19: 0 | AJ19: 0 | AK19: 0 | AL19: 0 | AM19: 0 | AN19: 25000 | AO19: 0 | AP19: 0 | AQ19: 0 | AR19: 0 | AS19: 0 | AT19: 0 | AU19: 0 | AV19: 0 | AW19: 0 | AX19: 0 | AY19: 0 | AZ19: 0 | BA19: 0 | BB19: 0 | BC19: 0 | BD19: 0 | BE19: 0 | BF19: 0 | BG19: 0 | BH19: 0 | BI19: 0 | BJ19: 0 | BK19: 0 | BL19: 0 | BM19: 0 | BN19: 0 | BO19: 0 | BP19: 0 | BQ19: 0 | BR19: 0 | BS19: 0 | BT19: 0 | BU19: 0 | BV19: 0 | BW19: 0 | BX19: 100 | BY19: 0 | BZ19: 0 | CA19: 0 | CB19: 0 | CC19: 0 | CD19: 0 | CE19: 0 | CF19: 0 | CG19: 0 | CH19: 0 | CI19: 0 | CJ19: 0 | CK19: 0 | CL19: 0 | CM19: 0 | CN19: Yes | CO19: No | CP19: No | CQ19: Yes | CR19: Yes | CS19: Yes | CT19: Yes | CU19: Yes | CV19: Yes | CW19: Yes | CX19: No | CY19: Yes | CZ19: Yes | DA19: No | DB19: No | DC19: No | DD19: 0 | DE19: 10000 | DF19: 1000 | DG19: 1000 | DH19: 27382 | DI19: 0 | DJ19: 0 | DK19: 0 | DL19: 0 | DM19: 0 | DN19: 104618 | DO19: 0 | DP19: 0 | DQ19: 0 | DR19: 0 | DS19: 0 | DT19: 104618 | DU19: 35653.88 | DV19: 0 | DW19: 0 | DX19: 0 | DY19: 0 | DZ19: 0 | EA19: 35653.88 | EB19: 1200 | EC19: 35653.88 | ED19: 68964.12 | EE19: 0.055 | EF19: 0.02 | EG19: 0.0382 | EH19: 0.0604 | EI19: 1.25 | EJ19: 0.8 | EK19: 0.25 | EL19: 11000 | EM19: 8718.17 | EN19: 2971.16 | EO19: 5747.01 | EP19: 1073.64 | EQ19: 1382 | ER19: 132000 | ES19: 104618 | ET19: 35653.88 | EU19: 68964.12 | EV19: 12883.72 | EW19: 16584 | EX19: 11000 | EY19: 8718.17 | EZ19: 2971.16 | FA19: 5747.01 | FB19: 1330.61 | FC19: 1382 | FD19: 132000 | FE19: 104618 | FF19: 35653.88 | FG19: 68964.12 | FH19: 15967.26 | FI19: 16584 | FJ19: 2.34 | FK19: 0.2232402951 | FL19: PASS | FM19: 2.11 | FN19: 0.2466004537 | FO19: PASS | FP19: 200000 | FQ19: 27382 | FR19: 0 | FS19: 0 | FT19: 0 | FU19: 0 | FV19: 0 | FW19: 104618 | FX19: 0 | FY19: 0 | FZ19: 0 | GA19: 0 | GB19: 0 | GC19: 104618 | GD19: 35653.88 | GE19: 0 | GF19: 0 | GG19: 0 | GH19: 0 | GI19: 0 | GJ19: 35653.88 | GK19: 1200 | GL19: 35653.88 | GM19: 68964.12 | GN19: 0.055 | GO19: 0.02 | GP19: 0.0382 | GQ19: 0.0604 | GR19: 1.25 | GS19: 0.8 | GT19: 0.25 | GU19: 11000 | GV19: 8718.17 | GW19: 2971.16 | GX19: 5747.01 | GY19: 1073.64 | GZ19: 1382 | HA19: 132000 | HB19: 104618 | HC19: 35653.88 | HD19: 68964.12 | HE19: 12883.72 | HF19: 16584 | HG19: 11000 | HH19: 8718.17 | HI19: 2971.16 | HJ19: 5747.01 | HK19: 1330.61 | HL19: 1382 | HM19: 132000 | HN19: 104618 | HO19: 35653.88 | HP19: 68964.12 | HQ19: 15967.26 | HR19: 16584 | HS19: 2.34 | HT19: 0.2232402951 | HU19: PASS | HV19: 2.11 | HW19: 0.2466004537 | HX19: PASS | HY19: 200000 | HZ19: Pass | IA19: Y | IB19: 2023-10-25T09:22:43 | ID19: Case 17 | IE19: Neil
A20: 2500000 | B20: 0.0679 | C20: 0.0929 | D20: 40 | E20: 5 | F20: 2500000 | G20: 0.0679 | H20: 0.0929 | I20: 40 | J20: 5 | P20: Company | Q20: Individual (Single) | R20: Individual (Couple) | S20: Individual (Couple) | T20: Individual (Couple) | U20: Individual (Single) | X20: Non-loan Party | Y20: Applicant 5 | Z20: Applicant 4 | AH20: 0 | AI20: 0 | AJ20: 80000 | AK20: 0 | AL20: 0 | AM20: 300000 | AN20: 0 | AO20: 0 | AP20: 0 | AQ20: 0 | AR20: 0 | AS20: 0 | AT20: 535000 | AU20: 150000 | AV20: 0 | AW20: 0 | AX20: 0 | AY20: 0 | AZ20: 75000 | BA20: 0 | BB20: 0 | BC20: 0 | BD20: 0 | BE20: 0 | BF20: 0 | BG20: 0 | BH20: 0 | BI20: 0 | BJ20: 0 | BK20: 0 | BL20: 0 | BM20: 0 | BN20: 0 | BO20: 50000 | BP20: 50000 | BQ20: 0 | BR20: 0 | BS20: 0 | BT20: 0 | BU20: 1000000 | BV20: 1000000 | BW20: 0 | BX20: 0 | BY20: 0 | BZ20: 0 | CA20: 0 | CB20: 0 | CC20: 0 | CD20: 0 | CE20: 0 | CF20: 0 | CG20: 0 | CH20: 0 | CI20: 20000 | CJ20: 0 | CK20: 0 | CL20: 0 | CM20: 0 | CN20: Yes | CO20: No | CP20: No | CQ20: Yes | CR20: Yes | CS20: Yes | CT20: Yes | CU20: Yes | CV20: Yes | CW20: Yes | CX20: No | CY20: Yes | CZ20: Yes | DA20: No | DB20: No | DC20: No | DD20: 0 | DE20: 50000 | DF20: 15000 | DG20: 0 | DH20: 133750 | DI20: 43567 | DJ20: 18067 | DK20: 0 | DL20: 0 | DM20: 111667 | DN20: 476250 | DO20: 106433 | DP20: 61933 | DQ20: 40000 | DR20: 40000 | DS20: 188333 | DT20: 912949 | DU20: 0 | DV20: 34987.73 | DW20: 35884.05 | DX20: 29253.9 | DY20: 0 | DZ20: 46336.67 | EA20: 146462.34 | EB20: 240000 | EC20: 240000 | ED20: 672949 | EE20: 0.055 | EF20: 0.02 | EG20: 0.0382 | EH20: 0.0604 | EI20: 1.25 | EJ20: 0.8 | EK20: 0.25 | EL20: 101666.67 | EM20: 76079.08 | EN20: 20000 | EO20: 56079.08 | EP20: 15604.88 | EQ20: 16910 | ER20: 1220000 | ES20: 912949 | ET20: 240000 | EU20: 672949 | EV20: 187258.53 | EW20: 202920 | EX20: 101666.67 | EY20: 76079.08 | EZ20: 20000 | FA20: 56079.08 | FB20: 19208.39 | FC20: 16910 | FD20: 1220000 | FE20: 912949 | FF20: 240000 | FG20: 672949 | FH20: 230500.65 | FI20: 202920 | FJ20: 1.72 | FK20: 0.3198184711 | FL20: PASS | FM20: 1.55 | FN20: 0.3552628318 | FO20: PASS | FP20: 2500000 | FQ20: 133750 | FR20: 43567 | FS20: 18067 | FT20: 0 | FU20: 0 | FV20: 111667 | FW20: 476250 | FX20: 106433 | FY20: 61933 | FZ20: 40000 | GA20: 40000 | GB20: 188333 | GC20: 912949 | GD20: 0 | GE20: 34987.73 | GF20: 35884.05 | GG20: 29253.9 | GH20: 0 | GI20: 46336.67 | GJ20: 146462.34 | GK20: 240000 | GL20: 240000 | GM20: 672949 | GN20: 0.055 | GO20: 0.02 | GP20: 0.0382 | GQ20: 0.0604 | GR20: 1.25 | GS20: 0.8 | GT20: 0.25 | GU20: 101666.67 | GV20: 76079.08 | GW20: 20000 | GX20: 56079.08 | GY20: 15604.88 | GZ20: 16910 | HA20: 1220000 | HB20: 912949 | HC20: 240000 | HD20: 672949 | HE20: 187258.53 | HF20: 202920 | HG20: 101666.67 | HH20: 76079.08 | HI20: 20000 | HJ20: 56079.08 | HK20: 19208.39 | HL20: 16910 | HM20: 1220000 | HN20: 912949 | HO20: 240000 | HP20: 672949 | HQ20: 230500.65 | HR20: 202920 | HS20: 1.72 | HT20: 0.3198184711 | HU20: PASS | HV20: 1.55 | HW20: 0.3552628318 | HX20: PASS | HY20: 2500000 | HZ20: Pass | IA20: Y | IB20: 2023-10-25T09:22:48 | ID20: Case 18 | IE20: Neil
A21: 2500000 | B21: 0.0679 | C21: 0.0929 | D21: 40 | E21: 5 | F21: 2500000 | G21: 0.0679 | H21: 0.0929 | I21: 40 | J21: 5 | P21: Company | Q21: Individual (Single) | R21: Individual (Couple) | S21: Individual (Couple) | T21: Individual (Couple) | U21: Individual (Single) | X21: Non-loan Party | Y21: Applicant 5 | Z21: Applicant 4 | AH21: 0 | AI21: 0 | AJ21: 80000 | AK21: 30000 | AL21: 40000 | AM21: 0 | AN21: 0 | AO21: 0 | AP21: 0 | AQ21: 0 | AR21: 0 | AS21: 75000 | AT21: 0 | AU21: 150000 | AV21: 0 | AW21: 0 | AX21: 0 | AY21: 0 | AZ21: 75000 | BA21: 0 | BB21: 0 | BC21: 0 | BD21: 0 | BE21: 0 | BF21: 535000 | BG21: 0 | BH21: 0 | BI21: 0 | BJ21: 0 | BK21: 0 | BL21: 0 | BM21: 0 | BN21: 0 | BO21: 50000 | BP21: 50000 | BQ21: 0 | BR21: 0 | BS21: 0 | BT21: 0 | BU21: 1000000 | BV21: 1000000 | BW21: 0 | BX21: 0 | BY21: 0 | BZ21: 0 | CA21: 0 | CB21: 0 | CC21: 0 | CD21: 0 | CE21: 0 | CF21: 0 | CG21: 0 | CH21: 0 | CI21: 20000 | CJ21: 0 | CK21: 0 | CL21: 0 | CM21: 0 | CN21: Yes | CO21: No | CP21: No | CQ21: Yes | CR21: Yes | CS21: Yes | CT21: Yes | CU21: Yes | CV21: Yes | CW21: Yes | CX21: No | CY21: Yes | CZ21: Yes | DA21: No | DB21: No | DC21: No | DD21: 0 | DE21: 50000 | DF21: 15000 | DG21: 0 | DH21: 133750 | DI21: 43567 | DJ21: 18067 | DK21: 0 | DL21: 266 | DM21: 0 | DN21: 476250 | DO21: 106433 | DP21: 61933 | DQ21: 70000 | DR21: 80000 | DS21: 75000 | DT21: 869616 | DU21: 0 | DV21: 34987.73 | DW21: 35884.05 | DX21: 29253.9 | DY21: 0 | DZ21: 22426.95 | EA21: 122552.63 | EB21: 240000 | EC21: 240000 | ED21: 629616 | EE21: 0.055 | EF21: 0.02 | EG21: 0.0382 | EH21: 0.0604 | EI21: 1.25 | EJ21: 0.8 | EK21: 0.25 | EL21: 88750 | EM21: 72468 | EN21: 20000 | EO21: 52468 | EP21: 15604.88 | EQ21: 16910 | ER21: 1065000 | ES21: 869616 | ET21: 240000 | EU21: 629616 | EV21: 187258.53 | EW21: 202920 | EX21: 88750 | EY21: 72468 | EZ21: 20000 | FA21: 52468 | FB21: 19208.39 | FC21: 16910 | FD21: 1065000 | FE21: 869616 | FF21: 240000 | FG21: 629616 | FH21: 230500.65 | FI21: 202920 | FJ21: 1.61 | FK21: 0.3663648213 | FL21: PASS | FM21: 1.45 | FN21: 0.406967751 | FO21: PASS | FP21: 2500000 | FQ21: 133750 | FR21: 43567 | FS21: 18067 | FT21: 0 | FU21: 266 | FV21: 0 | FW21: 476250 | FX21: 106433 | FY21: 61933 | FZ21: 70000 | GA21: 80000 | GB21: 75000 | GC21: 869616 | GD21: 0 | GE21: 34987.73 | GF21: 35884.05 | GG21: 29253.9 | GH21: 0 | GI21: 22426.95 | GJ21: 122552.63 | GK21: 240000 | GL21: 240000 | GM21: 629616 | GN21: 0.055 | GO21: 0.02 | GP21: 0.0382 | GQ21: 0.0604 | GR21: 1.25 | GS21: 0.8 | GT21: 0.25 | GU21: 88750 | GV21: 72468 | GW21: 20000 | GX21: 52468 | GY21: 15604.88 | GZ21: 16910 | HA21: 1065000 | HB21: 869616 | HC21: 240000 | HD21: 629616 | HE21: 187258.53 | HF21: 202920 | HG21: 88750 | HH21: 72468 | HI21: 20000 | HJ21: 52468 | HK21: 19208.39 | HL21: 16910 | HM21: 1065000 | HN21: 869616 | HO21: 240000 | HP21: 629616 | HQ21: 230500.65 | HR21: 202920 | HS21: 1.61 | HT21: 0.3663648213 | HU21: PASS | HV21: 1.45 | HW21: 0.406967751 | HX21: PASS | HY21: 2500000 | HZ21: Pass | IA21: Y | IB21: 2023-10-25T09:22:51 | ID21: Case 19 | IE21: Neil
A22: 2500000 | B22: 0.0679 | C22: 0.0929 | D22: 40 | E22: 5 | F22: 2500000 | G22: 0.0679 | H22: 0.0929 | I22: 40 | J22: 5 | P22: Company | Q22: Individual (Single) | R22: Individual (Couple) | S22: Individual (Couple) | T22: Individual (Couple) | U22: Individual (Single) | X22: Non-loan Party | Y22: Applicant 5 | Z22: Applicant 4 | AH22: 0 | AI22: 0 | AJ22: 80000 | AK22: 30000 | AL22: 40000 | AM22: 0 | AN22: 0 | AO22: 0 | AP22: 0 | AQ22: 0 | AR22: 0 | AS22: 75000 | AT22: 535000 | AU22: 150000 | AV22: 0 | AW22: 0 | AX22: 0 | AY22: 0 | AZ22: 75000 | BA22: 0 | BB22: 0 | BC22: 0 | BD22: 0 | BE22: 0 | BF22: 0 | BG22: 0 | BH22: 0 | BI22: 0 | BJ22: 0 | BK22: 0 | BL22: 0 | BM22: 0 | BN22: 0 | BO22: 50000 | BP22: 50000 | BQ22: 0 | BR22: 0 | BS22: 0 | BT22: 0 | BU22: 1000000 | BV22: 1000000 | BW22: 0 | BX22: 0 | BY22: 0 | BZ22: 0 | CA22: 0 | CB22: 0 | CC22: 0 | CD22: 0 | CE22: 0 | CF22: 0 | CG22: 0 | CH22: 0 | CI22: 20000 | CJ22: 0 | CK22: 0 | CL22: 0 | CM22: 0 | CN22: Yes | CO22: No | CP22: No | CQ22: Yes | CR22: Yes | CS22: Yes | CT22: Yes | CU22: Yes | CV22: Yes | CW22: Yes | CX22: No | CY22: Yes | CZ22: Yes | DA22: No | DB22: No | DC22: No | DD22: 0 | DE22: 50000 | DF22: 15000 | DG22: 0 | DH22: 133750 | DI22: 43567 | DJ22: 18067 | DK22: 0 | DL22: 266 | DM22: 0 | DN22: 476250 | DO22: 106433 | DP22: 61933 | DQ22: 70000 | DR22: 80000 | DS22: 75000 | DT22: 869616 | DU22: 0 | DV22: 34987.73 | DW22: 35884.05 | DX22: 29253.9 | DY22: 0 | DZ22: 22426.95 | EA22: 122552.63 | EB22: 240000 | EC22: 240000 | ED22: 629616 | EE22: 0.055 | EF22: 0.02 | EG22: 0.0382 | EH22: 0.0604 | EI22: 1.25 | EJ22: 0.8 | EK22: 0.25 | EL22: 88750 | EM22: 72468 | EN22: 20000 | EO22: 52468 | EP22: 15604.88 | EQ22: 16910 | ER22: 1065000 | ES22: 869616 | ET22: 240000 | EU22: 629616 | EV22: 187258.53 | EW22: 202920 | EX22: 88750 | EY22: 72468 | EZ22: 20000 | FA22: 52468 | FB22: 19208.39 | FC22: 16910 | FD22: 1065000 | FE22: 869616 | FF22: 240000 | FG22: 629616 | FH22: 230500.65 | FI22: 202920 | FJ22: 1.61 | FK22: 0.3663648213 | FL22: PASS | FM22: 1.45 | FN22: 0.406967751 | FO22: PASS | FP22: 2500000 | FQ22: 133750 | FR22: 43567 | FS22: 18067 | FT22: 0 | FU22: 266 | FV22: 0 | FW22: 476250 | FX22: 106433 | FY22: 61933 | FZ22: 70000 | GA22: 80000 | GB22: 75000 | GC22: 869616 | GD22: 0 | GE22: 34987.73 | GF22: 35884.05 | GG22: 29253.9 | GH22: 0 | GI22: 22426.95 | GJ22: 122552.63 | GK22: 240000 | GL22: 240000 | GM22: 629616 | GN22: 0.055 | GO22: 0.02 | GP22: 0.0382 | GQ22: 0.0604 | GR22: 1.25 | GS22: 0.8 | GT22: 0.25 | GU22: 88750 | GV22: 72468 | GW22: 20000 | GX22: 52468 | GY22: 15604.88 | GZ22: 16910 | HA22: 1065000 | HB22: 869616 | HC22: 240000 | HD22: 629616 | HE22: 187258.53 | HF22: 202920 | HG22: 88750 | HH22: 72468 | HI22: 20000 | HJ22: 52468 | HK22: 19208.39 | HL22: 16910 | HM22: 1065000 | HN22: 869616 | HO22: 240000 | HP22: 629616 | HQ22: 230500.65 | HR22: 202920 | HS22: 1.61 | HT22: 0.3663648213 | HU22: PASS | HV22: 1.45 | HW22: 0.406967751 | HX22: PASS | HY22: 2500000 | HZ22: Pass | IA22: Y | IB22: 2023-10-25T09:22:54 | ID22: Case 20 | IE22: Neil
A23: 2500000 | B23: 0.0679 | C23: 0.0929 | D23: 40 | E23: 5 | F23: 2500000 | G23: 0.0679 | H23: 0.0929 | I23: 40 | J23: 5 | P23: Company | Q23: Individual (Single) | R23: Individual (Couple) | S23: Individual (Couple) | T23: Individual (Couple) | U23: Individual (Single) | X23: Non-loan Party | Y23: Applicant 5 | Z23: Applicant 4 | AH23: 0 | AI23: 0 | AJ23: 80000 | AK23: 30000 | AL23: 40000 | AM23: 0 | AN23: 0 | AO23: 0 | AP23: 0 | AQ23: 0 | AR23: 0 | AS23: 409501 | AT23: 535000 | AU23: 150000 | AV23: 0 | AW23: 0 | AX23: 0 | AY23: 0 | AZ23: 75000 | BA23: 0 | BB23: 0 | BC23: 0 | BD23: 0 | BE23: 0 | BF23: 0 | BG23: 0 | BH23: 0 | BI23: 0 | BJ23: 0 | BK23: 0 | BL23: 0 | BM23: 0 | BN23: 0 | BO23: 50000 | BP23: 50000 | BQ23: 0 | BR23: 0 | BS23: 0 | BT23: 0 | BU23: 1000000 | BV23: 1000000 | BW23: 0 | BX23: 0 | BY23: 0 | BZ23: 0 | CA23: 0 | CB23: 0 | CC23: 0 | CD23: 0 | CE23: 0 | CF23: 0 | CG23: 0 | CH23: 0 | CI23: 20000 | CJ23: 0 | CK23: 0 | CL23: 0 | CM23: 0 | CN23: Yes | CO23: No | CP23: No | CQ23: Yes | CR23: Yes | CS23: Yes | CT23: Yes | CU23: Yes | CV23: Yes | CW23: Yes | CX23: No | CY23: Yes | CZ23: Yes | DA23: No | DB23: No | DC23: No | DD23: 0 | DE23: 50000 | DF23: 15000 | DG23: 0 | DH23: 133750 | DI23: 43567 | DJ23: 18067 | DK23: 0 | DL23: 266 | DM23: 0 | DN23: 476250 | DO23: 106433 | DP23: 61933 | DQ23: 70000 | DR23: 80000 | DS23: 409501 | DT23: 1204117 | DU23: 0 | DV23: 34987.73 | DW23: 35884.05 | DX23: 29253.9 | DY23: 0 | DZ23: 54784.97 | EA23: 154910.65 | EB23: 240000 | EC23: 240000 | ED23: 964117 | EE23: 0.055 | EF23: 0.02 | EG23: 0.0382 | EH23: 0.0604 | EI23: 1.25 | EJ23: 0.8 | EK23: 0.25 | EL23: 116625.08 | EM23: 100343.08 | EN23: 20000 | EO23: 80343.08 | EP23: 15604.88 | EQ23: 16910 | ER23: 1399501 | ES23: 1204117 | ET23: 240000 | EU23: 964117 | EV23: 187258.53 | EW23: 202920 | EX23: 116625.08 | EY23: 100343.08 | EZ23: 20000 | FA23: 80343.08 | FB23: 19208.39 | FC23: 16910 | FD23: 1399501 | FE23: 1204117 | FF23: 240000 | FG23: 964117 | FH23: 230500.65 | FI23: 202920 | FJ23: 2.47 | FK23: 0.2787983251 | FL23: PASS | FM23: 2.22 | FN23: 0.3096965667 | FO23: PASS | FP23: 2500000 | FQ23: 133750 | FR23: 43567 | FS23: 18067 | FT23: 0 | FU23: 266 | FV23: 0 | FW23: 476250 | FX23: 106433 | FY23: 61933 | FZ23: 70000 | GA23: 80000 | GB23: 409501 | GC23: 1204117 | GD23: 0 | GE23: 34987.73 | GF23: 35884.05 | GG23: 29253.9 | GH23: 0 | GI23: 54784.97 | GJ23: 154910.65 | GK23: 240000 | GL23: 240000 | GM23: 964117 | GN23: 0.055 | GO23: 0.02 | GP23: 0.0382 | GQ23: 0.0604 | GR23: 1.25 | GS23: 0.8 | GT23: 0.25 | GU23: 116625.08 | GV23: 100343.08 | GW23: 20000 | GX23: 80343.08 | GY23: 15604.88 | GZ23: 16910 | HA23: 1399501 | HB23: 1204117 | HC23: 240000 | HD23: 964117 | HE23: 187258.53 | HF23: 202920 | HG23: 116625.08 | HH23: 100343.08 | HI23: 20000 | HJ23: 80343.08 | HK23: 19208.39 | HL23: 16910 | HM23: 1399501 | HN23: 1204117 | HO23: 240000 | HP23: 964117 | HQ23: 230500.65 | HR23: 202920 | HS23: 2.47 | HT23: 0.2787983251 | HU23: PASS | HV23: 2.22 | HW23: 0.3096965667 | HX23: PASS | HY23: 2500000 | HZ23: Pass | IA23: Y | IB23: 2023-10-25T09:22:56 | ID23: Case 21 | IE23: Neil
A24: 2500000 | B24: 0.0679 | C24: 0.0929 | D24: 40 | E24: 5 | F24: 2500000 | G24: 0.0679 | H24: 0.0929 | I24: 40 | J24: 5 | P24: Company | Q24: Individual (Single) | R24: Individual (Couple) | S24: Individual (Couple) | T24: Individual (Couple) | U24: Individual (Single) | X24: Non-loan Party | Y24: Applicant 5 | Z24: Applicant 4 | AH24: 0 | AI24: 0 | AJ24: 80000 | AK24: 30000 | AL24: 40000 | AM24: 1 | AN24: 0 | AO24: 0 | AP24: 0 | AQ24: 0 | AR24: 0 | AS24: 0 | AT24: 535000 | AU24: 150000 | AV24: 0 | AW24: 0 | AX24: 0 | AY24: 0 | AZ24: 75000 | BA24: 0 | BB24: 0 | BC24: 0 | BD24: 0 | BE24: 0 | BF24: 0 | BG24: 0 | BH24: 0 | BI24: 0 | BJ24: 0 | BK24: 0 | BL24: 0 | BM24: 0 | BN24: 0 | BO24: 50000 | BP24: 50000 | BQ24: 0 | BR24: 0 | BS24: 0 | BT24: 0 | BU24: 1000000 | BV24: 1000000 | BW24: 0 | BX24: 0 | BY24: 0 | BZ24: 0 | CA24: 0 | CB24: 0 | CC24: 0 | CD24: 0 | CE24: 0 | CF24: 0 | CG24: 0 | CH24: 0 | CI24: 20000 | CJ24: 0 | CK24: 0 | CL24: 0 | CM24: 0 | CN24: Yes | CO24: No | CP24: No | CQ24: Yes | CR24: Yes | CS24: Yes | CT24: Yes | CU24: Yes | CV24: Yes | CW24: Yes | CX24: No | CY24: Yes | CZ24: Yes | DA24: No | DB24: No | DC24: No | DD24: 0 | DE24: 50000 | DF24: 15000 | DG24: 0 | DH24: 133750 | DI24: 43567 | DJ24: 18067 | DK24: 0 | DL24: 266 | DM24: 0 | DN24: 476250 | DO24: 106433 | DP24: 61933 | DQ24: 70000 | DR24: 80000 | DS24: 1 | DT24: 794617 | DU24: 0 | DV24: 34987.73 | DW24: 35884.05 | DX24: 29253.9 | DY24: 0 | DZ24: 14900.75 | EA24: 115026.42 | EB24: 240000 | EC24: 240000 | ED24: 554617 | EE24: 0.055 | EF24: 0.02 | EG24: 0.0382 | EH24: 0.0604 | EI24: 1.25 | EJ24: 0.8 | EK24: 0.25 | EL24: 82500.08 | EM24: 66218.08 | EN24: 20000 | EO24: 46218.08 | EP24: 15604.88 | EQ24: 16910 | ER24: 990001 | ES24: 794617 | ET24: 240000 | EU24: 554617 | EV24: 187258.53 | EW24: 202920 | EX24: 82500.08 | EY24: 66218.08 | EZ24: 20000 | FA24: 46218.08 | FB24: 19208.39 | FC24: 16910 | FD24: 990001 | FE24: 794617 | FF24: 240000 | FG24: 554617 | FH24: 230500.65 | FI24: 202920 | FJ24: 1.42 | FK24: 0.3941193339 | FL24: PASS | FM24: 1.27 | FN24: 0.437798199 | FO24: PASS | FP24: 2500000 | FQ24: 133750 | FR24: 43567 | FS24: 18067 | FT24: 0 | FU24: 266 | FV24: 0 | FW24: 476250 | FX24: 106433 | FY24: 61933 | FZ24: 70000 | GA24: 80000 | GB24: 1 | GC24: 794617 | GD24: 0 | GE24: 34987.73 | GF24: 35884.05 | GG24: 29253.9 | GH24: 0 | GI24: 14900.75 | GJ24: 115026.42 | GK24: 240000 | GL24: 240000 | GM24: 554617 | GN24: 0.055 | GO24: 0.02 | GP24: 0.0382 | GQ24: 0.0604 | GR24: 1.25 | GS24: 0.8 | GT24: 0.25 | GU24: 82500.08 | GV24: 66218.08 | GW24: 20000 | GX24: 46218.08 | GY24: 15604.88 | GZ24: 16910 | HA24: 990001 | HB24: 794617 | HC24: 240000 | HD24: 554617 | HE24: 187258.53 | HF24: 202920 | HG24: 82500.08 | HH24: 66218.08 | HI24: 20000 | HJ24: 46218.08 | HK24: 19208.39 | HL24: 16910 | HM24: 990001 | HN24: 794617 | HO24: 240000 | HP24: 554617 | HQ24: 230500.65 | HR24: 202920 | HS24: 1.42 | HT24: 0.3941193339 | HU24: PASS | HV24: 1.27 | HW24: 0.437798199 | HX24: PASS | HY24: 2500000 | HZ24: Pass | IA24: Y | IB24: 2023-10-25T09:22:58 | ID24: Case 22 | IE24: Neil
A25: 2500000 | B25: 0.0679 | C25: 0.0929 | D25: 40 | E25: 5 | F25: 2500000 | G25: 0.0679 | H25: 0.0929 | I25: 40 | J25: 5 | P25: Company | Q25: Individual (Single) | R25: Individual (Couple) | S25: Individual (Couple) | T25: Individual (Couple) | U25: Individual (Single) | X25: Non-loan Party | Y25: Applicant 5 | Z25: Applicant 4 | AH25: 0 | AI25: 0 | AJ25: 80000 | AK25: 30000 | AL25: 40000 | AM25: 1 | AN25: 0 | AO25: 0 | AP25: 0 | AQ25: 0 | AR25: 0 | AS25: 500000 | AT25: 0 | AU25: 1 | AV25: 0 | AW25: 0 | AX25: 0 | AY25: 0 | AZ25: 75000 | BA25: 0 | BB25: 0 | BC25: 0 | BD25: 0 | BE25: 0 | BF25: 35000 | BG25: 0 | BH25: 0 | BI25: 0 | BJ25: 0 | BK25: 0 | BL25: 0 | BM25: 0 | BN25: 0 | BO25: 50000 | BP25: 50000 | BQ25: 0 | BR25: 0 | BS25: 0 | BT25: 0 | BU25: 1000000 | BV25: 1000000 | BW25: 0 | BX25: 0 | BY25: 0 | BZ25: 0 | CA25: 0 | CB25: 0 | CC25: 0 | CD25: 0 | CE25: 0 | CF25: 0 | CG25: 0 | CH25: 0 | CI25: 20000 | CJ25: 0 | CK25: 0 | CL25: 0 | CM25: 0 | CN25: Yes | CO25: No | CP25: No | CQ25: Yes | CR25: Yes | CS25: Yes | CT25: Yes | CU25: Yes | CV25: Yes | CW25: Yes | CX25: No | CY25: Yes | CZ25: Yes | DA25: No | DB25: No | DC25: No | DD25: 0 | DE25: 50000 | DF25: 15000 | DG25: 0 | DH25: 8750 | DI25: 0 | DJ25: 18067 | DK25: 0 | DL25: 266 | DM25: 0 | DN25: 101250 | DO25: 1 | DP25: 61933 | DQ25: 70000 | DR25: 80000 | DS25: 500001 | DT25: 813185 | DU25: 0 | DV25: 14900.75 | DW25: 35884.05 | DX25: 29253.9 | DY25: 0 | DZ25: 54784.97 | EA25: 134823.67 | EB25: 240000 | EC25: 240000 | ED25: 573185 | EE25: 0.055 | EF25: 0.02 | EG25: 0.0382 | EH25: 0.0604 | EI25: 1.25 | EJ25: 0.8 | EK25: 0.25 | EL25: 70000.17 | EM25: 67765.42 | EN25: 20000 | EO25: 47765.42 | EP25: 15604.88 | EQ25: 16910 | ER25: 840002 | ES25: 813185 | ET25: 240000 | EU25: 573185 | EV25: 187258.53 | EW25: 202920 | EX25: 70000.17 | EY25: 67765.42 | EZ25: 20000 | FA25: 47765.42 | FB25: 19208.39 | FC25: 16910 | FD25: 840002 | FE25: 813185 | FF25: 240000 | FG25: 573185 | FH25: 230500.65 | FI25: 202920 | FJ25: 1.46 | FK25: 0.4644971497 | FL25: PASS | FM25: 1.32 | FN25: 0.5159757414 | FO25: PASS | FP25: 2500000 | FQ25: 8750 | FR25: 0 | FS25: 18067 | FT25: 0 | FU25: 266 | FV25: 0 | FW25: 101250 | FX25: 1 | FY25: 61933 | FZ25: 70000 | GA25: 80000 | GB25: 500001 | GC25: 813185 | GD25: 0 | GE25: 14900.75 | GF25: 35884.05 | GG25: 29253.9 | GH25: 0 | GI25: 54784.97 | GJ25: 134823.67 | GK25: 240000 | GL25: 240000 | GM25: 573185 | GN25: 0.055 | GO25: 0.02 | GP25: 0.0382 | GQ25: 0.0604 | GR25: 1.25 | GS25: 0.8 | GT25: 0.25 | GU25: 70000.17 | GV25: 67765.42 | GW25: 20000 | GX25: 47765.42 | GY25: 15604.88 | GZ25: 16910 | HA25: 840002 | HB25: 813185 | HC25: 240000 | HD25: 573185 | HE25: 187258.53 | HF25: 202920 | HG25: 70000.17 | HH25: 67765.42 | HI25: 20000 | HJ25: 47765.42 | HK25: 19208.39 | HL25: 16910 | HM25: 840002 | HN25: 813185 | HO25: 240000 | HP25: 573185 | HQ25: 230500.65 | HR25: 202920 | HS25: 1.46 | HT25: 0.4644971497 | HU25: PASS | HV25: 1.32 | HW25: 0.5159757414 | HX25: PASS | HY25: 2500000 | HZ25: Pass | IA25: Y | IB25: 2023-10-25T09:23:01 | ID25: Case 23 | IE25: Neil
A26: 2000000 | B26: 0.0529 | C26: 0.0779 | D26: 30 | E26: 3 | F26: 2000000 | G26: 0.0529 | H26: 0.0779 | I26: 30 | J26: 3 | P26: Company | Q26: Individual (Single) | AH26: 0 | AI26: 0 | AJ26: 0 | AK26: 0 | AL26: 0 | AM26: 0 | AN26: 0 | AO26: 30000 | AP26: 0 | AQ26: 0 | AR26: 0 | AS26: 0 | AT26: 0 | AU26: 0 | AV26: 0 | AW26: 0 | AX26: 0 | AY26: 0 | AZ26: 0 | BA26: 0 | BB26: 0 | BC26: 0 | BD26: 0 | BE26: 0 | BF26: 300000 | BG26: 0 | BH26: 0 | BI26: 0 | BJ26: 0 | BK26: 0 | BL26: 0 | BM26: 0 | BN26: 0 | BO26: 0 | BP26: 0 | BQ26: 0 | BR26: 0 | BS26: 0 | BT26: 0 | BU26: 0 | BV26: 0 | BW26: 0 | BX26: 0 | BY26: 0 | BZ26: 0 | CA26: 0 | CB26: 0 | CC26: 0 | CD26: 0 | CE26: 0 | CF26: 0 | CG26: 0 | CH26: 0 | CI26: 0 | CJ26: 0 | CK26: 0 | CL26: 0 | CM26: 0 | CN26: Yes | CO26: No | CP26: No | CQ26: Yes | CR26: Yes | CS26: Yes | CT26: Yes | CU26: Yes | CV26: Yes | CW26: Yes | CX26: No | CY26: Yes | CZ26: Yes | DA26: No | DB26: No | DC26: No | DD26: 0 | DE26: 0 | DF26: 0 | DG26: 0 | DH26: 75000 | DI26: 0 | DJ26: 0 | DK26: 0 | DL26: 0 | DM26: 0 | DN26: 225000 | DO26: 30000 | DP26: 0 | DQ26: 0 | DR26: 0 | DS26: 0 | DT26: 255000 | DU26: 0 | DV26: 15787.04 | DW26: 0 | DX26: 0 | DY26: 0 | DZ26: 0 | EA26: 15787.04 | EB26: 0 | EC26: 15787.04 | ED26: 239212.96 | EE26: 0.055 | EF26: 0.02 | EG26: 0.0382 | EH26: 0.0604 | EI26: 1.25 | EJ26: 0.8 | EK26: 0.25 | EL26: 27500 | EM26: 21250 | EN26: 1315.59 | EO26: 19934.41 | EP26: 11608.05 | EQ26: 0 | ER26: 330000 | ES26: 255000 | ET26: 15787.04 | EU26: 239212.96 | EV26: 139296.62 | EW26: 0 | EX26: 27500 | EY26: 21250 | EZ26: 1315.59 | FA26: 19934.41 | FB26: 14136.59 | FC26: 0 | FD26: 330000 | FE26: 255000 | FF26: 15787.04 | FG26: 239212.96 | FH26: 169639.12 | FI26: 0 | FJ26: 1.71 | FK26: 0.4221109787 | FL26: PASS | FM26: 1.41 | FN26: 0.5140579424 | FO26: PASS | FP26: 2000000 | FQ26: 75000 | FR26: 0 | FS26: 0 | FT26: 0 | FU26: 0 | FV26: 0 | FW26: 225000 | FX26: 30000 | FY26: 0 | FZ26: 0 | GA26: 0 | GB26: 0 | GC26: 255000 | GD26: 0 | GE26: 15787.04 | GF26: 0 | GG26: 0 | GH26: 0 | GI26: 0 | GJ26: 15787.04 | GK26: 0 | GL26: 15787.04 | GM26: 239212.96 | GN26: 0.055 | GO26: 0.02 | GP26: 0.0382 | GQ26: 0.0604 | GR26: 1.25 | GS26: 0.8 | GT26: 0.25 | GU26: 27500 | GV26: 21250 | GW26: 1315.59 | GX26: 19934.41 | GY26: 11608.05 | GZ26: 0 | HA26: 330000 | HB26: 255000 | HC26: 15787.04 | HD26: 239212.96 | HE26: 139296.62 | HF26: 0 | HG26: 27500 | HH26: 21250 | HI26: 1315.59 | HJ26: 19934.41 | HK26: 14136.59 | HL26: 0 | HM26: 330000 | HN26: 255000 | HO26: 15787.04 | HP26: 239212.96 | HQ26: 169639.12 | HR26: 0 | HS26: 1.71 | HT26: 0.4221109787 | HU26: PASS | HV26: 1.41 | HW26: 0.5140579424 | HX26: PASS | HY26: 2000000 | HZ26: Pass | IA26: Y | IB26: 2023-10-25T09:23:04 | ID26: Case 24 | IE26: Neil
A27: 2000000 | B27: 0.0529 | C27: 0.0779 | D27: 30 | E27: 3 | F27: 2000000 | G27: 0.0529 | H27: 0.0779 | I27: 30 | J27: 3 | P27: Individual (Single) | Q27: Individual (Single) | AH27: 0 | AI27: 1 | AJ27: 0 | AK27: 0 | AL27: 0 | AM27: 0 | AN27: 0 | AO27: 30000 | AP27: 0 | AQ27: 0 | AR27: 0 | AS27: 0 | AT27: 330000 | AU27: 0 | AV27: 0 | AW27: 0 | AX27: 0 | AY27: 0 | AZ27: 0 | BA27: 0 | BB27: 0 | BC27: 0 | BD27: 0 | BE27: 0 | BF27: 0 | BG27: 0 | BH27: 0 | BI27: 0 | BJ27: 0 | BK27: 0 | BL27: 0 | BM27: 0 | BN27: 0 | BO27: 0 | BP27: 0 | BQ27: 0 | BR27: 0 | BS27: 0 | BT27: 0 | BU27: 0 | BV27: 0 | BW27: 0 | BX27: 0 | BY27: 0 | BZ27: 0 | CA27: 0 | CB27: 0 | CC27: 0 | CD27: 0 | CE27: 0 | CF27: 0 | CG27: 0 | CH27: 0 | CI27: 0 | CJ27: 0 | CK27: 0 | CL27: 0 | CM27: 0 | CN27: Yes | CO27: No | CP27: No | CQ27: Yes | CR27: Yes | CS27: Yes | CT27: Yes | CU27: Yes | CV27: Yes | CW27: Yes | CX27: No | CY27: Yes | CZ27: Yes | DA27: No | DB27: No | DC27: No | DD27: 0 | DE27: 0 | DF27: 0 | DG27: 0 | DH27: 125767 | DI27: 0 | DJ27: 0 | DK27: 0 | DL27: 0 | DM27: 0 | DN27: 204233 | DO27: 30001 | DP27: 0 | DQ27: 0 | DR27: 0 | DS27: 0 | DT27: 234234 | DU27: 52623.56 | DV27: 15787.04 | DW27: 0 | DX27: 0 | DY27: 0 | DZ27: 0 | EA27: 68410.6 | EB27: 0 | EC27: 68410.6 | ED27: 165823.4 | EE27: 0.055 | EF27: 0.02 | EG27: 0.0382 | EH27: 0.0604 | EI27: 1.25 | EJ27: 0.8 | EK27: 0.25 | EL27: 30000.08 | EM27: 19519.5 | EN27: 5700.88 | EO27: 13818.62 | EP27: 11608.05 | EQ27: 0 | ER27: 360001 | ES27: 234234 | ET27: 68410.6 | EU27: 165823.4 | EV27: 139296.62 | EW27: 0 | EX27: 30000.08 | EY27: 19519.5 | EZ27: 5700.88 | FA27: 13818.62 | FB27: 14136.59 | FC27: 0 | FD27: 360001 | FE27: 234234 | FF27: 68410.6 | FG27: 165823.4 | FH27: 169639.12 | FI27: 0 | FJ27: 1.19 | FK27: 0.386933989 | FL27: PASS | FM27: 0.97 | FN27: 0.4712184716 | FO27: FAIL | FP27: 1954926.42 | FQ27: 125767 | FR27: 0 | FS27: 0 | FT27: 0 | FU27: 0 | FV27: 0 | FW27: 204233 | FX27: 30001 | FY27: 0 | FZ27: 0 | GA27: 0 | GB27: 0 | GC27: 234234 | GD27: 52623.56 | GE27: 15787.04 | GF27: 0 | GG27: 0 | GH27: 0 | GI27: 0 | GJ27: 68410.6 | GK27: 0 | GL27: 68410.6 | GM27: 165823.4 | GN27: 0.055 | GO27: 0.02 | GP27: 0.0382 | GQ27: 0.0604 | GR27: 1.25 | GS27: 0.8 | GT27: 0.25 | GU27: 30000.08 | GV27: 19519.5 | GW27: 5700.88 | GX27: 13818.62 | GY27: 11608.05 | GZ27: 0 | HA27: 360001 | HB27: 234234 | HC27: 68410.6 | HD27: 165823.4 | HE27: 139296.62 | HF27: 0 | HG27: 30000.08 | HH27: 19519.5 | HI27: 5700.88 | HJ27: 13818.62 | HK27: 14136.59 | HL27: 0 | HM27: 360001 | HN27: 234234 | HO27: 68410.6 | HP27: 165823.4 | HQ27: 169639.12 | HR27: 0 | HS27: 1.19 | HT27: 0.386933989 | HU27: PASS | HV27: 0.97 | HW27: 0.4712184716 | HX27: FAIL | HY27: 1954926.42 | HZ27: Pass | IA27: Y | IB27: 2023-10-25T09:23:06 | ID27: Case 25 | IE27: Neil
A28: 1500000 | B28: 0.06 | C28: 0.085 | D28: 30 | E28: 0 | F28: 1500000 | G28: 0.06 | H28: 0.085 | I28: 30 | J28: 0 | P28: Individual (Couple) | Q28: Individual (Couple) | R28: Individual (Single) | S28: Individual (Single) | V28: Applicant 2 | W28: Applicant 1 | AH28: 36000 | AI28: 10000 | AJ28: 0 | AK28: 0 | AL28: 0 | AM28: 0 | AN28: 35000 | AO28: 0 | AP28: 35000 | AQ28: 100000 | AR28: 0 | AS28: 0 | AT28: 0 | AU28: 0 | AV28: 0 | AW28: 0 | AX28: 0 | AY28: 0 | AZ28: 10000 | BA28: 0 | BB28: 0 | BC28: 0 | BD28: 0 | BE28: 0 | BF28: 0 | BG28: 0 | BH28: 0 | BI28: 0 | BJ28: 0 | BK28: 0 | BL28: 0 | BM28: 0 | BN28: 0 | BO28: 0 | BP28: 0 | BQ28: 0 | BR28: 0 | BS28: 0 | BT28: 0 | BU28: 0 | BV28: 0 | BW28: 0 | BX28: 100 | BY28: 0 | BZ28: 0 | CA28: 0 | CB28: 0 | CC28: 0 | CD28: 0 | CE28: 0 | CF28: 0 | CG28: 0 | CH28: 0 | CI28: 0 | CJ28: 0 | CK28: 0 | CL28: 0 | CM28: 0 | CN28: Yes | CO28: No | CP28: No | CQ28: Yes | CR28: Yes | CS28: Yes | CT28: Yes | CU28: Yes | CV28: Yes | CW28: Yes | CX28: No | CY28: Yes | CZ28: Yes | DA28: No | DB28: No | DC28: No | DD28: 0 | DE28: 0 | DF28: 0 | DG28: 0 | DH28: 4102 | DI28: 0 | DJ28: 0 | DK28: 0 | DL28: 0 | DM28: 0 | DN28: 77598 | DO28: 10000 | DP28: 35000 | DQ28: 100000 | DR28: 0 | DS28: 0 | DT28: 222598 | DU28: 35884.05 | DV28: 0 | DW28: 15787.04 | DX28: 26566.72 | DY28: 0 | DZ28: 0 | EA28: 78237.81 | EB28: 1200 | EC28: 78237.81 | ED28: 144360.19 | EE28: 0.055 | EF28: 0.02 | EG28: 0.0382 | EH28: 0.0604 | EI28: 1.25 | EJ28: 0.8 | EK28: 0.25 | EL28: 18833.33 | EM28: 18549.83 | EN28: 6519.82 | EO28: 12030.02 | EP28: 8993.26 | EQ28: 0 | ER28: 226000 | ES28: 222598 | ET28: 78237.81 | EU28: 144360.19 | EV28: 107919.09 | EW28: 0 | EX28: 18833.33 | EY28: 18549.83 | EZ28: 6519.82 | FA28: 12030.02 | FB28: 11006.47 | FC28: 0 | FD28: 226000 | FE28: 222598 | FF28: 78237.81 | FG28: 144360.19 | FH28: 132077.62 | FI28: 0 | FJ28: 1.33 | FK28: 0.4775181174 | FL28: PASS | FM28: 1.09 | FN28: 0.5844142624 | FO28: FAIL | FP28: 1311592.35 | FQ28: 4102 | FR28: 0 | FS28: 0 | FT28: 0 | FU28: 0 | FV28: 0 | FW28: 77598 | FX28: 10000 | FY28: 35000 | FZ28: 100000 | GA28: 0 | GB28: 0 | GC28: 222598 | GD28: 35884.05 | GE28: 0 | GF28: 15787.04 | GG28: 26566.72 | GH28: 0 | GI28: 0 | GJ28: 78237.81 | GK28: 1200 | GL28: 78237.81 | GM28: 144360.19 | GN28: 0.055 | GO28: 0.02 | GP28: 0.0382 | GQ28: 0.0604 | GR28: 1.25 | GS28: 0.8 | GT28: 0.25 | GU28: 18833.33 | GV28: 18549.83 | GW28: 6519.82 | GX28: 12030.02 | GY28: 8993.26 | GZ28: 0 | HA28: 226000 | HB28: 222598 | HC28: 78237.81 | HD28: 144360.19 | HE28: 107919.09 | HF28: 0 | HG28: 18833.33 | HH28: 18549.83 | HI28: 6519.82 | HJ28: 12030.02 | HK28: 11006.47 | HL28: 0 | HM28: 226000 | HN28: 222598 | HO28: 78237.81 | HP28: 144360.19 | HQ28: 132077.62 | HR28: 0 | HS28: 1.33 | HT28: 0.4775181174 | HU28: PASS | HV28: 1.09 | HW28: 0.5844142624 | HX28: FAIL | HY28: 1311592.35 | HZ28: Pass | IA28: Y | IB28: 2023-10-25T09:23:09 | ID28: Case 26 | IE28: Neil
A29: 1000000 | B29: 0.06 | C29: 0.085 | D29: 30 | E29: 0 | F29: 1000000 | G29: 0.06 | H29: 0.085 | I29: 30 | J29: 0 | P29: Individual (Single) | Q29: Individual (Couple) | R29: Individual (Couple) | W29: Applicant 3 | X29: Applicant 2 | AH29: 0 | AI29: 50000 | AJ29: 0 | AK29: 0 | AL29: 0 | AM29: 0 | AN29: 0 | AO29: 0 | AP29: 0 | AQ29: 0 | AR29: 0 | AS29: 0 | AT29: 25000 | AU29: 0 | AV29: 0 | AW29: 0 | AX29: 0 | AY29: 0 | AZ29: 0 | BA29: 0 | BB29: 0 | BC29: 0 | BD29: 0 | BE29: 0 | BF29: 0 | BG29: 0 | BH29: 0 | BI29: 0 | BJ29: 0 | BK29: 0 | BL29: 0 | BM29: 60000 | BN29: 60000 | BO29: 0 | BP29: 0 | BQ29: 0 | BR29: 0 | BS29: 500000 | BT29: 500000 | BU29: 0 | BV29: 0 | BW29: 0 | BX29: 100 | BY29: 0 | BZ29: 0 | CA29: 0 | CB29: 0 | CC29: 0 | CD29: 0 | CE29: 0 | CF29: 0 | CG29: 0 | CH29: 0 | CI29: 0 | CJ29: 0 | CK29: 0 | CL29: 0 | CM29: 0 | CN29: Yes | CO29: No | CP29: No | CQ29: Yes | CR29: Yes | CS29: Yes | CT29: Yes | CU29: Yes | CV29: Yes | CW29: Yes | CX29: No | CY29: Yes | CZ29: Yes | DA29: No | DB29: No | DC29: No | DD29: 0 | DE29: 0 | DF29: 0 | DG29: 0 | DH29: 1455.5 | DI29: 13858 | DJ29: 0 | DK29: 0 | DL29: 0 | DM29: 0 | DN29: 24244.5 | DO29: 84142 | DP29: 48000 | DQ29: 0 | DR29: 0 | DS29: 0 | DT29: 156386.5 | DU29: 15787.04 | DV29: 35884.05 | DW29: 0 | DX29: 0 | DY29: 0 | DZ29: 0 | EA29: 51671.09 | EB29: 1200 | EC29: 51671.09 | ED29: 104715.41 | EE29: 0.055 | EF29: 0.02 | EG29: 0.0382 | EH29: 0.0604 | EI29: 1.25 | EJ29: 0.8 | EK29: 0.25 | EL29: 14250 | EM29: 13032.21 | EN29: 4305.92 | EO29: 8726.28 | EP29: 5995.51 | EQ29: 0 | ER29: 171000 | ES29: 156386.5 | ET29: 51671.09 | EU29: 104715.41 | EV29: 71946.06 | EW29: 0 | EX29: 14250 | EY29: 13032.21 | EZ29: 4305.92 | FA29: 8726.28 | FB29: 7337.65 | FC29: 0 | FD29: 171000 | FE29: 156386.5 | FF29: 51671.09 | FG29: 104715.41 | FH29: 88051.75 | FI29: 0 | FJ29: 1.45 | FK29: 0.4207372106 | FL29: PASS | FM29: 1.18 | FN29: 0.514922508 | FO29: PASS | FP29: 1000000 | FQ29: 1455.5 | FR29: 13858 | FS29: 0 | FT29: 0 | FU29: 0 | FV29: 0 | FW29: 24244.5 | FX29: 84142 | FY29: 48000 | FZ29: 0 | GA29: 0 | GB29: 0 | GC29: 156386.5 | GD29: 15787.04 | GE29: 35884.05 | GF29: 0 | GG29: 0 | GH29: 0 | GI29: 0 | GJ29: 51671.09 | GK29: 1200 | GL29: 51671.09 | GM29: 104715.41 | GN29: 0.055 | GO29: 0.02 | GP29: 0.0382 | GQ29: 0.0604 | GR29: 1.25 | GS29: 0.8 | GT29: 0.25 | GU29: 14250 | GV29: 13032.21 | GW29: 4305.92 | GX29: 8726.28 | GY29: 5995.51 | GZ29: 0 | HA29: 171000 | HB29: 156386.5 | HC29: 51671.09 | HD29: 104715.41 | HE29: 71946.06 | HF29: 0 | HG29: 14250 | HH29: 13032.21 | HI29: 4305.92 | HJ29: 8726.28 | HK29: 7337.65 | HL29: 0 | HM29: 171000 | HN29: 156386.5 | HO29: 51671.09 | HP29: 104715.41 | HQ29: 88051.75 | HR29: 0 | HS29: 1.45 | HT29: 0.4207372106 | HU29: PASS | HV29: 1.18 | HW29: 0.514922508 | HX29: PASS | HY29: 1000000 | HZ29: Pass | IA29: Y | IB29: 2023-10-25T09:23:12 | ID29: Case 27 | IE29: Neil
A30: 1000000 | B30: 0.05 | C30: 0.075 | D30: 30 | E30: 0 | F30: 1000000 | G30: 0.05 | H30: 0.075 | I30: 30 | J30: 0 | P30: Individual (Couple) | Q30: Individual (Couple) | V30: Applicant 2 | W30: Applicant 1 | AH30: 0 | AI30: 0 | AJ30: 0 | AK30: 0 | AL30: 0 | AM30: 0 | AN30: 0 | AO30: 0 | AP30: 0 | AQ30: 0 | AR30: 0 | AS30: 0 | AT30: 0 | AU30: 0 | AV30: 0 | AW30: 0 | AX30: 0 | AY30: 0 | AZ30: 0 | BA30: 0 | BB30: 0 | BC30: 0 | BD30: 0 | BE30: 0 | BF30: 0 | BG30: 0 | BH30: 0 | BI30: 0 | BJ30: 0 | BK30: 0 | BL30: 200000 | BM30: 0 | BN30: 0 | BO30: 0 | BP30: 0 | BQ30: 0 | BR30: 1000000 | BS30: 0 | BT30: 0 | BU30: 0 | BV30: 0 | BW30: 0 | BX30: 100 | BY30: 0 | BZ30: 0 | CA30: 0 | CB30: 0 | CC30: 0 | CD30: 0 | CE30: 0 | CF30: 0 | CG30: 0 | CH30: 0 | CI30: 0 | CJ30: 0 | CK30: 0 | CL30: 0 | CM30: 0 | CN30: Yes | CO30: No | CP30: No | CQ30: Yes | CR30: Yes | CS30: Yes | CT30: Yes | CU30: Yes | CV30: Yes | CW30: Yes | CX30: No | CY30: Yes | CZ30: Yes | DA30: No | DB30: No | DC30: No | DD30: 0 | DE30: 0 | DF30: 0 | DG30: 0 | DH30: 24829 | DI30: 0 | DJ30: 0 | DK30: 0 | DL30: 0 | DM30: 0 | DN30: 135171 | DO30: 0 | DP30: 0 | DQ30: 0 | DR30: 0 | DS30: 0 | DT30: 135171 | DU30: 40017.74 | DV30: 0 | DW30: 0 | DX30: 0 | DY30: 0 | DZ30: 0 | EA30: 40017.74 | EB30: 1200 | EC30: 40017.74 | ED30: 95153.26 | EE30: 0.055 | EF30: 0.02 | EG30: 0.0382 | EH30: 0.0604 | EI30: 1.25 | EJ30: 0.8 | EK30: 0.25 | EL30: 13333.33 | EM30: 11264.25 | EN30: 3334.81 | EO30: 7929.44 | EP30: 5368.22 | EQ30: 0 | ER30: 160000 | ES30: 135171 | ET30: 40017.74 | EU30: 95153.26 | EV30: 64418.59 | EW30: 0 | EX30: 13333.33 | EY30: 11264.25 | EZ30: 3334.81 | FA30: 7929.44 | FB30: 6653.03 | FC30: 0 | FD30: 160000 | FE30: 135171 | FF30: 40017.74 | FG30: 95153.26 | FH30: 79836.3 | FI30: 0 | FJ30: 1.47 | FK30: 0.4026162173 | FL30: PASS | FM30: 1.19 | FN30: 0.4989768714 | FO30: PASS | FP30: 1000000 | FQ30: 24829 | FR30: 0 | FS30: 0 | FT30: 0 | FU30: 0 | FV30: 0 | FW30: 135171 | FX30: 0 | FY30: 0 | FZ30: 0 | GA30: 0 | GB30: 0 | GC30: 135171 | GD30: 40017.74 | GE30: 0 | GF30: 0 | GG30: 0 | GH30: 0 | GI30: 0 | GJ30: 40017.74 | GK30: 1200 | GL30: 40017.74 | GM30: 95153.26 | GN30: 0.055 | GO30: 0.02 | GP30: 0.0382 | GQ30: 0.0604 | GR30: 1.25 | GS30: 0.8 | GT30: 0.25 | GU30: 13333.33 | GV30: 11264.25 | GW30: 3334.81 | GX30: 7929.44 | GY30: 5368.22 | GZ30: 0 | HA30: 160000 | HB30: 135171 | HC30: 40017.74 | HD30: 95153.26 | HE30: 64418.59 | HF30: 0 | HG30: 13333.33 | HH30: 11264.25 | HI30: 3334.81 | HJ30: 7929.44 | HK30: 6653.03 | HL30: 0 | HM30: 160000 | HN30: 135171 | HO30: 40017.74 | HP30: 95153.26 | HQ30: 79836.3 | HR30: 0 | HS30: 1.47 | HT30: 0.4026162173 | HU30: PASS | HV30: 1.19 | HW30: 0.4989768714 | HX30: PASS | HY30: 1000000 | HZ30: Pass | IA30: Y | IB30: 2023-10-25T09:23:15 | ID30: Case 28 | IE30: Neil
A31: 1500000 | B31: 0.06 | C31: 0.085 | D31: 30 | E31: 0 | F31: 1500000 | G31: 0.06 | H31: 0.085 | I31: 30 | J31: 0 | P31: Individual (Couple) | Q31: Individual (Couple) | R31: Individual (Single) | V31: Applicant 2 | W31: Applicant 1 | AH31: 300000 | AI31: 10000 | AJ31: 0 | AK31: 0 | AL31: 0 | AM31: 0 | AN31: 35000 | AO31: 0 | AP31: 35000 | AQ31: 0 | AR31: 0 | AS31: 0 | AT31: 116000 | AU31: 0 | AV31: 0 | AW31: 0 | AX31: 0 | AY31: 0 | AZ31: 15000 | BA31: 0 | BB31: 0 | BC31: 0 | BD31: 0 | BE31: 0 | BF31: 0 | BG31: 0 | BH31: 0 | BI31: 0 | BJ31: 0 | BK31: 0 | BL31: 0 | BM31: 0 | BN31: 0 | BO31: 0 | BP31: 0 | BQ31: 0 | BR31: 0 | BS31: 0 | BT31: 0 | BU31: 0 | BV31: 0 | BW31: 0 | BX31: 100 | BY31: 0 | BZ31: 0 | CA31: 0 | CB31: 0 | CC31: 0 | CD31: 0 | CE31: 0 | CF31: 0 | CG31: 0 | CH31: 0 | CI31: 0 | CJ31: 0 | CK31: 0 | CL31: 0 | CM31: 0 | CN31: Yes | CO31: No | CP31: No | CQ31: Yes | CR31: Yes | CS31: Yes | CT31: Yes | CU31: Yes | CV31: Yes | CW31: Yes | CX31: No | CY31: Yes | CZ31: Yes | DA31: No | DB31: No | DC31: No | DD31: 0 | DE31: 0 | DF31: 0 | DG31: 0 | DH31: 166187 | DI31: 0 | DJ31: 0 | DK31: 0 | DL31: 0 | DM31: 0 | DN31: 299813 | DO31: 10000 | DP31: 35000 | DQ31: 0 | DR31: 0 | DS31: 0 | DT31: 344813 | DU31: 68194.54 | DV31: 0 | DW31: 15787.04 | DX31: 0 | DY31: 0 | DZ31: 0 | EA31: 83981.58 | EB31: 1200 | EC31: 83981.58 | ED31: 260831.42 | EE31: 0.055 | EF31: 0.02 | EG31: 0.0382 | EH31: 0.0604 | EI31: 1.25 | EJ31: 0.8 | EK31: 0.25 | EL31: 42583.33 | EM31: 28734.42 | EN31: 6998.47 | EO31: 21735.95 | EP31: 8993.26 | EQ31: 0 | ER31: 511000 | ES31: 344813 | ET31: 83981.58 | EU31: 260831.42 | EV31: 107919.09 | EW31: 0 | EX31: 42583.33 | EY31: 28734.42 | EZ31: 6998.47 | FA31: 21735.95 | FB31: 11006.47 | FC31: 0 | FD31: 511000 | FE31: 344813 | FF31: 83981.58 | FG31: 260831.42 | FH31: 132077.62 | FI31: 0 | FJ31: 2.41 | FK31: 0.2111919658 | FL31: PASS | FM31: 1.97 | FN31: 0.2584689301 | FO31: PASS | FP31: 1500000 | FQ31: 166187 | FR31: 0 | FS31: 0 | FT31: 0 | FU31: 0 | FV31: 0 | FW31: 299813 | FX31: 10000 | FY31: 35000 | FZ31: 0 | GA31: 0 | GB31: 0 | GC31: 344813 | GD31: 68194.54 | GE31: 0 | GF31: 15787.04 | GG31: 0 | GH31: 0 | GI31: 0 | GJ31: 83981.58 | GK31: 1200 | GL31: 83981.58 | GM31: 260831.42 | GN31: 0.055 | GO31: 0.02 | GP31: 0.0382 | GQ31: 0.0604 | GR31: 1.25 | GS31: 0.8 | GT31: 0.25 | GU31: 42583.33 | GV31: 28734.42 | GW31: 6998.47 | GX31: 21735.95 | GY31: 8993.26 | GZ31: 0 | HA31: 511000 | HB31: 344813 | HC31: 83981.58 | HD31: 260831.42 | HE31: 107919.09 | HF31: 0 | HG31: 42583.33 | HH31: 28734.42 | HI31: 6998.47 | HJ31: 21735.95 | HK31: 11006.47 | HL31: 0 | HM31: 511000 | HN31: 344813 | HO31: 83981.58 | HP31: 260831.42 | HQ31: 132077.62 | HR31: 0 | HS31: 2.41 | HT31: 0.2111919658 | HU31: PASS | HV31: 1.97 | HW31: 0.2584689301 | HX31: PASS | HY31: 1500000 | HZ31: Pass | IA31: Y | IB31: 2023-10-25T09:23:18 | ID31: Case 29 | IE31: Neil
A32: 200000 | B32: 0.05 | C32: 0.075 | D32: 30 | E32: 0 | F32: 200000 | G32: 0.05 | H32: 0.075 | I32: 30 | J32: 0 | P32: Individual (Single) | AB32: 1 | AH32: 107000 | AI32: 0 | AJ32: 0 | AK32: 0 | AL32: 0 | AM32: 0 | AN32: 25000 | AO32: 0 | AP32: 0 | AQ32: 0 | AR32: 0 | AS32: 0 | AT32: 0 | AU32: 0 | AV32: 0 | AW32: 0 | AX32: 0 | AY32: 0 | AZ32: 0 | BA32: 0 | BB32: 0 | BC32: 0 | BD32: 0 | BE32: 0 | BF32: 0 | BG32: 0 | BH32: 0 | BI32: 0 | BJ32: 0 | BK32: 0 | BL32: 0 | BM32: 0 | BN32: 0 | BO32: 0 | BP32: 0 | BQ32: 0 | BR32: 0 | BS32: 0 | BT32: 0 | BU32: 0 | BV32: 0 | BW32: 0 | BX32: 100 | BY32: 0 | BZ32: 0 | CA32: 0 | CB32: 0 | CC32: 0 | CD32: 0 | CE32: 0 | CF32: 0 | CG32: 0 | CH32: 0 | CI32: 0 | CJ32: 0 | CK32: 0 | CL32: 0 | CM32: 0 | CN32: Yes | CO32: No | CP32: No | CQ32: Yes | CR32: Yes | CS32: Yes | CT32: Yes | CU32: Yes | CV32: Yes | CW32: Yes | CX32: No | CY32: Yes | CZ32: Yes | DA32: No | DB32: No | DC32: No | DD32: 0 | DE32: 10000 | DF32: 1000 | DG32: 1000 | DH32: 27382 | DI32: 0 | DJ32: 0 | DK32: 0 | DL32: 0 | DM32: 0 | DN32: 104618 | DO32: 0 | DP32: 0 | DQ32: 0 | DR32: 0 | DS32: 0 | DT32: 104618 | DU32: 35653.88 | DV32: 0 | DW32: 0 | DX32: 0 | DY32: 0 | DZ32: 0 | EA32: 35653.88 | EB32: 1200 | EC32: 35653.88 | ED32: 68964.12 | EE32: 0.055 | EF32: 0.02 | EG32: 0.0382 | EH32: 0.0604 | EI32: 1.25 | EJ32: 0.8 | EK32: 0.25 | EL32: 11000 | EM32: 8718.17 | EN32: 2971.16 | EO32: 5747.01 | EP32: 1073.64 | EQ32: 1382 | ER32: 132000 | ES32: 104618 | ET32: 35653.88 | EU32: 68964.12 | EV32: 12883.72 | EW32: 16584 | EX32: 11000 | EY32: 8718.17 | EZ32: 2971.16 | FA32: 5747.01 | FB32: 1330.61 | FC32: 1382 | FD32: 132000 | FE32: 104618 | FF32: 35653.88 | FG32: 68964.12 | FH32: 15967.26 | FI32: 16584 | FJ32: 2.34 | FK32: 0.2232402951 | FL32: PASS | FM32: 2.11 | FN32: 0.2466004537 | FO32: PASS | FP32: 200000 | FQ32: 27382 | FR32: 0 | FS32: 0 | FT32: 0 | FU32: 0 | FV32: 0 | FW32: 104618 | FX32: 0 | FY32: 0 | FZ32: 0 | GA32: 0 | GB32: 0 | GC32: 104618 | GD32: 35653.88 | GE32: 0 | GF32: 0 | GG32: 0 | GH32: 0 | GI32: 0 | GJ32: 35653.88 | GK32: 1200 | GL32: 35653.88 | GM32: 68964.12 | GN32: 0.055 | GO32: 0.02 | GP32: 0.0382 | GQ32: 0.0604 | GR32: 1.25 | GS32: 0.8 | GT32: 0.25 | GU32: 11000 | GV32: 8718.17 | GW32: 2971.16 | GX32: 5747.01 | GY32: 1073.64 | GZ32: 1382 | HA32: 132000 | HB32: 104618 | HC32: 35653.88 | HD32: 68964.12 | HE32: 12883.72 | HF32: 16584 | HG32: 11000 | HH32: 8718.17 | HI32: 2971.16 | HJ32: 5747.01 | HK32: 1330.61 | HL32: 1382 | HM32: 132000 | HN32: 104618 | HO32: 35653.88 | HP32: 68964.12 | HQ32: 15967.26 | HR32: 16584 | HS32: 2.34 | HT32: 0.2232402951 | HU32: PASS | HV32: 2.11 | HW32: 0.2466004537 | HX32: PASS | HY32: 200000 | HZ32: Pass | IA32: Y | IB32: 2023-10-25T09:23:21 | ID32: Case 30 | IE32: Neil
A33: 200000 | B33: 0.05 | C33: 0.075 | D33: 30 | E33: 0 | F33: 200000 | G33: 0.05 | H33: 0.075 | I33: 30 | J33: 0 | P33: Individual (Single) | AB33: 1 | AH33: 107000 | AI33: 0 | AJ33: 0 | AK33: 0 | AL33: 0 | AM33: 0 | AN33: 0 | AO33: 0 | AP33: 0 | AQ33: 0 | AR33: 0 | AS33: 0 | AT33: 0 | AU33: 0 | AV33: 0 | AW33: 0 | AX33: 0 | AY33: 0 | AZ33: 0 | BA33: 0 | BB33: 0 | BC33: 0 | BD33: 0 | BE33: 0 | BF33: 0 | BG33: 0 | BH33: 0 | BI33: 0 | BJ33: 0 | BK33: 0 | BL33: 0 | BM33: 0 | BN33: 0 | BO33: 0 | BP33: 0 | BQ33: 0 | BR33: 0 | BS33: 0 | BT33: 0 | BU33: 0 | BV33: 0 | BW33: 0 | BX33: 100 | BY33: 0 | BZ33: 0 | CA33: 0 | CB33: 0 | CC33: 0 | CD33: 0 | CE33: 0 | CF33: 0 | CG33: 0 | CH33: 0 | CI33: 0 | CJ33: 0 | CK33: 0 | CL33: 0 | CM33: 0 | CN33: Yes | CO33: No | CP33: No | CQ33: Yes | CR33: Yes | CS33: Yes | CT33: Yes | CU33: Yes | CV33: Yes | CW33: Yes | CX33: No | CY33: Yes | CZ33: Yes | DA33: No | DB33: No | DC33: No | DD33: 0 | DE33: 10000 | DF33: 1000 | DG33: 1000 | DH33: 27382 | DI33: 0 | DJ33: 0 | DK33: 0 | DL33: 0 | DM33: 0 | DN33: 79618 | DO33: 0 | DP33: 0 | DQ33: 0 | DR33: 0 | DS33: 0 | DT33: 79618 | DU33: 31813.96 | DV33: 0 | DW33: 0 | DX33: 0 | DY33: 0 | DZ33: 0 | EA33: 31813.96 | EB33: 1200 | EC33: 31813.96 | ED33: 47804.04 | EE33: 0.055 | EF33: 0.02 | EG33: 0.0382 | EH33: 0.0604 | EI33: 1.25 | EJ33: 0.8 | EK33: 0.25 | EL33: 8916.67 | EM33: 6634.83 | EN33: 2651.16 | EO33: 3983.67 | EP33: 1073.64 | EQ33: 1382 | ER33: 107000 | ES33: 79618 | ET33: 31813.96 | EU33: 47804.04 | EV33: 12883.72 | EW33: 16584 | EX33: 8916.67 | EY33: 6634.83 | EZ33: 2651.16 | FA33: 3983.67 | FB33: 1330.61 | FC33: 1382 | FD33: 107000 | FE33: 79618 | FF33: 31813.96 | FG33: 47804.04 | FH33: 15967.26 | FI33: 16584 | FJ33: 1.62 | FK33: 0.2753992425 | FL33: PASS | FM33: 1.46 | FN33: 0.3042173821 | FO33: PASS | FP33: 200000 | FQ33: 27382 | FR33: 0 | FS33: 0 | FT33: 0 | FU33: 0 | FV33: 0 | FW33: 79618 | FX33: 0 | FY33: 0 | FZ33: 0 | GA33: 0 | GB33: 0 | GC33: 79618 | GD33: 31813.96 | GE33: 0 | GF33: 0 | GG33: 0 | GH33: 0 | GI33: 0 | GJ33: 31813.96 | GK33: 1200 | GL33: 31813.96 | GM33: 47804.04 | GN33: 0.055 | GO33: 0.02 | GP33: 0.0382 | GQ33: 0.0604 | GR33: 1.25 | GS33: 0.8 | GT33: 0.25 | GU33: 8916.67 | GV33: 6634.83 | GW33: 2651.16 | GX33: 3983.67 | GY33: 1073.64 | GZ33: 1382 | HA33: 107000 | HB33: 79618 | HC33: 31813.96 | HD33: 47804.04 | HE33: 12883.72 | HF33: 16584 | HG33: 8916.67 | HH33: 6634.83 | HI33: 2651.16 | HJ33: 3983.67 | HK33: 1330.61 | HL33: 1382 | HM33: 107000 | HN33: 79618 | HO33: 31813.96 | HP33: 47804.04 | HQ33: 15967.26 | HR33: 16584 | HS33: 1.62 | HT33: 0.2753992425 | HU33: PASS | HV33: 1.46 | HW33: 0.3042173821 | HX33: PASS | HY33: 200000 | HZ33: Pass | IA33: Y | IB33: 2023-10-25T09:23:23 | ID33: Case 31 | IE33: Neil
A34: 1500000 | B34: 0.06 | C34: 0.085 | D34: 30 | E34: 0 | F34: 1500000 | G34: 0.06 | H34: 0.085 | I34: 30 | J34: 0 | P34: Individual (Couple) | Q34: Individual (Couple) | R34: Individual (Single) | S34: Individual (Single) | V34: Applicant 2 | W34: Applicant 1 | AH34: 36000 | AI34: 10000 | AJ34: 0 | AK34: 0 | AL34: 0 | AM34: 0 | AN34: 35000 | AO34: 0 | AP34: 35000 | AQ34: 100000 | AR34: 0 | AS34: 0 | AT34: 0 | AU34: 0 | AV34: 0 | AW34: 0 | AX34: 0 | AY34: 0 | AZ34: 10000 | BA34: 0 | BB34: 0 | BC34: 0 | BD34: 0 | BE34: 0 | BF34: 0 | BG34: 0 | BH34: 0 | BI34: 0 | BJ34: 0 | BK34: 0 | BL34: 0 | BM34: 0 | BN34: 0 | BO34: 0 | BP34: 0 | BQ34: 0 | BR34: 0 | BS34: 0 | BT34: 0 | BU34: 0 | BV34: 0 | BW34: 0 | BX34: 100 | BY34: 0 | BZ34: 0 | CA34: 0 | CB34: 0 | CC34: 0 | CD34: 0 | CE34: 0 | CF34: 0 | CG34: 0 | CH34: 0 | CI34: 0 | CJ34: 0 | CK34: 0 | CL34: 0 | CM34: 0 | CN34: Yes | CO34: No | CP34: No | CQ34: Yes | CR34: Yes | CS34: Yes | CT34: Yes | CU34: Yes | CV34: Yes | CW34: Yes | CX34: No | CY34: Yes | CZ34: Yes | DA34: No | DB34: No | DC34: No | DD34: 0 | DE34: 0 | DF34: 0 | DG34: 0 | DH34: 4102 | DI34: 0 | DJ34: 0 | DK34: 0 | DL34: 0 | DM34: 0 | DN34: 77598 | DO34: 10000 | DP34: 35000 | DQ34: 100000 | DR34: 0 | DS34: 0 | DT34: 222598 | DU34: 35884.05 | DV34: 0 | DW34: 15787.04 | DX34: 26566.72 | DY34: 0 | DZ34: 0 | EA34: 78237.81 | EB34: 1200 | EC34: 78237.81 | ED34: 144360.19 | EE34: 0.055 | EF34: 0.02 | EG34: 0.0382 | EH34: 0.0604 | EI34: 1.25 | EJ34: 0.8 | EK34: 0.25 | EL34: 18833.33 | EM34: 18549.83 | EN34: 6519.82 | EO34: 12030.02 | EP34: 8993.26 | EQ34: 0 | ER34: 226000 | ES34: 222598 | ET34: 78237.81 | EU34: 144360.19 | EV34: 107919.09 | EW34: 0 | EX34: 18833.33 | EY34: 18549.83 | EZ34: 6519.82 | FA34: 12030.02 | FB34: 11006.47 | FC34: 0 | FD34: 226000 | FE34: 222598 | FF34: 78237.81 | FG34: 144360.19 | FH34: 132077.62 | FI34: 0 | FJ34: 1.33 | FK34: 0.4775181174 | FL34: PASS | FM34: 1.09 | FN34: 0.5844142624 | FO34: FAIL | FP34: 1311592.35 | FQ34: 4102 | FR34: 0 | FS34: 0 | FT34: 0 | FU34: 0 | FV34: 0 | FW34: 77598 | FX34: 10000 | FY34: 35000 | FZ34: 100000 | GA34: 0 | GB34: 0 | GC34: 222598 | GD34: 35884.05 | GE34: 0 | GF34: 15787.04 | GG34: 26566.72 | GH34: 0 | GI34: 0 | GJ34: 78237.81 | GK34: 1200 | GL34: 78237.81 | GM34: 144360.19 | GN34: 0.055 | GO34: 0.02 | GP34: 0.0382 | GQ34: 0.0604 | GR34: 1.25 | GS34: 0.8 | GT34: 0.25 | GU34: 18833.33 | GV34: 18549.83 | GW34: 6519.82 | GX34: 12030.02 | GY34: 8993.26 | GZ34: 0 | HA34: 226000 | HB34: 222598 | HC34: 78237.81 | HD34: 144360.19 | HE34: 107919.09 | HF34: 0 | HG34: 18833.33 | HH34: 18549.83 | HI34: 6519.82 | HJ34: 12030.02 | HK34: 11006.47 | HL34: 0 | HM34: 226000 | HN34: 222598 | HO34: 78237.81 | HP34: 144360.19 | HQ34: 132077.62 | HR34: 0 | HS34: 1.33 | HT34: 0.4775181174 | HU34: PASS | HV34: 1.09 | HW34: 0.5844142624 | HX34: FAIL | HY34: 1311592.35 | HZ34: Pass | IA34: Y | IB34: 2023-10-25T09:23:25 | ID34: Case 32 | IE34: Neil
A35: 3000000 | B35: 0.07 | C35: 0.095 | D35: 40 | E35: 5 | F35: 3000000 | G35: 0.07 | H35: 0.095 | I35: 40 | J35: 5 | P35: Company | Q35: Individual (Single) | AH35: 0 | AI35: 0 | AJ35: 0 | AK35: 0 | AL35: 0 | AM35: 0 | AN35: 0 | AO35: 225000 | AP35: 0 | AQ35: 0 | AR35: 0 | AS35: 0 | AT35: 87500 | AU35: 87500 | AV35: 0 | AW35: 0 | AX35: 0 | AY35: 0 | AZ35: 22500 | BA35: 22500 | BB35: 0 | BC35: 0 | BD35: 0 | BE35: 0 | BF35: 0 | BG35: 0 | BH35: 0 | BI35: 0 | BJ35: 0 | BK35: 0 | BL35: 0 | BM35: 0 | BN35: 0 | BO35: 0 | BP35: 0 | BQ35: 0 | BR35: 0 | BS35: 0 | BT35: 0 | BU35: 0 | BV35: 0 | BW35: 0 | BX35: 0 | BY35: 0 | BZ35: 0 | CA35: 0 | CB35: 0 | CC35: 0 | CD35: 0 | CE35: 0 | CF35: 0 | CG35: 0 | CH35: 0 | CI35: 0 | CJ35: 0 | CK35: 0 | CL35: 4000 | CM35: 0 | CN35: Yes | CO35: No | CP35: No | CQ35: Yes | CR35: Yes | CS35: Yes | CT35: Yes | CU35: Yes | CV35: Yes | CW35: Yes | CX35: No | CY35: Yes | CZ35: Yes | DA35: No | DB35: No | DC35: No | DD35: 0 | DE35: 0 | DF35: 0 | DG35: 0 | DH35: 21875 | DI35: 20654.5 | DJ35: 0 | DK35: 0 | DL35: 0 | DM35: 0 | DN35: 88125 | DO35: 314345.5 | DP35: 0 | DQ35: 0 | DR35: 0 | DS35: 0 | DT35: 402470.5 | DU35: 0 | DV35: 52623.56 | DW35: 0 | DX35: 0 | DY35: 0 | DZ35: 0 | EA35: 52623.56 | EB35: 48000 | EC35: 100623.56 | ED35: 301846.94 | EE35: 0.055 | EF35: 0.02 | EG35: 0.0382 | EH35: 0.0604 | EI35: 1.25 | EJ35: 0.8 | EK35: 0.25 | EL35: 37083.33 | EM35: 33539.21 | EN35: 8385.3 | EO35: 25153.91 | EP35: 19165.69 | EQ35: 0 | ER35: 445000 | ES35: 402470.5 | ET35: 100623.56 | EU35: 301846.94 | EV35: 229988.29 | EW35: 0 | EX35: 37083.33 | EY35: 33539.21 | EZ35: 8385.3 | FA35: 25153.91 | FB35: 23519.79 | FC35: 0 | FD35: 445000 | FE35: 402470.5 | FF35: 100623.56 | FG35: 301846.94 | FH35: 282237.47 | FI35: 0 | FJ35: 1.31 | FK35: 0.5168276159 | FL35: PASS | FM35: 1.06 | FN35: 0.6342415062 | FO35: FAIL | FP35: 2566732.19 | FQ35: 21875 | FR35: 20654.5 | FS35: 0 | FT35: 0 | FU35: 0 | FV35: 0 | FW35: 88125 | FX35: 314345.5 | FY35: 0 | FZ35: 0 | GA35: 0 | GB35: 0 | GC35: 402470.5 | GD35: 0 | GE35: 52623.56 | GF35: 0 | GG35: 0 | GH35: 0 | GI35: 0 | GJ35: 52623.56 | GK35: 48000 | GL35: 100623.56 | GM35: 301846.94 | GN35: 0.055 | GO35: 0.02 | GP35: 0.0382 | GQ35: 0.0604 | GR35: 1.25 | GS35: 0.8 | GT35: 0.25 | GU35: 37083.33 | GV35: 33539.21 | GW35: 8385.3 | GX35: 25153.91 | GY35: 19165.69 | GZ35: 0 | HA35: 445000 | HB35: 402470.5 | HC35: 100623.56 | HD35: 301846.94 | HE35: 229988.29 | HF35: 0 | HG35: 37083.33 | HH35: 33539.21 | HI35: 8385.3 | HJ35: 25153.91 | HK35: 23519.79 | HL35: 0 | HM35: 445000 | HN35: 402470.5 | HO35: 100623.56 | HP35: 301846.94 | HQ35: 282237.47 | HR35: 0 | HS35: 1.31 | HT35: 0.5168276159 | HU35: PASS | HV35: 1.06 | HW35: 0.6342415062 | HX35: FAIL | HY35: 2566732.19 | HZ35: =IF(AND(DH35=FQ35,DI35=FR35,DJ35=FS35,DK35=FT35,DL35=FU35,DM35=FV35,DN35=FW35,DO35=FX35,DP35=FY35,DQ35=FZ35,DR35=GA35,DS35=GB35,DT35=GC35,DU35=GD35,DV35=GE35,DW35=GF35,DX35=GG35,DY35=GH35,DZ35=GI35,EA35=GJ35,EB35=GK35,EC35=GL35,ED35=GM35,EE35=GN35,EF35=GO35,EG35=GP35,EH35=GQ35,EI35=GR35,EJ35=GS35,EK35=GT35,EL35=GU35,EM35=GV35,EN35=GW35,EO35=GX35,EP35=GY35,EQ35=GZ35,ER35=HA35,ES35=HB35,ET35=HC35,EU35=HD35,EV35=HE35,EW35=HF35,EX35=HG35,EY35=HH35,EZ35=HI35,FA35=HJ35,FB35=HK35,FC35=HL35,FD35=HM35,FE35=HN35,FF35=HO35,FG35=HP35,FH35=HQ35,FI35=HR35,FJ35=HS35,FK35=HT35,FL35=HU35,FM35=HV35,FN35=HW35,FO35=HX35,FP35=HY35),"Pass","Fail") -> Pass | IA35: Y | IB35: 2023-10-25T09:23:28 | ID35: Case 33 | IE35: Neil
A36: 3000000 | B36: 0.07 | C36: 0.095 | D36: 40 | E36: 5 | F36: 3000000 | G36: 0.07 | H36: 0.095 | I36: 40 | J36: 5 | P36: Company | Q36: Individual (Single) | AH36: 0 | AI36: 0 | AJ36: 0 | AK36: 0 | AL36: 0 | AM36: 0 | AN36: 0 | AO36: 200000 | AP36: 0 | AQ36: 0 | AR36: 0 | AS36: 0 | AT36: 87500 | AU36: 87500 | AV36: 0 | AW36: 0 | AX36: 0 | AY36: 0 | AZ36: 22500 | BA36: 22500 | BB36: 0 | BC36: 0 | BD36: 0 | BE36: 0 | BF36: 0 | BG36: 0 | BH36: 0 | BI36: 0 | BJ36: 0 | BK36: 0 | BL36: 0 | BM36: 0 | BN36: 0 | BO36: 0 | BP36: 0 | BQ36: 0 | BR36: 0 | BS36: 0 | BT36: 0 | BU36: 0 | BV36: 0 | BW36: 0 | BX36: 0 | BY36: 0 | BZ36: 0 | CA36: 0 | CB36: 0 | CC36: 0 | CD36: 0 | CE36: 0 | CF36: 0 | CG36: 0 | CH36: 0 | CI36: 0 | CJ36: 0 | CK36: 0 | CL36: 4000 | CM36: 0 | CN36: Yes | CO36: No | CP36: No | CQ36: Yes | CR36: Yes | CS36: Yes | CT36: Yes | CU36: Yes | CV36: Yes | CW36: Yes | CX36: No | CY36: Yes | CZ36: Yes | DA36: No | DB36: No | DC36: No | DD36: 0 | DE36: 0 | DF36: 0 | DG36: 0 | DH36: 21875 | DI36: 20654.5 | DJ36: 0 | DK36: 0 | DL36: 0 | DM36: 0 | DN36: 88125 | DO36: 289345.5 | DP36: 0 | DQ36: 0 | DR36: 0 | DS36: 0 | DT36: 377470.5 | DU36: 0 | DV36: 52623.56 | DW36: 0 | DX36: 0 | DY36: 0 | DZ36: 0 | EA36: 52623.56 | EB36: 48000 | EC36: 100623.56 | ED36: 276846.94 | EE36: 0.055 | EF36: 0.02 | EG36: 0.0382 | EH36: 0.0604 | EI36: 1.25 | EJ36: 0.8 | EK36: 0.25 | EL36: 35000 | EM36: 31455.88 | EN36: 8385.3 | EO36: 23070.58 | EP36: 19165.69 | EQ36: 0 | ER36: 420000 | ES36: 377470.5 | ET36: 100623.56 | EU36: 276846.94 | EV36: 229988.29 | EW36: 0 | EX36: 35000 | EY36: 31455.88 | EZ36: 8385.3 | FA36: 23070.58 | FB36: 23519.79 | FC36: 0 | FD36: 420000 | FE36: 377470.5 | FF36: 100623.56 | FG36: 276846.94 | FH36: 282237.47 | FI36: 0 | FJ36: 1.2 | FK36: 0.5475911645 | FL36: PASS | FM36: 0.98 | FN36: 0.6719939768 | FO36: FAIL | FP36: 2942628.42 | FQ36: 21875 | FR36: 20654.5 | FS36: 0 | FT36: 0 | FU36: 0 | FV36: 0 | FW36: 88125 | FX36: 289345.5 | FY36: 0 | FZ36: 0 | GA36: 0 | GB36: 0 | GC36: 377470.5 | GD36: 0 | GE36: 52623.56 | GF36: 0 | GG36: 0 | GH36: 0 | GI36: 0 | GJ36: 52623.56 | GK36: 48000 | GL36: 100623.56 | GM36: 276846.94 | GN36: 0.055 | GO36: 0.02 | GP36: 0.0382 | GQ36: 0.0604 | GR36: 1.25 | GS36: 0.8 | GT36: 0.25 | GU36: 35000 | GV36: 31455.88 | GW36: 8385.3 | GX36: 23070.58 | GY36: 19165.69 | GZ36: 0 | HA36: 420000 | HB36: 377470.5 | HC36: 100623.56 | HD36: 276846.94 | HE36: 229988.29 | HF36: 0 | HG36: 35000 | HH36: 31455.88 | HI36: 8385.3 | HJ36: 23070.58 | HK36: 23519.79 | HL36: 0 | HM36: 420000 | HN36: 377470.5 | HO36: 100623.56 | HP36: 276846.94 | HQ36: 282237.47 | HR36: 0 | HS36: 1.2 | HT36: 0.5475911645 | HU36: PASS | HV36: 0.98 | HW36: 0.6719939768 | HX36: FAIL | HY36: 2942628.42 | HZ36: Pass | IA36: Y | IB36: 2023-10-25T09:23:30 | ID36: Case 34 | IE36: Neil
A37: 3000000 | B37: 0.07 | C37: 0.095 | D37: 40 | E37: 5 | F37: 3000000 | G37: 0.07 | H37: 0.095 | I37: 40 | J37: 5 | P37: Company | Q37: Individual (Single) | R37: Individual (Couple) | S37: Individual (Couple) | X37: Applicant 4 | Y37: Applicant 3 | AD37: 2 | AE37: 0 | AH37: 0 | AI37: 225000 | AJ37: 100000 | AK37: 80000 | AL37: 0 | AM37: 0 | AN37: 0 | AO37: 0 | AP37: 0 | AQ37: 0 | AR37: 0 | AS37: 0 | AT37: 87500 | AU37: 87500 | AV37: 37500 | AW37: 12500 | AX37: 0 | AY37: 0 | AZ37: 22500 | BA37: 22500 | BB37: 52500 | BC37: 17500 | BD37: 0 | BE37: 0 | BF37: 0 | BG37: 0 | BH37: 0 | BI37: 0 | BJ37: 0 | BK37: 0 | BL37: 0 | BM37: 0 | BN37: 20000 | BO37: 20000 | BP37: 0 | BQ37: 0 | BR37: 0 | BS37: 0 | BT37: 500000 | BU37: 500000 | BV37: 0 | BW37: 0 | BX37: 0 | BY37: 0 | BZ37: 0 | CA37: 0 | CB37: 0 | CC37: 0 | CD37: 0 | CE37: 0 | CF37: 0 | CG37: 0 | CH37: 0 | CI37: 0 | CJ37: 0 | CK37: 0 | CL37: 15000 | CM37: 0 | CN37: Yes | CO37: No | CP37: No | CQ37: Yes | CR37: Yes | CS37: Yes | CT37: Yes | CU37: Yes | CV37: Yes | CW37: Yes | CX37: No | CY37: Yes | CZ37: Yes | DA37: No | DB37: No | DC37: No | DD37: 0 | DE37: 25000 | DF37: 5000 | DG37: 3000 | DH37: 21875 | DI37: 117542 | DJ37: 33154 | DK37: 17480.5 | DL37: 0 | DM37: 0 | DN37: 88125 | DO37: 217458 | DP37: 172846 | DQ37: 108519.5 | DR37: 0 | DS37: 0 | DT37: 586948.5 | DU37: 0 | DV37: 52623.56 | DW37: 68059.25 | DX37: 0 | DY37: 0 | DZ37: 0 | EA37: 120682.81 | EB37: 180000 | EC37: 300682.81 | ED37: 286265.69 | EE37: 0.055 | EF37: 0.02 | EG37: 0.0382 | EH37: 0.0604 | EI37: 1.25 | EJ37: 0.8 | EK37: 0.25 | EL37: 64750 | EM37: 48912.38 | EN37: 25056.9 | EO37: 23855.47 | EP37: 19165.69 | EQ37: 5955 | ER37: 777000 | ES37: 586948.5 | ET37: 300682.81 | EU37: 286265.69 | EV37: 229988.29 | EW37: 71460 | EX37: 64750 | EY37: 48912.38 | EZ37: 25056.9 | FA37: 23855.47 | FB37: 23519.79 | FC37: 5955 | FD37: 777000 | FE37: 586948.5 | FF37: 300682.81 | FG37: 286265.69 | FH37: 282237.47 | FI37: 71460 | FJ37: 0.94 | FK37: 0.387964336 | FL37: FAIL | FM37: 0.8 | FN37: 0.4552090994 | FO37: FAIL | FP37: 2283183.73 | FQ37: 21875 | FR37: 117542 | FS37: 33154 | FT37: 17480.5 | FU37: 0 | FV37: 0 | FW37: 88125 | FX37: 217458 | FY37: 172846 | FZ37: 108519.5 | GA37: 0 | GB37: 0 | GC37: 586948.5 | GD37: 0 | GE37: 52623.56 | GF37: 68059.25 | GG37: 0 | GH37: 0 | GI37: 0 | GJ37: 120682.81 | GK37: 180000 | GL37: 300682.81 | GM37: 286265.69 | GN37: 0.055 | GO37: 0.02 | GP37: 0.0382 | GQ37: 0.0604 | GR37: 1.25 | GS37: 0.8 | GT37: 0.25 | GU37: 64750 | GV37: 48912.38 | GW37: 25056.9 | GX37: 23855.47 | GY37: 19165.69 | GZ37: 5955 | HA37: 777000 | HB37: 586948.5 | HC37: 300682.81 | HD37: 286265.69 | HE37: 229988.29 | HF37: 71460 | HG37: 64750 | HH37: 48912.38 | HI37: 25056.9 | HJ37: 23855.47 | HK37: 23519.79 | HL37: 5955 | HM37: 777000 | HN37: 586948.5 | HO37: 300682.81 | HP37: 286265.69 | HQ37: 282237.47 | HR37: 71460 | HS37: 0.94 | HT37: 0.387964336 | HU37: FAIL | HV37: 0.8 | HW37: 0.4552090994 | HX37: FAIL | HY37: 2283183.73 | HZ37: Pass | IA37: Y | IB37: 2023-10-25T09:23:33 | ID37: Case 35 | IE37: Neil
A38: 1500000 | B38: 0.0599 | C38: 0.0849 | D38: 30 | E38: 0 | F38: 1500000 | G38: 0.0599 | H38: 0.0849 | I38: 30 | J38: 0 | P38: Individual (Single) | Q38: Individual (Couple) | R38: Company | S38: Company | W38: Non-loan party | AC38: 3 | AH38: 0 | AI38: 95000 | AJ38: 0 | AK38: 25000 | AL38: 0 | AM38: 0 | AN38: 85000 | AO38: 0 | AP38: 0 | AQ38: 0 | AR38: 0 | AS38: 0 | AT38: 0 | AU38: 0 | AV38: 0 | AW38: 0 | AX38: 0 | AY38: 0 | AZ38: 0 | BA38: 0 | BB38: 0 | BC38: 20000 | BD38: 0 | BE38: 0 | BF38: 0 | BG38: 0 | BH38: 0 | BI38: 0 | BJ38: 0 | BK38: 0 | BL38: 0 | BM38: 30000 | BN38: 30000 | BO38: 0 | BP38: 0 | BQ38: 0 | BR38: 0 | BS38: 0 | BT38: 1000000 | BU38: 0 | BV38: 0 | BW38: 0 | BX38: 1 | BY38: 0 | BZ38: 0 | CA38: 0 | CB38: 0 | CC38: 0 | CD38: 0 | CE38: 0 | CF38: 0 | CG38: 0 | CH38: 0 | CI38: 0 | CJ38: 0 | CK38: 0 | CL38: 0 | CM38: 0 | CN38: Yes | CO38: No | CP38: No | CQ38: Yes | CR38: Yes | CS38: Yes | CT38: Yes | CU38: Yes | CV38: Yes | CW38: Yes | CX38: No | CY38: Yes | CZ38: Yes | DA38: No | DB38: No | DC38: No | DD38: 0 | DE38: 0 | DF38: 1000 | DG38: 0 | DH38: 0 | DI38: 31522 | DJ38: 0 | DK38: 6250 | DL38: 0 | DM38: 0 | DN38: 85000 | DO38: 87478 | DP38: 24000 | DQ38: 38750 | DR38: 0 | DS38: 0 | DT38: 235228 | DU38: 22426.95 | DV38: 51580.09 | DW38: 0 | DX38: 0 | DY38: 0 | DZ38: 0 | EA38: 74007.04 | EB38: 12 | EC38: 74007.04 | ED38: 161220.96 | EE38: 0.055 | EF38: 0.02 | EG38: 0.0382 | EH38: 0.0604 | EI38: 1.25 | EJ38: 0.8 | EK38: 0.25 | EL38: 22750 | EM38: 19602.33 | EN38: 6167.25 | EO38: 13435.08 | EP38: 8983.62 | EQ38: 1000 | ER38: 273000 | ES38: 235228 | ET38: 74007.04 | EU38: 161220.96 | EV38: 107803.4 | EW38: 12000 | EX38: 22750 | EY38: 19602.33 | EZ38: 6167.25 | FA38: 13435.08 | FB38: 10996.01 | FC38: 1000 | FD38: 273000 | FE38: 235228 | FF38: 74007.04 | FG38: 161220.96 | FH38: 131952.16 | FI38: 12000 | FJ38: 1.34 | FK38: 0.4388402795 | FL38: PASS | FM38: 1.11 | FN38: 0.5272973016 | FO38: PASS | FP38: 1500000 | FQ38: 0 | FR38: 31522 | FS38: 0 | FT38: 6250 | FU38: 0 | FV38: 0 | FW38: 85000 | FX38: 87478 | FY38: 24000 | FZ38: 38750 | GA38: 0 | GB38: 0 | GC38: 235228 | GD38: 22426.95 | GE38: 51580.09 | GF38: 0 | GG38: 0 | GH38: 0 | GI38: 0 | GJ38: 74007.04 | GK38: 12 | GL38: 74007.04 | GM38: 161220.96 | GN38: 0.055 | GO38: 0.02 | GP38: 0.0382 | GQ38: 0.0604 | GR38: 1.25 | GS38: 0.8 | GT38: 0.25 | GU38: 22750 | GV38: 19602.33 | GW38: 6167.25 | GX38: 13435.08 | GY38: 8983.62 | GZ38: 1000 | HA38: 273000 | HB38: 235228 | HC38: 74007.04 | HD38: 161220.96 | HE38: 107803.4 | HF38: 12000 | HG38: 22750 | HH38: 19602.33 | HI38: 6167.25 | HJ38: 13435.08 | HK38: 10996.01 | HL38: 1000 | HM38: 273000 | HN38: 235228 | HO38: 74007.04 | HP38: 161220.96 | HQ38: 131952.16 | HR38: 12000 | HS38: 1.34 | HT38: 0.4388402795 | HU38: PASS | HV38: 1.11 | HW38: 0.5272973016 | HX38: PASS | HY38: 1500000 | HZ38: Pass | IA38: Y | IB38: 2023-10-25T09:23:35 | ID38: Case 36 | IE38: Neil
A39: 300000 | B39: 0.0509 | C39: 0.0759 | D39: 30 | E39: 0 | F39: 300000 | G39: 0.0509 | H39: 0.0759 | I39: 30 | J39: 0 | P39: Individual (Couple) | Q39: Individual (Couple) | V39: Non-loan Party | W39: Non-loan party | AB39: 3 | AH39: 72735 | AI39: 0 | AJ39: 0 | AK39: 0 | AL39: 0 | AM39: 0 | AN39: 0 | AO39: 0 | AP39: 0 | AQ39: 0 | AR39: 0 | AS39: 0 | AT39: 0 | AU39: 0 | AV39: 0 | AW39: 0 | AX39: 0 | AY39: 0 | AZ39: 0 | BA39: 0 | BB39: 0 | BC39: 0 | BD39: 0 | BE39: 0 | BF39: 0 | BG39: 0 | BH39: 0 | BI39: 0 | BJ39: 0 | BK39: 0 | BL39: 0 | BM39: 0 | BN39: 0 | BO39: 0 | BP39: 0 | BQ39: 0 | BR39: 0 | BS39: 0 | BT39: 0 | BU39: 0 | BV39: 0 | BW39: 0 | BX39: 285 | BY39: 0 | BZ39: 291 | CA39: 260 | CB39: 1100 | CC39: 400 | CD39: 700 | CE39: 0 | CF39: 69 | CG39: 0 | CH39: 0 | CI39: 0 | CJ39: 48 | CK39: 0 | CL39: 0 | CM39: 0 | CN39: Yes | CO39: No | CP39: No | CQ39: Yes | CR39: Yes | CS39: Yes | CT39: Yes | CU39: Yes | CV39: Yes | CW39: Yes | CX39: No | CY39: Yes | CZ39: Yes | DA39: No | DB39: No | DC39: No | DD39: 1275 | DE39: 32500 | DF39: 1275 | DG39: 0 | DH39: 15560.58 | DI39: 0 | DJ39: 0 | DK39: 0 | DL39: 0 | DM39: 0 | DN39: 57174.43 | DO39: 0 | DP39: 0 | DQ39: 0 | DR39: 0 | DS39: 0 | DT39: 57174.43 | DU39: 44544.23 | DV39: 29253.9 | DW39: 0 | DX39: 0 | DY39: 0 | DZ39: 0 | EA39: 73798.13 | EB39: 37836 | EC39: 77290.13 | ED39: -20115.7 | EE39: 0.055 | EF39: 0.02 | EG39: 0.0382 | EH39: 0.0604 | EI39: 1.25 | EJ39: 0.8 | EK39: 0.25 | EL39: 6061.25 | EM39: 4764.54 | EN39: 6440.84 | EO39: -1676.31 | EP39: 1627.01 | EQ39: 3791.5 | ER39: 72735 | ES39: 57174.43 | ET39: 77290.13 | EU39: -20115.7 | EV39: 19524.08 | EW39: 45498 | EX39: 6061.25 | EY39: 4764.54 | EZ39: 6440.84 | FA39: -1676.31 | FB39: 2014.07 | FC39: 3791.5 | FD39: 72735 | FE39: 57174.43 | FF39: 77290.13 | FG39: -20115.7 | FH39: 24168.88 | FI39: 45498 | FJ39: -0.3 | FK39: 0.6836059248 | FL39: FAIL | FM39: -0.28 | FN39: 0.7474651941 | FO39: FAIL | FP39: 0 | FQ39: 15560.58 | FR39: 0 | FS39: 0 | FT39: 0 | FU39: 0 | FV39: 0 | FW39: 57174.43 | FX39: 0 | FY39: 0 | FZ39: 0 | GA39: 0 | GB39: 0 | GC39: 57174.43 | GD39: 44544.23 | GE39: 29253.9 | GF39: 0 | GG39: 0 | GH39: 0 | GI39: 0 | GJ39: 73798.13 | GK39: 37836 | GL39: 77290.13 | GM39: -20115.7 | GN39: 0.055 | GO39: 0.02 | GP39: 0.0382 | GQ39: 0.0604 | GR39: 1.25 | GS39: 0.8 | GT39: 0.25 | GU39: 6061.25 | GV39: 4764.54 | GW39: 6440.84 | GX39: -1676.31 | GY39: 1627.01 | GZ39: 3791.5 | HA39: 72735 | HB39: 57174.43 | HC39: 77290.13 | HD39: -20115.7 | HE39: 19524.08 | HF39: 45498 | HG39: 6061.25 | HH39: 4764.54 | HI39: 6440.84 | HJ39: -1676.31 | HK39: 2014.07 | HL39: 3791.5 | HM39: 72735 | HN39: 57174.43 | HO39: 77290.13 | HP39: -20115.7 | HQ39: 24168.88 | HR39: 45498 | HS39: -0.3 | HT39: 0.6836059248 | HU39: FAIL | HV39: -0.28 | HW39: 0.7474651941 | HX39: FAIL | HY39: 0 | HZ39: Pass | IA39: Y | IB39: 2023-10-25T09:23:38 | ID39: Case 37 | IE39: Neil
A40: 300000 | B40: 0.06 | C40: 0.085 | D40: 40 | E40: 0 | F40: 300000 | G40: 0.06 | H40: 0.085 | I40: 40 | J40: 0 | P40: Individual (Single) | Q40: Individual (Single) | AH40: 0 | AI40: 1 | AJ40: 0 | AK40: 0 | AL40: 0 | AM40: 0 | AN40: 0 | AO40: 0 | AP40: 0 | AQ40: 0 | AR40: 0 | AS40: 0 | AT40: 0 | AU40: 0 | AV40: 0 | AW40: 0 | AX40: 0 | AY40: 0 | AZ40: 0 | BA40: 0 | BB40: 0 | BC40: 0 | BD40: 0 | BE40: 0 | BF40: 0 | BG40: 0 | BH40: 0 | BI40: 0 | BJ40: 0 | BK40: 0 | BL40: 0 | BM40: 0 | BN40: 0 | BO40: 0 | BP40: 0 | BQ40: 0 | BR40: 0 | BS40: 0 | BT40: 0 | BU40: 0 | BV40: 0 | BW40: 0 | BX40: 1 | BY40: 1 | BZ40: 1 | CA40: 1 | CB40: 1 | CC40: 1 | CD40: 1 | CE40: 1 | CF40: 1 | CG40: 1 | CH40: 0 | CI40: 1 | CJ40: 1 | CK40: 0 | CL40: 1 | CM40: 0 | CN40: Yes | CO40: No | CP40: No | CQ40: Yes | CR40: Yes | CS40: Yes | CT40: Yes | CU40: Yes | CV40: Yes | CW40: Yes | CX40: No | CY40: Yes | CZ40: Yes | DA40: No | DB40: No | DC40: No | DD40: 0 | DE40: 0 | DF40: 0 | DG40: 0 | DH40: 0 | DI40: 0 | DJ40: 0 | DK40: 0 | DL40: 0 | DM40: 0 | DN40: 0 | DO40: 1 | DP40: 0 | DQ40: 0 | DR40: 0 | DS40: 0 | DT40: 1 | DU40: 14900.75 | DV40: 14900.75 | DW40: 0 | DX40: 0 | DY40: 0 | DZ40: 0 | EA40: 29801.5 | EB40: 156 | EC40: 29837.5 | ED40: -29836.5 | EE40: 0.055 | EF40: 0.02 | EG40: 0.0382 | EH40: 0.0604 | EI40: 1.25 | EJ40: 0.8 | EK40: 0.25 | EL40: 0.08 | EM40: 0.08 | EN40: 2486.46 | EO40: -2486.38 | EP40: 1650.64 | EQ40: 0 | ER40: 1 | ES40: 1 | ET40: 29837.5 | EU40: -29836.5 | EV40: 19807.69 | EW40: 0 | EX40: 0.08 | EY40: 0.08 | EZ40: 2486.46 | FA40: -2486.38 | FB40: 2085.94 | FC40: 0 | FD40: 1 | FE40: 1 | FF40: 29837.5 | FG40: -29836.5 | FH40: 25031.22 | FI40: 0 | FJ40: -1.5 | FK40: 19807.69106 | FL40: FAIL | FM40: -1.19 | FN40: 25031.22083 | FO40: FAIL | FP40: 0 | FQ40: 0 | FR40: 0 | FS40: 0 | FT40: 0 | FU40: 0 | FV40: 0 | FW40: 0 | FX40: 1 | FY40: 0 | FZ40: 0 | GA40: 0 | GB40: 0 | GC40: 1 | GD40: 14900.75 | GE40: 14900.75 | GF40: 0 | GG40: 0 | GH40: 0 | GI40: 0 | GJ40: 29801.5 | GK40: 156 | GL40: 29837.5 | GM40: -29836.5 | GN40: 0.055 | GO40: 0.02 | GP40: 0.0382 | GQ40: 0.0604 | GR40: 1.25 | GS40: 0.8 | GT40: 0.25 | GU40: 0.08 | GV40: 0.08 | GW40: 2486.46 | GX40: -2486.38 | GY40: 1650.64 | GZ40: 0 | HA40: 1 | HB40: 1 | HC40: 29837.5 | HD40: -29836.5 | HE40: 19807.69 | HF40: 0 | HG40: 0.08 | HH40: 0.08 | HI40: 2486.46 | HJ40: -2486.38 | HK40: 2085.94 | HL40: 0 | HM40: 1 | HN40: 1 | HO40: 29837.5 | HP40: -29836.5 | HQ40: 25031.22 | HR40: 0 | HS40: -1.5 | HT40: 19807.69106 | HU40: FAIL | HV40: -1.19 | HW40: 25031.22083 | HX40: FAIL | HY40: 0 | HZ40: Pass | IA40: Y | IB40: 2023-10-25T09:23:40 | ID40: Case 38 | IE40: Neil
A41: 100000 | B41: 0.065 | C41: 0.09 | D41: 20 | E41: 0 | F41: 100000 | G41: 0.065 | H41: 0.09 | I41: 20 | J41: 0 | P41: Individual (Couple) | V41: Non-loan Party | AH41: 25000 | AI41: 0 | AJ41: 0 | AK41: 0 | AL41: 0 | AM41: 0 | AN41: 0 | AO41: 0 | AP41: 0 | AQ41: 0 | AR41: 0 | AS41: 0 | AT41: 0 | AU41: 0 | AV41: 0 | AW41: 0 | AX41: 0 | AY41: 0 | AZ41: 0 | BA41: 0 | BB41: 0 | BC41: 0 | BD41: 0 | BE41: 0 | BF41: 0 | BG41: 0 | BH41: 0 | BI41: 0 | BJ41: 0 | BK41: 0 | BL41: 0 | BM41: 0 | BN41: 0 | BO41: 0 | BP41: 0 | BQ41: 0 | BR41: 0 | BS41: 0 | BT41: 0 | BU41: 0 | BV41: 0 | BW41: 0 | BX41: 1 | BY41: 1 | BZ41: 1000 | CA41: 50 | CB41: 1 | CC41: 100 | CD41: 200 | CE41: 1 | CF41: 500 | CG41: 1 | CH41: 0 | CI41: 1 | CJ41: 1 | CK41: 0 | CL41: 1 | CM41: 0 | CN41: Yes | CO41: No | CP41: No | CQ41: Yes | CR41: Yes | CS41: Yes | CT41: Yes | CU41: Yes | CV41: Yes | CW41: Yes | CX41: No | CY41: Yes | CZ41: Yes | DA41: No | DB41: No | DC41: No | DD41: 0 | DE41: 0 | DF41: 0 | DG41: 0 | DH41: 1455.5 | DI41: 0 | DJ41: 0 | DK41: 0 | DL41: 0 | DM41: 0 | DN41: 24244.5 | DO41: 0 | DP41: 0 | DQ41: 0 | DR41: 0 | DS41: 0 | DT41: 24244.5 | DU41: 29253.9 | DV41: 0 | DW41: 0 | DX41: 0 | DY41: 0 | DZ41: 0 | EA41: 29253.9 | EB41: 22296 | EC41: 41277.9 | ED41: -17033.4 | EE41: 0.055 | EF41: 0.02 | EG41: 0.0382 | EH41: 0.0604 | EI41: 1.25 | EJ41: 0.8 | EK41: 0.25 | EL41: 2083.33 | EM41: 2020.38 | EN41: 3439.82 | EO41: -1419.45 | EP41: 745.57 | EQ41: 0 | ER41: 25000 | ES41: 24244.5 | ET41: 41277.9 | EU41: -17033.4 | EV41: 8946.88 | EW41: 0 | EX41: 2083.33 | EY41: 2020.38 | EZ41: 3439.82 | FA41: -1419.45 | FB41: 867.82 | FC41: 0 | FD41: 25000 | FE41: 24244.5 | FF41: 41277.9 | FG41: -17033.4 | FH41: 10413.88 | FI41: 0 | FJ41: -1.9 | FK41: 0.357875105 | FL41: FAIL | FM41: -1.63 | FN41: 0.416555152 | FO41: FAIL | FP41: 0 | FQ41: 1455.5 | FR41: 0 | FS41: 0 | FT41: 0 | FU41: 0 | FV41: 0 | FW41: 24244.5 | FX41: 0 | FY41: 0 | FZ41: 0 | GA41: 0 | GB41: 0 | GC41: 24244.5 | GD41: 29253.9 | GE41: 0 | GF41: 0 | GG41: 0 | GH41: 0 | GI41: 0 | GJ41: 29253.9 | GK41: 22296 | GL41: 41277.9 | GM41: -17033.4 | GN41: 0.055 | GO41: 0.02 | GP41: 0.0382 | GQ41: 0.0604 | GR41: 1.25 | GS41: 0.8 | GT41: 0.25 | GU41: 2083.33 | GV41: 2020.38 | GW41: 3439.82 | GX41: -1419.45 | GY41: 745.57 | GZ41: 0 | HA41: 25000 | HB41: 24244.5 | HC41: 41277.9 | HD41: -17033.4 | HE41: 8946.88 | HF41: 0 | HG41: 2083.33 | HH41: 2020.38 | HI41: 3439.82 | HJ41: -1419.45 | HK41: 867.82 | HL41: 0 | HM41: 25000 | HN41: 24244.5 | HO41: 41277.9 | HP41: -17033.4 | HQ41: 10413.88 | HR41: 0 | HS41: -1.9 | HT41: 0.357875105 | HU41: FAIL | HV41: -1.63 | HW41: 0.416555152 | HX41: FAIL | HY41: 0 | HZ41: Pass | IA41: Y | IB41: 2023-10-25T09:23:43 | ID41: Case 39 | IE41: Neil
A42: 100000 | B42: 0.065 | C42: 0.09 | D42: 20 | E42: 0 | F42: 100000 | G42: 0.065 | H42: 0.09 | I42: 20 | J42: 0 | P42: Individual (Couple) | V42: Non-loan Party | AH42: 50000 | AI42: 0 | AJ42: 0 | AK42: 0 | AL42: 0 | AM42: 0 | AN42: 0 | AO42: 0 | AP42: 0 | AQ42: 0 | AR42: 0 | AS42: 0 | AT42: 0 | AU42: 0 | AV42: 0 | AW42: 0 | AX42: 0 | AY42: 0 | AZ42: 0 | BA42: 0 | BB42: 0 | BC42: 0 | BD42: 0 | BE42: 0 | BF42: 0 | BG42: 0 | BH42: 0 | BI42: 0 | BJ42: 0 | BK42: 0 | BL42: 0 | BM42: 0 | BN42: 0 | BO42: 0 | BP42: 0 | BQ42: 0 | BR42: 0 | BS42: 0 | BT42: 0 | BU42: 0 | BV42: 0 | BW42: 0 | BX42: 1 | BY42: 1 | BZ42: 1000 | CA42: 50 | CB42: 1 | CC42: 100 | CD42: 200 | CE42: 1 | CF42: 500 | CG42: 1 | CH42: 0 | CI42: 1 | CJ42: 1 | CK42: 0 | CL42: 1 | CM42: 0 | CN42: Yes | CO42: No | CP42: No | CQ42: Yes | CR42: Yes | CS42: Yes | CT42: Yes | CU42: Yes | CV42: Yes | CW42: Yes | CX42: No | CY42: Yes | CZ42: Yes | DA42: No | DB42: No | DC42: No | DD42: 0 | DE42: 0 | DF42: 0 | DG42: 0 | DH42: 7717 | DI42: 0 | DJ42: 0 | DK42: 0 | DL42: 0 | DM42: 0 | DN42: 42533 | DO42: 0 | DP42: 0 | DQ42: 0 | DR42: 0 | DS42: 0 | DT42: 42533 | DU42: 30992.52 | DV42: 0 | DW42: 0 | DX42: 0 | DY42: 0 | DZ42: 0 | EA42: 30992.52 | EB42: 22296 | EC42: 43016.52 | ED42: -483.52 | EE42: 0.055 | EF42: 0.02 | EG42: 0.0382 | EH42: 0.0604 | EI42: 1.25 | EJ42: 0.8 | EK42: 0.25 | EL42: 4166.67 | EM42: 3544.42 | EN42: 3584.71 | EO42: -40.29 | EP42: 745.57 | EQ42: 0 | ER42: 50000 | ES42: 42533 | ET42: 43016.52 | EU42: -483.52 | EV42: 8946.88 | EW42: 0 | EX42: 4166.67 | EY42: 3544.42 | EZ42: 3584.71 | FA42: -40.29 | FB42: 867.82 | FC42: 0 | FD42: 50000 | FE42: 42533 | FF42: 43016.52 | FG42: -483.52 | FH42: 10413.88 | FI42: 0 | FJ42: -0.05 | FK42: 0.1789375525 | FL42: FAIL | FM42: -0.04 | FN42: 0.208277576 | FO42: FAIL | FP42: 0 | FQ42: 7717 | FR42: 0 | FS42: 0 | FT42: 0 | FU42: 0 | FV42: 0 | FW42: 42533 | FX42: 0 | FY42: 0 | FZ42: 0 | GA42: 0 | GB42: 0 | GC42: 42533 | GD42: 30992.52 | GE42: 0 | GF42: 0 | GG42: 0 | GH42: 0 | GI42: 0 | GJ42: 30992.52 | GK42: 22296 | GL42: 43016.52 | GM42: -483.52 | GN42: 0.055 | GO42: 0.02 | GP42: 0.0382 | GQ42: 0.0604 | GR42: 1.25 | GS42: 0.8 | GT42: 0.25 | GU42: 4166.67 | GV42: 3544.42 | GW42: 3584.71 | GX42: -40.29 | GY42: 745.57 | GZ42: 0 | HA42: 50000 | HB42: 42533 | HC42: 43016.52 | HD42: -483.52 | HE42: 8946.88 | HF42: 0 | HG42: 4166.67 | HH42: 3544.42 | HI42: 3584.71 | HJ42: -40.29 | HK42: 867.82 | HL42: 0 | HM42: 50000 | HN42: 42533 | HO42: 43016.52 | HP42: -483.52 | HQ42: 10413.88 | HR42: 0 | HS42: -0.05 | HT42: 0.1789375525 | HU42: FAIL | HV42: -0.04 | HW42: 0.208277576 | HX42: FAIL | HY42: 0 | HZ42: Pass | IA42: Y | IB42: 2023-10-25T09:23:45 | ID42: Case 40 | IE42: Neil
A43: 300000 | B43: 0.065 | C43: 0.09 | D43: 20 | E43: 0 | F43: 300000 | G43: 0.065 | H43: 0.09 | I43: 20 | J43: 0 | P43: Individual (Couple) | Q43: Individual (Couple) | V43: Applicant 2 | W43: Applicant 1 | AH43: 85000 | AI43: 45000 | AJ43: 0 | AK43: 0 | AL43: 0 | AM43: 0 | AN43: 0 | AO43: 0 | AP43: 0 | AQ43: 0 | AR43: 0 | AS43: 0 | AT43: 0 | AU43: 0 | AV43: 0 | AW43: 0 | AX43: 0 | AY43: 0 | AZ43: 0 | BA43: 0 | BB43: 0 | BC43: 0 | BD43: 0 | BE43: 0 | BF43: 0 | BG43: 0 | BH43: 0 | BI43: 0 | BJ43: 0 | BK43: 0 | BL43: 0 | BM43: 0 | BN43: 0 | BO43: 0 | BP43: 0 | BQ43: 0 | BR43: 0 | BS43: 0 | BT43: 0 | BU43: 0 | BV43: 0 | BW43: 0 | BX43: 1 | BY43: 500 | BZ43: 1000 | CA43: 50 | CB43: 1 | CC43: 100 | CD43: 200 | CE43: 500 | CF43: 500 | CG43: 1 | CH43: 0 | CI43: 1 | CJ43: 1 | CK43: 0 | CL43: 1 | CM43: 0 | CN43: Yes | CO43: No | CP43: No | CQ43: Yes | CR43: Yes | CS43: Yes | CT43: Yes | CU43: Yes | CV43: Yes | CW43: Yes | CX43: No | CY43: Yes | CZ43: Yes | DA43: No | DB43: No | DC43: No | DD43: 0 | DE43: 0 | DF43: 0 | DG43: 0 | DH43: 19792 | DI43: 5992 | DJ43: 0 | DK43: 0 | DL43: 0 | DM43: 0 | DN43: 65208 | DO43: 39333 | DP43: 0 | DQ43: 0 | DR43: 0 | DS43: 0 | DT43: 104541 | DU43: 43858.28 | DV43: 0 | DW43: 0 | DX43: 0 | DY43: 0 | DZ43: 0 | EA43: 43858.28 | EB43: 34272 | EC43: 61870.28 | ED43: 42670.72 | EE43: 0.055 | EF43: 0.02 | EG43: 0.0382 | EH43: 0.0604 | EI43: 1.25 | EJ43: 0.8 | EK43: 0.25 | EL43: 10833.33 | EM43: 8711.75 | EN43: 5155.86 | EO43: 3555.89 | EP43: 2236.72 | EQ43: 0 | ER43: 130000 | ES43: 104541 | ET43: 61870.28 | EU43: 42670.72 | EV43: 26840.63 | EW43: 0 | EX43: 10833.33 | EY43: 8711.75 | EZ43: 5155.86 | FA43: 3555.89 | FB43: 2603.47 | FC43: 0 | FD43: 130000 | FE43: 104541 | FF43: 61870.28 | FG43: 42670.72 | FH43: 31241.64 | FI43: 0 | FJ43: 1.58 | FK43: 0.2064664068 | FL43: PASS | FM43: 1.36 | FN43: 0.24032028 | FO43: PASS | FP43: 300000 | FQ43: 19792 | FR43: 5992 | FS43: 0 | FT43: 0 | FU43: 0 | FV43: 0 | FW43: 65208 | FX43: 39333 | FY43: 0 | FZ43: 0 | GA43: 0 | GB43: 0 | GC43: 104541 | GD43: 43858.28 | GE43: 0 | GF43: 0 | GG43: 0 | GH43: 0 | GI43: 0 | GJ43: 43858.28 | GK43: 34272 | GL43: 61870.28 | GM43: 42670.72 | GN43: 0.055 | GO43: 0.02 | GP43: 0.0382 | GQ43: 0.0604 | GR43: 1.25 | GS43: 0.8 | GT43: 0.25 | GU43: 10833.33 | GV43: 8711.75 | GW43: 5155.86 | GX43: 3555.89 | GY43: 2236.72 | GZ43: 0 | HA43: 130000 | HB43: 104541 | HC43: 61870.28 | HD43: 42670.72 | HE43: 26840.63 | HF43: 0 | HG43: 10833.33 | HH43: 8711.75 | HI43: 5155.86 | HJ43: 3555.89 | HK43: 2603.47 | HL43: 0 | HM43: 130000 | HN43: 104541 | HO43: 61870.28 | HP43: 42670.72 | HQ43: 31241.64 | HR43: 0 | HS43: 1.58 | HT43: 0.2064664068 | HU43: PASS | HV43: 1.36 | HW43: 0.24032028 | HX43: PASS | HY43: 300000 | HZ43: Pass | IA43: Y | IB43: 2023-10-25T09:23:48 | ID43: Case 41 | IE43: Neil
A44: 300000 | B44: 0.065 | C44: 0.09 | D44: 20 | E44: 0 | F44: 300000 | G44: 0.065 | H44: 0.09 | I44: 20 | J44: 0 | P44: Individual (Couple) | Q44: Individual (Couple) | V44: Applicant 2 | W44: Applicant 1 | AH44: 85000 | AI44: 45000 | AJ44: 0 | AK44: 0 | AL44: 0 | AM44: 0 | AN44: 0 | AO44: 0 | AP44: 0 | AQ44: 0 | AR44: 0 | AS44: 0 | AT44: 0 | AU44: 0 | AV44: 0 | AW44: 0 | AX44: 0 | AY44: 0 | AZ44: 0 | BA44: 0 | BB44: 0 | BC44: 0 | BD44: 0 | BE44: 0 | BF44: 0 | BG44: 0 | BH44: 0 | BI44: 0 | BJ44: 0 | BK44: 0 | BL44: 0 | BM44: 0 | BN44: 0 | BO44: 0 | BP44: 0 | BQ44: 0 | BR44: 0 | BS44: 0 | BT44: 0 | BU44: 0 | BV44: 0 | BW44: 0 | BX44: 1 | BY44: 500 | BZ44: 1000 | CA44: 50 | CB44: 1 | CC44: 100 | CD44: 200 | CE44: 500 | CF44: 500 | CG44: 400 | CH44: 0 | CI44: 1 | CJ44: 200 | CK44: 0 | CL44: 1 | CM44: 0 | CN44: Yes | CO44: No | CP44: No | CQ44: Yes | CR44: Yes | CS44: Yes | CT44: Yes | CU44: Yes | CV44: Yes | CW44: Yes | CX44: No | CY44: Yes | CZ44: Yes | DA44: No | DB44: No | DC44: No | DD44: 0 | DE44: 0 | DF44: 1800 | DG44: 0 | DH44: 19792 | DI44: 5992 | DJ44: 0 | DK44: 0 | DL44: 0 | DM44: 0 | DN44: 65208 | DO44: 39333 | DP44: 0 | DQ44: 0 | DR44: 0 | DS44: 0 | DT44: 104541 | DU44: 43858.28 | DV44: 0 | DW44: 0 | DX44: 0 | DY44: 0 | DZ44: 0 | EA44: 43858.28 | EB44: 41448 | EC44: 61870.28 | ED44: 42670.72 | EE44: 0.055 | EF44: 0.02 | EG44: 0.0382 | EH44: 0.0604 | EI44: 1.25 | EJ44: 0.8 | EK44: 0.25 | EL44: 10833.33 | EM44: 8711.75 | EN44: 5155.86 | EO44: 3555.89 | EP44: 2236.72 | EQ44: 1800 | ER44: 130000 | ES44: 104541 | ET44: 61870.28 | EU44: 42670.72 | EV44: 26840.63 | EW44: 21600 | EX44: 10833.33 | EY44: 8711.75 | EZ44: 5155.86 | FA44: 3555.89 | FB44: 2603.47 | FC44: 1800 | FD44: 130000 | FE44: 104541 | FF44: 61870.28 | FG44: 42670.72 | FH44: 31241.64 | FI44: 21600 | FJ44: 0.88 | FK44: 0.3726202529 | FL44: FAIL | FM44: 0.8 | FN44: 0.4064741262 | FO44: FAIL | FP44: 202230.12 | FQ44: 19792 | FR44: 5992 | FS44: 0 | FT44: 0 | FU44: 0 | FV44: 0 | FW44: 65208 | FX44: 39333 | FY44: 0 | FZ44: 0 | GA44: 0 | GB44: 0 | GC44: 104541 | GD44: 43858.28 | GE44: 0 | GF44: 0 | GG44: 0 | GH44: 0 | GI44: 0 | GJ44: 43858.28 | GK44: 41448 | GL44: 61870.28 | GM44: 42670.72 | GN44: 0.055 | GO44: 0.02 | GP44: 0.0382 | GQ44: 0.0604 | GR44: 1.25 | GS44: 0.8 | GT44: 0.25 | GU44: 10833.33 | GV44: 8711.75 | GW44: 5155.86 | GX44: 3555.89 | GY44: 2236.72 | GZ44: 1800 | HA44: 130000 | HB44: 104541 | HC44: 61870.28 | HD44: 42670.72 | HE44: 26840.63 | HF44: 21600 | HG44: 10833.33 | HH44: 8711.75 | HI44: 5155.86 | HJ44: 3555.89 | HK44: 2603.47 | HL44: 1800 | HM44: 130000 | HN44: 104541 | HO44: 61870.28 | HP44: 42670.72 | HQ44: 31241.64 | HR44: 21600 | HS44: 0.88 | HT44: 0.3726202529 | HU44: FAIL | HV44: 0.8 | HW44: 0.4064741262 | HX44: FAIL | HY44: 202230.12 | HZ44: Pass | IA44: Y | IB44: 2023-10-25T09:23:50 | ID44: Case 42 | IE44: Neil
A45: 700000 | B45: 0.065 | C45: 0.09 | D45: 30 | E45: 0 | F45: 700000 | G45: 0.065 | H45: 0.09 | I45: 30 | J45: 0 | P45: Individual (Couple) | Q45: Individual (Couple) | V45: Applicant 2 | W45: Applicant 1 | AH45: 100000 | AI45: 45000 | AJ45: 0 | AK45: 0 | AL45: 0 | AM45: 0 | AN45: 0 | AO45: 0 | AP45: 0 | AQ45: 0 | AR45: 0 | AS45: 0 | AT45: 0 | AU45: 0 | AV45: 0 | AW45: 0 | AX45: 0 | AY45: 0 | AZ45: 0 | BA45: 0 | BB45: 0 | BC45: 0 | BD45: 0 | BE45: 0 | BF45: 0 | BG45: 0 | BH45: 0 | BI45: 0 | BJ45: 0 | BK45: 0 | BL45: 0 | BM45: 0 | BN45: 0 | BO45: 0 | BP45: 0 | BQ45: 0 | BR45: 0 | BS45: 0 | BT45: 0 | BU45: 0 | BV45: 0 | BW45: 0 | BX45: 1 | BY45: 1 | BZ45: 1 | CA45: 50 | CB45: 1 | CC45: 100 | CD45: 200 | CE45: 500 | CF45: 500 | CG45: 400 | CH45: 0 | CI45: 1 | CJ45: 200 | CK45: 0 | CL45: 1 | CM45: 0 | CN45: Yes | CO45: No | CP45: No | CQ45: Yes | CR45: Yes | CS45: Yes | CT45: Yes | CU45: Yes | CV45: Yes | CW45: Yes | CX45: No | CY45: Yes | CZ45: Yes | DA45: No | DB45: No | DC45: No | DD45: 0 | DE45: 0 | DF45: 1800 | DG45: 0 | DH45: 24967 | DI45: 5992 | DJ45: 0 | DK45: 0 | DL45: 0 | DM45: 0 | DN45: 75033 | DO45: 39333 | DP45: 0 | DQ45: 0 | DR45: 0 | DS45: 0 | DT45: 114366 | DU45: 43858.28 | DV45: 0 | DW45: 0 | DX45: 0 | DY45: 0 | DZ45: 0 | EA45: 43858.28 | EB45: 23472 | EC45: 43894.28 | ED45: 70471.72 | EE45: 0.055 | EF45: 0.02 | EG45: 0.0382 | EH45: 0.0604 | EI45: 1.25 | EJ45: 0.8 | EK45: 0.25 | EL45: 12083.33 | EM45: 9530.5 | EN45: 3657.86 | EO45: 5872.64 | EP45: 4424.48 | EQ45: 1800 | ER45: 145000 | ES45: 114366 | ET45: 43894.28 | EU45: 70471.72 | EV45: 53093.71 | EW45: 21600 | EX45: 12083.33 | EY45: 9530.5 | EZ45: 3657.86 | FA45: 5872.64 | FB45: 5382.39 | FC45: 1800 | FD45: 145000 | FE45: 114366 | FF45: 43894.28 | FG45: 70471.72 | FH45: 64588.73 | FI45: 21600 | FJ45: 0.94 | FK45: 0.5151290619 | FL45: FAIL | FM45: 0.81 | FN45: 0.5944050526 | FO45: FAIL | FP45: 529578.44 | FQ45: 24967 | FR45: 5992 | FS45: 0 | FT45: 0 | FU45: 0 | FV45: 0 | FW45: 75033 | FX45: 39333 | FY45: 0 | FZ45: 0 | GA45: 0 | GB45: 0 | GC45: 114366 | GD45: 43858.28 | GE45: 0 | GF45: 0 | GG45: 0 | GH45: 0 | GI45: 0 | GJ45: 43858.28 | GK45: 23472 | GL45: 43894.28 | GM45: 70471.72 | GN45: 0.055 | GO45: 0.02 | GP45: 0.0382 | GQ45: 0.0604 | GR45: 1.25 | GS45: 0.8 | GT45: 0.25 | GU45: 12083.33 | GV45: 9530.5 | GW45: 3657.86 | GX45: 5872.64 | GY45: 4424.48 | GZ45: 1800 | HA45: 145000 | HB45: 114366 | HC45: 43894.28 | HD45: 70471.72 | HE45: 53093.71 | HF45: 21600 | HG45: 12083.33 | HH45: 9530.5 | HI45: 3657.86 | HJ45: 5872.64 | HK45: 5382.39 | HL45: 1800 | HM45: 145000 | HN45: 114366 | HO45: 43894.28 | HP45: 70471.72 | HQ45: 64588.73 | HR45: 21600 | HS45: 0.94 | HT45: 0.5151290619 | HU45: FAIL | HV45: 0.81 | HW45: 0.5944050526 | HX45: FAIL | HY45: 529578.44 | HZ45: Pass | IA45: Y | IB45: 2023-10-25T09:23:52 | ID45: Case 43 | IE45: Neil
A46: 160000 | B46: 0.065 | C46: 0.09 | D46: 30 | E46: 0 | F46: 160000 | G46: 0.065 | H46: 0.09 | I46: 30 | J46: 0 | P46: Individual (Couple) | Q46: Individual (Couple) | V46: Applicant 2 | W46: Applicant 1 | AH46: 56000 | AI46: 35000 | AJ46: 0 | AK46: 0 | AL46: 0 | AM46: 0 | AN46: 0 | AO46: 0 | AP46: 0 | AQ46: 0 | AR46: 0 | AS46: 0 | AT46: 0 | AU46: 0 | AV46: 0 | AW46: 0 | AX46: 0 | AY46: 0 | AZ46: 0 | BA46: 0 | BB46: 0 | BC46: 0 | BD46: 0 | BE46: 0 | BF46: 0 | BG46: 0 | BH46: 0 | BI46: 0 | BJ46: 0 | BK46: 0 | BL46: 0 | BM46: 0 | BN46: 0 | BO46: 0 | BP46: 0 | BQ46: 0 | BR46: 0 | BS46: 0 | BT46: 0 | BU46: 0 | BV46: 0 | BW46: 0 | BX46: 600 | BY46: 50 | BZ46: 1 | CA46: 300 | CB46: 41 | CC46: 100 | CD46: 200 | CE46: 480 | CF46: 500 | CG46: 350 | CH46: 0 | CI46: 1 | CJ46: 120 | CK46: 0 | CL46: 1 | CM46: 0 | CN46: Yes | CO46: No | CP46: No | CQ46: Yes | CR46: Yes | CS46: Yes | CT46: Yes | CU46: Yes | CV46: Yes | CW46: Yes | CX46: No | CY46: Yes | CZ46: Yes | DA46: No | DB46: No | DC46: No | DD46: 0 | DE46: 0 | DF46: 1800 | DG46: 0 | DH46: 9787 | DI46: 3892 | DJ46: 0 | DK46: 0 | DL46: 0 | DM46: 0 | DN46: 46373 | DO46: 31808 | DP46: 0 | DQ46: 0 | DR46: 0 | DS46: 0 | DT46: 78181 | DU46: 35884.05 | DV46: 0 | DW46: 0 | DX46: 0 | DY46: 0 | DZ46: 0 | EA46: 35884.05 | EB46: 32928 | EC46: 36508.05 | ED46: 41672.95 | EE46: 0.055 | EF46: 0.02 | EG46: 0.0382 | EH46: 0.0604 | EI46: 1.25 | EJ46: 0.8 | EK46: 0.25 | EL46: 7583.33 | EM46: 6515.08 | EN46: 3042.34 | EO46: 3472.75 | EP46: 1011.31 | EQ46: 1800 | ER46: 91000 | ES46: 78181 | ET46: 36508.05 | EU46: 41672.95 | EV46: 12135.71 | EW46: 21600 | EX46: 7583.33 | EY46: 6515.08 | EZ46: 3042.34 | FA46: 3472.75 | FB46: 1230.26 | FC46: 1800 | FD46: 91000 | FE46: 78181 | FF46: 36508.05 | FG46: 41672.95 | FH46: 14763.14 | FI46: 21600 | FJ46: 1.23 | FK46: 0.3707220445 | FL46: PASS | FM46: 1.14 | FN46: 0.3995949328 | FO46: PASS | FP46: 160000 | FQ46: 9787 | FR46: 3892 | FS46: 0 | FT46: 0 | FU46: 0 | FV46: 0 | FW46: 46373 | FX46: 31808 | FY46: 0 | FZ46: 0 | GA46: 0 | GB46: 0 | GC46: 78181 | GD46: 35884.05 | GE46: 0 | GF46: 0 | GG46: 0 | GH46: 0 | GI46: 0 | GJ46: 35884.05 | GK46: 32928 | GL46: 36508.05 | GM46: 41672.95 | GN46: 0.055 | GO46: 0.02 | GP46: 0.0382 | GQ46: 0.0604 | GR46: 1.25 | GS46: 0.8 | GT46: 0.25 | GU46: 7583.33 | GV46: 6515.08 | GW46: 3042.34 | GX46: 3472.75 | GY46: 1011.31 | GZ46: 1800 | HA46: 91000 | HB46: 78181 | HC46: 36508.05 | HD46: 41672.95 | HE46: 12135.71 | HF46: 21600 | HG46: 7583.33 | HH46: 6515.08 | HI46: 3042.34 | HJ46: 3472.75 | HK46: 1230.26 | HL46: 1800 | HM46: 91000 | HN46: 78181 | HO46: 36508.05 | HP46: 41672.95 | HQ46: 14763.14 | HR46: 21600 | HS46: 1.23 | HT46: 0.3707220445 | HU46: PASS | HV46: 1.14 | HW46: 0.3995949328 | HX46: PASS | HY46: 160000 | HZ46: Pass | IA46: Y | IB46: 2023-10-25T09:23:54 | ID46: Case 44 | IE46: Neil
A47: 160000 | B47: 0.065 | C47: 0.09 | D47: 30 | E47: 0 | F47: 160000 | G47: 0.065 | H47: 0.09 | I47: 30 | J47: 0 | P47: Individual (Couple) | Q47: Individual (Couple) | V47: Applicant 2 | W47: Applicant 1 | AH47: 58000 | AI47: 35000 | AJ47: 0 | AK47: 0 | AL47: 0 | AM47: 0 | AN47: 0 | AO47: 0 | AP47: 0 | AQ47: 0 | AR47: 0 | AS47: 0 | AT47: 0 | AU47: 0 | AV47: 0 | AW47: 0 | AX47: 0 | AY47: 0 | AZ47: 0 | BA47: 0 | BB47: 0 | BC47: 0 | BD47: 0 | BE47: 0 | BF47: 0 | BG47: 0 | BH47: 0 | BI47: 0 | BJ47: 0 | BK47: 0 | BL47: 0 | BM47: 0 | BN47: 0 | BO47: 0 | BP47: 0 | BQ47: 0 | BR47: 0 | BS47: 0 | BT47: 0 | BU47: 0 | BV47: 0 | BW47: 0 | BX47: 600 | BY47: 300 | BZ47: 1 | CA47: 50 | CB47: 1 | CC47: 100 | CD47: 200 | CE47: 480 | CF47: 500 | CG47: 400 | CH47: 0 | CI47: 1 | CJ47: 200 | CK47: 0 | CL47: 1 | CM47: 0 | CN47: Yes | CO47: No | CP47: No | CQ47: Yes | CR47: Yes | CS47: Yes | CT47: Yes | CU47: Yes | CV47: Yes | CW47: Yes | CX47: No | CY47: Yes | CZ47: Yes | DA47: No | DB47: No | DC47: No | DD47: 0 | DE47: 0 | DF47: 1800 | DG47: 0 | DH47: 10477 | DI47: 3892 | DJ47: 0 | DK47: 0 | DL47: 0 | DM47: 0 | DN47: 47653 | DO47: 31808 | DP47: 0 | DQ47: 0 | DR47: 0 | DS47: 0 | DT47: 79461 | DU47: 35884.05 | DV47: 0 | DW47: 0 | DX47: 0 | DY47: 0 | DZ47: 0 | EA47: 35884.05 | EB47: 34008 | EC47: 39508.05 | ED47: 39952.95 | EE47: 0.055 | EF47: 0.02 | EG47: 0.0382 | EH47: 0.0604 | EI47: 1.25 | EJ47: 0.8 | EK47: 0.25 | EL47: 7750 | EM47: 6621.75 | EN47: 3292.34 | EO47: 3329.41 | EP47: 1011.31 | EQ47: 1800 | ER47: 93000 | ES47: 79461 | ET47: 39508.05 | EU47: 39952.95 | EV47: 12135.71 | EW47: 21600 | EX47: 7750 | EY47: 6621.75 | EZ47: 3292.34 | FA47: 3329.41 | FB47: 1230.26 | FC47: 1800 | FD47: 93000 | FE47: 79461 | FF47: 39508.05 | FG47: 39952.95 | FH47: 14763.14 | FI47: 21600 | FJ47: 1.18 | FK47: 0.3627495274 | FL47: PASS | FM47: 1.09 | FN47: 0.3910014934 | FO47: PASS | FP47: 160000 | FQ47: 10477 | FR47: 3892 | FS47: 0 | FT47: 0 | FU47: 0 | FV47: 0 | FW47: 47653 | FX47: 31808 | FY47: 0 | FZ47: 0 | GA47: 0 | GB47: 0 | GC47: 79461 | GD47: 35884.05 | GE47: 0 | GF47: 0 | GG47: 0 | GH47: 0 | GI47: 0 | GJ47: 35884.05 | GK47: 34008 | GL47: 39508.05 | GM47: 39952.95 | GN47: 0.055 | GO47: 0.02 | GP47: 0.0382 | GQ47: 0.0604 | GR47: 1.25 | GS47: 0.8 | GT47: 0.25 | GU47: 7750 | GV47: 6621.75 | GW47: 3292.34 | GX47: 3329.41 | GY47: 1011.31 | GZ47: 1800 | HA47: 93000 | HB47: 79461 | HC47: 39508.05 | HD47: 39952.95 | HE47: 12135.71 | HF47: 21600 | HG47: 7750 | HH47: 6621.75 | HI47: 3292.34 | HJ47: 3329.41 | HK47: 1230.26 | HL47: 1800 | HM47: 93000 | HN47: 79461 | HO47: 39508.05 | HP47: 39952.95 | HQ47: 14763.14 | HR47: 21600 | HS47: 1.18 | HT47: 0.3627495274 | HU47: PASS | HV47: 1.09 | HW47: 0.3910014934 | HX47: PASS | HY47: 160000 | HZ47: Pass | IA47: Y | IB47: 2023-10-25T09:23:57 | ID47: Case 45 | IE47: Neil
A48: 100000 | B48: 0.065 | C48: 0.09 | D48: 20 | E48: 0 | F48: 100000 | G48: 0.065 | H48: 0.09 | I48: 20 | J48: 0 | P48: Individual (Couple) | V48: Non-loan Party | AH48: 41000 | AI48: 0 | AJ48: 0 | AK48: 0 | AL48: 0 | AM48: 0 | AN48: 0 | AO48: 0 | AP48: 0 | AQ48: 0 | AR48: 0 | AS48: 0 | AT48: 0 | AU48: 0 | AV48: 0 | AW48: 0 | AX48: 0 | AY48: 0 | AZ48: 0 | BA48: 0 | BB48: 0 | BC48: 0 | BD48: 0 | BE48: 0 | BF48: 0 | BG48: 0 | BH48: 0 | BI48: 0 | BJ48: 0 | BK48: 0 | BL48: 0 | BM48: 0 | BN48: 0 | BO48: 0 | BP48: 0 | BQ48: 0 | BR48: 0 | BS48: 0 | BT48: 0 | BU48: 0 | BV48: 0 | BW48: 0 | BX48: 1 | BY48: 1 | BZ48: 1000 | CA48: 50 | CB48: 1 | CC48: 100 | CD48: 200 | CE48: 1 | CF48: 500 | CG48: 1 | CH48: 0 | CI48: 1 | CJ48: 1 | CK48: 0 | CL48: 1 | CM48: 0 | CN48: Yes | CO48: No | CP48: No | CQ48: Yes | CR48: Yes | CS48: Yes | CT48: Yes | CU48: Yes | CV48: Yes | CW48: Yes | CX48: No | CY48: Yes | CZ48: Yes | DA48: No | DB48: No | DC48: No | DD48: 0 | DE48: 0 | DF48: 0 | DG48: 0 | DH48: 5152 | DI48: 0 | DJ48: 0 | DK48: 0 | DL48: 0 | DM48: 0 | DN48: 36373 | DO48: 0 | DP48: 0 | DQ48: 0 | DR48: 0 | DS48: 0 | DT48: 36373 | DU48: 29969.05 | DV48: 0 | DW48: 0 | DX48: 0 | DY48: 0 | DZ48: 0 | EA48: 29969.05 | EB48: 22296 | EC48: 41993.05 | ED48: -5620.05 | EE48: 0.055 | EF48: 0.02 | EG48: 0.0382 | EH48: 0.0604 | EI48: 1.25 | EJ48: 0.8 | EK48: 0.25 | EL48: 3416.67 | EM48: 3031.08 | EN48: 3499.42 | EO48: -468.34 | EP48: 745.57 | EQ48: 0 | ER48: 41000 | ES48: 36373 | ET48: 41993.05 | EU48: -5620.05 | EV48: 8946.88 | EW48: 0 | EX48: 3416.67 | EY48: 3031.08 | EZ48: 3499.42 | FA48: -468.34 | FB48: 867.82 | FC48: 0 | FD48: 41000 | FE48: 36373 | FF48: 41993.05 | FG48: -5620.05 | FH48: 10413.88 | FI48: 0 | FJ48: -0.62 | FK48: 0.2182165275 | FL48: FAIL | FM48: -0.53 | FN48: 0.2539970439 | FO48: FAIL | FP48: 0 | FQ48: 5152 | FR48: 0 | FS48: 0 | FT48: 0 | FU48: 0 | FV48: 0 | FW48: 36373 | FX48: 0 | FY48: 0 | FZ48: 0 | GA48: 0 | GB48: 0 | GC48: 36373 | GD48: 29969.05 | GE48: 0 | GF48: 0 | GG48: 0 | GH48: 0 | GI48: 0 | GJ48: 29969.05 | GK48: 22296 | GL48: 41993.05 | GM48: -5620.05 | GN48: 0.055 | GO48: 0.02 | GP48: 0.0382 | GQ48: 0.0604 | GR48: 1.25 | GS48: 0.8 | GT48: 0.25 | GU48: 3416.67 | GV48: 3031.08 | GW48: 3499.42 | GX48: -468.34 | GY48: 745.57 | GZ48: 0 | HA48: 41000 | HB48: 36373 | HC48: 41993.05 | HD48: -5620.05 | HE48: 8946.88 | HF48: 0 | HG48: 3416.67 | HH48: 3031.08 | HI48: 3499.42 | HJ48: -468.34 | HK48: 867.82 | HL48: 0 | HM48: 41000 | HN48: 36373 | HO48: 41993.05 | HP48: -5620.05 | HQ48: 10413.88 | HR48: 0 | HS48: -0.62 | HT48: 0.2182165275 | HU48: FAIL | HV48: -0.53 | HW48: 0.2539970439 | HX48: FAIL | HY48: 0 | HZ48: Pass | IA48: Y | IB48: 2023-10-25T09:23:59 | ID48: Case 46 | IE48: Neil
A49: 145000 | B49: 0.065 | C49: 0.09 | D49: 20 | E49: 0 | F49: 145000 | G49: 0.065 | H49: 0.09 | I49: 20 | J49: 0 | P49: Individual (Couple) | V49: Non-loan Party | AH49: 51000 | AI49: 0 | AJ49: 0 | AK49: 0 | AL49: 0 | AM49: 0 | AN49: 0 | AO49: 0 | AP49: 0 | AQ49: 0 | AR49: 0 | AS49: 0 | AT49: 0 | AU49: 0 | AV49: 0 | AW49: 0 | AX49: 0 | AY49: 0 | AZ49: 0 | BA49: 0 | BB49: 0 | BC49: 0 | BD49: 0 | BE49: 0 | BF49: 0 | BG49: 0 | BH49: 0 | BI49: 0 | BJ49: 0 | BK49: 0 | BL49: 0 | BM49: 0 | BN49: 0 | BO49: 0 | BP49: 0 | BQ49: 0 | BR49: 0 | BS49: 0 | BT49: 0 | BU49: 0 | BV49: 0 | BW49: 0 | BX49: 1 | BY49: 1 | BZ49: 1000 | CA49: 250 | CB49: 1 | CC49: 100 | CD49: 200 | CE49: 1 | CF49: 500 | CG49: 1 | CH49: 0 | CI49: 1 | CJ49: 1 | CK49: 0 | CL49: 200 | CM49: 0 | CN49: Yes | CO49: No | CP49: No | CQ49: Yes | CR49: Yes | CS49: Yes | CT49: Yes | CU49: Yes | CV49: Yes | CW49: Yes | CX49: No | CY49: Yes | CZ49: Yes | DA49: No | DB49: No | DC49: No | DD49: 0 | DE49: 0 | DF49: 0 | DG49: 0 | DH49: 8062 | DI49: 0 | DJ49: 0 | DK49: 0 | DL49: 0 | DM49: 0 | DN49: 43173 | DO49: 0 | DP49: 0 | DQ49: 0 | DR49: 0 | DS49: 0 | DT49: 43173 | DU49: 30992.52 | DV49: 0 | DW49: 0 | DX49: 0 | DY49: 0 | DZ49: 0 | EA49: 30992.52 | EB49: 27084 | EC49: 45404.52 | ED49: -2231.52 | EE49: 0.055 | EF49: 0.02 | EG49: 0.0382 | EH49: 0.0604 | EI49: 1.25 | EJ49: 0.8 | EK49: 0.25 | EL49: 4250 | EM49: 3597.75 | EN49: 3783.71 | EO49: -185.96 | EP49: 1081.08 | EQ49: 0 | ER49: 51000 | ES49: 43173 | ET49: 45404.52 | EU49: -2231.52 | EV49: 12972.97 | EW49: 0 | EX49: 4250 | EY49: 3597.75 | EZ49: 3783.71 | FA49: -185.96 | FB49: 1258.34 | FC49: 0 | FD49: 51000 | FE49: 43173 | FF49: 45404.52 | FG49: -2231.52 | FH49: 15100.12 | FI49: 0 | FJ49: -0.17 | FK49: 0.2543720109 | FL49: FAIL | FM49: -0.14 | FN49: 0.2960808679 | FO49: FAIL | FP49: 0 | FQ49: 8062 | FR49: 0 | FS49: 0 | FT49: 0 | FU49: 0 | FV49: 0 | FW49: 43173 | FX49: 0 | FY49: 0 | FZ49: 0 | GA49: 0 | GB49: 0 | GC49: 43173 | GD49: 30992.52 | GE49: 0 | GF49: 0 | GG49: 0 | GH49: 0 | GI49: 0 | GJ49: 30992.52 | GK49: 27084 | GL49: 45404.52 | GM49: -2231.52 | GN49: 0.055 | GO49: 0.02 | GP49: 0.0382 | GQ49: 0.0604 | GR49: 1.25 | GS49: 0.8 | GT49: 0.25 | GU49: 4250 | GV49: 3597.75 | GW49: 3783.71 | GX49: -185.96 | GY49: 1081.08 | GZ49: 0 | HA49: 51000 | HB49: 43173 | HC49: 45404.52 | HD49: -2231.52 | HE49: 12972.97 | HF49: 0 | HG49: 4250 | HH49: 3597.75 | HI49: 3783.71 | HJ49: -185.96 | HK49: 1258.34 | HL49: 0 | HM49: 51000 | HN49: 43173 | HO49: 45404.52 | HP49: -2231.52 | HQ49: 15100.12 | HR49: 0 | HS49: -0.17 | HT49: 0.2543720109 | HU49: FAIL | HV49: -0.14 | HW49: 0.2960808679 | HX49: FAIL | HY49: 0 | HZ49: Pass | IA49: Y | IB49: 2023-10-25T09:24:01 | ID49: Case 47 | IE49: Neil
A50: 300000 | B50: 0.0544 | C50: 0.0794 | D50: 30 | E50: 0 | F50: 300000 | G50: 0.0544 | H50: 0.0794 | I50: 30 | J50: 0 | P50: Individual (Single) | AH50: 80000 | AI50: 0 | AJ50: 0 | AK50: 0 | AL50: 0 | AM50: 0 | AN50: 0 | AO50: 0 | AP50: 0 | AQ50: 0 | AR50: 0 | AS50: 0 | AT50: 0 | AU50: 0 | AV50: 0 | AW50: 0 | AX50: 0 | AY50: 0 | AZ50: 0 | BA50: 0 | BB50: 0 | BC50: 0 | BD50: 0 | BE50: 0 | BF50: 0 | BG50: 0 | BH50: 0 | BI50: 0 | BJ50: 0 | BK50: 0 | BL50: 0 | BM50: 0 | BN50: 0 | BO50: 0 | BP50: 0 | BQ50: 0 | BR50: 0 | BS50: 0 | BT50: 0 | BU50: 0 | BV50: 0 | BW50: 0 | BX50: 1 | BY50: 1 | BZ50: 1 | CA50: 1 | CB50: 100 | CC50: 50 | CD50: 60 | CE50: 50 | CF50: 20 | CG50: 1 | CH50: 0 | CI50: 1 | CJ50: 45 | CK50: 0 | CL50: 60 | CM50: 0 | CN50: Yes | CO50: No | CP50: No | CQ50: Yes | CR50: Yes | CS50: Yes | CT50: Yes | CU50: Yes | CV50: Yes | CW50: Yes | CX50: No | CY50: Yes | CZ50: Yes | DA50: No | DB50: No | DC50: No | DD50: 0 | DE50: 0 | DF50: 0 | DG50: 0 | DH50: 18067 | DI50: 0 | DJ50: 0 | DK50: 0 | DL50: 0 | DM50: 0 | DN50: 61933 | DO50: 0 | DP50: 0 | DQ50: 0 | DR50: 0 | DS50: 0 | DT50: 61933 | DU50: 22426.95 | DV50: 0 | DW50: 0 | DX50: 0 | DY50: 0 | DZ50: 0 | EA50: 22426.95 | EB50: 4692 | EC50: 23170.95 | ED50: 38762.05 | EE50: 0.055 | EF50: 0.02 | EG50: 0.0382 | EH50: 0.0604 | EI50: 1.25 | EJ50: 0.8 | EK50: 0.25 | EL50: 6666.67 | EM50: 5161.08 | EN50: 1930.91 | EO50: 3230.17 | EP50: 1692.09 | EQ50: 0 | ER50: 80000 | ES50: 61933 | ET50: 23170.95 | EU50: 38762.05 | EV50: 20305.09 | EW50: 0 | EX50: 6666.67 | EY50: 5161.08 | EZ50: 1930.91 | FA50: 3230.17 | FB50: 2085.33 | FC50: 0 | FD50: 80000 | FE50: 61933 | FF50: 23170.95 | FG50: 38762.05 | FH50: 25023.98 | FI50: 0 | FJ50: 1.9 | FK50: 0.2538136098 | FL50: PASS | FM50: 1.54 | FN50: 0.3127997703 | FO50: PASS | FP50: 300000 | FQ50: 18067 | FR50: 0 | FS50: 0 | FT50: 0 | FU50: 0 | FV50: 0 | FW50: 61933 | FX50: 0 | FY50: 0 | FZ50: 0 | GA50: 0 | GB50: 0 | GC50: 61933 | GD50: 22426.95 | GE50: 0 | GF50: 0 | GG50: 0 | GH50: 0 | GI50: 0 | GJ50: 22426.95 | GK50: 4692 | GL50: 23170.95 | GM50: 38762.05 | GN50: 0.055 | GO50: 0.02 | GP50: 0.0382 | GQ50: 0.0604 | GR50: 1.25 | GS50: 0.8 | GT50: 0.25 | GU50: 6666.67 | GV50: 5161.08 | GW50: 1930.91 | GX50: 3230.17 | GY50: 1692.09 | GZ50: 0 | HA50: 80000 | HB50: 61933 | HC50: 23170.95 | HD50: 38762.05 | HE50: 20305.09 | HF50: 0 | HG50: 6666.67 | HH50: 5161.08 | HI50: 1930.91 | HJ50: 3230.17 | HK50: 2085.33 | HL50: 0 | HM50: 80000 | HN50: 61933 | HO50: 23170.95 | HP50: 38762.05 | HQ50: 25023.98 | HR50: 0 | HS50: 1.9 | HT50: 0.2538136098 | HU50: PASS | HV50: 1.54 | HW50: 0.3127997703 | HX50: PASS | HY50: 300000 | HZ50: Pass | IA50: Y | IB50: 2023-10-25T09:24:04 | ID50: Case 48 | IE50: Neil
A51: 300000 | B51: 0.0544 | C51: 0.0794 | D51: 30 | E51: 0 | F51: 300000 | G51: 0.0544 | H51: 0.0794 | I51: 30 | J51: 0 | P51: Individual (Single) | AH51: 60000 | AI51: 0 | AJ51: 0 | AK51: 0 | AL51: 0 | AM51: 0 | AN51: 0 | AO51: 0 | AP51: 0 | AQ51: 0 | AR51: 0 | AS51: 0 | AT51: 0 | AU51: 0 | AV51: 0 | AW51: 0 | AX51: 0 | AY51: 0 | AZ51: 0 | BA51: 0 | BB51: 0 | BC51: 0 | BD51: 0 | BE51: 0 | BF51: 0 | BG51: 0 | BH51: 0 | BI51: 0 | BJ51: 0 | BK51: 0 | BL51: 0 | BM51: 0 | BN51: 0 | BO51: 0 | BP51: 0 | BQ51: 0 | BR51: 0 | BS51: 0 | BT51: 0 | BU51: 0 | BV51: 0 | BW51: 0 | BX51: 1 | BY51: 1 | BZ51: 1 | CA51: 1 | CB51: 100 | CC51: 50 | CD51: 60 | CE51: 50 | CF51: 20 | CG51: 1 | CH51: 0 | CI51: 1 | CJ51: 45 | CK51: 0 | CL51: 60 | CM51: 0 | CN51: Yes | CO51: No | CP51: No | CQ51: Yes | CR51: Yes | CS51: Yes | CT51: Yes | CU51: Yes | CV51: Yes | CW51: Yes | CX51: No | CY51: Yes | CZ51: Yes | DA51: No | DB51: No | DC51: No | DD51: 0 | DE51: 0 | DF51: 0 | DG51: 0 | DH51: 11167 | DI51: 0 | DJ51: 0 | DK51: 0 | DL51: 0 | DM51: 0 | DN51: 48933 | DO51: 0 | DP51: 0 | DQ51: 0 | DR51: 0 | DS51: 0 | DT51: 48933 | DU51: 17528.23 | DV51: 0 | DW51: 0 | DX51: 0 | DY51: 0 | DZ51: 0 | EA51: 17528.23 | EB51: 4692 | EC51: 18272.23 | ED51: 30660.77 | EE51: 0.055 | EF51: 0.02 | EG51: 0.0382 | EH51: 0.0604 | EI51: 1.25 | EJ51: 0.8 | EK51: 0.25 | EL51: 5000 | EM51: 4077.75 | EN51: 1522.69 | EO51: 2555.06 | EP51: 1692.09 | EQ51: 0 | ER51: 60000 | ES51: 48933 | ET51: 18272.23 | EU51: 30660.77 | EV51: 20305.09 | EW51: 0 | EX51: 5000 | EY51: 4077.75 | EZ51: 1522.69 | FA51: 2555.06 | FB51: 2085.33 | FC51: 0 | FD51: 60000 | FE51: 48933 | FF51: 18272.23 | FG51: 30660.77 | FH51: 25023.98 | FI51: 0 | FJ51: 1.51 | FK51: 0.3384181464 | FL51: PASS | FM51: 1.22 | FN51: 0.4170663604 | FO51: PASS | FP51: 300000 | FQ51: 11167 | FR51: 0 | FS51: 0 | FT51: 0 | FU51: 0 | FV51: 0 | FW51: 48933 | FX51: 0 | FY51: 0 | FZ51: 0 | GA51: 0 | GB51: 0 | GC51: 48933 | GD51: 17528.23 | GE51: 0 | GF51: 0 | GG51: 0 | GH51: 0 | GI51: 0 | GJ51: 17528.23 | GK51: 4692 | GL51: 18272.23 | GM51: 30660.77 | GN51: 0.055 | GO51: 0.02 | GP51: 0.0382 | GQ51: 0.0604 | GR51: 1.25 | GS51: 0.8 | GT51: 0.25 | GU51: 5000 | GV51: 4077.75 | GW51: 1522.69 | GX51: 2555.06 | GY51: 1692.09 | GZ51: 0 | HA51: 60000 | HB51: 48933 | HC51: 18272.23 | HD51: 30660.77 | HE51: 20305.09 | HF51: 0 | HG51: 5000 | HH51: 4077.75 | HI51: 1522.69 | HJ51: 2555.06 | HK51: 2085.33 | HL51: 0 | HM51: 60000 | HN51: 48933 | HO51: 18272.23 | HP51: 30660.77 | HQ51: 25023.98 | HR51: 0 | HS51: 1.51 | HT51: 0.3384181464 | HU51: PASS | HV51: 1.22 | HW51: 0.4170663604 | HX51: PASS | HY51: 300000 | HZ51: Pass | IA51: Y | IB51: 2023-10-25T09:24:06 | ID51: Case 49 | IE51: Neil
A52: 300000 | B52: 0.054 | C52: 0.079 | D52: 30 | E52: 0 | F52: 300000 | G52: 0.054 | H52: 0.079 | I52: 30 | J52: 0 | P52: Individual (Single) | Q52: Individual (Single) | AH52: 45000 | AI52: 45000 | AJ52: 0 | AK52: 0 | AL52: 0 | AM52: 0 | AN52: 0 | AO52: 0 | AP52: 0 | AQ52: 0 | AR52: 0 | AS52: 0 | AT52: 0 | AU52: 0 | AV52: 0 | AW52: 0 | AX52: 0 | AY52: 0 | AZ52: 0 | BA52: 0 | BB52: 0 | BC52: 0 | BD52: 0 | BE52: 0 | BF52: 0 | BG52: 0 | BH52: 0 | BI52: 0 | BJ52: 0 | BK52: 0 | BL52: 0 | BM52: 0 | BN52: 0 | BO52: 0 | BP52: 0 | BQ52: 0 | BR52: 0 | BS52: 0 | BT52: 0 | BU52: 0 | BV52: 0 | BW52: 0 | BX52: 100 | BY52: 100 | BZ52: 100 | CA52: 100 | CB52: 100 | CC52: 100 | CD52: 500 | CE52: 10 | CF52: 100 | CG52: 100 | CH52: 0 | CI52: 100 | CJ52: 500 | CK52: 0 | CL52: 300 | CM52: 0 | CN52: Yes | CO52: No | CP52: No | CQ52: Yes | CR52: Yes | CS52: Yes | CT52: Yes | CU52: Yes | CV52: Yes | CW52: Yes | CX52: No | CY52: Yes | CZ52: Yes | DA52: No | DB52: No | DC52: No | DD52: 0 | DE52: 0 | DF52: 0 | DG52: 0 | DH52: 5992 | DI52: 5992 | DJ52: 0 | DK52: 0 | DL52: 0 | DM52: 0 | DN52: 39333 | DO52: 39333 | DP52: 0 | DQ52: 0 | DR52: 0 | DS52: 0 | DT52: 78666 | DU52: 16503.24 | DV52: 16503.24 | DW52: 0 | DX52: 0 | DY52: 0 | DZ52: 0 | EA52: 33006.49 | EB52: 26520 | EC52: 39006.49 | ED52: 39659.51 | EE52: 0.055 | EF52: 0.02 | EG52: 0.0382 | EH52: 0.0604 | EI52: 1.25 | EJ52: 0.8 | EK52: 0.25 | EL52: 7500 | EM52: 6555.5 | EN52: 3250.54 | EO52: 3304.96 | EP52: 1684.59 | EQ52: 0 | ER52: 90000 | ES52: 78666 | ET52: 39006.49 | EU52: 39659.51 | EV52: 20215.11 | EW52: 0 | EX52: 7500 | EY52: 6555.5 | EZ52: 3250.54 | FA52: 3304.96 | FB52: 2077.14 | FC52: 0 | FD52: 90000 | FE52: 78666 | FF52: 39006.49 | FG52: 39659.51 | FH52: 24925.67 | FI52: 0 | FJ52: 1.96 | FK52: 0.2246123167 | FL52: PASS | FM52: 1.59 | FN52: 0.27695192 | FO52: PASS | FP52: 300000 | FQ52: 5992 | FR52: 5992 | FS52: 0 | FT52: 0 | FU52: 0 | FV52: 0 | FW52: 39333 | FX52: 39333 | FY52: 0 | FZ52: 0 | GA52: 0 | GB52: 0 | GC52: 78666 | GD52: 16503.24 | GE52: 16503.24 | GF52: 0 | GG52: 0 | GH52: 0 | GI52: 0 | GJ52: 33006.49 | GK52: 26520 | GL52: 39006.49 | GM52: 39659.51 | GN52: 0.055 | GO52: 0.02 | GP52: 0.0382 | GQ52: 0.0604 | GR52: 1.25 | GS52: 0.8 | GT52: 0.25 | GU52: 7500 | GV52: 6555.5 | GW52: 3250.54 | GX52: 3304.96 | GY52: 1684.59 | GZ52: 0 | HA52: 90000 | HB52: 78666 | HC52: 39006.49 | HD52: 39659.51 | HE52: 20215.11 | HF52: 0 | HG52: 7500 | HH52: 6555.5 | HI52: 3250.54 | HJ52: 3304.96 | HK52: 2077.14 | HL52: 0 | HM52: 90000 | HN52: 78666 | HO52: 39006.49 | HP52: 39659.51 | HQ52: 24925.67 | HR52: 0 | HS52: 1.96 | HT52: 0.2246123167 | HU52: PASS | HV52: 1.59 | HW52: 0.27695192 | HX52: PASS | HY52: 300000 | HZ52: Pass | IA52: Y | IB52: 2023-10-25T09:24:08 | ID52: Case 50 | IE52: Neil
A53: 300000 | B53: 0.054 | C53: 0.079 | D53: 30 | E53: 0 | F53: 300000 | G53: 0.054 | H53: 0.079 | I53: 30 | J53: 0 | P53: Individual (Single) | Q53: Individual (Single) | AH53: 45000 | AI53: 25000 | AJ53: 0 | AK53: 0 | AL53: 0 | AM53: 0 | AN53: 0 | AO53: 0 | AP53: 0 | AQ53: 0 | AR53: 0 | AS53: 0 | AT53: 0 | AU53: 0 | AV53: 0 | AW53: 0 | AX53: 0 | AY53: 0 | AZ53: 0 | BA53: 0 | BB53: 0 | BC53: 0 | BD53: 0 | BE53: 0 | BF53: 0 | BG53: 0 | BH53: 0 | BI53: 0 | BJ53: 0 | BK53: 0 | BL53: 0 | BM53: 0 | BN53: 0 | BO53: 0 | BP53: 0 | BQ53: 0 | BR53: 0 | BS53: 0 | BT53: 0 | BU53: 0 | BV53: 0 | BW53: 0 | BX53: 100 | BY53: 100 | BZ53: 100 | CA53: 100 | CB53: 100 | CC53: 100 | CD53: 500 | CE53: 10 | CF53: 100 | CG53: 100 | CH53: 0 | CI53: 100 | CJ53: 500 | CK53: 0 | CL53: 300 | CM53: 0 | CN53: Yes | CO53: No | CP53: No | CQ53: Yes | CR53: Yes | CS53: Yes | CT53: Yes | CU53: Yes | CV53: Yes | CW53: Yes | CX53: No | CY53: Yes | CZ53: Yes | DA53: No | DB53: No | DC53: No | DD53: 0 | DE53: 0 | DF53: 0 | DG53: 0 | DH53: 5992 | DI53: 1455.5 | DJ53: 0 | DK53: 0 | DL53: 0 | DM53: 0 | DN53: 39333 | DO53: 24244.5 | DP53: 0 | DQ53: 0 | DR53: 0 | DS53: 0 | DT53: 63577.5 | DU53: 16503.24 | DV53: 15787.04 | DW53: 0 | DX53: 0 | DY53: 0 | DZ53: 0 | EA53: 32290.28 | EB53: 26520 | EC53: 38290.28 | ED53: 25287.22 | EE53: 0.055 | EF53: 0.02 | EG53: 0.0382 | EH53: 0.0604 | EI53: 1.25 | EJ53: 0.8 | EK53: 0.25 | EL53: 5833.33 | EM53: 5298.13 | EN53: 3190.86 | EO53: 2107.27 | EP53: 1684.59 | EQ53: 0 | ER53: 70000 | ES53: 63577.5 | ET53: 38290.28 | EU53: 25287.22 | EV53: 20215.11 | EW53: 0 | EX53: 5833.33 | EY53: 5298.13 | EZ53: 3190.86 | FA53: 2107.27 | FB53: 2077.14 | FC53: 0 | FD53: 70000 | FE53: 63577.5 | FF53: 38290.28 | FG53: 25287.22 | FH53: 24925.67 | FI53: 0 | FJ53: 1.25 | FK53: 0.2887872644 | FL53: PASS | FM53: 1.01 | FN53: 0.35608104 | FO53: PASS | FP53: 300000 | FQ53: 5992 | FR53: 1455.5 | FS53: 0 | FT53: 0 | FU53: 0 | FV53: 0 | FW53: 39333 | FX53: 24244.5 | FY53: 0 | FZ53: 0 | GA53: 0 | GB53: 0 | GC53: 63577.5 | GD53: 16503.24 | GE53: 15787.04 | GF53: 0 | GG53: 0 | GH53: 0 | GI53: 0 | GJ53: 32290.28 | GK53: 26520 | GL53: 38290.28 | GM53: 25287.22 | GN53: 0.055 | GO53: 0.02 | GP53: 0.0382 | GQ53: 0.0604 | GR53: 1.25 | GS53: 0.8 | GT53: 0.25 | GU53: 5833.33 | GV53: 5298.13 | GW53: 3190.86 | GX53: 2107.27 | GY53: 1684.59 | GZ53: 0 | HA53: 70000 | HB53: 63577.5 | HC53: 38290.28 | HD53: 25287.22 | HE53: 20215.11 | HF53: 0 | HG53: 5833.33 | HH53: 5298.13 | HI53: 3190.86 | HJ53: 2107.27 | HK53: 2077.14 | HL53: 0 | HM53: 70000 | HN53: 63577.5 | HO53: 38290.28 | HP53: 25287.22 | HQ53: 24925.67 | HR53: 0 | HS53: 1.25 | HT53: 0.2887872644 | HU53: PASS | HV53: 1.01 | HW53: 0.35608104 | HX53: PASS | HY53: 300000 | HZ53: Pass | IA53: Y | IB53: 2023-10-25T09:24:11 | ID53: Case 51 | IE53: Neil
A54: 300000 | B54: 0.02 | C54: 0.0585 | D54: 30 | E54: 0 | F54: 300000 | G54: 0.02 | H54: 0.0585 | I54: 30 | J54: 0 | P54: Individual (Single) | AH54: 80000 | AI54: 0 | AJ54: 0 | AK54: 0 | AL54: 0 | AM54: 0 | AN54: 0 | AO54: 0 | AP54: 0 | AQ54: 0 | AR54: 0 | AS54: 0 | AT54: 0 | AU54: 0 | AV54: 0 | AW54: 0 | AX54: 0 | AY54: 0 | AZ54: 0 | BA54: 0 | BB54: 0 | BC54: 0 | BD54: 0 | BE54: 0 | BF54: 0 | BG54: 0 | BH54: 0 | BI54: 0 | BJ54: 0 | BK54: 0 | BL54: 0 | BM54: 0 | BN54: 0 | BO54: 0 | BP54: 0 | BQ54: 0 | BR54: 0 | BS54: 0 | BT54: 0 | BU54: 0 | BV54: 0 | BW54: 0 | BX54: 1 | BY54: 1 | BZ54: 1 | CA54: 1 | CB54: 100 | CC54: 50 | CD54: 60 | CE54: 50 | CF54: 20 | CG54: 1 | CH54: 0 | CI54: 1 | CJ54: 45 | CK54: 0 | CL54: 60 | CM54: 0 | CN54: Yes | CO54: No | CP54: No | CQ54: Yes | CR54: Yes | CS54: Yes | CT54: Yes | CU54: Yes | CV54: Yes | CW54: Yes | CX54: No | CY54: Yes | CZ54: Yes | DA54: No | DB54: No | DC54: No | DD54: 0 | DE54: 0 | DF54: 0 | DG54: 0 | DH54: 18067 | DI54: 0 | DJ54: 0 | DK54: 0 | DL54: 0 | DM54: 0 | DN54: 61933 | DO54: 0 | DP54: 0 | DQ54: 0 | DR54: 0 | DS54: 0 | DT54: 61933 | DU54: 22426.95 | DV54: 0 | DW54: 0 | DX54: 0 | DY54: 0 | DZ54: 0 | EA54: 22426.95 | EB54: 4692 | EC54: 23170.95 | ED54: 38762.05 | EE54: 0.055 | EF54: 0.02 | EG54: 0.0382 | EH54: 0.0604 | EI54: 1.25 | EJ54: 0.8 | EK54: 0.25 | EL54: 6666.67 | EM54: 5161.08 | EN54: 1930.91 | EO54: 3230.17 | EP54: 1108.86 | EQ54: 0 | ER54: 80000 | ES54: 61933 | ET54: 23170.95 | EU54: 38762.05 | EV54: 13306.3 | EW54: 0 | EX54: 6666.67 | EY54: 5161.08 | EZ54: 1930.91 | FA54: 3230.17 | FB54: 1703.37 | FC54: 0 | FD54: 80000 | FE54: 61933 | FF54: 23170.95 | FG54: 38762.05 | FH54: 20440.4 | FI54: 0 | FJ54: 2.91 | FK54: 0.1663287627 | FL54: PASS | FM54: 1.89 | FN54: 0.2555050506 | FO54: PASS | FP54: 300000 | FQ54: 18067 | FR54: 0 | FS54: 0 | FT54: 0 | FU54: 0 | FV54: 0 | FW54: 61933 | FX54: 0 | FY54: 0 | FZ54: 0 | GA54: 0 | GB54: 0 | GC54: 61933 | GD54: 22426.95 | GE54: 0 | GF54: 0 | GG54: 0 | GH54: 0 | GI54: 0 | GJ54: 22426.95 | GK54: 4692 | GL54: 23170.95 | GM54: 38762.05 | GN54: 0.055 | GO54: 0.02 | GP54: 0.0382 | GQ54: 0.0604 | GR54: 1.25 | GS54: 0.8 | GT54: 0.25 | GU54: 6666.67 | GV54: 5161.08 | GW54: 1930.91 | GX54: 3230.17 | GY54: 1108.86 | GZ54: 0 | HA54: 80000 | HB54: 61933 | HC54: 23170.95 | HD54: 38762.05 | HE54: 13306.3 | HF54: 0 | HG54: 6666.67 | HH54: 5161.08 | HI54: 1930.91 | HJ54: 3230.17 | HK54: 1703.37 | HL54: 0 | HM54: 80000 | HN54: 61933 | HO54: 23170.95 | HP54: 38762.05 | HQ54: 20440.4 | HR54: 0 | HS54: 2.91 | HT54: 0.1663287627 | HU54: PASS | HV54: 1.89 | HW54: 0.2555050506 | HX54: PASS | HY54: 300000 | HZ54: Pass | IA54: Y | IB54: 2023-10-25T09:24:13 | ID54: Case 52 | IE54: Neil
A55: 300000 | B55: 0.03 | C55: 0.0585 | D55: 30 | E55: 0 | F55: 300000 | G55: 0.03 | H55: 0.0585 | I55: 30 | J55: 0 | P55: Individual (Single) | AH55: 60000 | AI55: 0 | AJ55: 0 | AK55: 0 | AL55: 0 | AM55: 0 | AN55: 0 | AO55: 0 | AP55: 0 | AQ55: 0 | AR55: 0 | AS55: 0 | AT55: 0 | AU55: 0 | AV55: 0 | AW55: 0 | AX55: 0 | AY55: 0 | AZ55: 0 | BA55: 0 | BB55: 0 | BC55: 0 | BD55: 0 | BE55: 0 | BF55: 0 | BG55: 0 | BH55: 0 | BI55: 0 | BJ55: 0 | BK55: 0 | BL55: 0 | BM55: 0 | BN55: 0 | BO55: 0 | BP55: 0 | BQ55: 0 | BR55: 0 | BS55: 0 | BT55: 0 | BU55: 0 | BV55: 0 | BW55: 0 | BX55: 1 | BY55: 1 | BZ55: 1 | CA55: 1 | CB55: 100 | CC55: 50 | CD55: 60 | CE55: 50 | CF55: 20 | CG55: 1 | CH55: 0 | CI55: 1 | CJ55: 45 | CK55: 0 | CL55: 60 | CM55: 0 | CN55: Yes | CO55: No | CP55: No | CQ55: Yes | CR55: Yes | CS55: Yes | CT55: Yes | CU55: Yes | CV55: Yes | CW55: Yes | CX55: No | CY55: Yes | CZ55: Yes | DA55: No | DB55: No | DC55: No | DD55: 0 | DE55: 0 | DF55: 0 | DG55: 0 | DH55: 11167 | DI55: 0 | DJ55: 0 | DK55: 0 | DL55: 0 | DM55: 0 | DN55: 48933 | DO55: 0 | DP55: 0 | DQ55: 0 | DR55: 0 | DS55: 0 | DT55: 48933 | DU55: 17528.23 | DV55: 0 | DW55: 0 | DX55: 0 | DY55: 0 | DZ55: 0 | EA55: 17528.23 | EB55: 4692 | EC55: 18272.23 | ED55: 30660.77 | EE55: 0.055 | EF55: 0.02 | EG55: 0.0382 | EH55: 0.0604 | EI55: 1.25 | EJ55: 0.8 | EK55: 0.25 | EL55: 5000 | EM55: 4077.75 | EN55: 1522.69 | EO55: 2555.06 | EP55: 1264.81 | EQ55: 0 | ER55: 60000 | ES55: 48933 | ET55: 18272.23 | EU55: 30660.77 | EV55: 15177.75 | EW55: 0 | EX55: 5000 | EY55: 4077.75 | EZ55: 1522.69 | FA55: 2555.06 | FB55: 1703.37 | FC55: 0 | FD55: 60000 | FE55: 48933 | FF55: 18272.23 | FG55: 30660.77 | FH55: 20440.4 | FI55: 0 | FJ55: 2.02 | FK55: 0.2529624202 | FL55: PASS | FM55: 1.5 | FN55: 0.3406734008 | FO55: PASS | FP55: 300000 | FQ55: 11167 | FR55: 0 | FS55: 0 | FT55: 0 | FU55: 0 | FV55: 0 | FW55: 48933 | FX55: 0 | FY55: 0 | FZ55: 0 | GA55: 0 | GB55: 0 | GC55: 48933 | GD55: 17528.23 | GE55: 0 | GF55: 0 | GG55: 0 | GH55: 0 | GI55: 0 | GJ55: 17528.23 | GK55: 4692 | GL55: 18272.23 | GM55: 30660.77 | GN55: 0.055 | GO55: 0.02 | GP55: 0.0382 | GQ55: 0.0604 | GR55: 1.25 | GS55: 0.8 | GT55: 0.25 | GU55: 5000 | GV55: 4077.75 | GW55: 1522.69 | GX55: 2555.06 | GY55: 1264.81 | GZ55: 0 | HA55: 60000 | HB55: 48933 | HC55: 18272.23 | HD55: 30660.77 | HE55: 15177.75 | HF55: 0 | HG55: 5000 | HH55: 4077.75 | HI55: 1522.69 | HJ55: 2555.06 | HK55: 1703.37 | HL55: 0 | HM55: 60000 | HN55: 48933 | HO55: 18272.23 | HP55: 30660.77 | HQ55: 20440.4 | HR55: 0 | HS55: 2.02 | HT55: 0.2529624202 | HU55: PASS | HV55: 1.5 | HW55: 0.3406734008 | HX55: PASS | HY55: 300000 | HZ55: Pass | IA55: Y | IB55: 2023-10-25T09:24:15 | ID55: Case 53 | IE55: Neil
A56: 300000 | B56: 0.0334 | C56: 0.0585 | D56: 30 | E56: 0 | F56: 300000 | G56: 0.0334 | H56: 0.0585 | I56: 30 | J56: 0 | P56: Individual (Single) | Q56: Individual (Single) | AH56: 45000 | AI56: 45000 | AJ56: 0 | AK56: 0 | AL56: 0 | AM56: 0 | AN56: 0 | AO56: 0 | AP56: 0 | AQ56: 0 | AR56: 0 | AS56: 0 | AT56: 0 | AU56: 0 | AV56: 0 | AW56: 0 | AX56: 0 | AY56: 0 | AZ56: 0 | BA56: 0 | BB56: 0 | BC56: 0 | BD56: 0 | BE56: 0 | BF56: 0 | BG56: 0 | BH56: 0 | BI56: 0 | BJ56: 0 | BK56: 0 | BL56: 0 | BM56: 0 | BN56: 0 | BO56: 0 | BP56: 0 | BQ56: 0 | BR56: 0 | BS56: 0 | BT56: 0 | BU56: 0 | BV56: 0 | BW56: 0 | BX56: 100 | BY56: 100 | BZ56: 100 | CA56: 100 | CB56: 100 | CC56: 100 | CD56: 500 | CE56: 10 | CF56: 100 | CG56: 100 | CH56: 0 | CI56: 100 | CJ56: 500 | CK56: 0 | CL56: 300 | CM56: 0 | CN56: Yes | CO56: No | CP56: No | CQ56: Yes | CR56: Yes | CS56: Yes | CT56: Yes | CU56: Yes | CV56: Yes | CW56: Yes | CX56: No | CY56: Yes | CZ56: Yes | DA56: No | DB56: No | DC56: No | DD56: 0 | DE56: 0 | DF56: 0 | DG56: 0 | DH56: 5992 | DI56: 5992 | DJ56: 0 | DK56: 0 | DL56: 0 | DM56: 0 | DN56: 39333 | DO56: 39333 | DP56: 0 | DQ56: 0 | DR56: 0 | DS56: 0 | DT56: 78666 | DU56: 16503.24 | DV56: 16503.24 | DW56: 0 | DX56: 0 | DY56: 0 | DZ56: 0 | EA56: 33006.49 | EB56: 26520 | EC56: 39006.49 | ED56: 39659.51 | EE56: 0.055 | EF56: 0.02 | EG56: 0.0382 | EH56: 0.0604 | EI56: 1.25 | EJ56: 0.8 | EK56: 0.25 | EL56: 7500 | EM56: 6555.5 | EN56: 3250.54 | EO56: 3304.96 | EP56: 1320.48 | EQ56: 0 | ER56: 90000 | ES56: 78666 | ET56: 39006.49 | EU56: 39659.51 | EV56: 15845.8 | EW56: 0 | EX56: 7500 | EY56: 6555.5 | EZ56: 3250.54 | FA56: 3304.96 | FB56: 1703.37 | FC56: 0 | FD56: 90000 | FE56: 78666 | FF56: 39006.49 | FG56: 39659.51 | FH56: 20440.4 | FI56: 0 | FJ56: 2.5 | FK56: 0.1760644465 | FL56: PASS | FM56: 1.94 | FN56: 0.2271156005 | FO56: PASS | FP56: 300000 | FQ56: 5992 | FR56: 5992 | FS56: 0 | FT56: 0 | FU56: 0 | FV56: 0 | FW56: 39333 | FX56: 39333 | FY56: 0 | FZ56: 0 | GA56: 0 | GB56: 0 | GC56: 78666 | GD56: 16503.24 | GE56: 16503.24 | GF56: 0 | GG56: 0 | GH56: 0 | GI56: 0 | GJ56: 33006.49 | GK56: 26520 | GL56: 39006.49 | GM56: 39659.51 | GN56: 0.055 | GO56: 0.02 | GP56: 0.0382 | GQ56: 0.0604 | GR56: 1.25 | GS56: 0.8 | GT56: 0.25 | GU56: 7500 | GV56: 6555.5 | GW56: 3250.54 | GX56: 3304.96 | GY56: 1320.48 | GZ56: 0 | HA56: 90000 | HB56: 78666 | HC56: 39006.49 | HD56: 39659.51 | HE56: 15845.8 | HF56: 0 | HG56: 7500 | HH56: 6555.5 | HI56: 3250.54 | HJ56: 3304.96 | HK56: 1703.37 | HL56: 0 | HM56: 90000 | HN56: 78666 | HO56: 39006.49 | HP56: 39659.51 | HQ56: 20440.4 | HR56: 0 | HS56: 2.5 | HT56: 0.1760644465 | HU56: PASS | HV56: 1.94 | HW56: 0.2271156005 | HX56: PASS | HY56: 300000 | HZ56: Pass | IA56: Y | IB56: 2023-10-25T09:24:18 | ID56: Case 54 | IE56: Neil
A57: 300000 | B57: 0.0336 | C57: 0.0586 | D57: 30 | E57: 0 | F57: 300000 | G57: 0.0336 | H57: 0.0586 | I57: 30 | J57: 0 | P57: Individual (Single) | Q57: Individual (Single) | AH57: 45000 | AI57: 25000 | AJ57: 0 | AK57: 0 | AL57: 0 | AM57: 0 | AN57: 0 | AO57: 0 | AP57: 0 | AQ57: 0 | AR57: 0 | AS57: 0 | AT57: 0 | AU57: 0 | AV57: 0 | AW57: 0 | AX57: 0 | AY57: 0 | AZ57: 0 | BA57: 0 | BB57: 0 | BC57: 0 | BD57: 0 | BE57: 0 | BF57: 0 | BG57: 0 | BH57: 0 | BI57: 0 | BJ57: 0 | BK57: 0 | BL57: 0 | BM57: 0 | BN57: 0 | BO57: 0 | BP57: 0 | BQ57: 0 | BR57: 0 | BS57: 0 | BT57: 0 | BU57: 0 | BV57: 0 | BW57: 0 | BX57: 100 | BY57: 100 | BZ57: 100 | CA57: 100 | CB57: 100 | CC57: 100 | CD57: 500 | CE57: 10 | CF57: 100 | CG57: 100 | CH57: 0 | CI57: 100 | CJ57: 500 | CK57: 0 | CL57: 300 | CM57: 0 | CN57: Yes | CO57: No | CP57: No | CQ57: Yes | CR57: Yes | CS57: Yes | CT57: Yes | CU57: Yes | CV57: Yes | CW57: Yes | CX57: No | CY57: Yes | CZ57: Yes | DA57: No | DB57: No | DC57: No | DD57: 0 | DE57: 0 | DF57: 0 | DG57: 0 | DH57: 5992 | DI57: 1455.5 | DJ57: 0 | DK57: 0 | DL57: 0 | DM57: 0 | DN57: 39333 | DO57: 24244.5 | DP57: 0 | DQ57: 0 | DR57: 0 | DS57: 0 | DT57: 63577.5 | DU57: 16503.24 | DV57: 15787.04 | DW57: 0 | DX57: 0 | DY57: 0 | DZ57: 0 | EA57: 32290.28 | EB57: 26520 | EC57: 38290.28 | ED57: 25287.22 | EE57: 0.055 | EF57: 0.02 | EG57: 0.0382 | EH57: 0.0604 | EI57: 1.25 | EJ57: 0.8 | EK57: 0.25 | EL57: 5833.33 | EM57: 5298.13 | EN57: 3190.86 | EO57: 2107.27 | EP57: 1323.8 | EQ57: 0 | ER57: 70000 | ES57: 63577.5 | ET57: 38290.28 | EU57: 25287.22 | EV57: 15885.59 | EW57: 0 | EX57: 5833.33 | EY57: 5298.13 | EZ57: 3190.86 | FA57: 2107.27 | FB57: 1703.37 | FC57: 0 | FD57: 70000 | FE57: 63577.5 | FF57: 38290.28 | FG57: 25287.22 | FH57: 20440.4 | FI57: 0 | FJ57: 1.59 | FK57: 0.2269369652 | FL57: PASS | FM57: 1.23 | FN57: 0.2920057721 | FO57: PASS | FP57: 300000 | FQ57: 5992 | FR57: 1455.5 | FS57: 0 | FT57: 0 | FU57: 0 | FV57: 0 | FW57: 39333 | FX57: 24244.5 | FY57: 0 | FZ57: 0 | GA57: 0 | GB57: 0 | GC57: 63577.5 | GD57: 16503.24 | GE57: 15787.04 | GF57: 0 | GG57: 0 | GH57: 0 | GI57: 0 | GJ57: 32290.28 | GK57: 26520 | GL57: 38290.28 | GM57: 25287.22 | GN57: 0.055 | GO57: 0.02 | GP57: 0.0382 | GQ57: 0.0604 | GR57: 1.25 | GS57: 0.8 | GT57: 0.25 | GU57: 5833.33 | GV57: 5298.13 | GW57: 3190.86 | GX57: 2107.27 | GY57: 1323.8 | GZ57: 0 | HA57: 70000 | HB57: 63577.5 | HC57: 38290.28 | HD57: 25287.22 | HE57: 15885.59 | HF57: 0 | HG57: 5833.33 | HH57: 5298.13 | HI57: 3190.86 | HJ57: 2107.27 | HK57: 1703.37 | HL57: 0 | HM57: 70000 | HN57: 63577.5 | HO57: 38290.28 | HP57: 25287.22 | HQ57: 20440.4 | HR57: 0 | HS57: 1.59 | HT57: 0.2269369652 | HU57: PASS | HV57: 1.23 | HW57: 0.2920057721 | HX57: PASS | HY57: 300000 | HZ57: Pass | IA57: Y | IB57: 2023-10-25T09:24:20 | ID57: Case 55 | IE57: Neil
A58: 1200000 | B58: 0.047625 | C58: 0.072625 | D58: 30 | E58: 3 | F58: 500000 | G58: 0.045 | H58: 0.07 | I58: 30 | J58: 3 | K58: 700000 | M58: 0.0745 | N58: 20 | O58: 0 | P58: Individual (Single) | AH58: 100000 | AI58: 0 | AJ58: 0 | AK58: 0 | AL58: 0 | AM58: 0 | AN58: 0 | AO58: 0 | AP58: 0 | AQ58: 0 | AR58: 0 | AS58: 0 | AT58: 0 | AU58: 0 | AV58: 0 | AW58: 0 | AX58: 0 | AY58: 0 | AZ58: 0 | BA58: 0 | BB58: 0 | BC58: 0 | BD58: 0 | BE58: 0 | BF58: 0 | BG58: 0 | BH58: 0 | BI58: 0 | BJ58: 0 | BK58: 0 | BL58: 0 | BM58: 0 | BN58: 0 | BO58: 0 | BP58: 0 | BQ58: 0 | BR58: 0 | BS58: 0 | BT58: 0 | BU58: 0 | BV58: 0 | BW58: 0 | BX58: 100 | BY58: 100 | BZ58: 100 | CA58: 100 | CB58: 100 | CC58: 100 | CD58: 500 | CE58: 10 | CF58: 100 | CG58: 100 | CH58: 0 | CI58: 100 | CJ58: 500 | CK58: 0 | CL58: 300 | CM58: 0 | CN58: Yes | CO58: No | CP58: No | CQ58: Yes | CR58: Yes | CS58: Yes | CT58: Yes | CU58: Yes | CV58: Yes | CW58: Yes | CX58: No | CY58: Yes | CZ58: Yes | DA58: No | DB58: No | DC58: No | DD58: 0 | DE58: 0 | DF58: 0 | DG58: 0 | DH58: 24967 | DI58: 0 | DJ58: 0 | DK58: 0 | DL58: 0 | DM58: 0 | DN58: 75033 | DO58: 0 | DP58: 0 | DQ58: 0 | DR58: 0 | DS58: 0 | DT58: 75033 | DU58: 26566.72 | DV58: 0 | DW58: 0 | DX58: 0 | DY58: 0 | DZ58: 0 | EA58: 26566.72 | EB58: 26520 | EC58: 32566.72 | ED58: 42466.28 | EE58: 0.055 | EF58: 0.02 | EG58: 0.0382 | EH58: 0.0604 | EI58: 1.25 | EJ58: 0.8 | EK58: 0.25 | EL58: 8333.33 | EM58: 6252.75 | EN58: 2713.89 | EO58: 3538.86 | EP58: 5585.27 | EQ58: 0 | ER58: 100000 | ES58: 75033 | ET58: 32566.72 | EU58: 42466.28 | EV58: 67023.23 | EW58: 0 | EX58: 8333.33 | EY58: 6252.75 | EZ58: 2713.89 | FA58: 3538.86 | FB58: 8092.99 | FC58: 0 | FD58: 100000 | FE58: 75033 | FF58: 32566.72 | FG58: 42466.28 | FH58: 97115.83 | FI58: 0 | FJ58: 0.63 | FK58: 0.6702322926 | FL58: FAIL | FM58: 0.43 | FN58: 0.971158322 | FO58: FAIL | FP58: 552427.03 | FQ58: 24967 | FR58: 0 | FS58: 0 | FT58: 0 | FU58: 0 | FV58: 0 | FW58: 75033 | FX58: 0 | FY58: 0 | FZ58: 0 | GA58: 0 | GB58: 0 | GC58: 75033 | GD58: 26566.72 | GE58: 0 | GF58: 0 | GG58: 0 | GH58: 0 | GI58: 0 | GJ58: 26566.72 | GK58: 26520 | GL58: 32566.72 | GM58: 42466.28 | GN58: 0.055 | GO58: 0.02 | GP58: 0.0382 | GQ58: 0.0604 | GR58: 1.25 | GS58: 0.8 | GT58: 0.25 | GU58: 8333.33 | GV58: 6252.75 | GW58: 2713.89 | GX58: 3538.86 | GY58: 5585.27 | GZ58: 0 | HA58: 100000 | HB58: 75033 | HC58: 32566.72 | HD58: 42466.28 | HE58: 67023.23 | HF58: 0 | HG58: 8333.33 | HH58: 6252.75 | HI58: 2713.89 | HJ58: 3538.86 | HK58: 8092.99 | HL58: 0 | HM58: 100000 | HN58: 75033 | HO58: 32566.72 | HP58: 42466.28 | HQ58: 97115.83 | HR58: 0 | HS58: 0.63 | HT58: 0.6702322926 | HU58: FAIL | HV58: 0.43 | HW58: 0.971158322 | HX58: FAIL | HY58: 552427.03 | HZ58: Pass | IA58: Y | IB58: 2023-10-25T09:24:23 | ID58: Case 56 | IE58: Neil
A59: 1600000 | B59: 0.0300625 | C59: 0.0550625 | D59: 30 | E59: 5 | F59: 1000000 | G59: 0.0325 | H59: 0.0575 | I59: 30 | J59: 5 | K59: 600000 | M59: 0.055 | N59: 30 | O59: 0 | P59: Individual (Single) | AH59: 100000 | AI59: 0 | AJ59: 0 | AK59: 0 | AL59: 0 | AM59: 0 | AN59: 0 | AO59: 0 | AP59: 0 | AQ59: 0 | AR59: 0 | AS59: 0 | AT59: 0 | AU59: 0 | AV59: 0 | AW59: 0 | AX59: 0 | AY59: 0 | AZ59: 0 | BA59: 0 | BB59: 0 | BC59: 0 | BD59: 0 | BE59: 0 | BF59: 0 | BG59: 0 | BH59: 0 | BI59: 0 | BJ59: 0 | BK59: 0 | BL59: 0 | BM59: 0 | BN59: 0 | BO59: 0 | BP59: 0 | BQ59: 0 | BR59: 0 | BS59: 0 | BT59: 0 | BU59: 0 | BV59: 0 | BW59: 0 | BX59: 100 | BY59: 100 | BZ59: 100 | CA59: 100 | CB59: 100 | CC59: 100 | CD59: 500 | CE59: 10 | CF59: 100 | CG59: 100 | CH59: 0 | CI59: 100 | CJ59: 500 | CK59: 0 | CL59: 300 | CM59: 0 | CN59: Yes | CO59: No | CP59: No | CQ59: Yes | CR59: Yes | CS59: Yes | CT59: Yes | CU59: Yes | CV59: Yes | CW59: Yes | CX59: No | CY59: Yes | CZ59: Yes | DA59: No | DB59: No | DC59: No | DD59: 0 | DE59: 0 | DF59: 0 | DG59: 0 | DH59: 24967 | DI59: 0 | DJ59: 0 | DK59: 0 | DL59: 0 | DM59: 0 | DN59: 75033 | DO59: 0 | DP59: 0 | DQ59: 0 | DR59: 0 | DS59: 0 | DT59: 75033 | DU59: 26566.72 | DV59: 0 | DW59: 0 | DX59: 0 | DY59: 0 | DZ59: 0 | EA59: 26566.72 | EB59: 26520 | EC59: 32566.72 | ED59: 42466.28 | EE59: 0.055 | EF59: 0.02 | EG59: 0.0382 | EH59: 0.0604 | EI59: 1.25 | EJ59: 0.8 | EK59: 0.25 | EL59: 8333.33 | EM59: 6252.75 | EN59: 2713.89 | EO59: 3538.86 | EP59: 6539.83 | EQ59: 0 | ER59: 100000 | ES59: 75033 | ET59: 32566.72 | EU59: 42466.28 | EV59: 78477.95 | EW59: 0 | EX59: 8333.33 | EY59: 6252.75 | EZ59: 2713.89 | FA59: 3538.86 | FB59: 9547.61 | FC59: 0 | FD59: 100000 | FE59: 75033 | FF59: 32566.72 | FG59: 42466.28 | FH59: 114571.31 | FI59: 0 | FJ59: 0.54 | FK59: 0.7847794704 | FL59: FAIL | FM59: 0.37 | FN59: 1.145713072 | FO59: FAIL | FP59: 595282.22 | FQ59: 24967 | FR59: 0 | FS59: 0 | FT59: 0 | FU59: 0 | FV59: 0 | FW59: 75033 | FX59: 0 | FY59: 0 | FZ59: 0 | GA59: 0 | GB59: 0 | GC59: 75033 | GD59: 26566.72 | GE59: 0 | GF59: 0 | GG59: 0 | GH59: 0 | GI59: 0 | GJ59: 26566.72 | GK59: 26520 | GL59: 32566.72 | GM59: 42466.28 | GN59: 0.055 | GO59: 0.02 | GP59: 0.0382 | GQ59: 0.0604 | GR59: 1.25 | GS59: 0.8 | GT59: 0.25 | GU59: 8333.33 | GV59: 6252.75 | GW59: 2713.89 | GX59: 3538.86 | GY59: 6539.83 | GZ59: 0 | HA59: 100000 | HB59: 75033 | HC59: 32566.72 | HD59: 42466.28 | HE59: 78477.95 | HF59: 0 | HG59: 8333.33 | HH59: 6252.75 | HI59: 2713.89 | HJ59: 3538.86 | HK59: 9547.61 | HL59: 0 | HM59: 100000 | HN59: 75033 | HO59: 32566.72 | HP59: 42466.28 | HQ59: 114571.31 | HR59: 0 | HS59: 0.54 | HT59: 0.7847794704 | HU59: FAIL | HV59: 0.37 | HW59: 1.145713072 | HX59: FAIL | HY59: 595282.22 | HZ59: Pass | IA59: Y | IB59: 2023-10-25T09:24:25 | ID59: Case 57 | IE59: Neil
A60: 700000 | B60: 0.05107142857 | C60: 0.07607142857 | D60: 35 | E60: 0 | F60: 250000 | G60: 0.044 | H60: 0.069 | I60: 25 | J60: 0 | K60: 450000 | M60: 0.08 | N60: 35 | O60: 0 | P60: Individual (Single) | AH60: 100000 | AI60: 0 | AJ60: 0 | AK60: 0 | AL60: 0 | AM60: 0 | AN60: 0 | AO60: 0 | AP60: 0 | AQ60: 0 | AR60: 0 | AS60: 0 | AT60: 0 | AU60: 0 | AV60: 0 | AW60: 0 | AX60: 0 | AY60: 0 | AZ60: 0 | BA60: 0 | BB60: 0 | BC60: 0 | BD60: 0 | BE60: 0 | BF60: 0 | BG60: 0 | BH60: 0 | BI60: 0 | BJ60: 0 | BK60: 0 | BL60: 0 | BM60: 0 | BN60: 0 | BO60: 0 | BP60: 0 | BQ60: 0 | BR60: 0 | BS60: 0 | BT60: 0 | BU60: 0 | BV60: 0 | BW60: 0 | BX60: 100 | BY60: 100 | BZ60: 100 | CA60: 100 | CB60: 100 | CC60: 100 | CD60: 500 | CE60: 10 | CF60: 100 | CG60: 100 | CH60: 0 | CI60: 100 | CJ60: 500 | CK60: 0 | CL60: 300 | CM60: 0 | CN60: Yes | CO60: No | CP60: No | CQ60: Yes | CR60: Yes | CS60: Yes | CT60: Yes | CU60: Yes | CV60: Yes | CW60: Yes | CX60: No | CY60: Yes | CZ60: Yes | DA60: No | DB60: No | DC60: No | DD60: 0 | DE60: 0 | DF60: 0 | DG60: 0 | DH60: 24967 | DI60: 0 | DJ60: 0 | DK60: 0 | DL60: 0 | DM60: 0 | DN60: 75033 | DO60: 0 | DP60: 0 | DQ60: 0 | DR60: 0 | DS60: 0 | DT60: 75033 | DU60: 26566.72 | DV60: 0 | DW60: 0 | DX60: 0 | DY60: 0 | DZ60: 0 | EA60: 26566.72 | EB60: 26520 | EC60: 32566.72 | ED60: 42466.28 | EE60: 0.055 | EF60: 0.02 | EG60: 0.0382 | EH60: 0.0604 | EI60: 1.25 | EJ60: 0.8 | EK60: 0.25 | EL60: 8333.33 | EM60: 6252.75 | EN60: 2713.89 | EO60: 3538.86 | EP60: 2446.86 | EQ60: 0 | ER60: 100000 | ES60: 75033 | ET60: 32566.72 | EU60: 42466.28 | EV60: 29362.29 | EW60: 0 | EX60: 8333.33 | EY60: 6252.75 | EZ60: 2713.89 | FA60: 3538.86 | FB60: 4089 | FC60: 0 | FD60: 100000 | FE60: 75033 | FF60: 32566.72 | FG60: 42466.28 | FH60: 49068.04 | FI60: 0 | FJ60: 1.44 | FK60: 0.293622944 | FL60: PASS | FM60: 0.86 | FN60: 0.4906803538 | FO60: FAIL | FP60: 634338.66 | FQ60: 24967 | FR60: 0 | FS60: 0 | FT60: 0 | FU60: 0 | FV60: 0 | FW60: 75033 | FX60: 0 | FY60: 0 | FZ60: 0 | GA60: 0 | GB60: 0 | GC60: 75033 | GD60: 26566.72 | GE60: 0 | GF60: 0 | GG60: 0 | GH60: 0 | GI60: 0 | GJ60: 26566.72 | GK60: 26520 | GL60: 32566.72 | GM60: 42466.28 | GN60: 0.055 | GO60: 0.02 | GP60: 0.0382 | GQ60: 0.0604 | GR60: 1.25 | GS60: 0.8 | GT60: 0.25 | GU60: 8333.33 | GV60: 6252.75 | GW60: 2713.89 | GX60: 3538.86 | GY60: 2446.86 | GZ60: 0 | HA60: 100000 | HB60: 75033 | HC60: 32566.72 | HD60: 42466.28 | HE60: 29362.29 | HF60: 0 | HG60: 8333.33 | HH60: 6252.75 | HI60: 2713.89 | HJ60: 3538.86 | HK60: 4089 | HL60: 0 | HM60: 100000 | HN60: 75033 | HO60: 32566.72 | HP60: 42466.28 | HQ60: 49068.04 | HR60: 0 | HS60: 1.44 | HT60: 0.293622944 | HU60: PASS | HV60: 0.86 | HW60: 0.4906803538 | HX60: FAIL | HY60: 634338.66 | HZ60: Pass | IA60: Y | IB60: 2023-10-25T09:24:28 | ID60: Case 58 | IE60: Neil
A61: 450000 | B61: 0.04833333333 | C61: 0.07333333333 | D61: 40 | E61: 5 | F61: 150000 | G61: 0.055 | H61: 0.08 | I61: 40 | J61: 0 | K61: 300000 | M61: 0.07 | N61: 30 | O61: 5 | P61: Individual (Single) | AH61: 100000 | AI61: 0 | AJ61: 0 | AK61: 0 | AL61: 0 | AM61: 0 | AN61: 0 | AO61: 0 | AP61: 0 | AQ61: 0 | AR61: 0 | AS61: 0 | AT61: 0 | AU61: 0 | AV61: 0 | AW61: 0 | AX61: 0 | AY61: 0 | AZ61: 0 | BA61: 0 | BB61: 0 | BC61: 0 | BD61: 0 | BE61: 0 | BF61: 0 | BG61: 0 | BH61: 0 | BI61: 0 | BJ61: 0 | BK61: 0 | BL61: 0 | BM61: 0 | BN61: 0 | BO61: 0 | BP61: 0 | BQ61: 0 | BR61: 0 | BS61: 0 | BT61: 0 | BU61: 0 | BV61: 0 | BW61: 0 | BX61: 100 | BY61: 100 | BZ61: 100 | CA61: 100 | CB61: 100 | CC61: 100 | CD61: 500 | CE61: 10 | CF61: 100 | CG61: 100 | CH61: 0 | CI61: 100 | CJ61: 500 | CK61: 0 | CL61: 300 | CM61: 0 | CN61: Yes | CO61: No | CP61: No | CQ61: Yes | CR61: Yes | CS61: Yes | CT61: Yes | CU61: Yes | CV61: Yes | CW61: Yes | CX61: No | CY61: Yes | CZ61: Yes | DA61: No | DB61: No | DC61: No | DD61: 0 | DE61: 0 | DF61: 0 | DG61: 0 | DH61: 24967 | DI61: 0 | DJ61: 0 | DK61: 0 | DL61: 0 | DM61: 0 | DN61: 75033 | DO61: 0 | DP61: 0 | DQ61: 0 | DR61: 0 | DS61: 0 | DT61: 75033 | DU61: 26566.72 | DV61: 0 | DW61: 0 | DX61: 0 | DY61: 0 | DZ61: 0 | EA61: 26566.72 | EB61: 26520 | EC61: 32566.72 | ED61: 42466.28 | EE61: 0.055 | EF61: 0.02 | EG61: 0.0382 | EH61: 0.0604 | EI61: 1.25 | EJ61: 0.8 | EK61: 0.25 | EL61: 8333.33 | EM61: 6252.75 | EN61: 2713.89 | EO61: 3538.86 | EP61: 1773.66 | EQ61: 0 | ER61: 100000 | ES61: 75033 | ET61: 32566.72 | EU61: 42466.28 | EV61: 21283.87 | EW61: 0 | EX61: 8333.33 | EY61: 6252.75 | EZ61: 2713.89 | FA61: 3538.86 | FB61: 2829.37 | FC61: 0 | FD61: 100000 | FE61: 75033 | FF61: 32566.72 | FG61: 42466.28 | FH61: 33952.42 | FI61: 0 | FJ61: 1.99 | FK61: 0.2128386506 | FL61: PASS | FM61: 1.25 | FN61: 0.3395242282 | FO61: PASS | FP61: 450000 | FQ61: 24967 | FR61: 0 | FS61: 0 | FT61: 0 | FU61: 0 | FV61: 0 | FW61: 75033 | FX61: 0 | FY61: 0 | FZ61: 0 | GA61: 0 | GB61: 0 | GC61: 75033 | GD61: 26566.72 | GE61: 0 | GF61: 0 | GG61: 0 | GH61: 0 | GI61: 0 | GJ61: 26566.72 | GK61: 26520 | GL61: 32566.72 | GM61: 42466.28 | GN61: 0.055 | GO61: 0.02 | GP61: 0.0382 | GQ61: 0.0604 | GR61: 1.25 | GS61: 0.8 | GT61: 0.25 | GU61: 8333.33 | GV61: 6252.75 | GW61: 2713.89 | GX61: 3538.86 | GY61: 1773.66 | GZ61: 0 | HA61: 100000 | HB61: 75033 | HC61: 32566.72 | HD61: 42466.28 | HE61: 21283.87 | HF61: 0 | HG61: 8333.33 | HH61: 6252.75 | HI61: 2713.89 | HJ61: 3538.86 | HK61: 2829.37 | HL61: 0 | HM61: 100000 | HN61: 75033 | HO61: 32566.72 | HP61: 42466.28 | HQ61: 33952.42 | HR61: 0 | HS61: 1.99 | HT61: 0.2128386506 | HU61: PASS | HV61: 1.25 | HW61: 0.3395242282 | HX61: PASS | HY61: 450000 | HZ61: Pass | IA61: Y | IB61: 2023-10-25T09:24:30 | ID61: Case 59 | IE61: Neil
A62: 2250000 | B62: 0.03011111111 | C62: 0.05511111111 | D62: 30 | E62: 5 | F62: 2000000 | G62: 0.0295 | H62: 0.055 | I62: 30 | J62: 0 | K62: 250000 | M62: 0.06 | N62: 30 | O62: 5 | P62: Individual (Single) | AH62: 100000 | AI62: 0 | AJ62: 0 | AK62: 0 | AL62: 0 | AM62: 0 | AN62: 0 | AO62: 0 | AP62: 0 | AQ62: 0 | AR62: 0 | AS62: 0 | AT62: 0 | AU62: 0 | AV62: 0 | AW62: 0 | AX62: 0 | AY62: 0 | AZ62: 0 | BA62: 0 | BB62: 0 | BC62: 0 | BD62: 0 | BE62: 0 | BF62: 0 | BG62: 0 | BH62: 0 | BI62: 0 | BJ62: 0 | BK62: 0 | BL62: 0 | BM62: 0 | BN62: 0 | BO62: 0 | BP62: 0 | BQ62: 0 | BR62: 0 | BS62: 0 | BT62: 0 | BU62: 0 | BV62: 0 | BW62: 0 | BX62: 100 | BY62: 100 | BZ62: 100 | CA62: 100 | CB62: 100 | CC62: 100 | CD62: 500 | CE62: 10 | CF62: 100 | CG62: 100 | CH62: 0 | CI62: 100 | CJ62: 500 | CK62: 0 | CL62: 300 | CM62: 0 | CN62: Yes | CO62: No | CP62: No | CQ62: Yes | CR62: Yes | CS62: Yes | CT62: Yes | CU62: Yes | CV62: Yes | CW62: Yes | CX62: No | CY62: Yes | CZ62: Yes | DA62: No | DB62: No | DC62: No | DD62: 0 | DE62: 0 | DF62: 0 | DG62: 0 | DH62: 24967 | DI62: 0 | DJ62: 0 | DK62: 0 | DL62: 0 | DM62: 0 | DN62: 75033 | DO62: 0 | DP62: 0 | DQ62: 0 | DR62: 0 | DS62: 0 | DT62: 75033 | DU62: 26566.72 | DV62: 0 | DW62: 0 | DX62: 0 | DY62: 0 | DZ62: 0 | EA62: 26566.72 | EB62: 26520 | EC62: 32566.72 | ED62: 42466.28 | EE62: 0.055 | EF62: 0.02 | EG62: 0.0382 | EH62: 0.0604 | EI62: 1.25 | EJ62: 0.8 | EK62: 0.25 | EL62: 8333.33 | EM62: 6252.75 | EN62: 2713.89 | EO62: 3538.86 | EP62: 9211.58 | EQ62: 0 | ER62: 100000 | ES62: 75033 | ET62: 32566.72 | EU62: 42466.28 | EV62: 110538.93 | EW62: 0 | EX62: 8333.33 | EY62: 6252.75 | EZ62: 2713.89 | FA62: 3538.86 | FB62: 12891 | FC62: 0 | FD62: 100000 | FE62: 75033 | FF62: 32566.72 | FG62: 42466.28 | FH62: 154691.99 | FI62: 0 | FJ62: 0.38 | FK62: 1.105389292 | FL62: FAIL | FM62: 0.27 | FN62: 1.546919851 | FO62: FAIL | FP62: 618512.4 | FQ62: 24967 | FR62: 0 | FS62: 0 | FT62: 0 | FU62: 0 | FV62: 0 | FW62: 75033 | FX62: 0 | FY62: 0 | FZ62: 0 | GA62: 0 | GB62: 0 | GC62: 75033 | GD62: 26566.72 | GE62: 0 | GF62: 0 | GG62: 0 | GH62: 0 | GI62: 0 | GJ62: 26566.72 | GK62: 26520 | GL62: 32566.72 | GM62: 42466.28 | GN62: 0.055 | GO62: 0.02 | GP62: 0.0382 | GQ62: 0.0604 | GR62: 1.25 | GS62: 0.8 | GT62: 0.25 | GU62: 8333.33 | GV62: 6252.75 | GW62: 2713.89 | GX62: 3538.86 | GY62: 9211.58 | GZ62: 0 | HA62: 100000 | HB62: 75033 | HC62: 32566.72 | HD62: 42466.28 | HE62: 110538.93 | HF62: 0 | HG62: 8333.33 | HH62: 6252.75 | HI62: 2713.89 | HJ62: 3538.86 | HK62: 12891 | HL62: 0 | HM62: 100000 | HN62: 75033 | HO62: 32566.72 | HP62: 42466.28 | HQ62: 154691.99 | HR62: 0 | HS62: 0.38 | HT62: 1.105389292 | HU62: FAIL | HV62: 0.27 | HW62: 1.546919851 | HX62: FAIL | HY62: 618512.4 | HZ62: Pass | IA62: Y | IB62: 2023-10-25T09:24:33 | ID62: Case 60 | IE62: Neil
A63: 1850000 | B63: 0.04578378378 | C63: 0.07078378378 | D63: 30 | E63: 5 | F63: 1100000 | G63: 0.0395 | H63: 0.0645 | I63: 30 | J63: 5 | K63: 750000 | M63: 0.08 | N63: 15 | O63: 0 | P63: Individual (Single) | AH63: 100000 | AI63: 0 | AJ63: 0 | AK63: 0 | AL63: 0 | AM63: 0 | AN63: 0 | AO63: 0 | AP63: 0 | AQ63: 0 | AR63: 0 | AS63: 0 | AT63: 0 | AU63: 0 | AV63: 0 | AW63: 0 | AX63: 0 | AY63: 0 | AZ63: 0 | BA63: 0 | BB63: 0 | BC63: 0 | BD63: 0 | BE63: 0 | BF63: 0 | BG63: 0 | BH63: 0 | BI63: 0 | BJ63: 0 | BK63: 0 | BL63: 0 | BM63: 0 | BN63: 0 | BO63: 0 | BP63: 0 | BQ63: 0 | BR63: 0 | BS63: 0 | BT63: 0 | BU63: 0 | BV63: 0 | BW63: 0 | BX63: 100 | BY63: 100 | BZ63: 100 | CA63: 100 | CB63: 100 | CC63: 100 | CD63: 500 | CE63: 10 | CF63: 100 | CG63: 100 | CH63: 0 | CI63: 100 | CJ63: 500 | CK63: 0 | CL63: 300 | CM63: 0 | CN63: Yes | CO63: No | CP63: No | CQ63: Yes | CR63: Yes | CS63: Yes | CT63: Yes | CU63: Yes | CV63: Yes | CW63: Yes | CX63: No | CY63: Yes | CZ63: Yes | DA63: No | DB63: No | DC63: No | DD63: 0 | DE63: 0 | DF63: 0 | DG63: 0 | DH63: 24967 | DI63: 0 | DJ63: 0 | DK63: 0 | DL63: 0 | DM63: 0 | DN63: 75033 | DO63: 0 | DP63: 0 | DQ63: 0 | DR63: 0 | DS63: 0 | DT63: 75033 | DU63: 26566.72 | DV63: 0 | DW63: 0 | DX63: 0 | DY63: 0 | DZ63: 0 | EA63: 26566.72 | EB63: 26520 | EC63: 32566.72 | ED63: 42466.28 | EE63: 0.055 | EF63: 0.02 | EG63: 0.0382 | EH63: 0.0604 | EI63: 1.25 | EJ63: 0.8 | EK63: 0.25 | EL63: 8333.33 | EM63: 6252.75 | EN63: 2713.89 | EO63: 3538.86 | EP63: 9942.55 | EQ63: 0 | ER63: 100000 | ES63: 75033 | ET63: 32566.72 | EU63: 42466.28 | EV63: 119310.56 | EW63: 0 | EX63: 8333.33 | EY63: 6252.75 | EZ63: 2713.89 | FA63: 3538.86 | FB63: 13181.86 | FC63: 0 | FD63: 100000 | FE63: 75033 | FF63: 32566.72 | FG63: 42466.28 | FH63: 158182.31 | FI63: 0 | FJ63: 0.35 | FK63: 1.193105579 | FL63: FAIL | FM63: 0.26 | FN63: 1.58182308 | FO63: FAIL | FP63: 527358.8 | FQ63: 24967 | FR63: 0 | FS63: 0 | FT63: 0 | FU63: 0 | FV63: 0 | FW63: 75033 | FX63: 0 | FY63: 0 | FZ63: 0 | GA63: 0 | GB63: 0 | GC63: 75033 | GD63: 26566.72 | GE63: 0 | GF63: 0 | GG63: 0 | GH63: 0 | GI63: 0 | GJ63: 26566.72 | GK63: 26520 | GL63: 32566.72 | GM63: 42466.28 | GN63: 0.055 | GO63: 0.02 | GP63: 0.0382 | GQ63: 0.0604 | GR63: 1.25 | GS63: 0.8 | GT63: 0.25 | GU63: 8333.33 | GV63: 6252.75 | GW63: 2713.89 | GX63: 3538.86 | GY63: 9942.55 | GZ63: 0 | HA63: 100000 | HB63: 75033 | HC63: 32566.72 | HD63: 42466.28 | HE63: 119310.56 | HF63: 0 | HG63: 8333.33 | HH63: 6252.75 | HI63: 2713.89 | HJ63: 3538.86 | HK63: 13181.86 | HL63: 0 | HM63: 100000 | HN63: 75033 | HO63: 32566.72 | HP63: 42466.28 | HQ63: 158182.31 | HR63: 0 | HS63: 0.35 | HT63: 1.193105579 | HU63: FAIL | HV63: 0.26 | HW63: 1.58182308 | HX63: FAIL | HY63: 527358.8 | HZ63: Pass | IA63: Y | IB63: 2023-10-25T09:24:35 | ID63: Case 61 | IE63: Neil
A64: 489000 | B64: 0.04991165644 | C64: 0.07491165644 | D64: 30 | E64: 0 | F64: 346000 | G64: 0.055 | H64: 0.08 | I64: 10 | J64: 0 | K64: 143000 | M64: 0.0626 | N64: 30 | O64: 0 | P64: Individual (Single) | AB64: 2 | AH64: 55000 | AI64: 0 | AJ64: 0 | AK64: 0 | AL64: 0 | AM64: 0 | AN64: 0 | AO64: 0 | AP64: 0 | AQ64: 0 | AR64: 0 | AS64: 0 | AT64: 0 | AU64: 0 | AV64: 0 | AW64: 0 | AX64: 0 | AY64: 0 | AZ64: 0 | BA64: 0 | BB64: 0 | BC64: 0 | BD64: 0 | BE64: 0 | BF64: 0 | BG64: 0 | BH64: 0 | BI64: 0 | BJ64: 0 | BK64: 0 | BL64: 0 | BM64: 0 | BN64: 0 | BO64: 0 | BP64: 0 | BQ64: 0 | BR64: 0 | BS64: 0 | BT64: 0 | BU64: 0 | BV64: 0 | BW64: 0 | BX64: 1 | BY64: 1 | BZ64: 1 | CA64: 1 | CB64: 1 | CC64: 1 | CD64: 1 | CE64: 1 | CF64: 1 | CG64: 1 | CH64: 0 | CI64: 1 | CJ64: 1 | CK64: 0 | CL64: 1 | CM64: 0 | CN64: Yes | CO64: No | CP64: No | CQ64: Yes | CR64: Yes | CS64: Yes | CT64: Yes | CU64: Yes | CV64: Yes | CW64: Yes | CX64: No | CY64: Yes | CZ64: Yes | DA64: No | DB64: No | DC64: No | DD64: 0 | DE64: 2000 | DF64: 0 | DG64: 0 | DH64: 9442 | DI64: 0 | DJ64: 0 | DK64: 0 | DL64: 0 | DM64: 0 | DN64: 45733 | DO64: 0 | DP64: 0 | DQ64: 0 | DR64: 0 | DS64: 0 | DT64: 45733 | DU64: 28693.55 | DV64: 0 | DW64: 0 | DX64: 0 | DY64: 0 | DZ64: 0 | EA64: 28693.55 | EB64: 156 | EC64: 28729.55 | ED64: 17003.45 | EE64: 0.055 | EF64: 0.02 | EG64: 0.0382 | EH64: 0.0604 | EI64: 1.25 | EJ64: 0.8 | EK64: 0.25 | EL64: 4583.33 | EM64: 3811.08 | EN64: 2394.13 | EO64: 1416.95 | EP64: 4152.23 | EQ64: 76.4 | ER64: 55000 | ES64: 45733 | ET64: 28729.55 | EU64: 17003.45 | EV64: 49826.78 | EW64: 916.8 | EX64: 4583.33 | EY64: 3811.08 | EZ64: 2394.13 | FA64: 1416.95 | FB64: 4919.02 | FC64: 76.4 | FD64: 55000 | FE64: 45733 | FF64: 28729.55 | FG64: 17003.45 | FH64: 59028.23 | FI64: 916.8 | FJ64: 0.33 | FK64: 0.9226104959 | FL64: FAIL | FM64: 0.28 | FN64: 1.089909706 | FO64: FAIL | FP64: 165401.49 | FQ64: 9442 | FR64: 0 | FS64: 0 | FT64: 0 | FU64: 0 | FV64: 0 | FW64: 45733 | FX64: 0 | FY64: 0 | FZ64: 0 | GA64: 0 | GB64: 0 | GC64: 45733 | GD64: 28693.55 | GE64: 0 | GF64: 0 | GG64: 0 | GH64: 0 | GI64: 0 | GJ64: 28693.55 | GK64: 156 | GL64: 28729.55 | GM64: 17003.45 | GN64: 0.055 | GO64: 0.02 | GP64: 0.0382 | GQ64: 0.0604 | GR64: 1.25 | GS64: 0.8 | GT64: 0.25 | GU64: 4583.33 | GV64: 3811.08 | GW64: 2394.13 | GX64: 1416.95 | GY64: 4152.23 | GZ64: 76.4 | HA64: 55000 | HB64: 45733 | HC64: 28729.55 | HD64: 17003.45 | HE64: 49826.78 | HF64: 916.8 | HG64: 4583.33 | HH64: 3811.08 | HI64: 2394.13 | HJ64: 1416.95 | HK64: 4919.02 | HL64: 76.4 | HM64: 55000 | HN64: 45733 | HO64: 28729.55 | HP64: 17003.45 | HQ64: 59028.23 | HR64: 916.8 | HS64: 0.33 | HT64: 0.9226104959 | HU64: FAIL | HV64: 0.28 | HW64: 1.089909706 | HX64: FAIL | HY64: 165401.49 | HZ64: Pass | IA64: Y | IB64: 2023-10-25T09:24:38 | ID64: Case 62 | IE64: Neil
A65: 355000 | B65: 0.0303943662 | C65: 0.0553943662 | D65: 30 | E65: 5 | F65: 145000 | G65: 0.044 | H65: 0.069 | I65: 25 | J65: 5 | K65: 210000 | M65: 0.055 | N65: 30 | O65: 0 | P65: Individual (Single) | AB65: 2 | AH65: 55000 | AI65: 0 | AJ65: 0 | AK65: 0 | AL65: 0 | AM65: 0 | AN65: 0 | AO65: 0 | AP65: 0 | AQ65: 0 | AR65: 0 | AS65: 0 | AT65: 0 | AU65: 0 | AV65: 0 | AW65: 0 | AX65: 0 | AY65: 0 | AZ65: 0 | BA65: 0 | BB65: 0 | BC65: 0 | BD65: 0 | BE65: 0 | BF65: 0 | BG65: 0 | BH65: 0 | BI65: 0 | BJ65: 0 | BK65: 0 | BL65: 0 | BM65: 0 | BN65: 0 | BO65: 0 | BP65: 0 | BQ65: 0 | BR65: 0 | BS65: 0 | BT65: 0 | BU65: 0 | BV65: 0 | BW65: 0 | BX65: 1 | BY65: 1 | BZ65: 1 | CA65: 1 | CB65: 1 | CC65: 1 | CD65: 1 | CE65: 1 | CF65: 1 | CG65: 1 | CH65: 0 | CI65: 1 | CJ65: 1 | CK65: 0 | CL65: 1 | CM65: 0 | CN65: Yes | CO65: No | CP65: No | CQ65: Yes | CR65: Yes | CS65: Yes | CT65: Yes | CU65: Yes | CV65: Yes | CW65: Yes | CX65: No | CY65: Yes | CZ65: Yes | DA65: No | DB65: No | DC65: No | DD65: 0 | DE65: 2000 | DF65: 0 | DG65: 0 | DH65: 9442 | DI65: 0 | DJ65: 0 | DK65: 0 | DL65: 0 | DM65: 0 | DN65: 45733 | DO65: 0 | DP65: 0 | DQ65: 0 | DR65: 0 | DS65: 0 | DT65: 45733 | DU65: 28693.55 | DV65: 0 | DW65: 0 | DX65: 0 | DY65: 0 | DZ65: 0 | EA65: 28693.55 | EB65: 156 | EC65: 28729.55 | ED65: 17003.45 | EE65: 0.055 | EF65: 0.02 | EG65: 0.0382 | EH65: 0.0604 | EI65: 1.25 | EJ65: 0.8 | EK65: 0.25 | EL65: 4583.33 | EM65: 3811.08 | EN65: 2394.13 | EO65: 1416.95 | EP65: 1492.87 | EQ65: 76.4 | ER65: 55000 | ES65: 45733 | ET65: 28729.55 | EU65: 17003.45 | EV65: 17914.4 | EW65: 916.8 | EX65: 4583.33 | EY65: 3811.08 | EZ65: 2394.13 | FA65: 1416.95 | FB65: 2264.92 | FC65: 76.4 | FD65: 55000 | FE65: 45733 | FF65: 28729.55 | FG65: 17003.45 | FH65: 27179.02 | FI65: 916.8 | FJ65: 0.9 | FK65: 0.3423854049 | FL65: FAIL | FM65: 0.6 | FN65: 0.510833093 | FO65: FAIL | FP65: 221843.19 | FQ65: 9442 | FR65: 0 | FS65: 0 | FT65: 0 | FU65: 0 | FV65: 0 | FW65: 45733 | FX65: 0 | FY65: 0 | FZ65: 0 | GA65: 0 | GB65: 0 | GC65: 45733 | GD65: 28693.55 | GE65: 0 | GF65: 0 | GG65: 0 | GH65: 0 | GI65: 0 | GJ65: 28693.55 | GK65: 156 | GL65: 28729.55 | GM65: 17003.45 | GN65: 0.055 | GO65: 0.02 | GP65: 0.0382 | GQ65: 0.0604 | GR65: 1.25 | GS65: 0.8 | GT65: 0.25 | GU65: 4583.33 | GV65: 3811.08 | GW65: 2394.13 | GX65: 1416.95 | GY65: 1492.87 | GZ65: 76.4 | HA65: 55000 | HB65: 45733 | HC65: 28729.55 | HD65: 17003.45 | HE65: 17914.4 | HF65: 916.8 | HG65: 4583.33 | HH65: 3811.08 | HI65: 2394.13 | HJ65: 1416.95 | HK65: 2264.92 | HL65: 76.4 | HM65: 55000 | HN65: 45733 | HO65: 28729.55 | HP65: 17003.45 | HQ65: 27179.02 | HR65: 916.8 | HS65: 0.9 | HT65: 0.3423854049 | HU65: FAIL | HV65: 0.6 | HW65: 0.510833093 | HX65: FAIL | HY65: 221843.19 | HZ65: Pass | IA65: Y | IB65: 2023-10-25T09:24:40 | ID65: Case 63 | IE65: Neil

Sheet Commercial
B1: Commercial Servicability Calculator
C2: =Residential!C3 -> Version 6.4 31st October 2023
C4: Applicant Name
C6: Proposed Loan Details
C8: New Loan Amount | G8: Interest Rate | K8: Assessment Rate | M8: =MAX(BaselineAssessmentRate,I8+AssessmentLoading) -> 0.055
C9: Documentation Type | G9: Loan Term (Years)
G10: I/O Term (Years)
G11: P&I Repayment | I11: =IF(I9>I10,-PMT(M8/12,12*(I9-I10),E8),0) -> 0
G12: IO Repayment | I12: =IF(I10>0,E8*M8/12,0) -> 0
C15: Business Loan Details | N15: excluding proposed Pepper loan
E17: Loan Amount | G17: Rate | I17: Actual Loan Repayment (Monthly)
C18: Loan 1
C19: Loan 2
C20: Loan 3
C21: Loan 4
C24: Business Income / Expenses
C26: Business Income | I26: Add Backs
C27: Net Profit Before Tax | I27: Depreciation
C28: Proposed Net Commercial Rental Income | I28: Ammortisation
C29: Proposed Gross Residential Rental Income | I29: Interest Paid
I30: Directors Salaries/Fees/Super
I31: Other
C32: Earning Before Interest, Tax, Depreciation & Ammortisation (EBITDA)
E33: =K33+E27+E28+(E29*RentalIncomeShading) -> 0 | I33: Total Add Backs | K33: =SUM(K27:K31) -> 0
C36: Personal Income / Expenses
C38: Applicant Details | E38: Applicant 1 | G38: Applicant 2 | I38: Applicant 3 | K38: Applicant 4
C39: Status
C40: Couple With
C41: Dependants
E42: Enter a Status | G42: Enter a Status | I42: Enter a Status | K42: Enter a Status
C44: Gross Annual Income
C45: Untaxed Allowable Income
C46: Gross Residential Rental Income (Other)
C47: Total Income | E47: =E44+E45+E46*RentalIncomeShading -> 0 | G47: =G44+G45+G46*RentalIncomeShading -> 0 | I47: =I44+I45+I46*RentalIncomeShading -> 0 | K47: =K44+K45+K46*RentalIncomeShading -> 0 | P47: =(E47+G47+I47+K47) -> 0 | Q47: Total Gross Annual Income
C49: Investment Property Loan Balance (personal name)
C50: Tax | E50: =VLOOKUP(E66,IncomeTaxTable,2,TRUE)+MAX(((E66-VLOOKUP(E66,IncomeTaxTable,1,TRUE))*VLOOKUP(E66,IncomeTaxTable,3,TRUE)),0) +IF(E66<=MinimumForPartialLevy,0,IF(E66>MinimumForFullLevy,E66*MedicareFullLevyPerc,(E66-MinimumForPartialLevy)*MedicarePartialLevyPerc)) -> 0 | G50: =VLOOKUP(G66,IncomeTaxTable,2,TRUE)+MAX(((G66-VLOOKUP(G66,IncomeTaxTable,1,TRUE))*VLOOKUP(G66,IncomeTaxTable,3,TRUE)),0) +IF(G66<=MinimumForPartialLevy,0,IF(G66>MinimumForFullLevy,G66*MedicareFullLevyPerc,(G66-MinimumForPartialLevy)*MedicarePartialLevyPerc)) -> 0 | I50: =VLOOKUP(I66,IncomeTaxTable,2,TRUE)+MAX(((I66-VLOOKUP(I66,IncomeTaxTable,1,TRUE))*VLOOKUP(I66,IncomeTaxTable,3,TRUE)),0) +IF(I66<=MinimumForPartialLevy,0,IF(I66>MinimumForFullLevy,I66*MedicareFullLevyPerc,(I66-MinimumForPartialLevy)*MedicarePartialLevyPerc)) -> 0 | K50: =VLOOKUP(K66,IncomeTaxTable,2,TRUE)+MAX(((K66-VLOOKUP(K66,IncomeTaxTable,1,TRUE))*VLOOKUP(K66,IncomeTaxTable,3,TRUE)),0) +IF(K66<=MinimumForPartialLevy,0,IF(K66>MinimumForFullLevy,K66*MedicareFullLevyPerc,(K66-MinimumForPartialLevy)*MedicarePartialLevyPerc)) -> 0
C51: Tax offset for Low Income Earners | E51: =0-(IF(OR(E39="Company",E66="",E66=0),0,IF(VLOOKUP(E66,TaxOffsetForLowIncomeTable,2,TRUE)+(E66-VLOOKUP(E66,TaxOffsetForLowIncomeTable,1,TRUE))*VLOOKUP(E66,TaxOffsetForLowIncomeTable,3,TRUE)<0,0,VLOOKUP(E66,TaxOffsetForLowIncomeTable,2,TRUE)+(E66-VLOOKUP(E66,TaxOffsetForLowIncomeTable,1,TRUE))*VLOOKUP(E66,TaxOffsetForLowIncomeTable,3,TRUE)))) -> 0 | G51: =0-(IF(OR(G39="Company",G66="",G66=0),0,IF(VLOOKUP(G66,TaxOffsetForLowIncomeTable,2,TRUE)+(G66-VLOOKUP(G66,TaxOffsetForLowIncomeTable,1,TRUE))*VLOOKUP(G66,TaxOffsetForLowIncomeTable,3,TRUE)<0,0,VLOOKUP(G66,TaxOffsetForLowIncomeTable,2,TRUE)+(G66-VLOOKUP(G66,TaxOffsetForLowIncomeTable,1,TRUE))*VLOOKUP(G66,TaxOffsetForLowIncomeTable,3,TRUE)))) -> 0 | I51: =0-(IF(OR(I39="Company",I66="",I66=0),0,IF(VLOOKUP(I66,TaxOffsetForLowIncomeTable,2,TRUE)+(I66-VLOOKUP(I66,TaxOffsetForLowIncomeTable,1,TRUE))*VLOOKUP(I66,TaxOffsetForLowIncomeTable,3,TRUE)<0,0,VLOOKUP(I66,TaxOffsetForLowIncomeTable,2,TRUE)+(I66-VLOOKUP(I66,TaxOffsetForLowIncomeTable,1,TRUE))*VLOOKUP(I66,TaxOffsetForLowIncomeTable,3,TRUE)))) -> 0 | K51: =0-(IF(OR(K39="Company",K66="",K66=0),0,IF(VLOOKUP(K66,TaxOffsetForLowIncomeTable,2,TRUE)+(K66-VLOOKUP(K66,TaxOffsetForLowIncomeTable,1,TRUE))*VLOOKUP(K66,TaxOffsetForLowIncomeTable,3,TRUE)<0,0,VLOOKUP(K66,TaxOffsetForLowIncomeTable,2,TRUE)+(K66-VLOOKUP(K66,TaxOffsetForLowIncomeTable,1,TRUE))*VLOOKUP(K66,TaxOffsetForLowIncomeTable,3,TRUE)))) -> 0
C52: Net Income | E52: =E47-(IF(E50+E51>0,E50+E51,0)) -> 0 | G52: =G47-(IF(G50+G51>0,G50+G51,0)) -> 0 | I52: =I47-(IF(I50+I51>0,I50+I51,0)) -> 0 | K52: =K47-(IF(K50+K51>0,K50+K51,0)) -> 0 | P52: =(E52+G52+I52+K52) -> 0 | Q52: Total Net Annual Income
C54: Living Expenses (monthly) | G54: Other Commitments | K54: Per Month
C55: Declared Living Expenses | G55: Rent/Board
G56: Total Credit Card Limit | M56: 3%: | N56: =K56*CreditCardCommitments -> 0
G57: Personal Mortgage Repayments
G58: Other Consumer Debt
C60: Is an Applicant | E60: =OR(E39<>"") -> FALSE | G60: =OR(G39<>"") -> FALSE | I60: =OR(I39<>"") -> FALSE | K60: =OR(K39<>"") -> FALSE
C61: Spouse Dependants | E61: =IFERROR(HLOOKUP(E40,CREApplicantDetailsTable,4,FALSE),0) -> 0 | G61: =IFERROR(HLOOKUP(G40,CREApplicantDetailsTable,4,FALSE),0) -> 0 | I61: =IFERROR(HLOOKUP(I40,CREApplicantDetailsTable,4,FALSE),0) -> 0 | K61: =IFERROR(HLOOKUP(K40,CREApplicantDetailsTable,4,FALSE),0) -> 0
C62: Pepper Status Code | E62: =IF(E$39="Individual (Couple)","P-C",IF(E$39="Individual (Single)","P-S","")) ->  | G62: =IF(G$39="Individual (Couple)","P-C",IF(G$39="Individual (Single)","P-S","")) ->  | I62: =IF(I$39="Individual (Couple)","P-C",IF(I$39="Individual (Single)","P-S","")) ->  | K62: =IF(K$39="Individual (Couple)","P-C",IF(K$39="Individual (Single)","P-S","")) -> 
C63: Pepper Dependents Code | E63: =IF(E$39="Individual (Couple)","P-CD"&INDEX(Validation!$B$21:$B$26,MATCH((E$41+E$61),Validation!$A$21:$A$26,1)),IF(E$39="Individual (Single)","P-SD"&INDEX(Validation!$B$21:$B$26,MATCH((E$41+E$61),Validation!$A$21:$A$26,1)),"")) ->  | G63: =IF(G$39="Individual (Couple)","P-CD"&INDEX(Validation!$B$21:$B$26,MATCH((G$41+G$61),Validation!$A$21:$A$26,1)),IF(G$39="Individual (Single)","P-SD"&INDEX(Validation!$B$21:$B$26,MATCH((G$41+G$61),Validation!$A$21:$A$26,1)),"")) ->  | I63: =IF(I$39="Individual (Couple)","P-CD"&INDEX(Validation!$B$21:$B$26,MATCH((I$41+I$61),Validation!$A$21:$A$26,1)),IF(I$39="Individual (Single)","P-SD"&INDEX(Validation!$B$21:$B$26,MATCH((I$41+I$61),Validation!$A$21:$A$26,1)),"")) ->  | K63: =IF(K$39="Individual (Couple)","P-CD"&INDEX(Validation!$B$21:$B$26,MATCH((K$41+K$61),Validation!$A$21:$A$26,1)),IF(K$39="Individual (Single)","P-SD"&INDEX(Validation!$B$21:$B$26,MATCH((K$41+K$61),Validation!$A$21:$A$26,1)),"")) -> 
C64: Exclude for LE calc | E64: =IFERROR(IF(MATCH(E40,$E$38:$K$38,0)<(COLUMN()-COLUMN($E$38:$K$38)+1),TRUE,FALSE),FALSE) -> FALSE | G64: =IFERROR(IF(MATCH(G40,$E$38:$K$38,0)<(COLUMN()-COLUMN($E$38:$K$38)+1),TRUE,FALSE),FALSE) -> FALSE | I64: =IFERROR(IF(MATCH(I40,$E$38:$K$38,0)<(COLUMN()-COLUMN($E$38:$K$38)+1),TRUE,FALSE),FALSE) -> FALSE | K64: =IFERROR(IF(MATCH(K40,$E$38:$K$38,0)<(COLUMN()-COLUMN($E$38:$K$38)+1),TRUE,FALSE),FALSE) -> FALSE
C66: Total Taxable Income | E66: =MAX(E44+E46*RentalIncomeShading-E49*WorkingsForNegativeGearing,0) -> 0 | G66: =MAX(G44+G46*RentalIncomeShading-G49*WorkingsForNegativeGearing,0) -> 0 | I66: 0 | K66: 0 | P66: =(E66+G66+I66+K66) -> 0 | Q66: Total Taxable Income
C67: Spouse Income | E67: =IFERROR(HLOOKUP(E40,CREApplicantDetailsTable,7,FALSE),0) -> 0 | G67: =IFERROR(HLOOKUP(G40,CREApplicantDetailsTable,7,FALSE),0) -> 0 | I67: =IFERROR(HLOOKUP(I40,CREApplicantDetailsTable,7,FALSE),0) -> 0 | K67: =IFERROR(HLOOKUP(K40,CREApplicantDetailsTable,7,FALSE),0) -> 0
C68: Income Bracket | E68: =IFERROR(HLOOKUP(E44+E67,HemCombinedIncomeRange,3,TRUE),1) -> 1 | G68: =IFERROR(HLOOKUP(G44+G67,HemCombinedIncomeRange,3,TRUE),1) -> 1 | I68: =IFERROR(HLOOKUP(I44+I67,HemCombinedIncomeRange,3,TRUE),1) -> 1 | K68: =IFERROR(HLOOKUP(K44+K67,HemCombinedIncomeRange,3,TRUE),1) -> 1
C69: HEM Living Expense | E69: =IFERROR(IF(AND(E60,NOT(E64)),(VLOOKUP(E62,HemTableForExpenses,E68+1,FALSE) +(VLOOKUP(E63,HemTableForExpenses,E68+1,FALSE))*(E41+E61))*NumberOfWeeksInAYear,0),0) -> 0 | G69: =IFERROR(IF(AND(G60,NOT(G64)),(VLOOKUP(G62,HemTableForExpenses,G68+1,FALSE) +(VLOOKUP(G63,HemTableForExpenses,G68+1,FALSE))*(G41+G61))*NumberOfWeeksInAYear,0),0) -> 0 | I69: =IFERROR(IF(AND(I60,NOT(I64)),(VLOOKUP(I62,HemTableForExpenses,I68+1,FALSE) +(VLOOKUP(I63,HemTableForExpenses,I68+1,FALSE))*(I41+I61))*NumberOfWeeksInAYear,0),0) -> 0 | K69: =IFERROR(IF(AND(K60,NOT(K64)),(VLOOKUP(K62,HemTableForExpenses,K68+1,FALSE) +(VLOOKUP(K63,HemTableForExpenses,K68+1,FALSE))*(K41+K61))*NumberOfWeeksInAYear,0),0) -> 0 | P69: =(E69+G69+I69+K69) -> 0 | Q69: HEM Living Expense
P70: =E55*NumberOfMonthsInAYear -> 0 | Q70: Customer Nominated Living Expenses
P71: =MAX(P69,P70) -> 0 | Q71: Used Living Expenses
P72: =K55*NumberOfMonthsInAYear -> 0 | Q72: Personal rent
P73: =(K57*OtherMortgageRepaymentBuffer+K58+N56)*NumberOfMonthsInAYear -> 0 | Q73: Personal Debt
C78: Results
C81: Business income (EBITDA + net personal contribution) | E81: =E33+P52-P71-P72-P73 -> 0 | G81: Interest Expenses | I81: =(E8*I8)+(E18*G18)+(E19*G19)+(E20*G20)+(E21*G21) -> 0
G82: Debt Repayments | I82: =((SUM(I18:I21)+MAX(I11:I12))*12) -> 0
G85: Interest Coverage Ratio (ICR): | I85: =IFERROR(E81/I81,0) -> 0
G86: Debt Service Coverage Ratio (DSCR): | I86: =IFERROR(E81/I82,0) -> 0 | K86: =IF(I89="INCOMPLETE","INCOMPLETE",IF(E9=FullDoc,IF(I86>=MinimumDSCRFullDoc,"PASS","FAIL"),IF(E9=AltDoc,IF(I86>=MinimumDSCRAltDoc,"PASS","FAIL"),IF(E9=LeaseDoc,IF(I86>=MinimumDSCRLeaseDoc,"PASS","FAIL"))))) -> INCOMPLETE
I88: Application Status
I89: =IF(OR(E8="",I8="",E9="",I9="",I9<I10),"INCOMPLETE","COMPLETE") -> INCOMPLETE

Sheet SEIC
B1: Self-Employed Income Calculator
C3: Business 1 | N3: Business 2
C5: Business Name | N5: Business Name
D7: Most Recent Year | F7: Previous Year | O7: Most Recent Year | Q7: Previous Year
C8: Financial year end date (DD/MM/YYYY) | N8: Financial year end date (DD/MM/YYYY) | P8: 42551
C10: Gross Business Income | N10: Gross Business Income
C11: less expenses | N11: less expenses
C12: plus superannuation over 11% | N12: plus superannuation over 11%
C14: plus depreciation | N14: plus depreciation
C15: plus interest / leasing charges | N15: plus interest / leasing charges
C17: less Ongoing Business Loan REPAYMENTS | N17: less Ongoing Business Loan REPAYMENTS
H18: Total Business Income | S18: Total Business Income
C19: Director Wages: | H19: Most Recent Year | I19: Previous Year | N19: Director Wages: | S19: Most Recent Year | T19: Previous Year
C20: Applicant 1 | H20: =(D$10-D$11+D$12-D$17)*D28+D20 -> 0 | I20: =(F$10-F$11+F$12-D$17)*F28+F20 -> 0 | N20: Applicant 1 | S20: =(O$10-O$11+O$12-O$17)*O28+O20 -> 0 | T20: =(Q$10-Q$11+Q$12-O$17)*Q28+Q20 -> 0
C21: Applicant 2 | H21: =(D$10-D$11+D$12-D$17)*D29+D21 -> 0 | I21: =(F$10-F$11+F$12-D$17)*F29+F21 -> 0 | N21: Applicant 2 | S21: =(O$10-O$11+O$12-O$17)*O29+O21 -> 0 | T21: =(Q$10-Q$11+Q$12-O$17)*Q29+Q21 -> 0
C22: Applicant 3 | H22: 0 | I22: 0 | N22: Applicant 3 | S22: 0 | T22: 0
C23: Applicant 4 | H23: 0 | I23: 0 | N23: Applicant 4 | S23: 0 | T23: 0
C24: Applicant 5 | H24: 0 | I24: 0 | N24: Applicant 5 | S24: 0 | T24: 0
C25: Applicant 6 | H25: 0 | I25: 0 | N25: Applicant 6 | S25: 0 | T25: 0
H26: Untaxed Addbacks | S26: Untaxed Addbacks
C27: Applicant's Entitlement: | H27: Most Recent Year | I27: Previous Year | N27: Applicant's Entitlement: | S27: Most Recent Year | T27: Previous Year
C28: Applicant 1 | H28: =(D$15+D$14)*$D28 -> 0 | I28: =(F$15+F$14)*$F28 -> 0 | N28: Applicant 1 | S28: =(O$15+O$14)*$O28 -> 0 | T28: =(Q$15+Q$14)*$Q28 -> 0
C29: Applicant 2 | H29: 0 | I29: 0 | N29: Applicant 2 | S29: 0 | T29: 0
C30: Applicant 3 | H30: 0 | I30: 0 | N30: Applicant 3 | S30: 0 | T30: 0
C31: Applicant 4 | H31: 0 | I31: 0 | N31: Applicant 4 | S31: 0 | T31: 0
C32: Applicant 5 | H32: 0 | I32: 0 | N32: Applicant 5 | S32: 0 | T32: 0
C33: Applicant 6 | H33: 0 | I33: 0 | N33: Applicant 6 | S33: 0 | T33: 0
D34: =IF(SUM(D28:D33)>100%,"Check: >100%","") ->  | F34: =IF(SUM(F28:F33)>100%,"Check","") ->  | O34: =IF(SUM(O28:O33)>100%,"Check: >100%","") ->  | Q34: =IF(SUM(Q28:Q33)>100%,"Check","") -> 
C35: Calculations: Business 1 | N35: Calculations: Business 2
D37: Self-Employed Income | O37: Self-Employed Income
C38: Applicant 1 | D38: =IF(H20>I20,AVERAGE(H20,I20),H20) -> 0 | N38: Applicant 1 | O38: =IF(S20>T20,AVERAGE(S20,T20),S20) -> 0
C39: Applicant 2 | D39: 0 | N39: Applicant 2 | O39: 0
C40: Applicant 3 | D40: 0 | N40: Applicant 3 | O40: 0
C41: Applicant 4 | D41: 0 | N41: Applicant 4 | O41: 0
C42: Applicant 5 | D42: 0 | N42: Applicant 5 | O42: 0
C43: Applicant 6 | D43: 0 | N43: Applicant 6 | O43: 0
D45: Addbacks | O45: Addbacks
C46: Applicant 1 | D46: =IF(H28>I28,AVERAGE(H28,I28),H28) -> 0 | N46: Applicant 1 | O46: =IF(S28>T28,AVERAGE(S28,T28),S28) -> 0
C47: Applicant 2 | D47: 0 | N47: Applicant 2 | O47: 0
C48: Applicant 3 | D48: 0 | N48: Applicant 3 | O48: 0
C49: Applicant 4 | D49: 0 | N49: Applicant 4 | O49: 0
C50: Applicant 5 | D50: 0 | N50: Applicant 5 | O50: 0
C51: Applicant 6 | D51: 0 | N51: Applicant 6 | O51: 0
C56: Outputs
D58: Self-Employed Income
C59: Applicant 1 | D59: =D38+O38 -> 0
C60: Applicant 2 | D60: 0
C61: Applicant 3 | D61: 0
C62: Applicant 4 | D62: 0
C63: Applicant 5 | D63: 0
C64: Applicant 6 | D64: 0
D66: Addbacks
C67: Applicant 1 | D67: =D46+O46 -> 0
C68: Applicant 2 | D68: 0
C69: Applicant 3 | D69: 0
C70: Applicant 4 | D70: 0
C71: Applicant 5 | D71: 0
C72: Applicant 6 | D72: 0

Sheet Validation (hidden)
A1: Residential | B1: Applicant 1 | C1: Applicant 2 | D1: Applicant 3 | E1: Applicant 4 | F1: Applicant 5 | G1: Applicant 6 | I1: CRE | J1: Applicant 1 | K1: Applicant 2 | L1: Applicant 3 | M1: Applicant 4 | O1: CREBetterChoice | P1: Applicant 1 | Q1: Applicant 2 | R1: Applicant 3 | S1: Applicant 4 | V1: Valid Status Resi | X1: Valid Status CRE | Z1: Valid Status CREBC
A2: Applicant 1 | B2: =IF(AND(B$1<>$A2,HLOOKUP($A2,Residential!$E$14:$O$15,2,FALSE)="Individual (Couple)",Residential!E$15="Individual (Couple)"),$A2) -> FALSE | C2: =IF(AND(C$1<>$A2,HLOOKUP($A2,Residential!$E$14:$O$15,2,FALSE)="Individual (Couple)",Residential!G$15="Individual (Couple)"),$A2) -> FALSE | D2: =IF(AND(D$1<>$A2,HLOOKUP($A2,Residential!$E$14:$O$15,2,FALSE)="Individual (Couple)",Residential!I$15="Individual (Couple)"),$A2) -> FALSE | E2: =IF(AND(E$1<>$A2,HLOOKUP($A2,Residential!$E$14:$O$15,2,FALSE)="Individual (Couple)",Residential!K$15="Individual (Couple)"),$A2) -> FALSE | F2: =IF(AND(F$1<>$A2,HLOOKUP($A2,Residential!$E$14:$O$15,2,FALSE)="Individual (Couple)",Residential!M$15="Individual (Couple)"),$A2) -> FALSE | G2: =IF(AND(G$1<>$A2,HLOOKUP($A2,Residential!$E$14:$O$15,2,FALSE)="Individual (Couple)",Residential!O$15="Individual (Couple)"),$A2) -> FALSE | I2: Applicant 1 | J2: =IF(AND(J$1<>$I2,HLOOKUP($I2,Commercial!$E$38:$K$39,2,FALSE)="Individual (Couple)",Commercial!E$39="Individual (Couple)"),$I2) -> FALSE | K2: =IF(AND(K$1<>$I2,HLOOKUP($I2,Commercial!$E$38:$K$39,2,FALSE)="Individual (Couple)",Commercial!G$39="Individual (Couple)"),$I2) -> FALSE | L2: =IF(AND(L$1<>$I2,HLOOKUP($I2,Commercial!$E$38:$K$39,2,FALSE)="Individual (Couple)",Commercial!I$39="Individual (Couple)"),$I2) -> FALSE | M2: =IF(AND(M$1<>$I2,HLOOKUP($I2,Commercial!$E$38:$K$39,2,FALSE)="Individual (Couple)",Commercial!K$39="Individual (Couple)"),$I2) -> FALSE | O2: Applicant 1 | P2: =IF(AND(P$1<>$O2,HLOOKUP($O2,#REF!,2,FALSE)="Individual (Couple)",#REF!="Individual (Couple)"),$O2) ->  | Q2: =IF(AND(Q$1<>$O2,HLOOKUP($O2,#REF!,2,FALSE)="Individual (Couple)",#REF!="Individual (Couple)"),$O2) ->  | R2: =IF(AND(R$1<>$O2,HLOOKUP($O2,#REF!,2,FALSE)="Individual (Couple)",#REF!="Individual (Couple)"),$O2) ->  | S2: =IF(AND(S$1<>$O2,HLOOKUP($O2,#REF!,2,FALSE)="Individual (Couple)",#REF!="Individual (Couple)"),$O2) ->  | V2: Company | X2: Individual (Single) | Z2: Individual (Single)
A3: Applicant 2 | B3: =IF(AND(B$1<>$A3,HLOOKUP($A3,Residential!$E$14:$O$15,2,FALSE)="Individual (Couple)",Residential!E$15="Individual (Couple)"),$A3) -> FALSE | C3: =IF(AND(C$1<>$A3,HLOOKUP($A3,Residential!$E$14:$O$15,2,FALSE)="Individual (Couple)",Residential!G$15="Individual (Couple)"),$A3) -> FALSE | D3: =IF(AND(D$1<>$A3,HLOOKUP($A3,Residential!$E$14:$O$15,2,FALSE)="Individual (Couple)",Residential!I$15="Individual (Couple)"),$A3) -> FALSE | E3: =IF(AND(E$1<>$A3,HLOOKUP($A3,Residential!$E$14:$O$15,2,FALSE)="Individual (Couple)",Residential!K$15="Individual (Couple)"),$A3) -> FALSE | F3: =IF(AND(F$1<>$A3,HLOOKUP($A3,Residential!$E$14:$O$15,2,FALSE)="Individual (Couple)",Residential!M$15="Individual (Couple)"),$A3) -> FALSE | G3: =IF(AND(G$1<>$A3,HLOOKUP($A3,Residential!$E$14:$O$15,2,FALSE)="Individual (Couple)",Residential!O$15="Individual (Couple)"),$A3) -> FALSE | I3: Applicant 2 | J3: =IF(AND(J$1<>$I3,HLOOKUP($I3,Commercial!$E$38:$K$39,2,FALSE)="Individual (Couple)",Commercial!E$39="Individual (Couple)"),$I3) -> FALSE | K3: =IF(AND(K$1<>$I3,HLOOKUP($I3,Commercial!$E$38:$K$39,2,FALSE)="Individual (Couple)",Commercial!G$39="Individual (Couple)"),$I3) -> FALSE | L3: =IF(AND(L$1<>$I3,HLOOKUP($I3,Commercial!$E$38:$K$39,2,FALSE)="Individual (Couple)",Commercial!I$39="Individual (Couple)"),$I3) -> FALSE | M3: =IF(AND(M$1<>$I3,HLOOKUP($I3,Commercial!$E$38:$K$39,2,FALSE)="Individual (Couple)",Commercial!K$39="Individual (Couple)"),$I3) -> FALSE | O3: Applicant 2 | P3: =IF(AND(P$1<>$O3,HLOOKUP($O3,#REF!,2,FALSE)="Individual (Couple)",#REF!="Individual (Couple)"),$O3) ->  | Q3: =IF(AND(Q$1<>$O3,HLOOKUP($O3,#REF!,2,FALSE)="Individual (Couple)",#REF!="Individual (Couple)"),$O3) ->  | R3: =IF(AND(R$1<>$O3,HLOOKUP($O3,#REF!,2,FALSE)="Individual (Couple)",#REF!="Individual (Couple)"),$O3) ->  | S3: =IF(AND(S$1<>$O3,HLOOKUP($O3,#REF!,2,FALSE)="Individual (Couple)",#REF!="Individual (Couple)"),$O3) ->  | V3: Individual (Single) | X3: Individual (Couple) | Z3: Individual (Couple)
A4: Applicant 3 | B4: =IF(AND(B$1<>$A4,HLOOKUP($A4,Residential!$E$14:$O$15,2,FALSE)="Individual (Couple)",Residential!E$15="Individual (Couple)"),$A4) -> FALSE | C4: =IF(AND(C$1<>$A4,HLOOKUP($A4,Residential!$E$14:$O$15,2,FALSE)="Individual (Couple)",Residential!G$15="Individual (Couple)"),$A4) -> FALSE | D4: =IF(AND(D$1<>$A4,HLOOKUP($A4,Residential!$E$14:$O$15,2,FALSE)="Individual (Couple)",Residential!I$15="Individual (Couple)"),$A4) -> FALSE | E4: =IF(AND(E$1<>$A4,HLOOKUP($A4,Residential!$E$14:$O$15,2,FALSE)="Individual (Couple)",Residential!K$15="Individual (Couple)"),$A4) -> FALSE | F4: =IF(AND(F$1<>$A4,HLOOKUP($A4,Residential!$E$14:$O$15,2,FALSE)="Individual (Couple)",Residential!M$15="Individual (Couple)"),$A4) -> FALSE | G4: =IF(AND(G$1<>$A4,HLOOKUP($A4,Residential!$E$14:$O$15,2,FALSE)="Individual (Couple)",Residential!O$15="Individual (Couple)"),$A4) -> FALSE | I4: Applicant 3 | J4: =IF(AND(J$1<>$I4,HLOOKUP($I4,Commercial!$E$38:$K$39,2,FALSE)="Individual (Couple)",Commercial!E$39="Individual (Couple)"),$I4) -> FALSE | K4: =IF(AND(K$1<>$I4,HLOOKUP($I4,Commercial!$E$38:$K$39,2,FALSE)="Individual (Couple)",Commercial!G$39="Individual (Couple)"),$I4) -> FALSE | L4: =IF(AND(L$1<>$I4,HLOOKUP($I4,Commercial!$E$38:$K$39,2,FALSE)="Individual (Couple)",Commercial!I$39="Individual (Couple)"),$I4) -> FALSE | M4: =IF(AND(M$1<>$I4,HLOOKUP($I4,Commercial!$E$38:$K$39,2,FALSE)="Individual (Couple)",Commercial!K$39="Individual (Couple)"),$I4) -> FALSE | O4: Applicant 3 | P4: =IF(AND(P$1<>$O4,HLOOKUP($O4,#REF!,2,FALSE)="Individual (Couple)",#REF!="Individual (Couple)"),$O4) ->  | Q4: =IF(AND(Q$1<>$O4,HLOOKUP($O4,#REF!,2,FALSE)="Individual (Couple)",#REF!="Individual (Couple)"),$O4) ->  | R4: =IF(AND(R$1<>$O4,HLOOKUP($O4,#REF!,2,FALSE)="Individual (Couple)",#REF!="Individual (Couple)"),$O4) ->  | S4: =IF(AND(S$1<>$O4,HLOOKUP($O4,#REF!,2,FALSE)="Individual (Couple)",#REF!="Individual (Couple)"),$O4) ->  | V4: Individual (Couple)
A5: Applicant 4 | B5: =IF(AND(B$1<>$A5,HLOOKUP($A5,Residential!$E$14:$O$15,2,FALSE)="Individual (Couple)",Residential!E$15="Individual (Couple)"),$A5) -> FALSE | C5: =IF(AND(C$1<>$A5,HLOOKUP($A5,Residential!$E$14:$O$15,2,FALSE)="Individual (Couple)",Residential!G$15="Individual (Couple)"),$A5) -> FALSE | D5: =IF(AND(D$1<>$A5,HLOOKUP($A5,Residential!$E$14:$O$15,2,FALSE)="Individual (Couple)",Residential!I$15="Individual (Couple)"),$A5) -> FALSE | E5: =IF(AND(E$1<>$A5,HLOOKUP($A5,Residential!$E$14:$O$15,2,FALSE)="Individual (Couple)",Residential!K$15="Individual (Couple)"),$A5) -> FALSE | F5: =IF(AND(F$1<>$A5,HLOOKUP($A5,Residential!$E$14:$O$15,2,FALSE)="Individual (Couple)",Residential!M$15="Individual (Couple)"),$A5) -> FALSE | G5: =IF(AND(G$1<>$A5,HLOOKUP($A5,Residential!$E$14:$O$15,2,FALSE)="Individual (Couple)",Residential!O$15="Individual (Couple)"),$A5) -> FALSE | I5: Applicant 4 | J5: =IF(AND(J$1<>$I5,HLOOKUP($I5,Commercial!$E$38:$K$39,2,FALSE)="Individual (Couple)",Commercial!E$39="Individual (Couple)"),$I5) -> FALSE | K5: =IF(AND(K$1<>$I5,HLOOKUP($I5,Commercial!$E$38:$K$39,2,FALSE)="Individual (Couple)",Commercial!G$39="Individual (Couple)"),$I5) -> FALSE | L5: =IF(AND(L$1<>$I5,HLOOKUP($I5,Commercial!$E$38:$K$39,2,FALSE)="Individual (Couple)",Commercial!I$39="Individual (Couple)"),$I5) -> FALSE | M5: =IF(AND(M$1<>$I5,HLOOKUP($I5,Commercial!$E$38:$K$39,2,FALSE)="Individual (Couple)",Commercial!K$39="Individual (Couple)"),$I5) -> FALSE | O5: Applicant 4 | P5: =IF(AND(P$1<>$O5,HLOOKUP($O5,#REF!,2,FALSE)="Individual (Couple)",#REF!="Individual (Couple)"),$O5) ->  | Q5: =IF(AND(Q$1<>$O5,HLOOKUP($O5,#REF!,2,FALSE)="Individual (Couple)",#REF!="Individual (Couple)"),$O5) ->  | R5: =IF(AND(R$1<>$O5,HLOOKUP($O5,#REF!,2,FALSE)="Individual (Couple)",#REF!="Individual (Couple)"),$O5) ->  | S5: =IF(AND(S$1<>$O5,HLOOKUP($O5,#REF!,2,FALSE)="Individual (Couple)",#REF!="Individual (Couple)"),$O5) -> 
A6: Applicant 5 | B6: =IF(AND(B$1<>$A6,HLOOKUP($A6,Residential!$E$14:$O$15,2,FALSE)="Individual (Couple)",Residential!E$15="Individual (Couple)"),$A6) -> FALSE | C6: =IF(AND(C$1<>$A6,HLOOKUP($A6,Residential!$E$14:$O$15,2,FALSE)="Individual (Couple)",Residential!G$15="Individual (Couple)"),$A6) -> FALSE | D6: =IF(AND(D$1<>$A6,HLOOKUP($A6,Residential!$E$14:$O$15,2,FALSE)="Individual (Couple)",Residential!I$15="Individual (Couple)"),$A6) -> FALSE | E6: =IF(AND(E$1<>$A6,HLOOKUP($A6,Residential!$E$14:$O$15,2,FALSE)="Individual (Couple)",Residential!K$15="Individual (Couple)"),$A6) -> FALSE | F6: =IF(AND(F$1<>$A6,HLOOKUP($A6,Residential!$E$14:$O$15,2,FALSE)="Individual (Couple)",Residential!M$15="Individual (Couple)"),$A6) -> FALSE | G6: =IF(AND(G$1<>$A6,HLOOKUP($A6,Residential!$E$14:$O$15,2,FALSE)="Individual (Couple)",Residential!O$15="Individual (Couple)"),$A6) -> FALSE
A7: Applicant 6 | B7: =IF(AND(B$1<>$A7,HLOOKUP($A7,Residential!$E$14:$O$15,2,FALSE)="Individual (Couple)",Residential!E$15="Individual (Couple)"),$A7) -> FALSE | C7: =IF(AND(C$1<>$A7,HLOOKUP($A7,Residential!$E$14:$O$15,2,FALSE)="Individual (Couple)",Residential!G$15="Individual (Couple)"),$A7) -> FALSE | D7: =IF(AND(D$1<>$A7,HLOOKUP($A7,Residential!$E$14:$O$15,2,FALSE)="Individual (Couple)",Residential!I$15="Individual (Couple)"),$A7) -> FALSE | E7: =IF(AND(E$1<>$A7,HLOOKUP($A7,Residential!$E$14:$O$15,2,FALSE)="Individual (Couple)",Residential!K$15="Individual (Couple)"),$A7) -> FALSE | F7: =IF(AND(F$1<>$A7,HLOOKUP($A7,Residential!$E$14:$O$15,2,FALSE)="Individual (Couple)",Residential!M$15="Individual (Couple)"),$A7) -> FALSE | G7: =IF(AND(G$1<>$A7,HLOOKUP($A7,Residential!$E$14:$O$15,2,FALSE)="Individual (Couple)",Residential!O$15="Individual (Couple)"),$A7) -> FALSE
B9: =IF(MID(Residential!E15,13,6)<>"Couple","","N/A") ->  | C9: =IF(MID(Residential!G15,13,6)<>"Couple","","N/A") ->  | D9: =IF(MID(Residential!I15,13,6)<>"Couple","","N/A") ->  | E9: =IF(MID(Residential!K15,13,6)<>"Couple","","N/A") ->  | F9: =IF(MID(Residential!M15,13,6)<>"Couple","","N/A") ->  | G9: =IF(MID(Residential!O15,13,6)<>"Couple","","N/A") ->  | J9: =IF(MID(Commercial!$E39,13,6)<>"Couple","","N/A") ->  | K9: =IF(MID(Commercial!$G39,13,6)<>"Couple","","N/A") ->  | L9: =IF(MID(Commercial!$I39,13,6)<>"Couple","","N/A") ->  | M9: =IF(MID(Commercial!$K39,13,6)<>"Couple","","N/A") ->  | P9: =IF(MID(#REF!,13,6)<>"Couple","","N/A") ->  | Q9: =IF(MID(#REF!,13,6)<>"Couple","","N/A") ->  | R9: =IF(MID(#REF!,13,6)<>"Couple","","N/A") ->  | S9: =IF(MID(#REF!,13,6)<>"Couple","","N/A") -> 
B10: =IF(MID(Residential!E15,13,6)<>"Couple","","Non-loan party") ->  | C10: =IF(MID(Residential!G15,13,6)<>"Couple","","Non-loan party") ->  | D10: =IF(MID(Residential!I15,13,6)<>"Couple","","Non-loan party") ->  | E10: =IF(MID(Residential!K15,13,6)<>"Couple","","Non-loan party") ->  | F10: =IF(MID(Residential!M15,13,6)<>"Couple","","Non-loan party") ->  | G10: =IF(MID(Residential!O15,13,6)<>"Couple","","Non-loan party") ->  | J10: =IF(MID(Commercial!$E39,13,6)<>"Couple","","Non-loan party") ->  | K10: =IF(MID(Commercial!$G39,13,6)<>"Couple","","Non-loan party") ->  | L10: =IF(MID(Commercial!$I39,13,6)<>"Couple","","Non-loan party") ->  | M10: =IF(MID(Commercial!$K39,13,6)<>"Couple","","Non-loan party") ->  | P10: =IF(MID(#REF!,13,6)<>"Couple","","Non-loan party") ->  | Q10: =IF(MID(#REF!,13,6)<>"Couple","","Non-loan party") ->  | R10: =IF(MID(#REF!,13,6)<>"Couple","","Non-loan party") ->  | S10: =IF(MID(#REF!,13,6)<>"Couple","","Non-loan party") -> 
B11: =IFERROR(INDEX(B$2:B$7,SMALL(IF(ISTEXT(B$2:B$7),ROW(B$1:B$6),""), ROW(B2)-1)),"-") -> - | C11: =IFERROR(INDEX(C$2:C$7,SMALL(IF(ISTEXT(C$2:C$7),ROW(C$1:C$6),""), ROW(C2)-1)),"-") -> - | D11: =IFERROR(INDEX(D$2:D$7,SMALL(IF(ISTEXT(D$2:D$7),ROW(D$1:D$6),""), ROW(D2)-1)),"-") -> - | E11: =IFERROR(INDEX(E$2:E$7,SMALL(IF(ISTEXT(E$2:E$7),ROW(E$1:E$6),""), ROW(E2)-1)),"-") -> - | F11: =IFERROR(INDEX(F$2:F$7,SMALL(IF(ISTEXT(F$2:F$7),ROW(F$1:F$6),""), ROW(F2)-1)),"-") -> - | G11: =IFERROR(INDEX(G$2:G$7,SMALL(IF(ISTEXT(G$2:G$7),ROW(G$1:G$6),""), ROW(G2)-1)),"-") -> - | J11: =IFERROR(INDEX(J$2:J$5,SMALL(IF(ISTEXT(J$2:J$5),ROW(J$1:J$4),""), ROW(J2)-1)),"-") -> - | K11: =IFERROR(INDEX(K$2:K$5,SMALL(IF(ISTEXT(K$2:K$5),ROW(K$1:K$4),""), ROW(K2)-1)),"-") -> - | L11: =IFERROR(INDEX(L$2:L$5,SMALL(IF(ISTEXT(L$2:L$5),ROW(L$1:L$4),""), ROW(L2)-1)),"-") -> - | M11: =IFERROR(INDEX(M$2:M$5,SMALL(IF(ISTEXT(M$2:M$5),ROW(M$1:M$4),""), ROW(M2)-1)),"-") -> - | P11: =IFERROR(INDEX(P$2:P$5,SMALL(IF(ISTEXT(P$2:P$5),ROW(P$1:P$4),""), ROW(P2)-1)),"-") -> - | Q11: =IFERROR(INDEX(Q$2:Q$5,SMALL(IF(ISTEXT(Q$2:Q$5),ROW(Q$1:Q$4),""), ROW(Q2)-1)),"-") -> - | R11: =IFERROR(INDEX(R$2:R$5,SMALL(IF(ISTEXT(R$2:R$5),ROW(R$1:R$4),""), ROW(R2)-1)),"-") -> - | S11: =IFERROR(INDEX(S$2:S$5,SMALL(IF(ISTEXT(S$2:S$5),ROW(S$1:S$4),""), ROW(S2)-1)),"-") -> -
B12: =IFERROR(INDEX(B$2:B$7,SMALL(IF(ISTEXT(B$2:B$7),ROW(B$1:B$6),""), ROW(B3)-1)),"-") -> - | C12: =IFERROR(INDEX(C$2:C$7,SMALL(IF(ISTEXT(C$2:C$7),ROW(C$1:C$6),""), ROW(C3)-1)),"-") -> - | D12: =IFERROR(INDEX(D$2:D$7,SMALL(IF(ISTEXT(D$2:D$7),ROW(D$1:D$6),""), ROW(D3)-1)),"-") -> - | E12: =IFERROR(INDEX(E$2:E$7,SMALL(IF(ISTEXT(E$2:E$7),ROW(E$1:E$6),""), ROW(E3)-1)),"-") -> - | F12: =IFERROR(INDEX(F$2:F$7,SMALL(IF(ISTEXT(F$2:F$7),ROW(F$1:F$6),""), ROW(F3)-1)),"-") -> - | G12: =IFERROR(INDEX(G$2:G$7,SMALL(IF(ISTEXT(G$2:G$7),ROW(G$1:G$6),""), ROW(G3)-1)),"-") -> - | J12: =IFERROR(INDEX(J$2:J$5,SMALL(IF(ISTEXT(J$2:J$5),ROW(J$1:J$4),""), ROW(J3)-1)),"-") -> - | K12: =IFERROR(INDEX(K$2:K$5,SMALL(IF(ISTEXT(K$2:K$5),ROW(K$1:K$4),""), ROW(K3)-1)),"-") -> - | L12: =IFERROR(INDEX(L$2:L$5,SMALL(IF(ISTEXT(L$2:L$5),ROW(L$1:L$4),""), ROW(L3)-1)),"-") -> - | M12: =IFERROR(INDEX(M$2:M$5,SMALL(IF(ISTEXT(M$2:M$5),ROW(M$1:M$4),""), ROW(M3)-1)),"-") -> - | P12: =IFERROR(INDEX(P$2:P$5,SMALL(IF(ISTEXT(P$2:P$5),ROW(P$1:P$4),""), ROW(P3)-1)),"-") -> - | Q12: =IFERROR(INDEX(Q$2:Q$5,SMALL(IF(ISTEXT(Q$2:Q$5),ROW(Q$1:Q$4),""), ROW(Q3)-1)),"-") -> - | R12: =IFERROR(INDEX(R$2:R$5,SMALL(IF(ISTEXT(R$2:R$5),ROW(R$1:R$4),""), ROW(R3)-1)),"-") -> - | S12: =IFERROR(INDEX(S$2:S$5,SMALL(IF(ISTEXT(S$2:S$5),ROW(S$1:S$4),""), ROW(S3)-1)),"-") -> -
B13: =IFERROR(INDEX(B$2:B$7,SMALL(IF(ISTEXT(B$2:B$7),ROW(B$1:B$6),""), ROW(B4)-1)),"-") -> - | C13: =IFERROR(INDEX(C$2:C$7,SMALL(IF(ISTEXT(C$2:C$7),ROW(C$1:C$6),""), ROW(C4)-1)),"-") -> - | D13: =IFERROR(INDEX(D$2:D$7,SMALL(IF(ISTEXT(D$2:D$7),ROW(D$1:D$6),""), ROW(D4)-1)),"-") -> - | E13: =IFERROR(INDEX(E$2:E$7,SMALL(IF(ISTEXT(E$2:E$7),ROW(E$1:E$6),""), ROW(E4)-1)),"-") -> - | F13: =IFERROR(INDEX(F$2:F$7,SMALL(IF(ISTEXT(F$2:F$7),ROW(F$1:F$6),""), ROW(F4)-1)),"-") -> - | G13: =IFERROR(INDEX(G$2:G$7,SMALL(IF(ISTEXT(G$2:G$7),ROW(G$1:G$6),""), ROW(G4)-1)),"-") -> - | J13: =IFERROR(INDEX(J$2:J$5,SMALL(IF(ISTEXT(J$2:J$5),ROW(J$1:J$4),""), ROW(J4)-1)),"-") -> - | K13: =IFERROR(INDEX(K$2:K$5,SMALL(IF(ISTEXT(K$2:K$5),ROW(K$1:K$4),""), ROW(K4)-1)),"-") -> - | L13: =IFERROR(INDEX(L$2:L$5,SMALL(IF(ISTEXT(L$2:L$5),ROW(L$1:L$4),""), ROW(L4)-1)),"-") -> - | M13: =IFERROR(INDEX(M$2:M$5,SMALL(IF(ISTEXT(M$2:M$5),ROW(M$1:M$4),""), ROW(M4)-1)),"-") -> - | P13: =IFERROR(INDEX(P$2:P$5,SMALL(IF(ISTEXT(P$2:P$5),ROW(P$1:P$4),""), ROW(P4)-1)),"-") -> - | Q13: =IFERROR(INDEX(Q$2:Q$5,SMALL(IF(ISTEXT(Q$2:Q$5),ROW(Q$1:Q$4),""), ROW(Q4)-1)),"-") -> - | R13: =IFERROR(INDEX(R$2:R$5,SMALL(IF(ISTEXT(R$2:R$5),ROW(R$1:R$4),""), ROW(R4)-1)),"-") -> - | S13: =IFERROR(INDEX(S$2:S$5,SMALL(IF(ISTEXT(S$2:S$5),ROW(S$1:S$4),""), ROW(S4)-1)),"-") -> -
B14: =IFERROR(INDEX(B$2:B$7,SMALL(IF(ISTEXT(B$2:B$7),ROW(B$1:B$6),""), ROW(B5)-1)),"-") -> - | C14: =IFERROR(INDEX(C$2:C$7,SMALL(IF(ISTEXT(C$2:C$7),ROW(C$1:C$6),""), ROW(C5)-1)),"-") -> - | D14: =IFERROR(INDEX(D$2:D$7,SMALL(IF(ISTEXT(D$2:D$7),ROW(D$1:D$6),""), ROW(D5)-1)),"-") -> - | E14: =IFERROR(INDEX(E$2:E$7,SMALL(IF(ISTEXT(E$2:E$7),ROW(E$1:E$6),""), ROW(E5)-1)),"-") -> - | F14: =IFERROR(INDEX(F$2:F$7,SMALL(IF(ISTEXT(F$2:F$7),ROW(F$1:F$6),""), ROW(F5)-1)),"-") -> - | G14: =IFERROR(INDEX(G$2:G$7,SMALL(IF(ISTEXT(G$2:G$7),ROW(G$1:G$6),""), ROW(G5)-1)),"-") -> -
B15: =IFERROR(INDEX(B$2:B$7,SMALL(IF(ISTEXT(B$2:B$7),ROW(B$1:B$6),""), ROW(B6)-1)),"-") -> - | C15: =IFERROR(INDEX(C$2:C$7,SMALL(IF(ISTEXT(C$2:C$7),ROW(C$1:C$6),""), ROW(C6)-1)),"-") -> - | D15: =IFERROR(INDEX(D$2:D$7,SMALL(IF(ISTEXT(D$2:D$7),ROW(D$1:D$6),""), ROW(D6)-1)),"-") -> - | E15: =IFERROR(INDEX(E$2:E$7,SMALL(IF(ISTEXT(E$2:E$7),ROW(E$1:E$6),""), ROW(E6)-1)),"-") -> - | F15: =IFERROR(INDEX(F$2:F$7,SMALL(IF(ISTEXT(F$2:F$7),ROW(F$1:F$6),""), ROW(F6)-1)),"-") -> - | G15: =IFERROR(INDEX(G$2:G$7,SMALL(IF(ISTEXT(G$2:G$7),ROW(G$1:G$6),""), ROW(G6)-1)),"-") -> -
A19: Dependents Lookup
A20: Dependents | B20: DependedntsCode
A21: 0 | B21: 1
A22: 1 | B22: 1
A23: 2 | B23: 2
A24: 3 | B24: 3
A25: 4 | B25: 4+
B37: Don’t remove | C37: Don’t remove
A39: Servicability Calculator | I39: CRE | O39: CREBetterChoice
B40: Applicant 1 | C40: Applicant 2 | D40: Applicant 3 | E40: Applicant 4 | F40: Applicant 5 | G40: Applicant 6 | I40: Applicant 1 | J40: Applicant 2 | K40: Applicant 3 | L40: Applicant 4 | O40: Applicant 1 | P40: Applicant 2 | Q40: Applicant 3 | R40: Applicant 4
A41: Status | Q41: 0 | R41: 0
A42: Individual (Couple) With | Q42: 0 | R42: 0

Sheet Tax Table (hidden)
I2: This is the Tax Offset for Low income earners
I3: https://www.ato.gov.au/individuals/income-deductions-offsets-and-records/tax-offsets/low-and-middle-income-earner-tax-offsets/
A4: Medicare Levy 2021 - 2022 | D4: 1 | E4: Tax offset for Low income earners | G4: Tax Offset reduced %
A5: Threshold | B5: Value | C5: Rate | E5: Thresholds | F5: Max Tax Offset
A6: Minimum for partial levy | B6: 23365 | C6: 0.1 | E6: 0 | F6: 700
A7: Minimum for full levy | B7: 29207 | C7: 0.02 | E7: 37500 | F7: 700 | G7: -0.05
E8: 45000 | F8: 325 | G8: -0.015
A9: Tax 2021-2022 | E9: 66667 | F9: 0
A10: Tax Bracket Min | B10: Tax For Bracket | C10: Tax Rate | E10: 999999999
A11: 0 | B11: 0 | C11: 0
A12: 18200 | B12: 0 | C12: 0.19
A13: 45000 | B13: =(A13-A12)*C12 -> 5092 | C13: 0.325
A14: 120000 | B14: =(A13-A12)*C12+(A14-A13)*C13 -> 29467 | C14: 0.37
A15: 180000 | B15: =(A13-A12)*C12+(A14-A13)*C13+(A15-A14)*C14 -> 51667 | C15: 0.45
A16: 999999999 | B16: =B15 -> 51667 | C16: 0.45
A18: Tax 2022-2023
A19: Tax Bracket Min | B19: Tax For Bracket | C19: Tax Rate | I19: This is the Medicare levy reduction for low income earners
A20: 0 | B20: 0 | C20: 0 | I20: https://www.ato.gov.au/Individuals/Medicare-and-private-health-insurance/Medicare-levy/Medicare-levy-reduction/Medicare-levy-reduction-for-low-income-earners/
A21: 18200 | B21: 0 | C21: 0.19
A22: 45000 | B22: =(A22-A21)*C21 -> 5092 | C22: 0.325
A23: 120000 | B23: =(A22-A21)*C21+(A23-A22)*C22 -> 29467 | C23: 0.37
A24: 180000 | B24: =(A22-A21)*C21+(A23-A22)*C22+(A24-A23)*C23 -> 51667 | C24: 0.45
A25: 999999999 | B25: =B24 -> 51667 | C25: 0.45

Sheet Inputs (hidden)
A1: Inputs | K1: Hem Classification
K2: Category | L2: Compared to HEM | O2: Note: Please make changes in "Residential" Worksheet column K and L
A3: Baseline Assessment Rate | B3: 0.055 | H3: Owner occupied property utilities, rates & costs | K3: =Residential!C50 -> Primary residence utilities, rates & expenses | L3: =Residential!F50 -> Yes
H4: Rented property costs | K4: =Residential!C51 -> Primary residence strata fees & land tax & FHB property tax | L4: =Residential!F51 -> No
A5: Assessment Loading | B5: =IF(Residential!K8="1.00% (eligibility below)", 1%,2%) -> 0.02 | H5: Investment property utilities, rates & costs | K5: =Residential!C52 -> Investment property utilities, rates, strata fees & land tax | L5: =Residential!F52 -> No
H6: Telephone, Internet, Pay TV & Media Streaming | K6: =Residential!C53 -> Telephone, internet, Pay TV & media streaming | L6: =Residential!F53 -> Yes
A7: Credit Card Commitments | B7: 0.0382 | H7: Groceries | K7: =Residential!C54 -> Groceries | L7: =Residential!F54 -> Yes
H8: Recreation & Entertainment | K8: =Residential!C55 -> Recreation & Entertainment | L8: =Residential!F55 -> Yes
A9: Workings for Negative Gearing | B9: 0.0604 | H9: Clothing & Personal Care | K9: =Residential!C56 -> Clothing & Personal Care | L9: =Residential!F56 -> Yes
H10: Medical & Health | K10: =Residential!C57 -> Medical & Health | L10: =Residential!F57 -> Yes
A11: Other Mortgage Repayment Buffer | B11: 1.25 | H11: Transport | K11: =Residential!C58 -> Transport | L11: =Residential!F58 -> Yes
H12: Education | K12: =Residential!C59 -> Education – non Private schooling | L12: =Residential!F59 -> Yes
A13: Rental Income Shading | B13: 0.8 | K13: =Residential!C60 -> Education - Private schooling | L13: =Residential!F60 -> No
H14: Childcare | K14: =Residential!C61 -> Childcare | L14: =Residential!F61 -> Yes
A15: Company Tax | B15: 0.25 | H15: Insurance | K15: =Residential!C62 -> Insurance - General Basic | L15: =Residential!F62 -> Yes
K16: =Residential!C63 -> Insurance - Health, Sickness, Personal Accident & Life | L16: =Residential!F63 -> No
A17: NumberOfWeeksInAYear | B17: 52 | H17: Other Living Expenses | K17: =Residential!C64 -> Other Living Expenses | L17: =Residential!F64 -> No
A18: NumberOfMonthsInAYear | B18: 12 | K18: =Residential!C65 -> Child & Spousal Maintenance | L18: =Residential!F65 -> No
A20: Acceptable NSR For LVR > 90% | B20: 1.35
A21: Acceptable NSR For Applicants with majority income as Government Allowances | B21: 1.25
A22: Acceptable NSR for All other applicants | B22: 1
A24: Allowable Government Allowance over Total Income Limitation | B24: 0.5
H28: List for 1% buffer
H30: 0.02
H31: 1.00% (eligibility below)
A32: CRE
B33: Full Doc | C33: Alt Doc | D33: Lease Doc
A34: Minimum ICR | B34: 0 | C34: 0 | D34: 0
A35: Minimum DSCR | B35: 0.995 | C35: 1.195 | D35: 0.995
A36: Minimum DSCR Better Choice | B36: 1.495 | C36: 1.495 | D36: 1.495
A37: Minimum DSCR Better Choice with condition message | B37: 1.245 | C37: 1.245 | D37: 1.245 | F37: Refer BDM
A40: Residenital
A41: Minimum Loan Term in Years | B41: 10
A42: Maximum Loan Term In years | B42: 40
A43: Maximum Loan Term In Years For Prime Loans | B43: 30
A45: Minimum Interest Only Loan term in Years | B45: 0
A46: Maximum Interest Only Loan term in Years | B46: 5

Sheet Data (hidden)
A1: Total Loan Amount | B1: WAVG Interest Rate | C1: WAVG Assessment Rate | D1: Max Loan Term | E1: Max IO Term | F1: Loan Amount 1 | G1: Interest Rate 1 | H1: Assessement Rate 1 | I1: Loan Term 1 | J1: IO Term 1 | K1: Loan Amount 2 | L1: Interest Rate 2 | M1: Assessment Rate 2 | N1: Loan Term 2 | O1: IO Term 2 | P1: Status 1 | Q1: Status 2 | R1: Status 3 | S1: Status 4 | T1: Status 5 | U1: Status 6 | V1: Couple With 1 | W1: Couple With 2 | X1: Couple With 3 | Y1: Couple With 4 | Z1: Couple With 5 | AA1: Couple With 6 | AB1: Dependants 1 | AC1: Dependants 2 | AD1: Dependants 3 | AE1: Dependants 4 | AF1: Dependants 5 | AG1: Dependants 6 | AH1: Gross Annual Income 1 | AI1: Gross Annual Income 2 | AJ1: Gross Annual Income 3 | AK1: Gross Annual Income 4 | AL1: Gross Annual Income 5 | AM1: Gross Annual Income 6 | AN1: Untaxed Income 1 | AO1: Untaxed Income 2 | AP1: Untaxed Income 3 | AQ1: Untaxed Income 4 | AR1: Untaxed Income 5 | AS1: Untaxed Income 6 | AT1: SEIC 1 | AU1: SEIC 2 | AV1: SEIC 3 | AW1: SEIC 4 | AX1: SEIC 5 | AY1: SEIC 6 | AZ1: Add Backs 1 | BA1: Add Backs 2 | BB1: Add Backs 3 | BC1: Add Backs 4 | BD1: Add Backs 5 | BE1: Add Backs 6 | BF1: NPBT 1 | BG1: NPBT 2 | BH1: NPBT 3 | BI1: NPBT 4 | BJ1: NPBT 5 | BK1: NPBT 6 | BL1: Gross Rental Income 1 | BM1: Gross Rental Income 2 | BN1: Gross Rental Income 3 | BO1: Gross Rental Income 4 | BP1: Gross Rental Income 5 | BQ1: Gross Rental Income 6 | BR1: Investment Property Loan Balance 1 | BS1: Investment Property Loan Balance 2 | BT1: Investment Property Loan Balance 3 | BU1: Investment Property Loan Balance 4 | BV1: Investment Property Loan Balance 5 | BW1: Investment Property Loan Balance 6 | BX1: Primary residence utilities, rates & expenses | BY1: Primary residence strata fees & land tax | BZ1: Investment property utilities, rates, strata fees & land tax | CA1: Telephone, internet, Pay TV & media streaming | CB1: Groceries | CC1: Recreation & Entertainment | CD1: Clothing & Personal Care | CE1: Medical & Health | CF1: Transport | CG1: Education – non Private schooling | CH1: Education - Private schooling | CI1: Childcare | CJ1: Insurance - General Basic | CK1: Insurance - Health, Sickness, Personal Accident & Life | CL1: Other Living Expenses | CM1: Child & Spousal Maintenance | CN1: Compared To Hem - Primary residence costs including utilities, rates & expenses | CO1: Compared To Hem - Body Corporate Fees, Strata Fees, Land Tax on Owner Occupied property | CP1: Compared To Hem - Investment property costs including utilities, rates & strata fees & land tax | CQ1: Compared To Hem - Telephone, internet, Pay TV & media streaming | CR1: Compared To Hem - Groceries | CS1: Compared To Hem - Recreation & Entertainment | CT1: Compared To Hem - Clothing & Personal Care | CU1: Compared To Hem - Medical & Health | CV1: Compared To Hem - Transport | CW1: Compared To Hem - Education – non Private schooling | CX1: Compared To Hem - Education - Private schooling | CY1: Compared To Hem - Childcare | CZ1: Compared To Hem - Insurance - General Basic | DA1: Compared To Hem - Insurance - Health, Sickness and Personal Accident, Life | DB1: Compared To Hem - Other Living Expenses | DC1: Compared To Hem - Child and Spousal Maintenance | DD1: Rent/Board | DE1: Total Credit Card Limit | DF1: Other Mortgage Repayments | DG1: Other Liabilities | DH1: Tax Applicant 1 | DI1: Tax Applicant 2 | DJ1: Tax Applicant 3 | DK1: Tax Applicant 4 | DL1: Tax Applicant 5 | DM1: Tax Applicant 6 | DN1: Net Income Applicant 1 | DO1: Net Income Applicant 2 | DP1: Net Income Applicant 3 | DQ1: Net Income Applicant 4 | DR1: Net Income Applicant 5 | DS1: Net Income Applicant 6 | DT1: Net Income Total | DU1: Hem Living Expense Applicant 1 | DV1: Hem Living Expense Applicant 2 | DW1: Hem Living Expense Applicant 3 | DX1: Hem Living Expense Applicant 4 | DY1: Hem Living Expense Applicant 5 | DZ1: Hem Living Expense Applicant 6 | EA1: Hem Living Expense Total | EB1: Customer Nominated Living Expenses | EC1: Living Expense Used | ED1: Net Available Income | EE1: Baseline Assessment Rate | EF1: Assessment Loading | EG1: Credit Card Commitments | EH1: Workings for Negative Gearing | EI1: Other Mortgage Repayment Buffer | EJ1: Rental Income Shading | EK1: Company Tax | EL1: Actual Rate Monthly Total Income | EM1: Actual Rate Monthly - Net Income | EN1: Actual Rate Monthly - Living Costs | EO1: Actual Rate Monthly - Net Available Income | EP1: Actual Rate Monthly - Proposed Repayments | EQ1: Actual Rate Monthly - Other Commitments | ER1: Actual Rate Annually Total Income | ES1: Actual Rate Annually - Net Income | ET1: Actual Rate Annually - Living Costs | EU1: Actual Rate Annually - Net Available Income | EV1: Actual Rate Annually - Proposed Repayments | EW1: Actual Rate Annually - Other Commitments | EX1: Assessment Rate Monthly Total Income | EY1: Assessment Rate Monthly - Net Income | EZ1: Assessment Rate Monthly - Living Costs | FA1: Assessment Rate Monthly - Net Available Income | FB1: Assessment Rate Monthly - Proposed Repayments | FC1: Assessment Rate Monthly - Other Commitments | FD1: Assessment Rate Annually Total Income | FE1: Assessment Rate Annually - Net Income | FF1: Assessment Rate Annually - Living Costs | FG1: Assessment Rate Annually - Net Available Income | FH1: Assessment Rate Annually - Proposed Repayments | FI1: Assessment Rate Annually - Other Commitments | FJ1: Actual NSR | FK1: Actual DSR | FL1: Actual Results | FM1: Assessment NSR | FN1: Assessment DSR | FO1: Assessment Results | FP1: Eligible Loan Amount
A2: =ResiNewLoanTotalAmount -> 0 | B2: =ResiWAVGInterestRate -> 0 | C2: =ResiWAVGAssessmentRate -> 0.055 | D2: =ResiWAVGLoanTerm -> 0 | E2: =Residential!P12 -> 0 | F2: =ResiNewLoanAmount1 -> 0 | G2: =ResiInterestRate1 -> 0 | H2: =MAX(BaselineAssessmentRate,ResiInterestRate1+AssessmentLoading) -> 0.055 | I2: =ResiLoanTerm1 -> 0 | J2: =ResiLoanIOTerm1 -> 0 | K2: =ResiNewLoanAmount2 -> 0 | M2: =MAX(BaselineAssessmentRate,ResiInterestRate2+AssessmentLoading) -> 0.055 | N2: =ResiLoanTerm2 -> 0 | O2: =ResiLoanIOTerm2 -> 0 | P2: =IF(Residential!$E$15="","",Residential!$E$15) ->  | Q2: =IF(Residential!$G$15="","",Residential!$G$15) ->  | R2: =IF(Residential!$I$15="","",Residential!$I$15) ->  | S2: =IF(Residential!$K$15="","",Residential!$K$15) ->  | T2: =IF(Residential!$M$15="","",Residential!$M$15) ->  | U2: =IF(Residential!$O$15="","",Residential!$O$15) ->  | V2: =IF(Residential!$E$16="","",Residential!$E$16) ->  | W2: =IF(Residential!$G$16="","",Residential!$G$16) ->  | X2: =IF(Residential!$I$16="","",Residential!$I$16) ->  | Y2: =IF(Residential!$K$16="","",Residential!$K$16) ->  | Z2: =IF(Residential!$M$16="","",Residential!$M$16) ->  | AA2: =IF(Residential!$O$16="","",Residential!$O$16) ->  | AB2: =IF(Residential!$E$17="","",Residential!$E$17) ->  | AC2: =IF(Residential!$G$17="","",Residential!$G$17) ->  | AD2: =IF(Residential!$I$17="","",Residential!$I$17) ->  | AE2: =IF(Residential!$K$17="","",Residential!$K$17) ->  | AF2: =IF(Residential!$M$17="","",Residential!$M$17) ->  | AG2: =IF(Residential!$O$17="","",Residential!$O$17) ->  | AH2: =Residential!$E$19 -> 0 | AI2: =Residential!$G$19 -> 0 | AJ2: =Residential!$I$19 -> 0 | AK2: =Residential!$K$19 -> 0 | AL2: =Residential!$M$19 -> 0 | AM2: =Residential!$O$19 -> 0 | AN2: =Residential!$E$20 -> 0 | AO2: =Residential!$G$20 -> 0 | AP2: =Residential!$I$20 -> 0 | AQ2: =Residential!$K$20 -> 0 | AR2: =Residential!$M$20 -> 0 | AS2: =Residential!$O$20 -> 0 | AT2: =Residential!$E$21 -> 0 | AU2: =Residential!$G$21 -> 0 | AV2: =Residential!$I$21 -> 0 | AW2: =Residential!$K$21 -> 0 | AX2: =Residential!$M$21 -> 0 | AY2: =Residential!$O$21 -> 0 | AZ2: =Residential!$E$22 -> 0 | BA2: =Residential!$G$22 -> 0 | BB2: =Residential!$I$22 -> 0 | BC2: =Residential!$K$22 -> 0 | BD2: =Residential!$M$22 -> 0 | BE2: =Residential!$O$22 -> 0 | BF2: =Residential!$E$23 -> 0 | BG2: =Residential!$G$23 -> 0 | BH2: =Residential!$I$23 -> 0 | BI2: =Residential!$K$23 -> 0 | BJ2: =Residential!$M$23 -> 0 | BK2: =Residential!$O$23 -> 0 | BL2: =Residential!$E$25 -> 0 | BM2: =Residential!$G$25 -> 0 | BN2: =Residential!$I$25 -> 0 | BO2: =Residential!$K$25 -> 0 | BP2: =Residential!$M$25 -> 0 | BQ2: =Residential!$O$25 -> 0 | BR2: =Residential!$E$26 -> 0 | BS2: =Residential!$G$26 -> 0 | BT2: =Residential!$I$26 -> 0 | BU2: =Residential!$K$26 -> 0 | BV2: =Residential!$M$26 -> 0 | BW2: =Residential!$O$26 -> 0 | BX2: =Residential!$G$50 -> 0 | BY2: =Residential!$G$51 -> 0 | BZ2: =Residential!$G$52 -> 0 | CA2: =Residential!$G$53 -> 0 | CB2: =Residential!$G$54 -> 0 | CC2: =Residential!$G$55 -> 0 | CD2: =Residential!$G$56 -> 0 | CE2: =Residential!$G$57 -> 0 | CF2: =Residential!$G$58 -> 0 | CG2: =Residential!$G$59 -> 0 | CH2: =Residential!$G$60 -> 0 | CI2: =Residential!$G$61 -> 0 | CJ2: =Residential!$G$62 -> 0 | CK2: =Residential!$G$63 -> 0 | CL2: =Residential!$G$64 -> 0 | CM2: =Residential!$G$65 -> 0 | CN2: =Residential!$F$50 -> Yes | CO2: =Residential!$F$51 -> No | CP2: =Residential!$F$52 -> No | CQ2: =Residential!$F$53 -> Yes | CR2: =Residential!$F$54 -> Yes | CS2: =Residential!$F$55 -> Yes | CT2: =Residential!$F$56 -> Yes | CU2: =Residential!$F$57 -> Yes | CV2: =Residential!$F$58 -> Yes | CW2: =Residential!$F$59 -> Yes | CX2: =Residential!$F$60 -> No | CY2: =Residential!$F$61 -> Yes | CZ2: =Residential!$F$62 -> Yes | DA2: =Residential!$F$63 -> No | DB2: =Residential!$F$64 -> No | DC2: =Residential!$F$65 -> No | DD2: =Residential!$M$50 -> 0 | DE2: =Residential!$M$51 -> 0 | DF2: =Residential!$M$52 -> 0 | DG2: =Residential!$M$53 -> 0 | DH2: =Residential!$E$37 -> 0 | DI2: =Residential!$G$37 -> 0 | DJ2: =Residential!$I$37 -> 0 | DK2: =Residential!$K$37 -> 0 | DL2: =Residential!$M$37 -> 0 | DM2: =Residential!$O$37 -> 0 | DN2: =Residential!$E$39 -> 0 | DO2: =Residential!$G$39 -> 0 | DP2: =Residential!$I$39 -> 0 | DQ2: =Residential!$K$39 -> 0 | DR2: =Residential!$M$39 -> 0 | DS2: =Residential!$O$39 -> 0 | DT2: =Residential!$R$39 -> 0 | DU2: =Residential!$E$40 -> 0 | DV2: =Residential!$G$40 -> 0 | DW2: =Residential!$I$40 -> 0 | DX2: =Residential!$K$40 -> 0 | DY2: =Residential!$M$40 -> 0 | DZ2: =Residential!$O$40 -> 0 | EA2: =Residential!$R$40 -> 0 | EB2: =Residential!$R$41 -> 0 | EC2: =Residential!$R$42 -> 0 | ED2: =Residential!$R$43 -> 0 | EE2: =BaselineAssessmentRate -> 0.055 | EF2: =AssessmentLoading -> 0.02 | EG2: =CreditCardCommitments -> 0.0382 | EH2: =WorkingsForNegativeGearing -> 0.0604 | EI2: =OtherMortgageRepaymentBuffer -> 1.25 | EJ2: =RentalIncomeShading -> 0.8 | EK2: =CompanyTax -> 0.25 | EL2: =ROUND(Residential!$E$71,2) -> 0 | EM2: =ROUND(Residential!$E$72,2) -> 0 | EN2: =ROUND(Residential!$E$73,2) -> 0 | EO2: =ROUND(Residential!$E$74,2) -> 0 | EP2: =ROUND(Residential!$E$75,2) -> 0 | EQ2: =ROUND(Residential!$E$76,2) -> 0 | ER2: =ROUND(Residential!$G$71,2) -> 0 | ES2: =ROUND(Residential!$G$72,2) -> 0 | ET2: =ROUND(Residential!$G$73,2) -> 0 | EU2: =ROUND(Residential!$G$74,2) -> 0 | EV2: =ROUND(Residential!$G$75,2) -> 0 | EW2: =ROUND(Residential!$G$76,2) -> 0 | EX2: =ROUND(Residential!$M$71,2) -> 0 | EY2: =ROUND(Residential!$M$72,2) -> 0 | EZ2: =ROUND(Residential!$M$73,2) -> 0 | FA2: =ROUND(Residential!$M$74,2) -> 0 | FB2: =ROUND(Residential!$M$75,2) -> 0 | FC2: =ROUND(Residential!$M$76,2) -> 0 | FD2: =ROUND(Residential!$O$71,2) -> 0 | FE2: =ROUND(Residential!$O$72,2) -> 0 | FF2: =ROUND(Residential!$O$73,2) -> 0 | FG2: =ROUND(Residential!$O$74,2) -> 0 | FH2: =ROUND(Residential!$O$75,2) -> 0 | FI2: =ROUND(Residential!$O$76,2) -> 0 | FJ2: =Residential!$E$78 -> 0 | FK2: =Residential!$E$79 -> - | FL2: =Residential!$G$78 -> INCOMPLETE | FM2: =Residential!$M$78 -> 0 | FN2: =Residential!$M$79 -> - | FO2: =Residential!$O$78 -> INCOMPLETE | FP2: =IF(Residential!$M$85<>"Incomplete",ROUND(Residential!$M$85,2),Residential!$M$85) -> INCOMPLETE

Sheet Version Control (hidden)
A1: Version | B1: Created date | C1: Date Effective | D1: Created By | E1: Approved By | F1: Change
A2: 2.5 | F2: Assessment rate +1.00% Credit Card assess @2.00% of limit Living Expenses: Single - $10,650 Joint - $15,480 Additional Adult - $3,500 Additional Children - $3,740 Rental Income – 85% of gross
A3: 2.6 | F3: Assessment rate +1.00% Credit Card assess @2.00% of limit Living Expenses: Single - $10,650 Joint - $15,480 Additional Adult - $4,830 Additional Children - $3,740 Rental Income – 85% of gross
A4: 2.7 | F4: Assessment rate +1.00% Credit Card assess @2.00% of limit Living Expenses: Single - $10,650 Joint - $15,480 Additional Adult - $3,500 Additional Children - $3,740 Rental Income – 85% of gross
A5: 2.8
A6: 2.9 | B6: 2008 | F6: Assessment rate +1.50% Credit Card assess @2.00% of limit Living Expenses: Single - $11,500 Joint - $16,500 Additional Adult - $5,000 Additional Children - $4,200
A7: 3.2 | B7: 2008 | F7: Assessment rate +1.50% Credit Card assess @2.00% of limit Living Expenses: Single - $12,750 Joint - $18,250 Additional Children - $4,600
A8: 3.7 | B8: 2011-01-28 | F8: Assessment rate +2.00% Credit Card assess @2.00% of limit Living Expenses: Single - $14,400 Joint - $20,400 Additional Adult - $14,000 Additional Children - $5,240 Rental Income – 85% of gross Other Mortgage Payments – Actual Other Liabilities – Actual
A9: 4.2
A10: 4.3 | F10: Assessment rate +2.00% Credit Card assess @2.00% of limit Living Expenses: Single - $15,564 Joint - $22,620 Each Dep Child - $5,520 Rental Income – 100% of gross Other Mortgage Payments – Actual Other Liabilities – Actual
A11: 4.5 | F11: Assessment rate +2.00% Credit Card assess @2.00% of limit Living Expenses: Single - $15,564 Joint - $22,620 Each Dep Child - $5,520 Rental Income – 100% of gross Other Mortgage Payments – Actual Other Liabilities – Actual
A12: 4.6 | F12: Assessment rate +2.00% Credit Card assess @2.00% of limit Living Expenses: Single - $15,564 Joint - $22,620 Each Dep Child - $5,520 Rental Income – 100% of gross Other Mortgage Payments – Actual Other Liabilities – Actual
A13: 4.92 | B13: 2015-09-01 | F13: Assessment rate +2.00% or Floor of 7.20% Credit Card assess @3.00% of limit Living Expenses: Single - $15,564 Joint - $26,724 Additional Children - $5,520 Rental Income – 80% of gross Other Mortgage Payments - +20% Other Liabilities – Actual
A14: 4.93
A15: 4.94
A16: 4.96
A17: 4.97 | B17: 2018-03-18 | C17: 2018-05-28 | D17: Neil Culkin | E17: Neil Culkin | F17: Version control added Adopted LIXI+ living expense categorisation. Removed mandatory fields for living expenses (broker version only) Added FY2018 tax rates (brackets 3 & 4 income ranges) Updated HPI per latest rates (Q4 2017) from Melbourne Institute Negative gearing benefit removed for Untaxed income and Add Backs (F39 & F40) P&I repayment now being quoted (E55 & E57) Repayment formula’s updated to PMT (I8 & J8) Mandatory entry of cells for living expenses removed as broker get confused when not applicable. E29 & F29 deleted and B40 changed from 8 to 7 (“rates” sheet) Added comments, extracts from and links to the ATO website in the ‘rates’ tab to explain that there are separate 2 calculations at play, now reflected in the tax calculation (I32:I37) for the broker version:  Tax Offset for Low income earners  Medicare levy calculation and Medicare Levy reduction for Low Income earners
A18: 4.97 | B18: 2018-05-28 | C18: 2018-05-28 | D18: Neil Culkin | E18: Neil Culkin | F18: Cell D9 amended from "Loan Term:" to "Loan Term (years)"
A19: 4.98 | B19: 2018-07-17 | C19: 2018-08-13 | D19: Neil Culkin | E19: Neil Culkin | F19: Cell B8 now includes commentary that loan amount includes capitalised fee (effective 16/7/2018) Requirement for DSR < 50% removed to align with policy NSR must be at least 1.35x for LVR > 90%
A20: 4.981 | C20: 2018-10-15 | F20: New internal loan assessment template
A21: 5 | C21: 2019-01-01 | D21: Neil Culkin | E21: Credit Committee | F21: Calculator restructured to cater for 2018 Q1 HEM Living Expense CRE calculator created Other mortgage repayments will be loaded by 25% up from 20% Income for 32.5% tax bracket increase from $87,000 to $90,000 Negative gearing calculation rate increased to 4.8% to match market offer
A22: 5.1 | B22: 2019-04-04 | C22: 2019-04-17 | D22: Devika Dharmapalan | E22: Neil Culkin | F22: 1) A pop up box is to appear on the calculator in the below highlighted area if: The customer declared living expenses (cell R41) is less than 90% of the benchmark (cell R40) AND NSR (cell M75) < 1.5x OR The assessed NSR (cell M75) is ≥1.00 and ≤1.10x AND R40 > R41 The message is to state “To assist Pepper in verifying the customer living expenses, please provide last 3 months transaction bank statements” 2) Set to True, "Is An Applicant" Cell in both Residential and CRE Tabs, when an applicant exsist but income column is blank or zero 3) Change Tab Name "CRE" to "Commercial" and change the heading from "CRE Serviciability Calculator" to "Commercial Servicability Calculator" 4) Add new Tab "Assessment Notes - Commercial" 5) Change Tab Name "Assessment Notes" to "Assessment Notes - Residential" 6) Change Tab Name "User Guide - CRE" to "User Guide Commercial" 7) Change All Macrose to Refer "Commercial" tab instead of "CRE" 8) Remove "Lease Doc" option from Documnetation Type Field in "Commercial Tab" 9) Devika added the contents provided by Paul Dean to "Assessment Notes -Commercial" 10) Commercial tab - Cell E,G,I,K 52 amended to use income as E,G,I,K 47 less tax instead of E,G,I,K 66. Total taxable Income has to do with the income bracket used to determine the corresponding HEM living expense whereas the total income is what should be used for servicing 11) Eligible and maximum borrowing amounts (M82 & M83) to note minimum amount of $0
A23: 5.2 | B23: 2018-06-05 | D23: Neil Culkin | E23: Credit Committee | F23: 1) BBS & BAS calculator updated 2) Credit card repayment calculation amended from 3% to 3.82% which as a proxy for assessing a credit card limit being ammortised over 3 years at an interest rate of 22%
A24: 5.3 | B24: 2019-09-23 | C24: 2019-10-01 | D24: Mick Sedgers | E24: Neil Culkin | F24: 1. Reduce Assessment benchmark interest rate to 5.85% (Floor Rate) and Assessment buffer to be increased to 2.50%. 2. reduce the negative gearing interest rate to 4.06%
A25: 5.4 | B25: 2020-01-06 | C25: 2020-03-30 | D25: Neil Culkin | E25: Neil Culkin | F25: 1. Living Expense Benchmark updated to HEM Q4 2019 2. Adjusted Company Tax rate from 30% to 27.5%. This applies to companies with turnovers < $50m which aligns to the Pepper customer profile. 3. Adjusted CRE ICR & DSCR ratio's changed to 3 decimal places to allow for rounding to the required ICR & DSCR which is on a two declimal point basis. 4. Fix error: DSR calculation was deducting rental expense (cell M50) from the numerator in the calculation on a monthly basis instead of annual resulting in a over-statement of debt in the calculation. Amended to annual figure. 5. Reduce the negative gearing interest rate to 3.67%
A26: 5.5 | B26: 2020-06-22 | C26: 2020-07-01 | D26: Neil Culkin | E26: Neil Culkin | F26: 1. Removal of Self employed 1.25 NSR requirement in notes 2. Adjustment of Company tax from 27.5% to 26% for FY21 tax rates 3. Addition of Trust question in underwriter templates 4. Correction in Rental Schedule to calculate share for DSC from 100% column J) and not buffered (column L). 5. Addition to Rental Schedule to calculate Investment Loan amount for each borrower (columns O & P) 5. Add 2 additional borrowers in rental Schedule
A27: 5.6 | B27: 2020-09-10 | C27: 2020-09-17 | D27: Neil Culkin | E27: Neil Culkin | F27: 1. Reduce Assessment benchmark interest rate to 5.50% (Floor Rate) 2. Living Expense Benchmark updated to HEM Q2 2020
A28: 5.7 | B28: 2020-10-23 | C28: 2020-11-12 | D28: Devika Dharmapalan | E28: Neil Culkin | F28: 1. Updated FY 2021 personal tax rates 2. Ability to enter to Pepper loan amounts for serviceability (Residential) 3. Re-introduction of construction loan NSR requirement note 4. CRE Better Choice calculator with ICR/DSCR "Refer to BDM" message 5. Business name entered to SEIC sheet
A29: 5.8 | B29: 2021-05-24 | C29: 2021-08-16 | D29: Neil Culkin | E29: Neil Culkin | F29: 1. Living Expense Benchmark updated to HEM Q1 2021 2. Reduce negative gearing interest rate to 3.29% 3. Correction in Maximum Serviceable Loan Amount formula as the maximum IO term was being conservatively applied to all splits. 4. Updated Compant Tax rate from 26.00% to 25.00% 5. Assessment note template changes to include Greater Sydney COVID impact assessment and change Credit File Summary to adverse credit assessment
A30: 5.8a | B30: 2021-08-26 | C30: 2021-08-26 | D30: Neil Culkin | E30: Neil Culkin | F30: 1. Addition of Jackson Data Entry tab (Internal Credit Version only)
A31: 5.8b | B31: 2021-08-30 | C31: 2021-08-30 | D31: Neil Culkin | E31: Neil Culkin | F31: 1. COVID Impact Assessment expanded to include VIC (Internal Credit Version only)
A32: 5.8c | B32: 2021-12-02 | C32: 2021-12-02 | D32: Neil Culkin | E32: Neil Culkin | F32: 1. COVID Impact Assessment removed (Internal Credit Version only)
A33: 5.8d | B33: 2022-03-02 | C33: 2022-03-02 | D33: Neil Culkin | E33: Neil Culkin | F33: 1. CRE maxium loan term adjusted from 25 to 30 years
A34: 5.9 | B34: 2022-04-08 | C34: Release with 6.0 v2 | D34: Neil Culkin & Devika Dharmapalan | E34: Neil Culkin | F34: 1. Removal on construction loan 1.10x NSR requirement 2. Addition of 1.25x NSR requirement when aggreated loan > $1.5m and aggregated LVR > 70% 3. HEM updated to Q42021 4. Company name updated to Pepper Money Ltd. 5. "Assessment Notes - Residential" sheet deleted 6. Change the text from “To assist in verifying the customers living expenses, please provide last 3 months transaction bank statements” to “The living expenses declared by the customer are at risk of being understated when compared to a living expense benchmark. A Level 5 Pepper DCA holder will be required to approve this application”. 7. Change the logic for the text of point 1 to appear only when the NSR is < 1.5x AND the ‘Compared to HEM’ expenses (per below table) are < 80% of the benchmark. 8. Amened the 'Living Expense Used' field (R42) formula to = [Higher of 'Compared to HEM' expenses & HEM] + [Expenses not 'Compared to HEM' excluding Investment property costs] + [Investment Property costs - (Rental Income x 15%)]. Changed Formula R42 in Residential Tab from "=MAX(R40:R41)" to =MAX(R40,E41)+K41+MAX(0,((G52*12)-(R25*15%))) 9. Amended Living Expense categories and included differentiation as to which categoreis are compared to HEM and which are added to the higher of (those categories compared to HEM and HEM) 10. Adjusted the "Data" tab to include new living expense categories 11. Adjusted the Test Cases tab to include new living expense categories 12. Correction of cell B7 on 'Jackson Data Entry' sheet to pick up benchmark and not LE result. This was applied in v5.8(d) for CRE. 13. 'User Guide - Residential' updated to include new or amended categories
A35: 6 | B35: 2022-05-24 | C35: Release with 6.0 v2 | D35: Neil Culkin | E35: Neil Culkin | F35: 1. Update HEM benchmark from Q421 to Q122
A36: 6.0 v2 | B36: 2022-06-20 | C36: 2022-07-01 | D36: Neil Culkin | E36: Neil Culkin | F36: 1. 'Residential' tab, Workings for Negative Gearing (cells E33, G33, I33, K33, M33, O33) corrected to deduct G52 (investment property expenses) not G51 (body corporate & land tax expenses)
A37: 6.0 v3 | B37: 2022-06-20 | C37: 2022-07-01 | D37: Neil Culkin | E37: Neil Culkin | F37: 1. 'Residential' tab, Workings for Negative Gearing (cells E33, G33, I33, K33, M33, O33) corrected to deduct G52 (investment property expenses) not G51 (body corporate & land tax expenses)
A38: 6.1 | B38: 2022-07-19 | C38: 2023-02-01 | D38: Neil Culkin | E38: Neil Culkin | F38: 1. Update HEM benchmark from Q122 to Q322 2. Update Superannuation addback label on SEIC from 9% to 10.50% 3. Inclusion of First Home Buyer Choice property tax into the living expense definitions
A39: 6.2 | B39: 2023-05-17 | C39: 2023-07-01 | D39: Neil Culkin | E39: Neil Culkin | F39: 1. Update HEM benchmark from Q322 to Q123 2. Reduce negative gearing interest rate to 6.04% 3. Tax tables updated (medicare levy and low income tax offset) 4. Release of BBS & BAS calculator to brokers
A40: 6.3 | B40: 2023-07-28 | C40: 2023-08-04 | D40: Neil Culkin | E40: Neil Culkin | F40: 1. Introduction of 1% interest buffer with specific eligbility 2. Interest rate buffer adjusted from 2.5% to 2% (Residential Lending programs only, CRE not included) 3. Adjustment of NSR requirement for > 90% LVR loans from 1.35 to 1.25x
A41: 6.4 | B41: 2023-10-06 | C41: 2023-10-31 | D41: Neil Culkin | E41: Neil Culkin | F41: 1. Update HEM benchmark from Q123 to Q223 2. Commercial: Minimum ICR removed 3. Commercial: Minimum DSCR amended to 1x Fulldoc & Leasedoc and 1.2x for Altdoc 4. Commercial: Assessment rate introduced being higher of floor rate and actual rate + 2% 5. Better Choice commercial serviceability calculator deleted 6. Row 51 (commercial calculator) updated to include the same tax offset formula as residential calculator.

Sheet CommercialData (hidden)
A1: Proposed Loan Details | F1: Business Loan Details | R1: Business Income / Expenses (Income) | U1: Business Income / Expenses (Add Backs) | Z1: Personal Income / Expenses | CC1: Calculation | CU1: Inputs | DB1: Results
A2: New Loan Amount | B2: Interest Rate | C2: Documentation Type | D2: Loan Term (Years) | E2: I/O Term (Years) | F2: Loan Amount 1 | G2: Rate 1 | H2: Actual Loan Repayment (Monthly) 1 | I2: Loan Amount 2 | J2: Rate 2 | K2: Actual Loan Repayment (Monthly) 2 | L2: Loan Amount 3 | M2: Rate 3 | N2: Actual Loan Repayment (Monthly) 3 | O2: Loan Amount 4 | P2: Rate 4 | Q2: Actual Loan Repayment (Monthly) 4 | R2: Net Profit Before Tax | S2: Proposed Net CRE Rental Income | T2: Proposed Gross Residential Rental Income | U2: Depreciation | V2: Ammortisation | W2: Interest Paid | X2: Directors Salaries/ Fees / Super | Y2: Other | Z2: Status Applicant 1 | AA2: Status Applicant 2 | AB2: Status Applicant 3 | AC2: Status Applicant 4 | AD2: Couple with Applicant 1 | AE2: Couple with Applicant 2 | AF2: Couple with Applicant 3 | AG2: Couple with Applicant 4 | AH2: Dependent Applicant 1 | AI2: Dependent Applicant 2 | AJ2: Dependent Applicant 3 | AK2: Dependent Applicant 4 | AL2: Gross Annual Income Applicant 1 | AM2: Gross Annual Income Applicant 2 | AN2: Gross Annual Income Applicant 3 | AO2: Gross Annual Income Applicant 4 | AP2: Untaxed Allowable Income Applicant 1 | AQ2: Untaxed Allowable Income Applicant 2 | AR2: Untaxed Allowable Income Applicant 3 | AS2: Untaxed Allowable Income Applicant 4 | AT2: Gross Residential Rental Income (Other) Applicant 1 | AU2: Gross Residential Rental Income (Other) Applicant 2 | AV2: Gross Residential Rental Income (Other) Applicant 3 | AW2: Gross Residential Rental Income (Other) Applicant 4 | AX2: Investment Property Loan Balance (personal name) Applicant 1 | AY2: Investment Property Loan Balance (personal name) Applicant 2 | AZ2: Investment Property Loan Balance (personal name) Applicant 3 | BA2: Investment Property Loan Balance (personal name) Applicant 4 | BB2: Living Expenses Monthly (Declared Living Expenses) | BC2: Rent/Board | BD2: Total Credit Card Limit | BE2: Personal Mortgage Repayments | BF2: Other Consumer Debt | BG2: P&I Repayment | BH2: IO Repayment | BI2: Earning Before Interest, Tax, Depreciation & Ammortisation (EBITDA) | BJ2: Total Add Backs | BK2: Total Income Applicant 1 | BL2: Total Income Applicant 2 | BM2: Total Income Applicant 3 | BN2: Total Income Applicant 4 | BO2: Total Gross Annual Income of All Applicants | BP2: Tax Applicant 1 | BQ2: Tax Applicant 2 | BR2: Tax Applicant 3 | BS2: Tax Applicant 4 | BT2: Tax offset for Low Income Earners Applicant 1 | BU2: Tax offset for Low Income Earners Applicant 2 | BV2: Tax offset for Low Income Earners Applicant 3 | BW2: Tax offset for Low Income Earners Applicant 4 | BX2: Total Net Annual Income Applicant 1 | BY2: Total Net Annual Income Applicant 2 | BZ2: Total Net Annual Income Applicant 3 | CA2: Total Net Annual Income Applicant 4 | CB2: Total Net Annual Income of All Applicants | CC2: Total Taxable Income Applicant 1 | CD2: Total Taxable Income Applicant 2 | CE2: Total Taxable Income Applicant 3 | CF2: Total Taxable Income Applicant 4 | CG2: Total Taxable Income For All Applicants | CH2: Spouse Income Applicant 1 | CI2: Spouse Income Applicant 2 | CJ2: Spouse Income Applicant 3 | CK2: Spouse Income Applicant 4 | CL2: Hem Living Expense Applicant 1 | CM2: Hem Living Expense Applicant 2 | CN2: Hem Living Expense Applicant 3 | CO2: Hem Living Expense Applicant 4 | CP2: Hem Living Expense Total | CQ2: Customer Nominated Living Expenses | CR2: Used Living Expenses | CS2: Personal rent | CT2: Personal Debt | CU2: Baseline Assessment Rate | CV2: Assessment Loading | CW2: Credit Card Commitments | CX2: Workings for Negative Gearing | CY2: Other Mortgage Repayment Buffer | CZ2: Rental Income Shading | DA2: Company Tax | DB2: Business income (EBITDA + net personal contribution) | DC2: Interest Expenses | DD2: Debt Repayments | DE2: Interest Coverage Ratio (ICR) % | DF2: Debt Service Coverage Ratio (DSCR) % | DG2: Interest Coverage Ratio (ICR) Flag | DH2: Debt Service Coverage Ratio (DSCR) Flag | DI2: Application Status Flag
A3: =Commercial!$E$8 -> 0 | B3: =Commercial!$I$8 -> 0 | C3: =Commercial!$E$9 -> 0 | D3: =Commercial!$I$9 -> 0 | E3: =Commercial!$I$10 -> 0 | F3: =Commercial!$E$18 -> 0 | G3: =Commercial!$G$18 -> 0 | H3: =Commercial!$I$18 -> 0 | I3: =Commercial!$E$19 -> 0 | J3: =Commercial!$G$19 -> 0 | K3: =Commercial!$I$19 -> 0 | L3: =Commercial!$E$20 -> 0 | M3: =Commercial!$G$20 -> 0 | N3: =Commercial!$I$20 -> 0 | O3: =Commercial!$E$21 -> 0 | P3: =Commercial!$G$21 -> 0 | Q3: =Commercial!$I$21 -> 0 | R3: =Commercial!$E$27 -> 0 | S3: =Commercial!$E$28 -> 0 | T3: =Commercial!$E$29 -> 0 | U3: =Commercial!$K$27 -> 0 | V3: =Commercial!$K$28 -> 0 | W3: =Commercial!$K$29 -> 0 | X3: =Commercial!$K$30 -> 0 | Y3: =Commercial!$K$31 -> 0 | Z3: =Commercial!$E$39 -> 0 | AA3: =Commercial!$G$39 -> 0 | AB3: =Commercial!$I$39 -> 0 | AC3: =Commercial!$K$39 -> 0 | AD3: =Commercial!$E$40 -> 0 | AE3: =Commercial!$G$40 -> 0 | AF3: =Commercial!$I$40 -> 0 | AG3: =Commercial!$K$40 -> 0 | AH3: =Commercial!$E$41 -> 0 | AI3: =Commercial!$G$41 -> 0 | AJ3: =Commercial!$I$41 -> 0 | AK3: =Commercial!$K$41 -> 0 | AL3: =Commercial!$E$44 -> 0 | AM3: =Commercial!$G$44 -> 0 | AN3: =Commercial!$I$44 -> 0 | AO3: =Commercial!$K$44 -> 0 | AP3: =Commercial!$E$45 -> 0 | AQ3: =Commercial!$G$45 -> 0 | AR3: =Commercial!$I$45 -> 0 | AS3: =Commercial!$K$45 -> 0 | AT3: =Commercial!$E$46 -> 0 | AU3: =Commercial!$G$46 -> 0 | AV3: =Commercial!$I$46 -> 0 | AW3: =Commercial!$K$46 -> 0 | AX3: =Commercial!$E$49 -> 0 | AY3: =Commercial!$G$49 -> 0 | AZ3: =Commercial!$I$49 -> 0 | BA3: =Commercial!$K$49 -> 0 | BB3: =Commercial!$E$55 -> 0 | BC3: =Commercial!$K$55 -> 0 | BD3: =Commercial!$K$56 -> 0 | BE3: =Commercial!$K$57 -> 0 | BF3: =Commercial!$K$58 -> 0 | BG3: =Commercial!$I$11 -> 0 | BH3: =Commercial!$I$12 -> 0 | BI3: =Commercial!$E$33 -> 0 | BJ3: =Commercial!$K$33 -> 0 | BK3: =Commercial!$E$47 -> 0 | BL3: =Commercial!$G$47 -> 0 | BM3: =Commercial!$I$47 -> 0 | BN3: =Commercial!$K$47 -> 0 | BO3: =Commercial!$P$47 -> 0 | BP3: =Commercial!$E$50 -> 0 | BQ3: =Commercial!$G$50 -> 0 | BR3: =Commercial!$I$50 -> 0 | BS3: =Commercial!$K$50 -> 0 | BT3: =Commercial!$E$51 -> 0 | BU3: =Commercial!$G$51 -> 0 | BV3: =Commercial!$I$51 -> 0 | BW3: =Commercial!$K$51 -> 0 | BX3: =Commercial!$E$52 -> 0 | BY3: =Commercial!$G$52 -> 0 | BZ3: =Commercial!$I$52 -> 0 | CA3: =Commercial!$K$52 -> 0 | CB3: =Commercial!$P$52 -> 0 | CC3: =Commercial!$E$66 -> 0 | CD3: =Commercial!$G$66 -> 0 | CE3: =Commercial!$I$66 -> 0 | CF3: =Commercial!$K$66 -> 0 | CG3: =Commercial!$P$66 -> 0 | CH3: =Commercial!$E$67 -> 0 | CI3: =Commercial!$G$67 -> 0 | CJ3: =Commercial!$I$67 -> 0 | CK3: =Commercial!$K$67 -> 0 | CL3: =Commercial!$E$69 -> 0 | CM3: =Commercial!$G$69 -> 0 | CN3: =Commercial!$I$69 -> 0 | CO3: =Commercial!$K$69 -> 0 | CP3: =Commercial!$P$69 -> 0 | CQ3: =Commercial!$P$70 -> 0 | CR3: =Commercial!$P$71 -> 0 | CS3: =Commercial!$P$72 -> 0 | CT3: =Commercial!$P$73 -> 0 | CU3: =BaselineAssessmentRate -> 0.055 | CV3: =AssessmentLoading -> 0.02 | CW3: =CreditCardCommitments -> 0.0382 | CX3: =WorkingsForNegativeGearing -> 0.0604 | CY3: =OtherMortgageRepaymentBuffer -> 1.25 | CZ3: =RentalIncomeShading -> 0.8 | DA3: =CompanyTax -> 0.25 | DB3: =Commercial!$E$81 -> 0 | DC3: =Commercial!$I$81 -> 0 | DD3: =Commercial!$I$82 -> 0 | DE3: =Commercial!$I$85 -> 0 | DF3: =Commercial!$I$86 -> 0 | DG3: =Commercial!$K$85 -> 0 | DH3: =Commercial!$K$86 -> INCOMPLETE | DI3: =Commercial!$I$89 -> INCOMPLETE

Sheet CommercialTestCases (hidden)
A1: Test Cases TestCases TestCases TestCases TestCases TestCases TestCases TestCases TestCases TestCases TestCases TestCases TestCases TestCases TestCases TestCases TestCases TestCases TestCases TestCases TestCases TestCases TestCases TestCases TestCases TestCases TestCases TestCases TestCases TestCases TestCases TestCases TestCases TestCases TestCases TestCases TestCases TestCases TestCases TestCases TestCases TestCases TestCases TestCases TestCases TestCases TestCases TestCases TestCases TestCases TestCases TestCases TestCases TestCases TestCases TestCases TestCases TestCases TestCases TestCases TestCases TestCases TestCases TestCases TestCases TestCases TestCases TestCases TestCases TestCases TestCases TestCases TestCases TestCases TestCases TestCases TestCases TestCases TestCases TestCases TestCases TestCases TestCases TestCases | BG1: Original-Result-set Original-Result-set Original-Result-set Original-Result-set Original-Result-set Original-Result-set Original-Result-set Original-Result-set Original-Result-set Original-Result-set Original-Result-set Original-Result-set Original-Result-set Original-Result-set Original-Result-set Original-Result-set Original-Result-set Original-Result-set Original-Result-set Original-Result-set Original-Result-set Original-Result-set Original-Result-set Original-Result-set Original-Result-set Original-Result-set Original-Result-set Original-Result-set Original-Result-set Original-Result-set Original-Result-set Original-Result-set Original-Result-set | DJ1: New-Resultset New-Resultset New-Resultset New-Resultset New-Resultset New-Resultset New-Resultset New-Resultset New-Resultset New-Resultset New-Resultset New-Resultset New-Resultset New-Resultset New-Resultset New-Resultset New-Resultset New-Resultset New-Resultset New-Resultset New-Resultset New-Resultset New-Resultset New-Resultset New-Resultset New-Resultset New-Resultset | FM1: Test cases will run when date tested is blank and Run Scenario Flag is "Y"
A2: New Loan Amount | B2: Interest Rate | C2: Documentation Type | D2: Loan Term (Years) | E2: I/O Term (Years) | F2: Loan Amount 1 | G2: Rate 1 | H2: Actual Loan Repayment (Monthly) 1 | I2: Loan Amount 2 | J2: Rate 2 | K2: Actual Loan Repayment (Monthly) 2 | L2: Loan Amount 3 | M2: Rate 3 | N2: Actual Loan Repayment (Monthly) 3 | O2: Loan Amount 4 | P2: Rate 4 | Q2: Actual Loan Repayment (Monthly) 4 | R2: Net Profit Before Tax | S2: Proposed Net CRE Rental Income | T2: Proposed Gross Residential Rental Income | U2: Depreciation | V2: Ammortisation | W2: Interest Paid | X2: Directors Salaries/ Fees / Super | Y2: Other | Z2: Status Applicant 1 | AA2: Status Applicant 2 | AB2: Status Applicant 3 | AC2: Status Applicant 4 | AD2: Couple with Applicant 1 | AE2: Couple with Applicant 2 | AF2: Couple with Applicant 3 | AG2: Couple with Applicant 4 | AH2: Dependent Applicant 1 | AI2: Dependent Applicant 2 | AJ2: Dependent Applicant 3 | AK2: Dependent Applicant 4 | AL2: Gross Annual Income Applicant 1 | AM2: Gross Annual Income Applicant 2 | AN2: Gross Annual Income Applicant 3 | AO2: Gross Annual Income Applicant 4 | AP2: Untaxed Allowable Income Applicant 1 | AQ2: Untaxed Allowable Income Applicant 2 | AR2: Untaxed Allowable Income Applicant 3 | AS2: Untaxed Allowable Income Applicant 4 | AT2: Gross Residential Rental Income (Other) Applicant 1 | AU2: Gross Residential Rental Income (Other) Applicant 2 | AV2: Gross Residential Rental Income (Other) Applicant 3 | AW2: Gross Residential Rental Income (Other) Applicant 4 | AX2: Investment Property Loan Balance (personal name) Applicant 1 | AY2: Investment Property Loan Balance (personal name) Applicant 2 | AZ2: Investment Property Loan Balance (personal name) Applicant 3 | BA2: Investment Property Loan Balance (personal name) Applicant 4 | BB2: Living Expenses Monthly (Declared Living Expenses) | BC2: Rent/Board | BD2: Total Credit Card Limit | BE2: Personal Mortgage Repayments | BF2: Other Consumer Debt | BG2: P&I Repayment | BH2: IO Repayment | BI2: Earning Before Interest, Tax, Depreciation & Ammortisation (EBITDA) | BJ2: Total Add Backs | BK2: Total Income Applicant 1 | BL2: Total Income Applicant 2 | BM2: Total Income Applicant 3 | BN2: Total Income Applicant 4 | BO2: Total Gross Annual Income of All Applicants | BP2: Tax Applicant 1 | BQ2: Tax Applicant 2 | BR2: Tax Applicant 3 | BS2: Tax Applicant 4 | BT2: Tax offset for Low Income Earners Applicant 1 | BU2: Tax offset for Low Income Earners Applicant 2 | BV2: Tax offset for Low Income Earners Applicant 3 | BW2: Tax offset for Low Income Earners Applicant 4 | BX2: Total Net Annual Income Applicant 1 | BY2: Total Net Annual Income Applicant 2 | BZ2: Total Net Annual Income Applicant 3 | CA2: Total Net Annual Income Applicant 4 | CB2: Total Net Annual Income of All Applicants | CC2: Total Taxable Income Applicant 1 | CD2: Total Taxable Income Applicant 2 | CE2: Total Taxable Income Applicant 3 | CF2: Total Taxable Income Applicant 4 | CG2: Total Taxable Income For All Applicants | CH2: Spouse Income Applicant 1 | CI2: Spouse Income Applicant 2 | CJ2: Spouse Income Applicant 3 | CK2: Spouse Income Applicant 4 | CL2: Hem Living Expense Applicant 1 | CM2: Hem Living Expense Applicant 2 | CN2: Hem Living Expense Applicant 3 | CO2: Hem Living Expense Applicant 4 | CP2: Hem Living Expense Total | CQ2: Customer Nominated Living Expenses | CR2: Used Living Expenses | CS2: Personal rent | CT2: Personal Debt | CU2: Baseline Assessment Rate | CV2: Assessment Loading | CW2: Credit Card Commitments | CX2: Workings for Negative Gearing | CY2: Other Mortgage Repayment Buffer | CZ2: Rental Income Shading | DA2: Company Tax | DB2: Business income (EBITDA + net personal contribution) | DC2: Interest Expenses | DD2: Debt Repayments | DE2: Interest Coverage Ratio (ICR) % | DF2: Debt Service Coverage Ratio (DSCR) % | DG2: Interest Coverage Ratio (ICR) Flag | DH2: Debt Service Coverage Ratio (DSCR) Flag | DI2: Application Status Flag | DJ2: P&I Repayment | DK2: IO Repayment | DL2: Earning Before Interest, Tax, Depreciation & Ammortisation (EBITDA) | DM2: Total Add Backs | DN2: Total Income Applicant 1 | DO2: Total Income Applicant 2 | DP2: Total Income Applicant 3 | DQ2: Total Income Applicant 4 | DR2: Total Gross Annual Income of All Applicants | DS2: Tax Applicant 1 | DT2: Tax Applicant 2 | DU2: Tax Applicant 3 | DV2: Tax Applicant 4 | DW2: Tax offset for Low Income Earners Applicant 1 | DX2: Tax offset for Low Income Earners Applicant 2 | DY2: Tax offset for Low Income Earners Applicant 3 | DZ2: Tax offset for Low Income Earners Applicant 4 | EA2: Total Net Annual Income Applicant 1 | EB2: Total Net Annual Income Applicant 2 | EC2: Total Net Annual Income Applicant 3 | ED2: Total Net Annual Income Applicant 4 | EE2: Total Net Annual Income of All Applicants | EF2: Total Taxable Income Applicant 1 | EG2: Total Taxable Income Applicant 2 | EH2: Total Taxable Income Applicant 3 | EI2: Total Taxable Income Applicant 4 | EJ2: Total Taxable Income For All Applicants | EK2: Spouse Income Applicant 1 | EL2: Spouse Income Applicant 2 | EM2: Spouse Income Applicant 3 | EN2: Spouse Income Applicant 4 | EO2: Hem Living Expense Applicant 1 | EP2: Hem Living Expense Applicant 2 | EQ2: Hem Living Expense Applicant 3 | ER2: Hem Living Expense Applicant 4 | ES2: Hem Living Expense Total | ET2: Customer Nominated Living Expenses | EU2: Used Living Expenses | EV2: Personal rent | EW2: Personal Debt | EX2: Baseline Assessment Rate | EY2: Assessment Loading | EZ2: Credit Card Commitments | FA2: Workings for Negative Gearing | FB2: Other Mortgage Repayment Buffer | FC2: Rental Income Shading | FD2: Company Tax | FE2: Business income (EBITDA + net personal contribution) | FF2: Interest Expenses | FG2: Debt Repayments | FH2: Interest Coverage Ratio (ICR) % | FI2: Debt Service Coverage Ratio (DSCR) % | FJ2: Interest Coverage Ratio (ICR) Flag | FK2: Debt Service Coverage Ratio (DSCR) Flag | FL2: Application Status Flag | FM2: Pass or Fail | FN2: Run Scenario Flag | FO2: Date Tested | FP2: Scenario | FQ2: Sequence | FR2: Name
